Workbook

Sheet функция
A1: Очень часто бывает, что нам необходимо отразить цифры прописью (например, отобразить прописью количество страниц в документе), или для целей бухгалтерского учета, стоимость торговой операции нужно прописывать словам, то есть необходимая сумма прописью, однако в Excel нет стандартной функции для таких целей.
A2: Ниже вы найдете готовую функцию на VBA, которая переводит любое число до миллиарда в его текстовое отображение на украинском языке, то есть в сумму прописью. Перед использованием, эту функцию необходимо добавить в вашу книгу.
A3: Для этого:
A4: 1. Нажмите ALT+F11 , чтобы открыть редактор Visual Basic
A5: 2. Добавьте новый пустой модуль через меню Insert - Module
A6: 3. Скопируйте и вставьте туда текст этой функции:
A8: 1. Function SUMINWORDS(n As Double, curr As Variant, kop As Variant) As String
A9: 2. 'moonexcel.com.ua
A10: 3. Dim Nums1, Nums2, Nums3, Nums4 As Variant
A11: 4.
A12: 5. Nums0 = Array("", "одна ", "дві ", "три ", "чотири ", "п'ять ", "шість ", "сім ", "вісім ", "дев'ять ")
A13: 6. Nums1 = Array("", "один ", "два ", "три ", "чотири ", "п'ять ", "шість ", "сім ", "вісім ", "дев'ять ")
A14: 7. Nums2 = Array("", "десять ", "двадцять ", "тридцять ", "сорок ", "п'ятдесят ", "шістдесят ", "сімдесят ", _
A15: 8. "вісімдесят ", "дев'яносто ")
A16: 9. Nums3 = Array("", "сто ", "двісті ", "триста ", "чотириста ", "п'ятсот ", "шістсот ", "сімсот ", _
A17: 10. "вісімсот ", "дев'ятсот ")
A18: 11. Nums4 = Array("", "одна ", "дві ", "три ", "чотири ", "п'ять ", "шість ", "сім ", "вісім ", "дев'ять ")
A19: 12. Nums5 = Array("десять ", "одинадцять ", "дванадцять ", "тринадцять ", "чотирнадцять ", _
A20: 13. "п'ятнадцять ", "шістнадцять ", "сімнадцять ", "вісімнадцять ", "дев'ятнадцять ")
A21: 14.
A22: 15. If n < 1 Then
A23: 16. SUMINWORDS = "Нуль " & curr & " " & Round((n - Fix(n)) * 100) & " " & kop
A24: 17.
A25: 18. If curr = "" Then
A26: 19. SUMINWORDS = "Нуль"
A27: 20. End If
A28: 21.
A29: 22. Exit Function
A30: 23. End If
A31: 24. 'разделяем число на разряды, используя вспомогательную функцию Class
A32: 25. ed = Class(n, 1)
A33: 26. dec = Class(n, 2)
A34: 27. sot = Class(n, 3)
A35: 28. tys = Class(n, 4)
A36: 29. dectys = Class(n, 5)
A37: 30. sottys = Class(n, 6)
A38: 31. mil = Class(n, 7)
A39: 32. decmil = Class(n, 8)
A40: 33. sotmil = Class(n, 9)
A41: 34. bil = Class(n, 10)
A42: 35.
A43: 36. 'проверяем миллиарды
A44: 37.
A45: 38. Select Case bil
A46: 39.
A47: 40. Case 1
A48: 41. bil_txt = Nums1(bil) & "мільярд "
A49: 42. Case 2 To 4
A50: 43. bil_txt = Nums1(bil) & "мільярди "
A51: 44. Case 5 To 9
A52: 45. bil_txt = Nums1(bil) & "мільярдів "
A53: 46.
A54: 47. End Select
A55: 48.
A56: 49. 'проверяем миллионы
A57: 50.
A58: 51. Select Case sotmil
A59: 52. Case 1 To 9
A60: 53. sotmil_txt = Nums3(sotmil)
A61: 54. End Select
A62: 55.
A63: 56. Select Case decmil
A64: 57. Case 1
A65: 58. mil_txt = Nums5(mil) & "мільйонів "
A66: 59. GoTo www
A67: 60. Case 2 To 9
A68: 61. decmil_txt = Nums2(decmil)
A69: 62. End Select
A70: 63.
A71: 64. Select Case mil
A72: 65. Case 0
A73: 66. If decmil > 0 Then mil_txt = Nums4(mil) & "мільйонів "
A74: 67. Case 1
A75: 68. mil_txt = Nums1(mil) & "мільйон "
A76: 69. Case 2, 3, 4
A77: 70. mil_txt = Nums1(mil) & "мільйона "
A78: 71. Case 5 To 9
A79: 72. mil_txt = Nums1(mil) & "мільйонів "
A80: 73. End Select
A81: 74.
A82: 75. If decmil = 0 And mil = 0 And sotmil <> 0 Then sotmil_txt = sotmil_txt & "мільйонів "
A83: 76.
A84: 77. www:
A85: 78. sottys_txt = Nums3(sottys)
A86: 79. 'проверяем тысячи
A87: 80. Select Case dectys
A88: 81. Case 1
A89: 82. tys_txt = Nums5(tys) & "тисяч "
A90: 83. GoTo eee
A91: 84. Case 2 To 9
A92: 85. dectys_txt = Nums2(dectys)
A93: 86. End Select
A94: 87.
A95: 88. Select Case tys
A96: 89. Case 0
A97: 90. If dectys > 0 Then tys_txt = Nums4(tys) & "тисяч "
A98: 91. Case 1
A99: 92. tys_txt = Nums4(tys) & "тисячa "
A100: 93. Case 2, 3, 4
A101: 94. tys_txt = Nums4(tys) & "тисячі "
A102: 95. Case 5 To 9
A103: 96. tys_txt = Nums4(tys) & "тисяч "
A104: 97. End Select
A105: 98.
A106: 99. If dectys = 0 And tys = 0 And sottys <> 0 Then sottys_txt = sottys_txt & " тисяч "
A107: 100.
A108: 101. eee:
A109: 102. sot_txt = Nums3(sot)
A110: 103. 'проверяем десятки
A111: 104. Select Case dec
A112: 105. Case 1
A113: 106. ed_txt = Nums5(ed)
A114: 107. GoTo rrr
A115: 108. Case 2 To 9
A116: 109. dec_txt = Nums2(dec)
A117: 110. End Select
A118: 111.
A119: 112. ed_txt = Nums0(ed)
A120: 113.
A121: 114. rrr:
A122: 115. 'формируем итоговую строку
A123: 116.
A124: 117. SUMINWORDS = bil_txt & sotmil_txt & decmil_txt & mil_txt & sottys_txt & dectys_txt _
A125: 118. & tys_txt & sot_txt & dec_txt & ed_txt & curr & " " & Round((n - Fix(n)) * 100) & " " & kop
A126: 119.
A127: 120. If curr = "" Then
A128: 121. SUMINWORDS = bil_txt & sotmil_txt & decmil_txt & mil_txt & sottys_txt & dectys_txt _
A129: 122. & tys_txt & sot_txt & dec_txt & ed_txt
A130: 123. End If
A131: 124.
A132: 125. SUMINWORDS = UCase(Mid(SUMINWORDS, 1, 1)) + Mid(SUMINWORDS, 2)
A133: 126.
A134: 127. End Function
A135: 128.
A136: 129. 'вспомогательная функция для выделения из числа разрядов
A137: 130. Private Function Class(M, I)
A138: 131. Class = Int(Int(M - (10 ^ I) * Int(M /(10 ^ I))) /10 ^ (I - 1))
A139: 132. End Function
A140: Сохраните файл и вернитесь в Excel. Теперь вы можете вставить созданную функцию в любую ячейку листа этой книги обычным способом - через мастер функций (кнопка
A141: в строке формул, категория Определены пользователем ) или просто набрав ее в ячейке вручную и указав в качестве аргумента ячейку с суммой. Также, в параметрах функции можно указывать название валюты (гривна, доллар, евро ...) и название сотых (копейки, центы ...):
A142: =SUMINWORDS(текст,валюта,сотые) -> 
A149: Если в параметре "валюта" проставить пустые кавычки (""), тогда сумма будет выводиться как целое число прописью:

Sheet 2
A1: Додаток до річного плану закупівель на 2016 рік
A2: Дошкільний навчальний заклад № 2,26243332
A3: (найменування замовника,код за ЄДРПОУ)
A4: Предмет закупівлі | B4: Код КЕКВ (для бюджетних коштів) | C4: Очікувана вартість предмета закупівлі | G4: Процедура закупівлі | H4: Орієнтовний початок проведення процедури закупівлі | I4: Примітки
A5: 1 | B5: 2 | C5: 3 | G5: 4 | H5: 5 | I5: 6
A6: 10.73.1 Макарони,локшина,кускус і подібні борошняні вироби(15851000-8 Борошняні вироби(макарони) | B6: 2230 | C6: 633.32 | D6: Шістсот тридцять три грн. 32 коп. | E6: в т.ч.ПДВ- | F6: =C6/6 -> 105.5533333
A7: 10.11.1 М'ясо великої рогатої худоби,свиней,овець,кіз,коней та ін..тварин родини конячих,свіже чиа охолоджене(15111000-9 М'ясо великої рогатої худоби родини бикових(яловичина) | B7: 2230 | C7: 23134.64957 | D7: Двадцять три тисячі сто тридцять чотири грн. 65 коп. | E7: в т.ч.ПДВ- | F7: =C7/6 -> 3855.774929
A8: 10.12.1 М'ясо свійської птиці,свіже чи охолоджене(15112000-6 М'ясо свійської птиці) | B8: 2230 | C8: 8131.021092 | D8: Вісім тисяч сто тридцять одна грн.02 коп. | E8: в т.ч.ПДВ- | F8: =C8/6 -> 1355.170182
A9: 10.12.4 Субпродукти харчові свійської птиці(15114000-0 Потрухи(печінка) | B9: 2230 | C9: 2284.105653 | D9: Дві тисячі двісті вісімдесят чотири грн. 11 коп. | E9: в т.ч.ПДВ- | F9: 380.6842755
A10: 10.13.1.Консерви та готові страви з м’яса,м’ясних субпродуктів чи крові (15130000-8 Мясопродукти (ковбаса,сосиски) | B10: 2230 | C10: 6858.041535 | D10: Шість тисяч вісімсот пятдесят вісім грн. 04 коп. | E10: в т.ч.ПДВ- | F10: 1143.006922
A11: 10.20.1 Продукція рибна,свіжа,охолоджена чи заморожена (15221000-3 Морожена риба) | B11: 2230 | C11: 16069.03783 | D11: Шістнадцять тисяч шістдесят девять грн. 04 коп | E11: в т.ч.ПДВ- | F11: 2678.172971
A12: 01.24.1 Яблука (03222000-3 Фрукти і горіхи(яблука,апельсини,лимони,ягоди) | B12: 2230 | C12: 6801.182496 | D12: Шість тисяч вісімсот одна грн. 18 коп. | E12: в т.ч.ПДВ- | F12: 1133.530416
A13: 10.39.1 Плоди та овочі,оброблені та законсервовані,крім картоплі(15331000-7 Оброблені овочі(консерви овочеві) | B13: 2230 | C13: 4921.159622 | D13: Чотири тисячі девятсот двадцять одна грн. 16 коп. | E13: в т.ч.ПДВ- | F13: 820.1932704
A14: 10.72.1 Вироби хлібобулочні,зниженої вологості,та кондитерські,борошняні,тривалого зберігання(15820000-2 Сухарі та печиво; пресерви з хлібобулочних і кондитерських виробів (печиво) | B14: 2230 | C14: 1621.613195 | D14: Одна тисяча шістсот двадцять одна грн 61 коп. | E14: в т.ч.ПДВ- | F14: 270.2688659
A15: 10.71.1 Вироби хлібобулочні,кондитерські та кулінарні,борошняні,нетривалого зберігання(15810000-9 Хлібопродукти, свіжовипечені хлібобулочні та кондитерські вироби) | B15: 2230 | C15: 6251.205277 | D15: Шість тисяч двісті пятдесят одна грн. 21 коп. | E15: в т.ч.ПДВ- | F15: 1041.867546
A16: 10.51.1 Молоко та вершки,рідинні,оброблені(15511000-3 Молоко) | B16: 2230 | C16: 25492.23602 | D16: Двадцять пять тисяч чотириста девяносто дві грн. 24 коп. | E16: в т.ч.ПДВ- | F16: 4248.706003
A17: 10.51.5 Продукти молочні, інші (15550000-8 Молочні продукти різні (кефір,сметана) | B17: 2230 | C17: 4670.544018 | D17: Чотири тисячі шістсот сімдесят грн. 54 коп. | E17: в т.ч.ПДВ- | F17: 778.424003
A18: 10.51.4 Сир сичужний та кисломолочний сир(15540000-5 Сирні продукти) | B18: 2230 | C18: 17667.33594 | D18: Сімнадцять тисяч шістсот шістдесят сім грн. 34 коп. | E18: в т.ч.ПДВ- | F18: 2944.55599
A19: 10.32.1 Соки фруктові та овочеві (15321000-4 Фруктові соки) | B19: 2230 | C19: 4689.633511 | D19: Чотири тисячі шістсот вісімдесят девять грн. 63 коп. | E19: в т.ч.ПДВ- | F19: 781.6055852
A20: 10.61.2 Борошно зернових і овочевих культур;їхні суміші(15612000-1 Борошно зернових та овочевих культур і супутня продукція) | B20: 2230 | C20: 1019.62974 | D20: Одна тисяча девятнадцять грн. 63 коп. | E20: в т.ч.ПДВ- | F20: 169.9382901
A21: 10.61.1 Рис напівобрушений чи повністю обрушений,або лущений чи дроблений(15614000-5 Рис оброблений) | B21: 2230 | C21: 505.4001746 | D21: Пятсот пять грн. 40 коп. | E21: в т.ч.ПДВ- | F21: 84.23336243
A22: 0.81.1 Цукор-сирець,тростинний і очищений тростинний чи буряковий цукор (сахароза);меляса (15831000-2 Цукор) | B22: 2230 | C22: 4578.606185 | D22: Чотири тисячі пятсот сімдесят вісім грн. 61 коп. | E22: в т.ч.ПДВ- | F22: 763.1010308
A23: 10.39.2 Плоди й горіхи,оброблені та законсервовані(15332000-4 Оброблені фрукти та горіхи(повидло,сухофрукти) | B23: 2230 | C23: 3052.284041 | D23: Три тисячі пятдесят дві грн. 28 коп. | E23: в т.ч.ПДВ- | F23: 508.7140068
A24: 10.51.3 Масло вершкове та молочні пасти(15530000-2 Вершкове масло) | B24: 2230 | C24: 7995.709092 | D24: Сім тисяч девятсот девяносто пять грн. 71 коп. | E24: в т.ч.ПДВ- | F24: 1332.618182
A25: 01.47.2 Яйця у шкаралупі свіжі (03142000-8 Продукція тваринництва (03142500-3 Яйця) | B25: 2230 | C25: 6068.050106 | D25: Шість тисяч шістдесят вісім грн. 05 коп. | E25: в т.ч.ПДВ- | F25: 1011.341684
A26: 10.41.5 Олії рафіновані(15421000-5 Рафіновані олії) | B26: 2230 | C26: 1819.586075 | D26: Одна тисяча вісімсот девятнадцять грн. 59 коп. | E26: в т.ч.ПДВ- | F26: 303.2643459
A27: 10.61.3 Крупи,крупка,гранули та інші продукти з зерна зернових культур(15613000-8 Продукція із зерна зернових культур(крупи) | B27: 2230 | C27: 1904.966128 | D27: Одна тисяча девятсот чотири грн. 97 коп. | E27: в т.ч.ПДВ- | F27: 317.4943547
A28: 10.82.1 Какао терте,какао-масло,жири й олія,какао-порошок(15841000-5 Какао) | B28: 2230 | C28: 2280.670908 | D28: Дві тисячі двісті вісімдесят грн.67 коп. | E28: в т.ч.ПДВ- | F28: 380.1118179
A29: 10.83.1 Чай і кава,оброблені(15860000-4 Кава, чай та супутня продукція) | B29: 2230 | C29: 2320.723904 | D29: Дві тисячі триста двадцять грн. 72 коп. | E29: в т.ч.ПДВ- | F29: 386.7873174
A30: 10.84.3 Сіль харчова(14410000-8 Камяна сіль) | B30: 2230 | C30: 88.61206556 | D30: Вісімдесят вісім грн.61 коп. | E30: в т.ч.ПДВ- | F30: 14.76867759
A31: 01.13.5 Коренеплоди та бульби їстівні з високим умістом крохмалю та інуліну(03212000-0 Картопля та сушені овочі) | B31: 2230 | C31: 6317.792672 | D31: Шість тисяч триста сімнадцять грн.79 коп. | E31: в т.ч.ПДВ- | F31: 1052.965445
A32: 01.13.4 Овочі коренеплодні,цибулинні та бульбоподібні(03221000-6 Овочі) | B32: 2230 | C32: 7838.878511 | D32: Сім тисяч вісімсот тридцять вісім грн. 88 коп. | E32: в т.ч.ПДВ- | F32: 1306.479752
A33: 35.30.1 Пара та гаряча вода,постачання пари та гарячої води(09320000-8 Пара, гаряча вода та пов’язана продукція) | B33: 2271 | C33: 104281 | D33: Сто чотири тисячі двісті вісімдесят одна грн. 00 коп. | E33: в т.ч.ПДВ- | F33: 17380.16667
A34: 38.11.6 Послуги підприємств щодо перевезення інших безпечних відходів(90512000-9 Послуги з перевезення сміття) | B34: 2240 | C34: 4927 | D34: Чотири тисячі девятсот двадцять сім грн.00 коп. | E34: в т.ч.ПДВ- | F34: 821.1666667
A35: 36.00.2 Обробляння та розподіляння води трубопроводами(65110000-7 Розподіл води) | B35: 2272 | C35: 3154.956 | D35: Дві тисячі пятсот вісім грн. 29 коп. | E35: в т.ч.ПДВ- | F35: 525.826
A36: 37.00.1 Послуги каналізаційні(90400000-1 Послуги у сфері водовідведення) | B36: 2272 | C36: 3170.044 | D36: Три тисячі сто сімдесят грн. 04 коп. | E36: в т.ч.ПДВ- | F36: 528.3406667
A37: 35.11.1 Енергія електрична (09310000-5 Електрична енергія) | B37: 2273 | C37: 40815 | D37: Сорок тисяч вісімсот п'ятнадцять грн. 00 коп. | E37: в т.ч.ПДВ- | F37: 6802.5
A38: 61.10.1 Послуги щодо передавання даних і повідомлень(64211000-8 Послуги громадського телефонного звязку) | B38: 2240 | C38: 1573 | D38: Одна тисяча пятсот сімдесят три грн. 00 коп. | E38: в т.ч.ПДВ- | F38: 262.1666667
A39: 91.01.1 Послуги бібліотек і архівів(92512000-3 Послуги архівів) | B39: 2240 | C39: 263 | D39: Двісті шістдесят три грн. 00 коп. | E39: без ПДВ
A40: 71.20.1 Послуги щодо технічного випробування й аналізування(71632000-7 Послуги з технічних випробувань (повірка,атестація) | B40: 2240 | C40: 1447 | D40: Одна тисяча чотириста сорок сім грн.00 коп. | E40: в т.ч.ПДВ- | F40: 241.1666667
A41: 58.29.1 Програмне забезпечення системне на фізичних носіях(48443000-5 Пакети програмного забезпечення для бухгалтерського обліку) | B41: 2240 | C41: 7392 | D41: Сім тисяч триста девяносто дві грн.00 коп. | E41: в т.ч.ПДВ- | F41: 1232
A42: 43.21.1 Роботи електромонтажні(45310000-3 Електромонтажні роботи(повірка контурів заземлення) | B42: 2240 | C42: 745 | D42: Сімсот сорок пять грн. 00 коп. | E42: в т.ч.ПДВ- | F42: 124.1666667
A43: Капітальний ремонт будівель (45000000-7 Будівельні роботи) | B43: 3132 | C43: 16800 | D43: Шістнадцять тисяч вісімсот грн.00 коп. | E43: в т.ч.ПДВ- | F43: =C43/6 -> 2800
A44: 28.99.3 Машини й устаткування спеціальної призначеності,н.в.і.у.(37535000-7 Каруселі,гойдалки,тири та інші атракціони) | B44: 3110 | C44: 10800 | D44: Десять тисяч вісімсот грн.00 коп. | E44: в т.ч.ПДВ- | F44: =C44/6 -> 1800
A45: 85.60.1 Послуги освітянські допоміжні (80570000-0 Послуги з професійної підготовки у сфері підвищення кваліфікації) | B45: 2282 | C45: 676 | D45: Шістсот сімдесят шість грн.00 коп. | E45: без ПДВ
A47: Затверджений рішенням комітету з конкурсних торгів від__________№_______
A49: Голова комітету з конкурсних торгів _______________________С.А.Новік
A50: (підпис) (ініціали та прізвище)
A51: МП

Sheet 3
A1: Додаток до річного плану закупівель на 2016 рік
A2: Дошкільний навчальний заклад № 3, 34722166
A3: (найменування замовника,код за ЄДРПОУ)
A4: Предмет закупівлі | B4: Код КЕКВ (для бюджетних коштів) | C4: Очікувана вартість предмета закупівлі | G4: Процедура закупівлі | H4: Орієнтовний початок проведення процедури закупівлі | I4: Примітки
A5: 1 | B5: 2 | C5: 3 | G5: 4 | H5: 5 | I5: 6
A6: 10.73.1 Макарони,локшина,кускус і подібні борошняні вироби(15851000-8 Борошняні вироби(макарони) | B6: 2230 | C6: 1814.621312 | D6: Одна тисяча вісімсот чотирнадцять грн. 62 коп. | E6: в т.ч.ПДВ- | F6: =C6/6 -> 302.4368853
A7: 10.11.1 М'ясо великої рогатої худоби,свиней,овець,кіз,коней та ін..тварин родини конячих,свіже чиа охолоджене(15111000-9 М'ясо великої рогатої худоби родини бикових(яловичина) | B7: 2230 | C7: 60461.85225 | D7: =SUMINWORDS(C7,"грн.","коп.") -> Шістдесят тисяч чотириста шістдесят одна грн. 85 коп. | E7: в т.ч.ПДВ- | F7: =C7/6 -> 10076.97537
A8: 10.12.1 М'ясо свійської птиці,свіже чи охолоджене(15112000-6 М'ясо свійської птиці) | B8: 2230 | C8: 23299.26818 | D8: =SUMINWORDS(C8,"грн.","коп.") -> Двадцять три тисячі двісті дев'яносто дев'ять грн. 27 коп. | E8: в т.ч.ПДВ- | F8: 3883.211363
A9: 10.12.4 Субпродукти харчові свійської птиці(15114000-0 Потрухи(печінка) | B9: 2230 | C9: 6545.503448 | D9: =SUMINWORDS(C9,"грн.","коп.") -> Шість тисяч п'ятсот сорок п'ять грн. 50 коп. | E9: в т.ч.ПДВ- | F9: 1090.917241
A10: 10.13.1.Консерви та готові страви з м’яса,м’ясних субпродуктів чи крові (15130000-8 Мясопродукти (ковбаса,сосиски) | B10: 2230 | C10: 19652.91512 | D10: Дев'ятнадцять тисяч шістсот п'ятдесят дві грн. 92 коп. | E10: в т.ч.ПДВ- | F10: 3275.485853
A11: 10.20.1 Продукція рибна,свіжа,охолоджена чи заморожена (15221000-3 Морожена риба) | B11: 2230 | C11: 46050.05033 | D11: Сорок шість тисяч п'ятдесят грн. 5 коп. | E11: в т.ч.ПДВ- | F11: 7675.008388
A12: 01.24.1 Яблука (03222000-3 Фрукти і горіхи(яблука,апельсини,лимони,ягоди) | B12: 2230 | C12: 19490.202 | D12: Дев'ятнадцять тисяч чотириста дев'яносто грн. 20 коп. | E12: в т.ч.ПДВ- | F12: 3248.366999
A13: 10.39.1 Плоди та овочі,оброблені та законсервовані,крім картоплі(15331000-7 Оброблені овочі(консерви овочеві) | B13: 2230 | C13: 14099.31416 | D13: Чотирнадцять тисяч дев'яносто дев'ять грн. 31 коп. | E13: в т.ч.ПДВ- | F13: 2349.885694
A14: 10.72.1 Вироби хлібобулочні,зниженої вологості,та кондитерські,борошняні,тривалого зберігання(15820000-2 Сухарі та печиво; пресерви з хлібобулочних і кондитерських виробів (печиво) | B14: 2230 | C14: 4647.817243 | D14: Чотири тисячі шістсот сорок сім грн. 82 коп. | E14: в т.ч.ПДВ- | F14: 774.6362071
A15: 10.71.1 Вироби хлібобулочні,кондитерські та кулінарні,борошняні,нетривалого зберігання(15810000-9 Хлібопродукти, свіжовипечені хлібобулочні та кондитерські вироби) | B15: 2230 | C15: 17911.66065 | D15: Сімнадцять тисяч дев'ятсот одинадцять грн. 66 коп. | E15: в т.ч.ПДВ- | F15: 2985.276776
A16: 10.51.1 Молоко та вершки,рідинні,оброблені(15511000-3 Молоко) | B16: 2230 | C16: 73027.76904 | D16: Сімдесят три тисячі двадцять сім грн. 77 коп. | E16: в т.ч.ПДВ- | F16: 12171.29484
A17: 10.51.5 Продукти молочні, інші (15550000-8 Молочні продукти різні (кефір,сметана) | B17: 2230 | C17: 13382.37083 | D17: Тринадцять тисяч триста вісімдесят дві грн. 37 коп. | E17: в т.ч.ПДВ- | F17: 2230.395138
A18: 10.51.4 Сир сичужний та кисломолочний сир(15540000-5 Сирні продукти) | B18: 2230 | C18: 50617.20566 | D18: П'ятдесят тисяч шістсот сімнадцять грн. 21 коп. | E18: в т.ч.ПДВ- | F18: 8436.200943
A19: 10.32.1 Соки фруктові та овочеві (15321000-4 Фруктові соки) | B19: 2230 | C19: 13436.32844 | D19: Тринадцять тисяч чотириста тридцять шість грн. 33 коп. | E19: в т.ч.ПДВ- | F19: 2239.388074
A20: 10.61.2 Борошно зернових і овочевих культур;їхні суміші(15612000-1 Борошно зернових та овочевих культур і супутня продукція) | B20: 2230 | C20: 2921.650016 | D20: Дві тисячі дев'ятсот двадцять одна грн. 65 коп. | E20: в т.ч.ПДВ- | F20: 486.9416693
A21: 10.61.1 Рис напівобрушений чи повністю обрушений,або лущений чи дроблений(15614000-5 Рис оброблений) | B21: 2230 | C21: 1448.028449 | D21: Одна тисячa чотириста сорок вісім грн. 3 коп. | E21: в т.ч.ПДВ- | F21: 241.3380749
A22: 0.81.1 Цукор-сирець,тростинний і очищений тростинний чи буряковий цукор (сахароза);меляса (15831000-2 Цукор) | B22: 2230 | C22: 13117.52359 | D22: Тринадцять тисяч сто сімнадцять грн. 52 коп. | E22: в т.ч.ПДВ- | F22: 2186.253932
A23: 10.39.2 Плоди й горіхи,оброблені та законсервовані(15332000-4 Оброблені фрукти та горіхи(повидло,сухофрукти) | B23: 2230 | C23: 8743.833965 | D23: Вісім тисяч сімсот сорок три грн. 83 коп. | E23: в т.ч.ПДВ- | F23: 1457.305661
A24: 10.51.3 Масло вершкове та молочні пасти(15530000-2 Вершкове масло) | B24: 2230 | C24: 22911.53452 | D24: Двадцять дві тисячі дев'ятсот одинадцять грн. 53 коп. | E24: в т.ч.ПДВ- | F24: 3818.589086
A25: 01.47.2 Яйця у шкаралупі свіжі (03142000-8 Продукція тваринництва (03142500-3 Яйця) | B25: 2230 | C25: 17389.05678 | D25: Сімнадцять тисяч триста вісімдесят дев'ять грн. 6 коп. | E25: в т.ч.ПДВ- | F25: 2898.17613
A26: 10.41.5 Олії рафіновані(15421000-5 Рафіновані олії) | B26: 2230 | C26: 5213.534644 | D26: П'ять тисяч двісті тринадцять грн. 53 коп. | E26: в т.ч.ПДВ- | F26: 868.9224407
A27: 10.61.3 Крупи,крупка,гранули та інші продукти з зерна зернових культур(15613000-8 Продукція із зерна зернових культур(крупи) | B27: 2230 | C27: 5458.028256 | D27: П'ять тисяч чотириста п'ятдесят вісім грн. 3 коп. | E27: в т.ч.ПДВ- | F27: 909.671376
A28: 10.82.1 Какао терте,какао-масло,жири й олія,какао-порошок(15841000-5 Какао) | B28: 2230 | C28: 6535.660586 | D28: Шість тисяч п'ятсот тридцять п'ять грн. 66 коп. | E28: в т.ч.ПДВ- | F28: 1089.276764
A29: 10.83.1 Чай і кава,оброблені(15860000-4 Кава, чай та супутня продукція) | B29: 2230 | C29: 6651.781495 | D29: Шість тисяч шістсот п'ятдесят одна грн. 78 коп. | E29: в т.ч.ПДВ- | F29: 1108.630249
A30: 10.84.3 Сіль харчова(14410000-8 Камяна сіль) | B30: 2230 | C30: 253.9590329 | D30: Двісті п'ятдесят три грн. 96 коп. | E30: в т.ч.ПДВ- | F30: 42.32650548
A31: 01.13.5 Коренеплоди та бульби їстівні з високим умістом крохмалю та інуліну(03212000-0 Картопля та сушені овочі) | B31: 2230 | C31: 18101.65794 | D31: Вісімнадцять тисяч сто одна грн. 66 коп. | E31: в т.ч.ПДВ- | F31: 3016.94299
A32: 01.13.4 Овочі коренеплодні,цибулинні та бульбоподібні(03221000-6 Овочі) | B32: 2230 | C32: 22457.87212 | D32: Двадцять дві тисячі чотириста п'ятдесят сім грн. 87 коп. | E32: в т.ч.ПДВ- | F32: 3742.978687
A33: 38.11.6 Послуги підприємств щодо перевезення інших безпечних відходів(90512000-9 Послуги з перевезення сміття) | B33: 2240 | C33: 5410 | D33: =SUMINWORDS(C33,"грн.","коп.") -> П'ять тисяч чотириста десять грн. 0 коп. | E33: в т.ч.ПДВ- | F33: =C33/6 -> 901.6666667
A34: 85.60.1 Послуги освітянські допоміжні (80570000-0 Послуги з професійної підготовки у сфері підвищення кваліфікації) | B34: 2282 | C34: 349 | D34: Триста сорок дев'ять грн. 0 коп. | E34: в т.ч.ПДВ- | F34: 58.16666667
A35: 36.00.2 Обробляння та розподіляння води трубопроводами(65110000-7 Розподіл води) | B35: 2272 | C35: 15374.856 | D35: П'ятнадцять тисяч триста сімдесят чотири грн. 86 коп. | E35: в т.ч.ПДВ- | F35: 2562.476
A36: 37.00.1 Послуги каналізаційні(90400000-1 Послуги у сфері водовідведення) | B36: 2272 | C36: 18548.144 | D36: Вісімнадцять тисяч п'ятсот сорок вісім грн. 14 коп. | E36: в т.ч.ПДВ- | F36: 3091.357333
A37: 35.11.1 Енергія електрична (09310000-5 Електрична енергія) | B37: 2273 | C37: 67550 | D37: Шістдесят сім тисяч п'ятсот п'ятдесят грн. 0 коп. | E37: в т.ч.ПДВ- | F37: 11258.33333
A38: 61.10.1 Послуги щодо передавання даних і повідомлень(64211000-8 Послуги громадського телефонного звязку) | B38: 2240 | C38: 2304 | D38: Дві тисячі триста чотири грн. 0 коп. | E38: в т.ч.ПДВ- | F38: 384
A39: 43.21.1 Роботи електромонтажні(45310000-3 Електромонтажні роботи(повірка контурів заземлення) | B39: 2240 | C39: 745 | D39: Сімсот сорок п'ять грн. 0 коп. | E39: в т.ч.ПДВ- | F39: 124.1666667
A40: 91.01.1 Послуги бібліотек і архівів(92512000-3 Послуги архівів) | B40: 2240 | C40: 448 | D40: Чотириста сорок вісім грн. 0 коп. | E40: без ПДВ
A41: 71.20.1 Послуги щодо технічного випробування й аналізування(71632000-7 Послуги з технічних випробувань (повірка,атестація) | B41: 2240 | C41: 4047 | D41: Чотири тисячі сорок сім грн. 0 коп. | E41: в т.ч.ПДВ- | F41: 674.5
A42: 58.29.1 Програмне забезпечення системне на фізичних носіях(48443000-5 Пакети програмного забезпечення для бухгалтерського обліку) | B42: 2240 | C42: 7392 | D42: Сім тисяч триста дев'яносто дві грн. 0 коп. | E42: в т.ч.ПДВ- | F42: 1232
A44: Затверджений рішенням комітету з конкурсних торгів від__________№_______
A46: Голова комітету з конкурсних торгів _______________________В.В.Антонюк
A47: (підпис) (ініціали та прізвище)
A48: МП

Sheet 4
A1: Додаток до річного плану закупівель на 2016 рік
A2: Дошкільний навчальний заклад № 4, код-26243220
A3: (найменування замовника,код за ЄДРПОУ)
A4: Предмет закупівлі | B4: Код КЕКВ (для бюджетних коштів) | C4: Очікувана вартість предмета закупівлі | G4: Процедура закупівлі | H4: Орієнтовний початок проведення процедури закупівлі | I4: Примітки
A5: 1 | B5: 2 | C5: 3 | G5: 4 | H5: 5 | I5: 6
A6: 10.73.1 Макарони,локшина,кускус і подібні борошняні вироби(15851000-8 Борошняні вироби(макарони) | B6: 2230 | C6: 2789.977734 | D6: =SUMINWORDS(C6,"грн.","коп.") -> Дві тисячі сімсот вісімдесят дев'ять грн. 98 коп. | E6: в т.ч.ПДВ- | F6: =C6/6 -> 464.996289
A7: 10.11.1 М'ясо великої рогатої худоби,свиней,овець,кіз,коней та ін..тварин родини конячих,свіже чиа охолоджене(15111000-9 М'ясо великої рогатої худоби родини бикових(яловичина) | B7: 2230 | C7: 90441.31912 | D7: =SUMINWORDS(C7,"грн.","коп.") -> Дев'яносто тисяч чотириста сорок одна грн. 32 коп. | E7: в т.ч.ПДВ- | F7: =C7/6 -> 15073.55319
A8: 10.12.1 М'ясо свійської птиці,свіже чи охолоджене(15112000-6 М'ясо свійської птиці) | B8: 2230 | C8: 36134.1718 | D8: =SUMINWORDS(C8,"грн.","коп.") -> Тридцять шість тисяч сто тридцять чотири грн. 17 коп. | E8: в т.ч.ПДВ- | F8: 6022.361966
A9: 10.12.4 Субпродукти харчові свійської птиці(15114000-0 Потрухи(печінка) | B9: 2230 | C9: 10220.43492 | D9: =SUMINWORDS(C9,"грн.","коп.") -> Десять тисяч двісті двадцять грн. 43 коп. | E9: в т.ч.ПДВ- | F9: 1703.405819
A10: 10.13.1.Консерви та готові страви з м’яса,м’ясних субпродуктів чи крові (15130000-8 Мясопродукти (ковбаса,сосиски) | B10: 2230 | C10: 30686.91987 | D10: Тридцять тисяч шістсот вісімдесят шість грн. 92 коп. | E10: в т.ч.ПДВ- | F10: 5114.486645
A11: 10.20.1 Продукція рибна,свіжа,охолоджена чи заморожена (15221000-3 Морожена риба) | B11: 2230 | C11: 72123.87764 | D11: Сімдесят дві тисячі сто двадцять три грн. 88 коп. | E11: в т.ч.ПДВ- | F11: 12020.64627
A12: 01.24.1 Яблука (03222000-3 Фрукти і горіхи(яблука,апельсини,лимони,ягоди) | B12: 2230 | C12: 30467.8778 | D12: Тридцять тисяч чотириста шістдесят сім грн. 88 коп. | E12: в т.ч.ПДВ- | F12: 5077.979634
A13: 10.39.1 Плоди та овочі,оброблені та законсервовані,крім картоплі(15331000-7 Оброблені овочі(консерви овочеві) | B13: 2230 | C13: 21531.36329 | D13: Двадцять одна тисячa п'ятсот тридцять одна грн. 36 коп. | E13: в т.ч.ПДВ- | F13: 3588.560548
A14: 10.72.1 Вироби хлібобулочні,зниженої вологості,та кондитерські,борошняні,тривалого зберігання(15820000-2 Сухарі та печиво; пресерви з хлібобулочних і кондитерських виробів (печиво) | B14: 2230 | C14: 7381.323393 | D14: Сім тисяч триста вісімдесят одна грн. 32 коп. | E14: в т.ч.ПДВ- | F14: 1230.220566
A15: 10.71.1 Вироби хлібобулочні,кондитерські та кулінарні,борошняні,нетривалого зберігання(15810000-9 Хлібопродукти, свіжовипечені хлібобулочні та кондитерські вироби) | B15: 2230 | C15: 27618.50154 | D15: Двадцять сім тисяч шістсот вісімнадцять грн. 50 коп. | E15: в т.ч.ПДВ- | F15: 4603.083589
A16: 10.51.1 Молоко та вершки,рідинні,оброблені(15511000-3 Молоко) | B16: 2230 | C16: 110209.8098 | D16: Сто десять тисяч двісті дев'ять грн. 81 коп. | E16: в т.ч.ПДВ- | F16: 18368.30164
A17: 10.51.5 Продукти молочні, інші (15550000-8 Молочні продукти різні (кефір,сметана) | B17: 2230 | C17: 20603.65902 | D17: Двадцять тисяч шістсот три грн. 66 коп. | E17: в т.ч.ПДВ- | F17: 3433.94317
A18: 10.51.4 Сир сичужний та кисломолочний сир(15540000-5 Сирні продукти) | B18: 2230 | C18: 77236.62718 | D18: Сімдесят сім тисяч двісті тридцять шість грн. 63 коп. | E18: в т.ч.ПДВ- | F18: 12872.7712
A19: 10.32.1 Соки фруктові та овочеві (15321000-4 Фруктові соки) | B19: 2230 | C19: 20572.38868 | D19: Двадцять тисяч п'ятсот сімдесят дві грн. 39 коп. | E19: в т.ч.ПДВ- | F19: 3428.731447
A20: 10.61.2 Борошно зернових і овочевих культур;їхні суміші(15612000-1 Борошно зернових та овочевих культур і супутня продукція) | B20: 2230 | C20: 4519.136937 | D20: Чотири тисячі п'ятсот дев'ятнадцять грн. 14 коп. | E20: в т.ч.ПДВ- | F20: 753.1894896
A21: 10.61.1 Рис напівобрушений чи повністю обрушений,або лущений чи дроблений(15614000-5 Рис оброблений) | B21: 2230 | C21: 2217.079182 | D21: Дві тисячі двісті сімнадцять грн. 8 коп. | E21: в т.ч.ПДВ- | F21: 369.513197
A22: 0.81.1 Цукор-сирець,тростинний і очищений тростинний чи буряковий цукор (сахароза);меляса (15831000-2 Цукор) | B22: 2230 | C22: 19976.08852 | D22: Дев'ятнадцять тисяч дев'ятсот сімдесят шість грн. 9 коп. | E22: в т.ч.ПДВ- | F22: 3329.348086
A23: 10.39.2 Плоди й горіхи,оброблені та законсервовані(15332000-4 Оброблені фрукти та горіхи(повидло,сухофрукти) | B23: 2230 | C23: 13185.947 | D23: Тринадцять тисяч сто вісімдесят п'ять грн. 95 коп. | E23: в т.ч.ПДВ- | F23: 2197.657833
A24: 10.51.3 Масло вершкове та молочні пасти(15530000-2 Вершкове масло) | B24: 2230 | C24: 35532.8467 | D24: Тридцять п'ять тисяч п'ятсот тридцять дві грн. 85 коп. | E24: в т.ч.ПДВ- | F24: 5922.141116
A25: 01.47.2 Яйця у шкаралупі свіжі (03142000-8 Продукція тваринництва (03142500-3 Яйця) | B25: 2230 | C25: 27152.03261 | D25: Двадцять сім тисяч сто п'ятдесят дві грн. 3 коп. | E25: в т.ч.ПДВ- | F25: 4525.338768
A26: 10.41.5 Олії рафіновані(15421000-5 Рафіновані олії) | B26: 2230 | C26: 8015.802237 | D26: Вісім тисяч п'ятнадцять грн. 80 коп. | E26: в т.ч.ПДВ- | F26: 1335.96704
A27: 10.61.3 Крупи,крупка,гранули та інші продукти з зерна зернових культур(15613000-8 Продукція із зерна зернових культур(крупи) | B27: 2230 | C27: 8370.0511 | D27: Вісім тисяч триста сімдесят грн. 5 коп. | E27: в т.ч.ПДВ- | F27: 1395.008517
A28: 10.82.1 Какао терте,какао-масло,жири й олія,какао-порошок(15841000-5 Какао) | B28: 2230 | C28: 10205.06584 | D28: Десять тисяч двісті п'ять грн. 7 коп. | E28: в т.ч.ПДВ- | F28: 1700.844307
A29: 10.83.1 Чай і кава,оброблені(15860000-4 Кава, чай та супутня продукція) | B29: 2230 | C29: 10594.0238 | D29: Десять тисяч п'ятсот дев'яносто чотири грн. 2 коп. | E29: в т.ч.ПДВ- | F29: 1765.670633
A30: 10.84.3 Сіль харчова(14410000-8 Камяна сіль) | B30: 2230 | C30: 400.5176787 | D30: Чотириста грн. 52 коп. | E30: в т.ч.ПДВ- | F30: 66.75294644
A31: 01.13.5 Коренеплоди та бульби їстівні з високим умістом крохмалю та інуліну(03212000-0 Картопля та сушені овочі) | B31: 2230 | C31: 27788.22148 | D31: Двадцять сім тисяч сімсот вісімдесят вісім грн. 22 коп. | E31: в т.ч.ПДВ- | F31: 4631.370246
A32: 01.13.4 Овочі коренеплодні,цибулинні та бульбоподібні(03221000-6 Овочі) | B32: 2230 | C32: 34168.9354 | D32: Тридцять чотири тисячі сто шістдесят вісім грн. 94 коп. | E32: в т.ч.ПДВ- | F32: 5694.822567
A33: 38.11.6 Послуги підприємств щодо перевезення інших безпечних відходів(90512000-9 Послуги з перевезення сміття) | B33: 2240 | C33: 8457 | D33: =SUMINWORDS(C33,"грн.","коп.") -> Вісім тисяч чотириста п'ятдесят сім грн. 0 коп. | E33: в т.ч.ПДВ- | F33: =C33/6 -> 1409.5
A34: 43.21.1 Роботи електромонтажні(45310000-3 Електромонтажні роботи(повірка контурів заземлення) | B34: 2240 | C34: 745 | D34: Сімсот сорок п'ять грн. 0 коп. | E34: в т.ч.ПДВ- | F34: 124.1666667
A35: 36.00.2 Обробляння та розподіляння води трубопроводами(65110000-7 Розподіл води) | B35: 2272 | C35: 10406.9112 | D35: Десять тисяч чотириста шість грн. 91 коп. | E35: в т.ч.ПДВ- | F35: 1734.4852
A36: 37.00.1 Послуги каналізаційні(90400000-1 Послуги у сфері водовідведення) | B36: 2272 | C36: 25412.0888 | D36: Двадцять п'ять тисяч чотириста дванадцять грн. 9 коп. | E36: в т.ч.ПДВ- | F36: 4235.348133
A37: 35.11.1 Енергія електрична (09310000-5 Електрична енергія) | B37: 2273 | C37: 78973 | D37: Сімдесят вісім тисяч дев'ятсот сімдесят три грн. 0 коп. | E37: в т.ч.ПДВ- | F37: 13162.16667
A38: 61.10.1 Послуги щодо передавання даних і повідомлень(64211000-8 Послуги громадського телефонного звязку) | B38: 2240 | C38: 1587 | D38: Одна тисячa п'ятсот вісімдесят сім грн. 0 коп. | E38: в т.ч.ПДВ- | F38: 264.5
A39: 64.99.1 Послуги фінансові, крім страхування та пенсійного забезпечення, інші, н.в.і.у( 66110000-4 Банківські послуги) | B39: 2240 | C39: 2184 | D39: Дві тисячі сто вісімдесят чотири грн. 0 коп. | E39: без ПДВ
A40: 91.01.1 Послуги бібліотек і архівів(92512000-3 Послуги архівів) | B40: 2240 | C40: 961 | D40: Дев'ятсот шістдесят одна грн. 0 коп. | E40: без ПДВ
A41: 71.20.1 Послуги щодо технічного випробування й аналізування(71632000-7 Послуги з технічних випробувань (повірка,атестація) | B41: 2240 | C41: 2600 | D41: Дві тисячі шістсот грн. 0 коп. | E41: в т.ч.ПДВ- | F41: 433.3333333
A42: 58.29.1 Програмне забезпечення системне на фізичних носіях(48443000-5 Пакети програмного забезпечення для бухгалтерського обліку) | B42: 2240 | C42: 7392 | D42: Сім тисяч триста дев'яносто дві грн. 0 коп. | E42: в т.ч.ПДВ- | F42: 1232
A43: Поточний ремонт будівель (45400000-1 Завершальні будівельні роботи) | B43: 2240 | C43: 131100 | D43: Сто тридцять одна тисячa сто грн. 0 коп. | E43: в т.ч.ПДВ- | F43: 21850
A44: 85.60.1 Послуги освітянські допоміжні (80570000-0 Послуги з професійної підготовки у сфері підвищення кваліфікації) | B44: 2282 | C44: 1025 | D44: Одна тисячa двадцять п'ять грн. 0 коп. | E44: в т.ч.ПДВ- | F44: 170.8333333
A46: Затверджений рішенням комітету з конкурсних торгів від__________№_______
A48: Голова комітету з конкурсних торгів _______________________С.Г.Березова
A49: (підпис) (ініціали та прізвище)
A50: МП

Sheet 5
A1: Додаток до річного плану закупівель на 2016 рік
A2: Дошкільний навчальний заклад № 5, 38189967
A3: (найменування замовника,код за ЄДРПОУ)
A4: Предмет закупівлі | B4: Код КЕКВ (для бюджетних коштів) | C4: Очікувана вартість предмета закупівлі | G4: Процедура закупівлі | H4: Орієнтовний початок проведення процедури закупівлі | I4: Примітки
A5: 1 | B5: 2 | C5: 3 | G5: 4 | H5: 5 | I5: 6
A6: 10.73.1 Макарони,локшина,кускус і подібні борошняні вироби(15851000-8 Борошняні вироби(макарони) | B6: 2230 | C6: 1866.522205 | D6: =SUMINWORDS(C6,"грн.","коп.") -> Одна тисячa вісімсот шістдесят шість грн. 52 коп. | E6: в т.ч.ПДВ- | F6: =C6/6 -> 311.0870342
A7: 10.11.1 М'ясо великої рогатої худоби,свиней,овець,кіз,коней та ін..тварин родини конячих,свіже чиа охолоджене(15111000-9 М'ясо великої рогатої худоби родини бикових(яловичина) | B7: 2230 | C7: 66914.0635 | D7: =SUMINWORDS(C7,"грн.","коп.") -> Шістдесят шість тисяч дев'ятсот чотирнадцять грн. 6 коп. | E7: в т.ч.ПДВ- | F7: =C7/6 -> 11152.34392
A8: 10.12.1 М'ясо свійської птиці,свіже чи охолоджене(15112000-6 М'ясо свійської птиці) | B8: 2230 | C8: 24303.40095 | D8: =SUMINWORDS(C8,"грн.","коп.") -> Двадцять чотири тисячі триста три грн. 40 коп. | E8: в т.ч.ПДВ- | F8: 4050.566825
A9: 10.12.4 Субпродукти харчові свійської птиці(15114000-0 Потрухи(печінка) | B9: 2230 | C9: 6902.605939 | D9: =SUMINWORDS(C9,"грн.","коп.") -> Шість тисяч дев'ятсот дві грн. 61 коп. | E9: в т.ч.ПДВ- | F9: 1150.434323
A10: 10.13.1.Консерви та готові страви з м’яса,м’ясних субпродуктів чи крові (15130000-8 Мясопродукти (ковбаса,сосиски) | B10: 2230 | C10: 20725.11758 | D10: Двадцять тисяч сімсот двадцять п'ять грн. 12 коп. | E10: в т.ч.ПДВ- | F10: 3454.186264
A11: 10.20.1 Продукція рибна,свіжа,охолоджена чи заморожена (15221000-3 Морожена риба) | B11: 2230 | C11: 48800.1305 | D11: Сорок вісім тисяч вісімсот грн. 13 коп. | E11: в т.ч.ПДВ- | F11: 8133.355084
A12: 01.24.1 Яблука (03222000-3 Фрукти і горіхи(яблука,апельсини,лимони,ягоди) | B12: 2230 | C12: 20591.49325 | D12: Двадцять тисяч п'ятсот дев'яносто одна грн. 49 коп. | E12: в т.ч.ПДВ- | F12: 3431.915542
A13: 10.39.1 Плоди та овочі,оброблені та законсервовані,крім картоплі(15331000-7 Оброблені овочі(консерви овочеві) | B13: 2230 | C13: 14343.97921 | D13: Чотирнадцять тисяч триста сорок три грн. 98 коп. | E13: в т.ч.ПДВ- | F13: 2390.663202
A14: 10.72.1 Вироби хлібобулочні,зниженої вологості,та кондитерські,борошняні,тривалого зберігання(15820000-2 Сухарі та печиво; пресерви з хлібобулочних і кондитерських виробів (печиво) | B14: 2230 | C14: 5035.818621 | D14: П'ять тисяч тридцять п'ять грн. 82 коп. | E14: в т.ч.ПДВ- | F14: 839.3031035
A15: 10.71.1 Вироби хлібобулочні,кондитерські та кулінарні,борошняні,нетривалого зберігання(15810000-9 Хлібопродукти, свіжовипечені хлібобулочні та кондитерські вироби) | B15: 2230 | C15: 18509.97115 | D15: Вісімнадцять тисяч п'ятсот дев'ять грн. 97 коп. | E15: в т.ч.ПДВ- | F15: 3084.995192
A16: 10.51.1 Молоко та вершки,рідинні,оброблені(15511000-3 Молоко) | B16: 2230 | C16: 72872.37528 | D16: Сімдесят дві тисячі вісімсот сімдесят дві грн. 38 коп. | E16: в т.ч.ПДВ- | F16: 12145.39588
A17: 10.51.5 Продукти молочні, інші (15550000-8 Молочні продукти різні (кефір,сметана) | B17: 2230 | C17: 13795.78379 | D17: Тринадцять тисяч сімсот дев'яносто п'ять грн. 78 коп. | E17: в т.ч.ПДВ- | F17: 2299.297298
A18: 10.51.4 Сир сичужний та кисломолочний сир(15540000-5 Сирні продукти) | B18: 2230 | C18: 51428.37371 | D18: П'ятдесят одна тисячa чотириста двадцять вісім грн. 37 коп. | E18: в т.ч.ПДВ- | F18: 8571.395619
A19: 10.32.1 Соки фруктові та овочеві (15321000-4 Фруктові соки) | B19: 2230 | C19: 13727.46418 | D19: Тринадцять тисяч сімсот двадцять сім грн. 46 коп. | E19: в т.ч.ПДВ- | F19: 2287.910696
A20: 10.61.2 Борошно зернових і овочевих культур;їхні суміші(15612000-1 Борошно зернових та овочевих культур і супутня продукція) | B20: 2230 | C20: 3034.593284 | D20: Три тисячі тридцять чотири грн. 59 коп. | E20: в т.ч.ПДВ- | F20: 505.7655474
A21: 10.61.1 Рис напівобрушений чи повністю обрушений,або лущений чи дроблений(15614000-5 Рис оброблений) | B21: 2230 | C21: 1479.404046 | D21: Одна тисячa чотириста сімдесят дев'ять грн. 40 коп. | E21: в т.ч.ПДВ- | F21: 246.567341
A22: 0.81.1 Цукор-сирець,тростинний і очищений тростинний чи буряковий цукор (сахароза);меляса (15831000-2 Цукор) | B22: 2230 | C22: 13284.49185 | D22: Тринадцять тисяч двісті вісімдесят чотири грн. 49 коп. | E22: в т.ч.ПДВ- | F22: 2214.081976
A23: 10.39.2 Плоди й горіхи,оброблені та законсервовані(15332000-4 Оброблені фрукти та горіхи(повидло,сухофрукти) | B23: 2230 | C23: 8714.600764 | D23: Вісім тисяч сімсот чотирнадцять грн. 60 коп. | E23: в т.ч.ПДВ- | F23: 1452.433461
A24: 10.51.3 Масло вершкове та молочні пасти(15530000-2 Вершкове масло) | B24: 2230 | C24: 23898.95706 | D24: Двадцять три тисячі вісімсот дев'яносто вісім грн. 96 коп. | E24: в т.ч.ПДВ- | F24: 3983.15951
A25: 01.47.2 Яйця у шкаралупі свіжі (03142000-8 Продукція тваринництва (03142500-3 Яйця) | B25: 2230 | C25: 18337.75011 | D25: Вісімнадцять тисяч триста тридцять сім грн. 75 коп. | E25: в т.ч.ПДВ- | F25: 3056.291686
A26: 10.41.5 Олії рафіновані(15421000-5 Рафіновані олії) | B26: 2230 | C26: 5362.649561 | D26: П'ять тисяч триста шістдесят дві грн. 65 коп. | E26: в т.ч.ПДВ- | F26: 893.7749268
A27: 10.61.3 Крупи,крупка,гранули та інші продукти з зерна зернових культур(15613000-8 Продукція із зерна зернових культур(крупи) | B27: 2230 | C27: 5590.657851 | D27: П'ять тисяч п'ятсот дев'яносто грн. 66 коп. | E27: в т.ч.ПДВ- | F27: 931.7763084
A28: 10.82.1 Какао терте,какао-масло,жири й олія,какао-порошок(15841000-5 Какао) | B28: 2230 | C28: 6892.22608 | D28: Шість тисяч вісімсот дев'яносто дві грн. 23 коп. | E28: в т.ч.ПДВ- | F28: 1148.704347
A29: 10.83.1 Чай і кава,оброблені(15860000-4 Кава, чай та супутня продукція) | B29: 2230 | C29: 7239.756828 | D29: Сім тисяч двісті тридцять дев'ять грн. 76 коп. | E29: в т.ч.ПДВ- | F29: 1206.626138
A30: 10.84.3 Сіль харчова(14410000-8 Камяна сіль) | B30: 2230 | C30: 272.1229342 | D30: Двісті сімдесят дві грн. 12 коп. | E30: в т.ч.ПДВ- | F30: 45.35382237
A31: 01.13.5 Коренеплоди та бульби їстівні з високим умістом крохмалю та інуліну(03212000-0 Картопля та сушені овочі) | B31: 2230 | C31: 18572.72565 | D31: Вісімнадцять тисяч п'ятсот сімдесят дві грн. 73 коп. | E31: в т.ч.ПДВ- | F31: 3095.454275
A32: 01.13.4 Овочі коренеплодні,цибулинні та бульбоподібні(03221000-6 Овочі) | B32: 2230 | C32: 22709.9639 | D32: Двадцять дві тисячі сімсот дев'ять грн. 96 коп. | E32: в т.ч.ПДВ- | F32: 3784.993984
A33: 38.11.6 Послуги підприємств щодо перевезення інших безпечних відходів(90512000-9 Послуги з перевезення сміття) | B33: 2240 | C33: 7704 | D33: =SUMINWORDS(C33,"грн.","коп.") -> Сім тисяч сімсот чотири грн. 0 коп. | E33: в т.ч.ПДВ- | F33: =C33/6 -> 1284
A34: 43.21.1 Роботи електромонтажні(45310000-3 Електромонтажні роботи(повірка контурів заземлення) | B34: 2240 | C34: 745 | D34: Сімсот сорок п'ять грн. 0 коп. | E34: в т.ч.ПДВ- | F34: 124.1666667
A35: 36.00.2 Обробляння та розподіляння води трубопроводами(65110000-7 Розподіл води) | B35: 2272 | C35: 11846.6376 | D35: Одинадцять тисяч вісімсот сорок шість грн. 64 коп. | E35: в т.ч.ПДВ- | F35: 1974.4396
A36: 37.00.1 Послуги каналізаційні(90400000-1 Послуги у сфері водовідведення) | B36: 2272 | C36: 10388.3624 | D36: Десять тисяч триста вісімдесят вісім грн. 36 коп. | E36: в т.ч.ПДВ- | F36: 1731.393733
A37: 35.11.1 Енергія електрична (09310000-5 Електрична енергія) | B37: 2273 | C37: 76723 | D37: Сімдесят шість тисяч сімсот двадцять три грн. 0 коп. | E37: в т.ч.ПДВ- | F37: 12787.16667
A38: 61.10.1 Послуги щодо передавання даних і повідомлень(64211000-8 Послуги громадського телефонного звязку) | B38: 2240 | C38: 2613 | D38: Дві тисячі шістсот тринадцять грн. 0 коп. | E38: в т.ч.ПДВ- | F38: 435.5
A39: 85.60.1 Послуги освітянські допоміжні (80570000-0 Послуги з професійної підготовки у сфері підвищення кваліфікації) | B39: 2282 | C39: 1374 | D39: Одна тисячa триста сімдесят чотири грн. 0 коп. | E39: в т.ч.ПДВ- | F39: 229
A40: 91.01.1 Послуги бібліотек і архівів(92512000-3 Послуги архівів) | B40: 2240 | C40: 514 | D40: П'ятсот чотирнадцять грн. 0 коп. | E40: без ПДВ
A41: 71.20.1 Послуги щодо технічного випробування й аналізування(71632000-7 Послуги з технічних випробувань (повірка,атестація) | B41: 2240 | C41: 147 | D41: Сто сорок сім грн. 0 коп. | E41: в т.ч.ПДВ- | F41: 24.5
A42: 58.29.1 Програмне забезпечення системне на фізичних носіях(48443000-5 Пакети програмного забезпечення для бухгалтерського обліку) | B42: 2240 | C42: 7392 | D42: Сім тисяч триста дев'яносто дві грн. 0 коп. | E42: в т.ч.ПДВ- | F42: 1232
A44: Затверджений рішенням комітету з конкурсних торгів від__________№_______
A46: Голова комітету з конкурсних торгів _______________________О.О.Онищук
A47: (підпис) (ініціали та прізвище)
A48: МП

Sheet 6
A1: Додаток до річного плану закупівель на 2016 рік
A2: Дошкільний навчальний заклад № 6, 37836283
A3: (найменування замовника,код за ЄДРПОУ)
A4: Предмет закупівлі | B4: Код КЕКВ (для бюджетних коштів) | C4: Очікувана вартість предмета закупівлі | G4: Процедура закупівлі | H4: Орієнтовний початок проведення процедури закупівлі | I4: Примітки
A5: 1 | B5: 2 | C5: 3 | G5: 4 | H5: 5 | I5: 6
A6: 10.73.1 Макарони,локшина,кускус і подібні борошняні вироби(15851000-8 Борошняні вироби(макарони) | B6: 2230 | C6: 2098.44415 | D6: =SUMINWORDS(C6,"грн.","коп.") -> Дві тисячі дев'яносто вісім грн. 44 коп. | E6: в т.ч.ПДВ- | F6: =C6/6 -> 349.7406917
A7: 10.11.1 М'ясо великої рогатої худоби,свиней,овець,кіз,коней та ін..тварин родини конячих,свіже чиа охолоджене(15111000-9 М'ясо великої рогатої худоби родини бикових(яловичина) | B7: 2230 | C7: 74853.72203 | D7: =SUMINWORDS(C7,"грн.","коп.") -> Сімдесят чотири тисячі вісімсот п'ятдесят три грн. 72 коп. | E7: в т.ч.ПДВ- | F7: =C7/6 -> 12475.62034
A8: 10.12.1 М'ясо свійської птиці,свіже чи охолоджене(15112000-6 М'ясо свійської птиці) | B8: 2230 | C8: 27171.97334 | D8: =SUMINWORDS(C8,"грн.","коп.") -> Двадцять сім тисяч сто сімдесят одна грн. 97 коп. | E8: в т.ч.ПДВ- | F8: 4528.662223
A9: 10.12.4 Субпродукти харчові свійської птиці(15114000-0 Потрухи(печінка) | B9: 2230 | C9: 7684.216167 | D9: =SUMINWORDS(C9,"грн.","коп.") -> Сім тисяч шістсот вісімдесят чотири грн. 22 коп. | E9: в т.ч.ПДВ- | F9: 1280.702695
A10: 10.13.1.Консерви та готові страви з м’яса,м’ясних субпродуктів чи крові (15130000-8 Мясопродукти (ковбаса,сосиски) | B10: 2230 | C10: 23071.90719 | D10: Двадцять три тисячі сімдесят одна грн. 91 коп. | E10: в т.ч.ПДВ- | F10: 3845.317865
A11: 10.20.1 Продукція рибна,свіжа,охолоджена чи заморожена (15221000-3 Морожена риба) | B11: 2230 | C11: 54222.15217 | D11: П'ятдесят чотири тисячі двісті двадцять дві грн. 15 коп. | E11: в т.ч.ПДВ- | F11: 9037.025362
A12: 01.24.1 Яблука (03222000-3 Фрукти і горіхи(яблука,апельсини,лимони,ягоди) | B12: 2230 | C12: 22906.57249 | D12: Двадцять дві тисячі дев'ятсот шість грн. 57 коп. | E12: в т.ч.ПДВ- | F12: 3817.762082
A13: 10.39.1 Плоди та овочі,оброблені та законсервовані,крім картоплі(15331000-7 Оброблені овочі(консерви овочеві) | B13: 2230 | C13: 16197.27504 | D13: Шістнадцять тисяч сто дев'яносто сім грн. 28 коп. | E13: в т.ч.ПДВ- | F13: 2699.54584
A14: 10.72.1 Вироби хлібобулочні,зниженої вологості,та кондитерські,борошняні,тривалого зберігання(15820000-2 Сухарі та печиво; пресерви з хлібобулочних і кондитерських виробів (печиво) | B14: 2230 | C14: 5547.33961 | D14: П'ять тисяч п'ятсот сорок сім грн. 34 коп. | E14: в т.ч.ПДВ- | F14: 924.5566016
A15: 10.71.1 Вироби хлібобулочні,кондитерські та кулінарні,борошняні,нетривалого зберігання(15810000-9 Хлібопродукти, свіжовипечені хлібобулочні та кондитерські вироби) | B15: 2230 | C15: 20771.39213 | D15: Двадцять тисяч сімсот сімдесят одна грн. 39 коп. | E15: в т.ч.ПДВ- | F15: 3461.898689
A16: 10.51.1 Молоко та вершки,рідинні,оброблені(15511000-3 Молоко) | B16: 2230 | C16: 82931.73958 | D16: Вісімдесят дві тисячі дев'ятсот тридцять одна грн. 74 коп. | E16: в т.ч.ПДВ- | F16: 13821.9566
A17: 10.51.5 Продукти молочні, інші (15550000-8 Молочні продукти різні (кефір,сметана) | B17: 2230 | C17: 15496.23279 | D17: П'ятнадцять тисяч чотириста дев'яносто шість грн. 23 коп. | E17: в т.ч.ПДВ- | F17: 2582.705466
A18: 10.51.4 Сир сичужний та кисломолочний сир(15540000-5 Сирні продукти) | B18: 2230 | C18: 58103.5272 | D18: П'ятдесят вісім тисяч сто три грн. 53 коп. | E18: в т.ч.ПДВ- | F18: 9683.921201
A19: 10.32.1 Соки фруктові та овочеві (15321000-4 Фруктові соки) | B19: 2230 | C19: 15474.86049 | D19: П'ятнадцять тисяч чотириста сімдесят чотири грн. 86 коп. | E19: в т.ч.ПДВ- | F19: 2579.143415
A20: 10.61.2 Борошно зернових і овочевих культур;їхні суміші(15612000-1 Борошно зернових та овочевих культур і супутня продукція) | B20: 2230 | C20: 3398.498445 | D20: Три тисячі триста дев'яносто вісім грн. 50 коп. | E20: в т.ч.ПДВ- | F20: 566.4164076
A21: 10.61.1 Рис напівобрушений чи повністю обрушений,або лущений чи дроблений(15614000-5 Рис оброблений) | B21: 2230 | C21: 1667.72034 | D21: Одна тисячa шістсот шістдесят сім грн. 72 коп. | E21: в т.ч.ПДВ- | F21: 277.95339
A22: 0.81.1 Цукор-сирець,тростинний і очищений тростинний чи буряковий цукор (сахароза);меляса (15831000-2 Цукор) | B22: 2230 | C22: 15028.35651 | D22: П'ятнадцять тисяч двадцять вісім грн. 36 коп. | E22: в т.ч.ПДВ- | F22: 2504.726085
A23: 10.39.2 Плоди й горіхи,оброблені та законсервовані(15332000-4 Оброблені фрукти та горіхи(повидло,сухофрукти) | B23: 2230 | C23: 9922.476207 | D23: Дев'ять тисяч дев'ятсот двадцять дві грн. 48 коп. | E23: в т.ч.ПДВ- | F23: 1653.746035
A24: 10.51.3 Масло вершкове та молочні пасти(15530000-2 Вершкове масло) | B24: 2230 | C24: 26719.79224 | D24: Двадцять шість тисяч сімсот дев'ятнадцять грн. 79 коп. | E24: в т.ч.ПДВ- | F24: 4453.298707
A25: 01.47.2 Яйця у шкаралупі свіжі (03142000-8 Продукція тваринництва (03142500-3 Яйця) | B25: 2230 | C25: 20414.20836 | D25: Двадцять тисяч чотириста чотирнадцять грн. 21 коп. | E25: в т.ч.ПДВ- | F25: 3402.368061
A26: 10.41.5 Олії рафіновані(15421000-5 Рафіновані олії) | B26: 2230 | C26: 6028.977618 | D26: Шість тисяч двадцять вісім грн. 98 коп. | E26: в т.ч.ПДВ- | F26: 1004.829603
A27: 10.61.3 Крупи,крупка,гранули та інші продукти з зерна зернових культур(15613000-8 Продукція із зерна зернових культур(крупи) | B27: 2230 | C27: 6295.828278 | D27: Шість тисяч двісті дев'яносто п'ять грн. 83 коп. | E27: в т.ч.ПДВ- | F27: 1049.304713
A28: 10.82.1 Какао терте,какао-масло,жири й олія,какао-порошок(15841000-5 Какао) | B28: 2230 | C28: 7672.660955 | D28: Сім тисяч шістсот сімдесят дві грн. 66 коп. | E28: в т.ч.ПДВ- | F28: 1278.776826
A29: 10.83.1 Чай і кава,оброблені(15860000-4 Кава, чай та супутня продукція) | B29: 2230 | C29: 7961.254991 | D29: Сім тисяч дев'ятсот шістдесят одна грн. 25 коп. | E29: в т.ч.ПДВ- | F29: 1326.875832
A30: 10.84.3 Сіль харчова(14410000-8 Камяна сіль) | B30: 2230 | C30: 301.0549441 | D30: Триста одна грн. 5 коп. | E30: в т.ч.ПДВ- | F30: 50.17582402
A31: 01.13.5 Коренеплоди та бульби їстівні з високим умістом крохмалю та інуліну(03212000-0 Картопля та сушені овочі) | B31: 2230 | C31: 20901.34554 | D31: Двадцять тисяч дев'ятсот одна грн. 35 коп. | E31: в т.ч.ПДВ- | F31: 3483.557591
A32: 01.13.4 Овочі коренеплодні,цибулинні та бульбоподібні(03221000-6 Овочі) | B32: 2230 | C32: 25706.47163 | D32: Двадцять п'ять тисяч сімсот шість грн. 47 коп. | E32: в т.ч.ПДВ- | F32: 4284.411938
A33: 43.21.1 Роботи електромонтажні(45310000-3 Електромонтажні роботи(повірка контурів заземлення) | B33: 2240 | C33: 745 | D33: Сімсот сорок п'ять грн. 0 коп. | E33: в т.ч.ПДВ- | F33: 124.1666667
A34: 38.11.6 Послуги підприємств щодо перевезення інших безпечних відходів(90512000-9 Послуги з перевезення сміття) | B34: 2240 | C34: 5975 | D34: =SUMINWORDS(C34,"грн.","коп.") -> П'ять тисяч дев'ятсот сімдесят п'ять грн. 0 коп. | E34: в т.ч.ПДВ- | F34: =C34/6 -> 995.8333333
A35: 26.51.6 Інструменти та прилади вимірювальні,контрольні та випробувальні,інші(38421000-0 Прилади для вимірювання витрати рідин і газів) | B35: 2210 | C35: 1320 | D35: Одна тисячa триста двадцять грн. 0 коп. | E35: в т.ч.ПДВ- | F35: 220
A36: 36.00.2 Обробляння та розподіляння води трубопроводами(65110000-7 Розподіл води) | B36: 2272 | C36: 9064.944 | D36: Дев'ять тисяч шістдесят чотири грн. 94 коп. | E36: в т.ч.ПДВ- | F36: 1510.824
A37: 37.00.1 Послуги каналізаційні(90400000-1 Послуги у сфері водовідведення) | B37: 2272 | C37: 13325.056 | D37: Тринадцять тисяч триста двадцять п'ять грн. 6 коп. | E37: в т.ч.ПДВ- | F37: 2220.842667
A38: 35.11.1 Енергія електрична (09310000-5 Електрична енергія) | B38: 2273 | C38: 74864 | D38: Сімдесят чотири тисячі вісімсот шістдесят чотири грн. 0 коп. | E38: в т.ч.ПДВ- | F38: 12477.33333
A39: 61.10.1 Послуги щодо передавання даних і повідомлень(64211000-8 Послуги громадського телефонного звязку) | B39: 2240 | C39: 2200 | D39: Дві тисячі двісті грн. 0 коп. | E39: в т.ч.ПДВ- | F39: 366.6666667
A40: 85.60.1 Послуги освітянські допоміжні (80570000-0 Послуги з професійної підготовки у сфері підвищення кваліфікації) | B40: 2282 | C40: 349 | D40: Триста сорок дев'ять грн. 0 коп. | E40: в т.ч.ПДВ- | F40: 58.16666667
A41: 91.01.1 Послуги бібліотек і архівів(92512000-3 Послуги архівів) | B41: 2240 | C41: 593 | D41: П'ятсот дев'яносто три грн. 0 коп. | E41: без ПДВ
A42: 71.20.1 Послуги щодо технічного випробування й аналізування(71632000-7 Послуги з технічних випробувань (повірка,атестація) | B42: 2240 | C42: 1447 | D42: Одна тисячa чотириста сорок сім грн. 0 коп. | E42: в т.ч.ПДВ- | F42: 241.1666667
A43: 58.29.1 Програмне забезпечення системне на фізичних носіях(48443000-5 Пакети програмного забезпечення для бухгалтерського обліку) | B43: 2240 | C43: 7392 | D43: Сім тисяч триста дев'яносто дві грн. 0 коп. | E43: в т.ч.ПДВ- | F43: 1232
A45: Затверджений рішенням комітету з конкурсних торгів від__________№_______
A47: Голова комітету з конкурсних торгів _______________________Л.В.Гаріпова
A48: (підпис) (ініціали та прізвище)
A49: МП

Sheet 7
A1: Додаток до річного плану закупівель на 2016 рік
A2: Дошкільний навчальний заклад № 7, 38394724
A3: (найменування замовника,код за ЄДРПОУ)
A4: Предмет закупівлі | B4: Код КЕКВ (для бюджетних коштів) | C4: Очікувана вартість предмета закупівлі | G4: Процедура закупівлі | H4: Орієнтовний початок проведення процедури закупівлі | I4: Примітки
A5: 1 | B5: 2 | C5: 3 | G5: 4 | H5: 5 | I5: 6
A6: 10.73.1 Макарони,локшина,кускус і подібні борошняні вироби(15851000-8 Борошняні вироби(макарони) | B6: 2230 | C6: 4655.301729 | D6: =SUMINWORDS(C6,"грн.","коп.") -> Чотири тисячі шістсот п'ятдесят п'ять грн. 30 коп. | E6: в т.ч.ПДВ- | F6: =C6/6 -> 775.8836215
A7: 10.11.1 М'ясо великої рогатої худоби,свиней,овець,кіз,коней та ін..тварин родини конячих,свіже чиа охолоджене(15111000-9 М'ясо великої рогатої худоби родини бикових(яловичина) | B7: 2230 | C7: 158922.6923 | D7: =SUMINWORDS(C7,"грн.","коп.") -> Сто п'ятдесят вісім тисяч дев'ятсот двадцять дві грн. 69 коп. | E7: в т.ч.ПДВ- | F7: =C7/6 -> 26487.11538
A8: 10.12.1 М'ясо свійської птиці,свіже чи охолоджене(15112000-6 М'ясо свійської птиці) | B8: 2230 | C8: 60200.9362 | D8: =SUMINWORDS(C8,"грн.","коп.") -> Шістдесят тисяч двісті грн. 94 коп. | E8: в т.ч.ПДВ- | F8: 10033.48937
A9: 10.12.4 Субпродукти харчові свійської птиці(15114000-0 Потрухи(печінка) | B9: 2230 | C9: 17007.42344 | D9: =SUMINWORDS(C9,"грн.","коп.") -> Сімнадцять тисяч сім грн. 42 коп. | E9: в т.ч.ПДВ- | F9: 2834.570573
A10: 10.13.1.Консерви та готові страви з м’яса,м’ясних субпродуктів чи крові (15130000-8 Мясопродукти (ковбаса,сосиски) | B10: 2230 | C10: 51064.89544 | D10: П'ятдесят одна тисячa шістдесят чотири грн. 90 коп. | E10: в т.ч.ПДВ- | F10: 8510.815907
A11: 10.20.1 Продукція рибна,свіжа,охолоджена чи заморожена (15221000-3 Морожена риба) | B11: 2230 | C11: 119954.8594 | D11: Сто дев'ятнадцять тисяч дев'ятсот п'ятдесят чотири грн. 86 коп. | E11: в т.ч.ПДВ- | F11: 19992.47656
A12: 01.24.1 Яблука (03222000-3 Фрукти і горіхи(яблука,апельсини,лимони,ягоди) | B12: 2230 | C12: 50690.23177 | D12: П'ятдесят тисяч шістсот дев'яносто грн. 23 коп. | E12: в т.ч.ПДВ- | F12: 8448.371962
A13: 10.39.1 Плоди та овочі,оброблені та законсервовані,крім картоплі(15331000-7 Оброблені овочі(консерви овочеві) | B13: 2230 | C13: 35969.92879 | D13: Тридцять п'ять тисяч дев'ятсот шістдесят дев'ять грн. 93 коп. | E13: в т.ч.ПДВ- | F13: 5994.988131
A14: 10.72.1 Вироби хлібобулочні,зниженої вологості,та кондитерські,борошняні,тривалого зберігання(15820000-2 Сухарі та печиво; пресерви з хлібобулочних і кондитерських виробів (печиво) | B14: 2230 | C14: 12246.97935 | D14: Дванадцять тисяч двісті сорок шість грн. 98 коп. | E14: в т.ч.ПДВ- | F14: 2041.163225
A15: 10.71.1 Вироби хлібобулочні,кондитерські та кулінарні,борошняні,нетривалого зберігання(15810000-9 Хлібопродукти, свіжовипечені хлібобулочні та кондитерські вироби) | B15: 2230 | C15: 46060.30044 | D15: Сорок шість тисяч шістдесят грн. 30 коп. | E15: в т.ч.ПДВ- | F15: 7676.71674
A16: 10.51.1 Молоко та вершки,рідинні,оброблені(15511000-3 Молоко) | B16: 2230 | C16: 184504.0672 | D16: Сто вісімдесят чотири тисячі п'ятсот чотири грн. 7 коп. | E16: в т.ч.ПДВ- | F16: 30750.67786
A17: 10.51.5 Продукти молочні, інші (15550000-8 Молочні продукти різні (кефір,сметана) | B17: 2230 | C17: 34370.52294 | D17: Тридцять чотири тисячі триста сімдесят грн. 52 коп. | E17: в т.ч.ПДВ- | F17: 5728.42049
A18: 10.51.4 Сир сичужний та кисломолочний сир(15540000-5 Сирні продукти) | B18: 2230 | C18: 129048.5869 | D18: Сто двадцять дев'ять тисяч сорок вісім грн. 59 коп. | E18: в т.ч.ПДВ- | F18: 21508.09781
A19: 10.32.1 Соки фруктові та овочеві (15321000-4 Фруктові соки) | B19: 2230 | C19: 34352.01187 | D19: Тридцять чотири тисячі триста п'ятдесят дві грн. 1 коп. | E19: в т.ч.ПДВ- | F19: 5725.335312
A20: 10.61.2 Борошно зернових і овочевих культур;їхні суміші(15612000-1 Борошно зернових та овочевих культур і супутня продукція) | B20: 2230 | C20: 7532.554465 | D20: Сім тисяч п'ятсот тридцять дві грн. 55 коп. | E20: в т.ч.ПДВ- | F20: 1255.425744
A21: 10.61.1 Рис напівобрушений чи повністю обрушений,або лущений чи дроблений(15614000-5 Рис оброблений) | B21: 2230 | C21: 3702.104387 | D21: Три тисячі сімсот дві грн. 10 коп. | E21: в т.ч.ПДВ- | F21: 617.0173979
A22: 0.81.1 Цукор-сирець,тростинний і очищений тростинний чи буряковий цукор (сахароза);меляса (15831000-2 Цукор) | B22: 2230 | C22: 33388.31834 | D22: Тридцять три тисячі триста вісімдесят вісім грн. 32 коп. | E22: в т.ч.ПДВ- | F22: 5564.719723
A23: 10.39.2 Плоди й горіхи,оброблені та законсервовані(15332000-4 Оброблені фрукти та горіхи(повидло,сухофрукти) | B23: 2230 | C23: 22077.75598 | D23: Двадцять дві тисячі сімдесят сім грн. 76 коп. | E23: в т.ч.ПДВ- | F23: 3679.625997
A24: 10.51.3 Масло вершкове та молочні пасти(15530000-2 Вершкове масло) | B24: 2230 | C24: 59199.10519 | D24: П'ятдесят дев'ять тисяч сто дев'яносто дев'ять грн. 11 коп. | E24: в т.ч.ПДВ- | F24: 9866.517532
A25: 01.47.2 Яйця у шкаралупі свіжі (03142000-8 Продукція тваринництва (03142500-3 Яйця) | B25: 2230 | C25: 45182.62869 | D25: Сорок п'ять тисяч сто вісімдесят дві грн. 63 коп. | E25: в т.ч.ПДВ- | F25: 7530.438115
A26: 10.41.5 Олії рафіновані(15421000-5 Рафіновані олії) | B26: 2230 | C26: 13375.00926 | D26: Тринадцять тисяч триста сімдесят п'ять грн. 1 коп. | E26: в т.ч.ПДВ- | F26: 2229.168209
A27: 10.61.3 Крупи,крупка,гранули та інші продукти з зерна зернових культур(15613000-8 Продукція із зерна зернових культур(крупи) | B27: 2230 | C27: 13972.48549 | D27: Тринадцять тисяч дев'ятсот сімдесят дві грн. 49 коп. | E27: в т.ч.ПДВ- | F27: 2328.747581
A28: 10.82.1 Какао терте,какао-масло,жири й олія,какао-порошок(15841000-5 Какао) | B28: 2230 | C28: 16981.84837 | D28: Шістнадцять тисяч дев'ятсот вісімдесят одна грн. 85 коп. | E28: в т.ч.ПДВ- | F28: 2830.308061
A29: 10.83.1 Чай і кава,оброблені(15860000-4 Кава, чай та супутня продукція) | B29: 2230 | C29: 17568.8401 | D29: Сімнадцять тисяч п'ятсот шістдесят вісім грн. 84 коп. | E29: в т.ч.ПДВ- | F29: 2928.140016
A30: 10.84.3 Сіль харчова(14410000-8 Камяна сіль) | B30: 2230 | C30: 665.3321665 | D30: Шістсот шістдесят п'ять грн. 33 коп. | E30: в т.ч.ПДВ- | F30: 110.8886944
A31: 01.13.5 Коренеплоди та бульби їстівні з високим умістом крохмалю та інуліну(03212000-0 Картопля та сушені овочі) | B31: 2230 | C31: 46379.56581 | D31: Сорок шість тисяч триста сімдесят дев'ять грн. 57 коп. | E31: в т.ч.ПДВ- | F31: 7729.927634
A32: 01.13.4 Овочі коренеплодні,цибулинні та бульбоподібні(03221000-6 Овочі) | B32: 2230 | C32: 57119.71355 | D32: П'ятдесят сім тисяч сто дев'ятнадцять грн. 71 коп. | E32: в т.ч.ПДВ- | F32: 9519.952259
A33: 43.21.1 Роботи електромонтажні(45310000-3 Електромонтажні роботи(повірка контурів заземлення) | B33: 2240 | C33: 745 | D33: Сімсот сорок п'ять грн. 0 коп. | E33: в т.ч.ПДВ- | F33: 124.1666667
A34: 38.11.6 Послуги підприємств щодо перевезення інших безпечних відходів(90512000-9 Послуги з перевезення сміття) | B34: 2240 | C34: 10486 | D34: =SUMINWORDS(C34,"грн.","коп.") -> Десять тисяч чотириста вісімдесят шість грн. 0 коп. | E34: в т.ч.ПДВ- | F34: =C34/6 -> 1747.666667
A35: 59.12.1 Послуги щодо поствиробництва кінофільмів,відеофільмів і телевізійних програм(64200000-8 Телекомунікаційні послуги)Створення страхового фонду документації м.Вінниці) | B35: 2240 | C35: 15000 | D35: П'ятнадцять тисяч грн. 0 коп. | E35: в т.ч. ПДВ- | F35: 2500
A36: 37.00.1 Послуги каналізаційні(90400000-1 Послуги у сфері водовідведення) | B36: 2272 | C36: 29616.12 | D36: Двадцять дев'ять тисяч шістсот шістнадцять грн. 12 коп. | E36: в т.ч.ПДВ- | F36: 4936.02
A37: 35.11.1 Енергія електрична (09310000-5 Електрична енергія) | B37: 2273 | C37: 158332 | D37: Сто п'ятдесят вісім тисяч триста тридцять дві грн. 0 коп. | E37: в т.ч.ПДВ- | F37: 26388.66667
A38: 61.10.1 Послуги щодо передавання даних і повідомлень(64211000-8 Послуги громадського телефонного звязку) | B38: 2240 | C38: 2620 | D38: Дві тисячі шістсот двадцять грн. 0 коп. | E38: в т.ч.ПДВ- | F38: 436.6666667
A39: 85.60.1 Послуги освітянські допоміжні (80570000-0 Послуги з професійної підготовки у сфері підвищення кваліфікації) | B39: 2282 | C39: 676 | D39: Шістсот сімдесят шість грн. 0 коп. | E39: в т.ч.ПДВ- | F39: 112.6666667
A40: 91.01.1 Послуги бібліотек і архівів(92512000-3 Послуги архівів) | B40: 2240 | C40: 988 | D40: Дев'ятсот вісімдесят вісім грн. 0 коп. | E40: без ПДВ
A41: 71.20.1 Послуги щодо технічного випробування й аналізування(71632000-7 Послуги з технічних випробувань (повірка,атестація) | B41: 2240 | C41: 2903 | D41: Дві тисячі дев'ятсот три грн. 0 коп. | E41: в т.ч.ПДВ- | F41: 483.8333333
A42: 58.29.1 Програмне забезпечення системне на фізичних носіях(48443000-5 Пакети програмного забезпечення для бухгалтерського обліку) | B42: 2240 | C42: 7392 | D42: Сім тисяч триста дев'яносто дві грн. 0 коп. | E42: в т.ч.ПДВ- | F42: 1232
A43: 36.00.2 Обробляння та розподіляння води трубопроводами(65110000-7 Розподіл води) | B43: 2272 | C43: 25772.88 | D43: Двадцять п'ять тисяч сімсот сімдесят дві грн. 88 коп. | E43: в т.ч.ПДВ- | F43: 4295.48
A44: 22.29.2-Вироби пластмасові інші,н.в.і.у.(30192000-1 Офісне приладдя) (приладдя канцелярське - ручки,олівці,фломастери тощо) | B44: 2210 | C44: 1899 | D44: =SUMINWORDS(C44,"грн.","коп.") -> Одна тисячa вісімсот дев'яносто дев'ять грн. 0 коп. | E44: в т.ч.ПДВ- | F44: 316.5
A46: Затверджений рішенням комітету з конкурсних торгів від__________№_______
A48: Голова комітету з конкурсних торгів _______________________О.В.Просєкова
A49: (підпис) (ініціали та прізвище)
A50: МП

Sheet 9
A1: Додаток до річного плану закупівель на 2016 рік
A2: Дошкільний навчальний заклад № 9, 20087919
A3: (найменування замовника,код за ЄДРПОУ)
A4: Предмет закупівлі | B4: Код КЕКВ (для бюджетних коштів) | C4: Очікувана вартість предмета закупівлі | G4: Процедура закупівлі | H4: Орієнтовний початок проведення процедури закупівлі | I4: Примітки
A5: 1 | B5: 2 | C5: 3 | G5: 4 | H5: 5 | I5: 6
A6: 10.73.1 Макарони,локшина,кускус і подібні борошняні вироби(15851000-8 Борошняні вироби(макарони) | B6: 2230 | C6: 1220.876761 | D6: =SUMINWORDS(C6,"грн.","коп.") -> Одна тисячa двісті двадцять грн. 88 коп. | E6: в т.ч.ПДВ- | F6: =C6/6 -> 203.4794601
A7: 10.11.1 М'ясо великої рогатої худоби,свиней,овець,кіз,коней та ін..тварин родини конячих,свіже чиа охолоджене(15111000-9 М'ясо великої рогатої худоби родини бикових(яловичина) | B7: 2230 | C7: 41538.31096 | D7: =SUMINWORDS(C7,"грн.","коп.") -> Сорок одна тисячa п'ятсот тридцять вісім грн. 31 коп. | E7: в т.ч.ПДВ- | F7: =C7/6 -> 6923.051827
A8: 10.12.1 М'ясо свійської птиці,свіже чи охолоджене(15112000-6 М'ясо свійської птиці) | B8: 2230 | C8: 15906.77144 | D8: =SUMINWORDS(C8,"грн.","коп.") -> П'ятнадцять тисяч дев'ятсот шість грн. 77 коп. | E8: в т.ч.ПДВ- | F8: 2651.128573
A9: 10.12.4 Субпродукти харчові свійської птиці(15114000-0 Потрухи(печінка) | B9: 2230 | C9: 4520.026944 | D9: =SUMINWORDS(C9,"грн.","коп.") -> Чотири тисячі п'ятсот двадцять грн. 3 коп. | E9: в т.ч.ПДВ- | F9: 753.3378239
A10: 10.13.1.Консерви та готові страви з м’яса,м’ясних субпродуктів чи крові (15130000-8 Мясопродукти (ковбаса,сосиски) | B10: 2230 | C10: 13571.40922 | D10: Тринадцять тисяч п'ятсот сімдесят одна грн. 41 коп. | E10: в т.ч.ПДВ- | F10: 2261.901536
A11: 10.20.1 Продукція рибна,свіжа,охолоджена чи заморожена (15221000-3 Морожена риба) | B11: 2230 | C11: 31962.68987 | D11: Тридцять одна тисячa дев'ятсот шістдесят дві грн. 69 коп. | E11: в т.ч.ПДВ- | F11: 5327.114978
A12: 01.24.1 Яблука (03222000-3 Фрукти і горіхи(яблука,апельсини,лимони,ягоди) | B12: 2230 | C12: 13485.01747 | D12: Тринадцять тисяч чотириста вісімдесят п'ять грн. 2 коп. | E12: в т.ч.ПДВ- | F12: 2247.502912
A13: 10.39.1 Плоди та овочі,оброблені та законсервовані,крім картоплі(15331000-7 Оброблені овочі(консерви овочеві) | B13: 2230 | C13: 9377.527306 | D13: Дев'ять тисяч триста сімдесят сім грн. 53 коп. | E13: в т.ч.ПДВ- | F13: 1562.921218
A14: 10.72.1 Вироби хлібобулочні,зниженої вологості,та кондитерські,борошняні,тривалого зберігання(15820000-2 Сухарі та печиво; пресерви з хлібобулочних і кондитерських виробів (печиво) | B14: 2230 | C14: 3301.528363 | D14: Три тисячі триста одна грн. 53 коп. | E14: в т.ч.ПДВ- | F14: 550.2547271
A15: 10.71.1 Вироби хлібобулочні,кондитерські та кулінарні,борошняні,нетривалого зберігання(15810000-9 Хлібопродукти, свіжовипечені хлібобулочні та кондитерські вироби) | B15: 2230 | C15: 12109.79586 | D15: Дванадцять тисяч сто дев'ять грн. 80 коп. | E15: в т.ч.ПДВ- | F15: 2018.29931
A16: 10.51.1 Молоко та вершки,рідинні,оброблені(15511000-3 Молоко) | B16: 2230 | C16: 47597.99288 | D16: Сорок сім тисяч п'ятсот дев'яносто сім грн. 99 коп. | E16: в т.ч.ПДВ- | F16: 7932.998814
A17: 10.51.5 Продукти молочні, інші (15550000-8 Молочні продукти різні (кефір,сметана) | B17: 2230 | C17: 9024.626639 | D17: Дев'ять тисяч двадцять чотири грн. 63 коп. | E17: в т.ч.ПДВ- | F17: 1504.10444
A18: 10.51.4 Сир сичужний та кисломолочний сир(15540000-5 Сирні продукти) | B18: 2230 | C18: 33619.80524 | D18: Тридцять три тисячі шістсот дев'ятнадцять грн. 81 коп. | E18: в т.ч.ПДВ- | F18: 5603.300874
A19: 10.32.1 Соки фруктові та овочеві (15321000-4 Фруктові соки) | B19: 2230 | C19: 8976.230076 | D19: Вісім тисяч дев'ятсот сімдесят шість грн. 23 коп. | E19: в т.ч.ПДВ- | F19: 1496.038346
A20: 10.61.2 Борошно зернових і овочевих культур;їхні суміші(15612000-1 Борошно зернових та овочевих культур і супутня продукція) | B20: 2230 | C20: 1985.78253 | D20: Одна тисячa дев'ятсот вісімдесят п'ять грн. 78 коп. | E20: в т.ч.ПДВ- | F20: 330.9637549
A21: 10.61.1 Рис напівобрушений чи повністю обрушений,або лущений чи дроблений(15614000-5 Рис оброблений) | B21: 2230 | C21: 967.3651974 | D21: Дев'ятсот шістдесят сім грн. 37 коп. | E21: в т.ч.ПДВ- | F21: 161.2275329
A22: 0.81.1 Цукор-сирець,тростинний і очищений тростинний чи буряковий цукор (сахароза);меляса (15831000-2 Цукор) | B22: 2230 | C22: 8683.039033 | D22: Вісім тисяч шістсот вісімдесят три грн. 4 коп. | E22: в т.ч.ПДВ- | F22: 1447.173172
A23: 10.39.2 Плоди й горіхи,оброблені та законсервовані(15332000-4 Оброблені фрукти та горіхи(повидло,сухофрукти) | B23: 2230 | C23: 5691.780859 | D23: П'ять тисяч шістсот дев'яносто одна грн. 78 коп. | E23: в т.ч.ПДВ- | F23: 948.6301431
A24: 10.51.3 Масло вершкове та молочні пасти(15530000-2 Вершкове масло) | B24: 2230 | C24: 15642.05966 | D24: П'ятнадцять тисяч шістсот сорок дві грн. 6 коп. | E24: в т.ч.ПДВ- | F24: 2607.009943
A25: 01.47.2 Яйця у шкаралупі свіжі (03142000-8 Продукція тваринництва (03142500-3 Яйця) | B25: 2230 | C25: 12008.09163 | D25: Дванадцять тисяч вісім грн. 9 коп. | E25: в т.ч.ПДВ- | F25: 2001.348605
A26: 10.41.5 Олії рафіновані(15421000-5 Рафіновані олії) | B26: 2230 | C26: 3507.664793 | D26: Три тисячі п'ятсот сім грн. 66 коп. | E26: в т.ч.ПДВ- | F26: 584.6107988
A27: 10.61.3 Крупи,крупка,гранули та інші продукти з зерна зернових культур(15613000-8 Продукція із зерна зернових культур(крупи) | B27: 2230 | C27: 3656.0998 | D27: Три тисячі шістсот п'ятдесят шість грн. 10 коп. | E27: в т.ч.ПДВ- | F27: 609.3499667
A28: 10.82.1 Какао терте,какао-масло,жири й олія,какао-порошок(15841000-5 Какао) | B28: 2230 | C28: 4513.229911 | D28: Чотири тисячі п'ятсот тринадцять грн. 23 коп. | E28: в т.ч.ПДВ- | F28: 752.2049851
A29: 10.83.1 Чай і кава,оброблені(15860000-4 Кава, чай та супутня продукція) | B29: 2230 | C29: 4747.37971 | D29: Чотири тисячі сімсот сорок сім грн. 38 коп. | E29: в т.ч.ПДВ- | F29: 791.2299516
A30: 10.84.3 Сіль харчова(14410000-8 Камяна сіль) | B30: 2230 | C30: 178.3199021 | D30: Сто сімдесят вісім грн. 32 коп. | E30: в т.ч.ПДВ- | F30: 29.71998368
A31: 01.13.5 Коренеплоди та бульби їстівні з високим умістом крохмалю та інуліну(03212000-0 Картопля та сушені овочі) | B31: 2230 | C31: 12146.86849 | D31: Дванадцять тисяч сто сорок шість грн. 87 коп. | E31: в т.ч.ПДВ- | F31: 2024.478081
A32: 01.13.4 Овочі коренеплодні,цибулинні та бульбоподібні(03221000-6 Овочі) | B32: 2230 | C32: 14842.70959 | D32: Чотирнадцять тисяч вісімсот сорок дві грн. 71 коп. | E32: в т.ч.ПДВ- | F32: 2473.784932
A33: 43.21.1 Роботи електромонтажні(45310000-3 Електромонтажні роботи(повірка контурів заземлення) | B33: 2240 | C33: 745 | D33: Сімсот сорок п'ять грн. 0 коп. | E33: в т.ч.ПДВ- | F33: 124.1666667
A34: 38.11.6 Послуги підприємств щодо перевезення інших безпечних відходів(90512000-9 Послуги з перевезення сміття) | B34: 2240 | C34: 6270 | D34: =SUMINWORDS(C34,"грн.","коп.") -> Шість тисяч двісті сімдесят грн. 0 коп. | E34: в т.ч.ПДВ- | F34: =C34/6 -> 1045
A35: 36.00.2 Обробляння та розподіляння води трубопроводами(65110000-7 Розподіл води) | B35: 2272 | C35: 5341.2072 | D35: П'ять тисяч триста сорок одна грн. 21 коп. | E35: в т.ч.ПДВ- | F35: 890.2012
A36: 37.00.1 Послуги каналізаційні(90400000-1 Послуги у сфері водовідведення) | B36: 2272 | C36: 5179.7928 | D36: П'ять тисяч сто сімдесят дев'ять грн. 79 коп. | E36: в т.ч.ПДВ- | F36: 863.2988
A37: 35.11.1 Енергія електрична (09310000-5 Електрична енергія) | B37: 2273 | C37: 37433 | D37: Тридцять сім тисяч чотириста тридцять три грн. 0 коп. | E37: в т.ч.ПДВ- | F37: 6238.833333
A38: 61.10.1 Послуги щодо передавання даних і повідомлень(64211000-8 Послуги громадського телефонного звязку) | B38: 2240 | C38: 1589 | D38: Одна тисячa п'ятсот вісімдесят дев'ять грн. 0 коп. | E38: в т.ч.ПДВ- | F38: 264.8333333
A39: 91.01.1 Послуги бібліотек і архівів(92512000-3 Послуги архівів) | B39: 2240 | C39: 435 | D39: Чотириста тридцять п'ять грн. 0 коп. | E39: без ПДВ
A40: 58.29.1 Програмне забезпечення системне на фізичних носіях(48443000-5 Пакети програмного забезпечення для бухгалтерського обліку) | B40: 2240 | C40: 7392 | D40: Сім тисяч триста дев'яносто дві грн. 0 коп. | E40: в т.ч.ПДВ- | F40: 1232
A41: Поточний ремонт будівель (45400000-1 Завершальні будівельні роботи) | B41: 2240 | C41: 32900 | D41: Тридцять дві тисячі дев'ятсот грн. 0 коп. | E41: в т.ч.ПДВ- | F41: 5483.333333
A42: 28.99.3 Машини й устаткування спеціальної призначеності,н.в.і.у.(37535000-7 Каруселі,гойдалки,тири та інші атракціони) | B42: 3110 | C42: 29300 | D42: Двадцять дев'ять тисяч триста грн. 0 коп. | E42: в т.ч.ПДВ- | F42: 4883.333333
A43: 85.60.1 Послуги освітянські допоміжні (80570000-0 Послуги з професійної підготовки у сфері підвищення кваліфікації) | B43: 2282 | C43: 698 | D43: Шістсот дев'яносто вісім грн. 0 коп. | E43: в т.ч.ПДВ- | F43: 116.3333333
A45: Затверджений рішенням комітету з конкурсних торгів від__________№_______
A47: Голова комітету з конкурсних торгів _______________________І.В.Бондар
A48: (підпис) (ініціали та прізвище)
A49: МП

Sheet 10
A1: Додаток до річного плану закупівель на 2016 рік
A2: Дошкільний навчальний заклад № 10, 26243272
A3: (найменування замовника,код за ЄДРПОУ)
A4: Предмет закупівлі | B4: Код КЕКВ (для бюджетних коштів) | C4: Очікувана вартість предмета закупівлі | G4: Процедура закупівлі | H4: Орієнтовний початок проведення процедури закупівлі | I4: Примітки
A5: 1 | B5: 2 | C5: 3 | G5: 4 | H5: 5 | I5: 6
A6: 10.73.1 Макарони,локшина,кускус і подібні борошняні вироби(15851000-8 Борошняні вироби(макарони) | B6: 2230 | C6: 1765.390723 | D6: =SUMINWORDS(C6,"грн.","коп.") -> Одна тисячa сімсот шістдесят п'ять грн. 39 коп. | E6: в т.ч.ПДВ- | F6: =C6/6 -> 294.2317871
A7: 10.11.1 М'ясо великої рогатої худоби,свиней,овець,кіз,коней та ін..тварин родини конячих,свіже чиа охолоджене(15111000-9 М'ясо великої рогатої худоби родини бикових(яловичина) | B7: 2230 | C7: 57393.93124 | D7: =SUMINWORDS(C7,"грн.","коп.") -> П'ятдесят сім тисяч триста дев'яносто три грн. 93 коп. | E7: в т.ч.ПДВ- | F7: =C7/6 -> 9565.655207
A8: 10.12.1 М'ясо свійської птиці,свіже чи охолоджене(15112000-6 М'ясо свійської птиці) | B8: 2230 | C8: 22958.46638 | D8: =SUMINWORDS(C8,"грн.","коп.") -> Двадцять дві тисячі дев'ятсот п'ятдесят вісім грн. 47 коп. | E8: в т.ч.ПДВ- | F8: 3826.411063
A9: 10.12.4 Субпродукти харчові свійської птиці(15114000-0 Потрухи(печінка) | B9: 2230 | C9: 6514.45878 | D9: =SUMINWORDS(C9,"грн.","коп.") -> Шість тисяч п'ятсот чотирнадцять грн. 46 коп. | E9: в т.ч.ПДВ- | F9: 1085.74313
A10: 10.13.1.Консерви та готові страви з м’яса,м’ясних субпродуктів чи крові (15130000-8 Мясопродукти (ковбаса,сосиски) | B10: 2230 | C10: 19559.7033 | D10: Дев'ятнадцять тисяч п'ятсот п'ятдесят дев'ять грн. 70 коп. | E10: в т.ч.ПДВ- | F10: 3259.950551
A11: 10.20.1 Продукція рибна,свіжа,охолоджена чи заморожена (15221000-3 Морожена риба) | B11: 2230 | C11: 46036.68749 | D11: Сорок шість тисяч тридцять шість грн. 69 коп. | E11: в т.ч.ПДВ- | F11: 7672.781248
A12: 01.24.1 Яблука (03222000-3 Фрукти і горіхи(яблука,апельсини,лимони,ягоди) | B12: 2230 | C12: 19430.50826 | D12: Дев'ятнадцять тисяч чотириста тридцять грн. 51 коп. | E12: в т.ч.ПДВ- | F12: 3238.418043
A13: 10.39.1 Плоди та овочі,оброблені та законсервовані,крім картоплі(15331000-7 Оброблені овочі(консерви овочеві) | B13: 2230 | C13: 13580.00788 | D13: Тринадцять тисяч п'ятсот вісімдесят грн. 1 коп. | E13: в т.ч.ПДВ- | F13: 2263.334646
A14: 10.72.1 Вироби хлібобулочні,зниженої вологості,та кондитерські,борошняні,тривалого зберігання(15820000-2 Сухарі та печиво; пресерви з хлібобулочних і кондитерських виробів (печиво) | B14: 2230 | C14: 4741.72229 | D14: Чотири тисячі сімсот сорок одна грн. 72 коп. | E14: в т.ч.ПДВ- | F14: 790.2870484
A15: 10.71.1 Вироби хлібобулочні,кондитерські та кулінарні,борошняні,нетривалого зберігання(15810000-9 Хлібопродукти, свіжовипечені хлібобулочні та кондитерські вироби) | B15: 2230 | C15: 17499.90356 | D15: Сімнадцять тисяч чотириста дев'яносто дев'ять грн. 90 коп. | E15: в т.ч.ПДВ- | F15: 2916.650593
A16: 10.51.1 Молоко та вершки,рідинні,оброблені(15511000-3 Молоко) | B16: 2230 | C16: 69110.95132 | D16: Шістдесят дев'ять тисяч сто десять грн. 95 коп. | E16: в т.ч.ПДВ- | F16: 11518.49189
A17: 10.51.5 Продукти молочні, інші (15550000-8 Молочні продукти різні (кефір,сметана) | B17: 2230 | C17: 13045.75007 | D17: Тринадцять тисяч сорок п'ять грн. 75 коп. | E17: в т.ч.ПДВ- | F17: 2174.291678
A18: 10.51.4 Сир сичужний та кисломолочний сир(15540000-5 Сирні продукти) | B18: 2230 | C18: 48694.9179 | D18: Сорок вісім тисяч шістсот дев'яносто чотири грн. 92 коп. | E18: в т.ч.ПДВ- | F18: 8115.81965
A19: 10.32.1 Соки фруктові та овочеві (15321000-4 Фруктові соки) | B19: 2230 | C19: 12991.44622 | D19: Дванадцять тисяч дев'ятсот дев'яносто одна грн. 45 коп. | E19: в т.ч.ПДВ- | F19: 2165.241037
A20: 10.61.2 Борошно зернових і овочевих культур;їхні суміші(15612000-1 Борошно зернових та овочевих культур і супутня продукція) | B20: 2230 | C20: 2867.726348 | D20: Дві тисячі вісімсот шістдесят сім грн. 73 коп. | E20: в т.ч.ПДВ- | F20: 477.9543914
A21: 10.61.1 Рис напівобрушений чи повністю обрушений,або лущений чи дроблений(15614000-5 Рис оброблений) | B21: 2230 | C21: 1400.083647 | D21: Одна тисячa чотириста грн. 8 коп. | E21: в т.ч.ПДВ- | F21: 233.3472745
A22: 0.81.1 Цукор-сирець,тростинний і очищений тростинний чи буряковий цукор (сахароза);меляса (15831000-2 Цукор) | B22: 2230 | C22: 12582.05838 | D22: Дванадцять тисяч п'ятсот вісімдесят дві грн. 6 коп. | E22: в т.ч.ПДВ- | F22: 2097.00973
A23: 10.39.2 Плоди й горіхи,оброблені та законсервовані(15332000-4 Оброблені фрукти та горіхи(повидло,сухофрукти) | B23: 2230 | C23: 8265.69525 | D23: Вісім тисяч двісті шістдесят п'ять грн. 70 коп. | E23: в т.ч.ПДВ- | F23: 1377.615875
A24: 10.51.3 Масло вершкове та молочні пасти(15530000-2 Вершкове масло) | B24: 2230 | C24: 22576.40416 | D24: Двадцять дві тисячі п'ятсот сімдесят шість грн. 40 коп. | E24: в т.ч.ПДВ- | F24: 3762.734026
A25: 01.47.2 Яйця у шкаралупі свіжі (03142000-8 Продукція тваринництва (03142500-3 Яйця) | B25: 2230 | C25: 17306.58222 | D25: Сімнадцять тисяч триста шість грн. 58 коп. | E25: в т.ч.ПДВ- | F25: 2884.43037
A26: 10.41.5 Олії рафіновані(15421000-5 Рафіновані олії) | B26: 2230 | C26: 5072.091699 | D26: П'ять тисяч сімдесят дві грн. 9 коп. | E26: в т.ч.ПДВ- | F26: 845.3486166
A27: 10.61.3 Крупи,крупка,гранули та інші продукти з зерна зернових культур(15613000-8 Продукція із зерна зернових культур(крупи) | B27: 2230 | C27: 5289.701801 | D27: П'ять тисяч двісті вісімдесят дев'ять грн. 70 коп. | E27: в т.ч.ПДВ- | F27: 881.6169669
A28: 10.82.1 Какао терте,какао-масло,жири й олія,какао-порошок(15841000-5 Какао) | B28: 2230 | C28: 6504.662601 | D28: Шість тисяч п'ятсот чотири грн. 66 коп. | E28: в т.ч.ПДВ- | F28: 1084.110434
A29: 10.83.1 Чай і кава,оброблені(15860000-4 Кава, чай та супутня продукція) | B29: 2230 | C29: 6814.36402 | D29: Шість тисяч вісімсот чотирнадцять грн. 36 коп. | E29: в т.ч.ПДВ- | F29: 1135.727337
A30: 10.84.3 Сіль харчова(14410000-8 Камяна сіль) | B30: 2230 | C30: 256.4708504 | D30: Двісті п'ятдесят шість грн. 47 коп. | E30: в т.ч.ПДВ- | F30: 42.74514174
A31: 01.13.5 Коренеплоди та бульби їстівні з високим умістом крохмалю та інуліну(03212000-0 Картопля та сушені овочі) | B31: 2230 | C31: 17570.30974 | D31: Сімнадцять тисяч п'ятсот сімдесят грн. 31 коп. | E31: в т.ч.ПДВ- | F31: 2928.384957
A32: 01.13.4 Овочі коренеплодні,цибулинні та бульбоподібні(03221000-6 Овочі) | B32: 2230 | C32: 21512.00405 | D32: Двадцять одна тисячa п'ятсот дванадцять грн. 0 коп. | E32: в т.ч.ПДВ- | F32: 3585.334009
A33: 43.21.1 Роботи електромонтажні(45310000-3 Електромонтажні роботи(повірка контурів заземлення) | B33: 2240 | C33: 745 | D33: Сімсот сорок п'ять грн. 0 коп. | E33: в т.ч.ПДВ- | F33: 124.1666667
A34: 38.11.6 Послуги підприємств щодо перевезення інших безпечних відходів(90512000-9 Послуги з перевезення сміття) | B34: 2240 | C34: 6703 | D34: =SUMINWORDS(C34,"грн.","коп.") -> Шість тисяч сімсот три грн. 0 коп. | E34: в т.ч.ПДВ- | F34: =C34/6 -> 1117.166667
A35: Поточний ремонт будівель (45400000-1 Завершальні будівельні роботи) | B35: 2240 | C35: 60900 | D35: Шістдесят тисяч дев'ятсот грн. 0 коп. | E35: в т.ч.ПДВ- | F35: 10150
A36: 36.00.2 Обробляння та розподіляння води трубопроводами(65110000-7 Розподіл води) | B36: 2272 | C36: 12415.4184 | D36: Дванадцять тисяч чотириста п'ятнадцять грн. 42 коп. | E36: в т.ч.ПДВ- | F36: 2069.2364
A37: 37.00.1 Послуги каналізаційні(90400000-1 Послуги у сфері водовідведення) | B37: 2272 | C37: 14768.5816 | D37: Чотирнадцять тисяч сімсот шістдесят вісім грн. 58 коп. | E37: в т.ч.ПДВ- | F37: 2461.430267
A38: 35.11.1 Енергія електрична (09310000-5 Електрична енергія) | B38: 2273 | C38: 77338 | D38: Сімдесят сім тисяч триста тридцять вісім грн. 0 коп. | E38: в т.ч.ПДВ- | F38: 12889.66667
A39: 61.10.1 Послуги щодо передавання даних і повідомлень(64211000-8 Послуги громадського телефонного звязку) | B39: 2240 | C39: 1627 | D39: Одна тисячa шістсот двадцять сім грн. 0 коп. | E39: в т.ч.ПДВ- | F39: 271.1666667
A40: 91.01.1 Послуги бібліотек і архівів(92512000-3 Послуги архівів) | B40: 2240 | C40: 474 | D40: Чотириста сімдесят чотири грн. 0 коп. | E40: без ПДВ
A41: 58.29.1 Програмне забезпечення системне на фізичних носіях(48443000-5 Пакети програмного забезпечення для бухгалтерського обліку) | B41: 2240 | C41: 7392 | D41: Сім тисяч триста дев'яносто дві грн. 0 коп. | E41: в т.ч.ПДВ- | F41: 1232
A42: 31.09.1 Меблі, інші (39161000-8 Меблі для дитячого садка) | B42: 3110 | C42: 65200 | D42: Шістдесят п'ять тисяч двісті грн. 0 коп. | E42: в т.ч.ПДВ- | F42: 10866.66667
A43: 28.99.3 Машини й устаткування спеціальної призначеності,н.в.і.у.(37535000-7 Каруселі,гойдалки,тири та інші атракціони) | B43: 3110 | C43: 29300 | D43: Двадцять дев'ять тисяч триста грн. 0 коп. | E43: в т.ч.ПДВ- | F43: 4883.333333
A44: 13.92.1 Вироби текстильні готові для домашнього господарства (39512000-4 Постільна білизна) | B44: 2210 | C44: 40326 | D44: Сорок тисяч триста двадцять шість грн. 0 коп. | E44: в т.ч.ПДВ- | F44: 6721
A46: Затверджений рішенням комітету з конкурсних торгів від__________№_______
A48: Голова комітету з конкурсних торгів _______________________Т.Б.Андрусик
A49: (підпис) (ініціали та прізвище)
A50: МП

Sheet 11
A1: Додаток до річного плану закупівель на 2016 рік
A2: Дошкільний навчальний заклад № 11, 40047615
A3: (найменування замовника,код за ЄДРПОУ)
A4: Предмет закупівлі | B4: Код КЕКВ (для бюджетних коштів) | C4: Очікувана вартість предмета закупівлі | G4: Процедура закупівлі | H4: Орієнтовний початок проведення процедури закупівлі | I4: Примітки
A5: 1 | B5: 2 | C5: 3 | G5: 4 | H5: 5 | I5: 6
A6: 10.73.1 Макарони,локшина,кускус і подібні борошняні вироби(15851000-8 Борошняні вироби(макарони) | B6: 2230 | C6: 2365.450871 | D6: =SUMINWORDS(C6,"грн.","коп.") -> Дві тисячі триста шістдесят п'ять грн. 45 коп. | E6: в т.ч.ПДВ- | F6: =C6/6 -> 394.2418118
A7: 10.11.1 М'ясо великої рогатої худоби,свиней,овець,кіз,коней та ін..тварин родини конячих,свіже чиа охолоджене(15111000-9 М'ясо великої рогатої худоби родини бикових(яловичина) | B7: 2230 | C7: 71564.95112 | D7: =SUMINWORDS(C7,"грн.","коп.") -> Сімдесят одна тисячa п'ятсот шістдесят чотири грн. 95 коп. | E7: в т.ч.ПДВ- | F7: =C7/6 -> 11927.49185
A8: 10.12.1 М'ясо свійської птиці,свіже чи охолоджене(15112000-6 М'ясо свійської птиці) | B8: 2230 | C8: 30724.68454 | D8: =SUMINWORDS(C8,"грн.","коп.") -> Тридцять тисяч сімсот двадцять чотири грн. 68 коп. | E8: в т.ч.ПДВ- | F8: 5120.780757
A9: 10.12.4 Субпродукти харчові свійської птиці(15114000-0 Потрухи(печінка) | B9: 2230 | C9: 8709.917031 | D9: =SUMINWORDS(C9,"грн.","коп.") -> Вісім тисяч сімсот дев'ять грн. 92 коп. | E9: в т.ч.ПДВ- | F9: 1451.652839
A10: 10.13.1.Консерви та готові страви з м’яса,м’ясних субпродуктів чи крові (15130000-8 Мясопродукти (ковбаса,сосиски) | B10: 2230 | C10: 26151.58046 | D10: Двадцять шість тисяч сто п'ятдесят одна грн. 58 коп. | E10: в т.ч.ПДВ- | F10: 4358.596743
A11: 10.20.1 Продукція рибна,свіжа,охолоджена чи заморожена (15221000-3 Морожена риба) | B11: 2230 | C11: 61525.91303 | D11: Шістдесят одна тисячa п'ятсот двадцять п'ять грн. 91 коп. | E11: в т.ч.ПДВ- | F11: 10254.31884
A12: 01.24.1 Яблука (03222000-3 Фрукти і горіхи(яблука,апельсини,лимони,ягоди) | B12: 2230 | C12: 25974.73375 | D12: Двадцять п'ять тисяч дев'ятсот сімдесят чотири грн. 73 коп. | E12: в т.ч.ПДВ- | F12: 4329.122291
A13: 10.39.1 Плоди та овочі,оброблені та законсервовані,крім картоплі(15331000-7 Оброблені овочі(консерви овочеві) | B13: 2230 | C13: 18213.45134 | D13: Вісімнадцять тисяч двісті тринадцять грн. 45 коп. | E13: в т.ч.ПДВ- | F13: 3035.575223
A14: 10.72.1 Вироби хлібобулочні,зниженої вологості,та кондитерські,борошняні,тривалого зберігання(15820000-2 Сухарі та печиво; пресерви з хлібобулочних і кондитерських виробів (печиво) | B14: 2230 | C14: 6325.187849 | D14: Шість тисяч триста двадцять п'ять грн. 19 коп. | E14: в т.ч.ПДВ- | F14: 1054.197975
A15: 10.71.1 Вироби хлібобулочні,кондитерські та кулінарні,борошняні,нетривалого зберігання(15810000-9 Хлібопродукти, свіжовипечені хлібобулочні та кондитерські вироби) | B15: 2230 | C15: 23438.6307 | D15: Двадцять три тисячі чотириста тридцять вісім грн. 63 коп. | E15: в т.ч.ПДВ- | F15: 3906.43845
A16: 10.51.1 Молоко та вершки,рідинні,оброблені(15511000-3 Молоко) | B16: 2230 | C16: 92850.51394 | D16: Дев'яносто дві тисячі вісімсот п'ятдесят грн. 51 коп. | E16: в т.ч.ПДВ- | F16: 15475.08566
A17: 10.51.5 Продукти молочні, інші (15550000-8 Молочні продукти різні (кефір,сметана) | B17: 2230 | C17: 17476.63273 | D17: Сімнадцять тисяч чотириста сімдесят шість грн. 63 коп. | E17: в т.ч.ПДВ- | F17: 2912.772121
A18: 10.51.4 Сир сичужний та кисломолочний сир(15540000-5 Сирні продукти) | B18: 2230 | C18: 65316.94421 | D18: Шістдесят п'ять тисяч триста шістнадцять грн. 94 коп. | E18: в т.ч.ПДВ- | F18: 10886.15737
A19: 10.32.1 Соки фруктові та овочеві (15321000-4 Фруктові соки) | B19: 2230 | C19: 17417.58766 | D19: Сімнадцять тисяч чотириста сімнадцять грн. 59 коп. | E19: в т.ч.ПДВ- | F19: 2902.931276
A20: 10.61.2 Борошно зернових і овочевих культур;їхні суміші(15612000-1 Борошно зернових та овочевих культур і супутня продукція) | B20: 2230 | C20: 3839.218107 | D20: Три тисячі вісімсот тридцять дев'ять грн. 22 коп. | E20: в т.ч.ПДВ- | F20: 639.8696845
A21: 10.61.1 Рис напівобрушений чи повністю обрушений,або лущений чи дроблений(15614000-5 Рис оброблений) | B21: 2230 | C21: 1877.087372 | D21: Одна тисячa вісімсот сімдесят сім грн. 9 коп. | E21: в т.ч.ПДВ- | F21: 312.8478953
A22: 0.81.1 Цукор-сирець,тростинний і очищений тростинний чи буряковий цукор (сахароза);меляса (15831000-2 Цукор) | B22: 2230 | C22: 16881.79308 | D22: Шістнадцять тисяч вісімсот вісімдесят одна грн. 79 коп. | E22: в т.ч.ПДВ- | F22: 2813.63218
A23: 10.39.2 Плоди й горіхи,оброблені та законсервовані(15332000-4 Оброблені фрукти та горіхи(повидло,сухофрукти) | B23: 2230 | C23: 11106.16596 | D23: Одинадцять тисяч сто шість грн. 17 коп. | E23: в т.ч.ПДВ- | F23: 1851.027661
A24: 10.51.3 Масло вершкове та молочні пасти(15530000-2 Вершкове масло) | B24: 2230 | C24: 30213.38117 | D24: Тридцять тисяч двісті тринадцять грн. 38 коп. | E24: в т.ч.ПДВ- | F24: 5035.563528
A25: 01.47.2 Яйця у шкаралупі свіжі (03142000-8 Продукція тваринництва (03142500-3 Яйця) | B25: 2230 | C25: 23139.12795 | D25: Двадцять три тисячі сто тридцять дев'ять грн. 13 коп. | E25: в т.ч.ПДВ- | F25: 3856.521325
A26: 10.41.5 Олії рафіновані(15421000-5 Рафіновані олії) | B26: 2230 | C26: 6796.106704 | D26: Шість тисяч сімсот дев'яносто шість грн. 11 коп. | E26: в т.ч.ПДВ- | F26: 1132.684451
A27: 10.61.3 Крупи,крупка,гранули та інші продукти з зерна зернових культур(15613000-8 Продукція із зерна зернових культур(крупи) | B27: 2230 | C27: 7090.283856 | D27: Сім тисяч дев'яносто грн. 28 коп. | E27: в т.ч.ПДВ- | F27: 1181.713976
A28: 10.82.1 Какао терте,какао-масло,жири й олія,какао-порошок(15841000-5 Какао) | B28: 2230 | C28: 8696.819412 | D28: Вісім тисяч шістсот дев'яносто шість грн. 82 коп. | E28: в т.ч.ПДВ- | F28: 1449.469902
A29: 10.83.1 Чай і кава,оброблені(15860000-4 Кава, чай та супутня продукція) | B29: 2230 | C29: 9086.521485 | D29: Дев'ять тисяч вісімдесят шість грн. 52 коп. | E29: в т.ч.ПДВ- | F29: 1514.420247
A30: 10.84.3 Сіль харчова(14410000-8 Камяна сіль) | B30: 2230 | C30: 342.4383221 | D30: Триста сорок дві грн. 44 коп. | E30: в т.ч.ПДВ- | F30: 57.07305369
A31: 01.13.5 Коренеплоди та бульби їстівні з високим умістом крохмалю та інуліну(03212000-0 Картопля та сушені овочі) | B31: 2230 | C31: 23547.66598 | D31: Двадцять три тисячі п'ятсот сорок сім грн. 67 коп. | E31: в т.ч.ПДВ- | F31: 3924.610997
A32: 01.13.4 Овочі коренеплодні,цибулинні та бульбоподібні(03221000-6 Овочі) | B32: 2230 | C32: 28867.21129 | D32: Двадцять вісім тисяч вісімсот шістдесят сім грн. 21 коп. | E32: в т.ч.ПДВ- | F32: 4811.201881
A33: 43.21.1 Роботи електромонтажні(45310000-3 Електромонтажні роботи(повірка контурів заземлення) | B33: 2240 | C33: 745 | D33: Сімсот сорок п'ять грн. 0 коп. | E33: в т.ч.ПДВ- | F33: 124.1666667
A34: 38.11.6 Послуги підприємств щодо перевезення інших безпечних відходів(90512000-9 Послуги з перевезення сміття) | B34: 2240 | C34: 7219 | D34: Сім тисяч двісті дев'ятнадцять грн. 0 коп. | E34: в т.ч.ПДВ- | F34: 1203.166667
A35: 64.99.1 Послуги фінансові, крім страхування та пенсійного забезпечення, інші, н.в.і.у( 66110000-4 Банківські послуги) | B35: 2240 | C35: 1352 | D35: Одна тисячa триста п'ятдесят дві грн. 0 коп. | E35: в т.ч.ПДВ- | F35: 225.3333333
A36: 36.00.2 Обробляння та розподіляння води трубопроводами(65110000-7 Розподіл води) | B36: 2272 | C36: 18956.3976 | D36: Вісімнадцять тисяч дев'ятсот п'ятдесят шість грн. 40 коп. | E36: в т.ч.ПДВ- | F36: 3159.3996
A37: 37.00.1 Послуги каналізаційні(90400000-1 Послуги у сфері водовідведення) | B37: 2272 | C37: 17705.6024 | D37: Сімнадцять тисяч сімсот п'ять грн. 60 коп. | E37: в т.ч.ПДВ- | F37: 2950.933733
A38: 35.11.1 Енергія електрична (09310000-5 Електрична енергія) | B38: 2273 | C38: 102630 | D38: Сто дві тисячі шістсот тридцять грн. 0 коп. | E38: в т.ч.ПДВ- | F38: 17105
A39: 61.10.1 Послуги щодо передавання даних і повідомлень(64211000-8 Послуги громадського телефонного звязку) | B39: 2240 | C39: 2595 | D39: Дві тисячі п'ятсот дев'яносто п'ять грн. 0 коп. | E39: в т.ч.ПДВ- | F39: 432.5
A40: 85.60.1 Послуги освітянські допоміжні (80570000-0 Послуги з професійної підготовки у сфері підвищення кваліфікації) | B40: 2282 | C40: 2600 | D40: Дві тисячі шістсот грн. 0 коп. | E40: в т.ч.ПДВ- | F40: 433.3333333
A41: 71.20.1 Послуги щодо технічного випробування й аналізування(71632000-7 Послуги з технічних випробувань (повірка,атестація) | B41: 2240 | C41: 6500 | D41: Шість тисяч п'ятсот грн. 0 коп. | E41: в т.ч.ПДВ- | F41: 1083.333333
A42: 58.29.1 Програмне забезпечення системне на фізичних носіях(48443000-5 Пакети програмного забезпечення для бухгалтерського обліку) | B42: 2240 | C42: 7392 | D42: Сім тисяч триста дев'яносто дві грн. 0 коп. | E42: в т.ч.ПДВ- | F42: 1232
A44: Затверджений рішенням комітету з конкурсних торгів від__________№_______
A46: Голова комітету з конкурсних торгів _______________________В.В.Горова
A47: (підпис) (ініціали та прізвище)
A48: МП

Sheet 13
A1: Додаток до річного плану закупівель на 2016 рік
A2: Дошкільний навчальний заклад № 13, 26244001
A3: (найменування замовника,код за ЄДРПОУ)
A4: Предмет закупівлі | B4: Код КЕКВ (для бюджетних коштів) | C4: Очікувана вартість предмета закупівлі | G4: Процедура закупівлі | H4: Орієнтовний початок проведення процедури закупівлі | I4: Примітки
A5: 1 | B5: 2 | C5: 3 | G5: 4 | H5: 5 | I5: 6
A6: 10.73.1 Макарони,локшина,кускус і подібні борошняні вироби(15851000-8 Борошняні вироби(макарони) | B6: 2230 | C6: 2446.498129 | D6: =SUMINWORDS(C6,"грн.","коп.") -> Дві тисячі чотириста сорок шість грн. 50 коп. | E6: в т.ч.ПДВ- | F6: =C6/6 -> 407.7496881
A7: 10.11.1 М'ясо великої рогатої худоби,свиней,овець,кіз,коней та ін..тварин родини конячих,свіже чиа охолоджене(15111000-9 М'ясо великої рогатої худоби родини бикових(яловичина) | B7: 2230 | C7: 84395.03827 | D7: =SUMINWORDS(C7,"грн.","коп.") -> Вісімдесят чотири тисячі триста дев'яносто п'ять грн. 4 коп. | E7: в т.ч.ПДВ- | F7: =C7/6 -> 14065.83971
A8: 10.12.1 М'ясо свійської птиці,свіже чи охолоджене(15112000-6 М'ясо свійської птиці) | B8: 2230 | C8: 32008.51275 | D8: =SUMINWORDS(C8,"грн.","коп.") -> Тридцять дві тисячі вісім грн. 51 коп. | E8: в т.ч.ПДВ- | F8: 5334.752125
A9: 10.12.4 Субпродукти харчові свійської птиці(15114000-0 Потрухи(печінка) | B9: 2230 | C9: 9124.598885 | D9: =SUMINWORDS(C9,"грн.","коп.") -> Дев'ять тисяч сто двадцять чотири грн. 60 коп. | E9: в т.ч.ПДВ- | F9: 1520.766481
A10: 10.13.1.Консерви та готові страви з м’яса,м’ясних субпродуктів чи крові (15130000-8 Мясопродукти (ковбаса,сосиски) | B10: 2230 | C10: 27396.66532 | D10: Двадцять сім тисяч триста дев'яносто шість грн. 67 коп. | E10: в т.ч.ПДВ- | F10: 4566.110887
A11: 10.20.1 Продукція рибна,свіжа,охолоджена чи заморожена (15221000-3 Морожена риба) | B11: 2230 | C11: 64614.54211 | D11: Шістдесят чотири тисячі шістсот чотирнадцять грн. 54 коп. | E11: в т.ч.ПДВ- | F11: 10769.09035
A12: 01.24.1 Яблука (03222000-3 Фрукти і горіхи(яблука,апельсини,лимони,ягоди) | B12: 2230 | C12: 27236.84902 | D12: Двадцять сім тисяч двісті тридцять шість грн. 85 коп. | E12: в т.ч.ПДВ- | F12: 4539.474837
A13: 10.39.1 Плоди та овочі,оброблені та законсервовані,крім картоплі(15331000-7 Оброблені овочі(консерви овочеві) | B13: 2230 | C13: 18728.97163 | D13: Вісімнадцять тисяч сімсот двадцять вісім грн. 97 коп. | E13: в т.ч.ПДВ- | F13: 3121.495271
A14: 10.72.1 Вироби хлібобулочні,зниженої вологості,та кондитерські,борошняні,тривалого зберігання(15820000-2 Сухарі та печиво; пресерви з хлібобулочних і кондитерських виробів (печиво) | B14: 2230 | C14: 6716.446575 | D14: Шість тисяч сімсот шістнадцять грн. 45 коп. | E14: в т.ч.ПДВ- | F14: 1119.407763
A15: 10.71.1 Вироби хлібобулочні,кондитерські та кулінарні,борошняні,нетривалого зберігання(15810000-9 Хлібопродукти, свіжовипечені хлібобулочні та кондитерські вироби) | B15: 2230 | C15: 24300.56241 | D15: Двадцять чотири тисячі триста грн. 56 коп. | E15: в т.ч.ПДВ- | F15: 4050.093734
A16: 10.51.1 Молоко та вершки,рідинні,оброблені(15511000-3 Молоко) | B16: 2230 | C16: 94496.23357 | D16: Дев'яносто чотири тисячі чотириста дев'яносто шість грн. 23 коп. | E16: в т.ч.ПДВ- | F16: 15749.37226
A17: 10.51.5 Продукти молочні, інші (15550000-8 Молочні продукти різні (кефір,сметана) | B17: 2230 | C17: 18096.41151 | D17: Вісімнадцять тисяч дев'яносто шість грн. 41 коп. | E17: в т.ч.ПДВ- | F17: 3016.068585
A18: 10.51.4 Сир сичужний та кисломолочний сир(15540000-5 Сирні продукти) | B18: 2230 | C18: 67119.30283 | D18: Шістдесят сім тисяч сто дев'ятнадцять грн. 30 коп. | E18: в т.ч.ПДВ- | F18: 11186.55047
A19: 10.32.1 Соки фруктові та овочеві (15321000-4 Фруктові соки) | B19: 2230 | C19: 17950.61443 | D19: Сімнадцять тисяч дев'ятсот п'ятдесят грн. 61 коп. | E19: в т.ч.ПДВ- | F19: 2991.769072
A20: 10.61.2 Борошно зернових і овочевих культур;їхні суміші(15612000-1 Борошно зернових та овочевих культур і супутня продукція) | B20: 2230 | C20: 3990.865124 | D20: Три тисячі дев'ятсот дев'яносто грн. 87 коп. | E20: в т.ч.ПДВ- | F20: 665.1441873
A21: 10.61.1 Рис напівобрушений чи повністю обрушений,або лущений чи дроблений(15614000-5 Рис оброблений) | B21: 2230 | C21: 1934.531482 | D21: Одна тисячa дев'ятсот тридцять чотири грн. 53 коп. | E21: в т.ч.ПДВ- | F21: 322.4219137
A22: 0.81.1 Цукор-сирець,тростинний і очищений тростинний чи буряковий цукор (сахароза);меляса (15831000-2 Цукор) | B22: 2230 | C22: 17317.73514 | D22: Сімнадцять тисяч триста сімнадцять грн. 74 коп. | E22: в т.ч.ПДВ- | F22: 2886.289189
A23: 10.39.2 Плоди й горіхи,оброблені та законсервовані(15332000-4 Оброблені фрукти та горіхи(повидло,сухофрукти) | B23: 2230 | C23: 11295.5602 | D23: Одинадцять тисяч двісті дев'яносто п'ять грн. 56 коп. | E23: в т.ч.ПДВ- | F23: 1882.593366
A24: 10.51.3 Масло вершкове та молочні пасти(15530000-2 Вершкове масло) | B24: 2230 | C24: 31475.84461 | D24: Тридцять одна тисячa чотириста сімдесят п'ять грн. 84 коп. | E24: в т.ч.ПДВ- | F24: 5245.974101
A25: 01.47.2 Яйця у шкаралупі свіжі (03142000-8 Продукція тваринництва (03142500-3 Яйця) | B25: 2230 | C25: 24240.78902 | D25: Двадцять чотири тисячі двісті сорок грн. 79 коп. | E25: в т.ч.ПДВ- | F25: 4040.131503
A26: 10.41.5 Олії рафіновані(15421000-5 Рафіновані олії) | B26: 2230 | C26: 7028.961176 | D26: Сім тисяч двадцять вісім грн. 96 коп. | E26: в т.ч.ПДВ- | F26: 1171.493529
A27: 10.61.3 Крупи,крупка,гранули та інші продукти з зерна зернових культур(15613000-8 Продукція із зерна зернових культур(крупи) | B27: 2230 | C27: 7317.151829 | D27: Сім тисяч триста сімнадцять грн. 15 коп. | E27: в т.ч.ПДВ- | F27: 1219.525305
A28: 10.82.1 Какао терте,какао-масло,жири й олія,какао-порошок(15841000-5 Какао) | B28: 2230 | C28: 9110.877684 | D28: Дев'ять тисяч сто десять грн. 88 коп. | E28: в т.ч.ПДВ- | F28: 1518.479614
A29: 10.83.1 Чай і кава,оброблені(15860000-4 Кава, чай та супутня продукція) | B29: 2230 | C29: 9670.010509 | D29: Дев'ять тисяч шістсот сімдесят грн. 1 коп. | E29: в т.ч.ПДВ- | F29: 1611.668418
A30: 10.84.3 Сіль харчова(14410000-8 Камяна сіль) | B30: 2230 | C30: 361.6302044 | D30: Триста шістдесят одна грн. 63 коп. | E30: в т.ч.ПДВ- | F30: 60.27170074
A31: 01.13.5 Коренеплоди та бульби їстівні з високим умістом крохмалю та інуліну(03212000-0 Картопля та сушені овочі) | B31: 2230 | C31: 24322.54421 | D31: Двадцять чотири тисячі триста двадцять дві грн. 54 коп. | E31: в т.ч.ПДВ- | F31: 4053.757368
A32: 01.13.4 Овочі коренеплодні,цибулинні та бульбоподібні(03221000-6 Овочі) | B32: 2230 | C32: 29589.25153 | D32: Двадцять дев'ять тисяч п'ятсот вісімдесят дев'ять грн. 25 коп. | E32: в т.ч.ПДВ- | F32: 4931.541921
A33: 43.21.1 Роботи електромонтажні(45310000-3 Електромонтажні роботи(повірка контурів заземлення) | B33: 2240 | C33: 745 | D33: Сімсот сорок п'ять грн. 0 коп. | E33: в т.ч.ПДВ- | F33: 124.1666667
A34: 38.11.6 Послуги підприємств щодо перевезення інших безпечних відходів(90512000-9 Послуги з перевезення сміття) | B34: 2240 | C34: 8544 | D34: =SUMINWORDS(C34,"грн.","коп.") -> Вісім тисяч п'ятсот сорок чотири грн. 0 коп. | E34: в т.ч.ПДВ- | F34: =C34/6 -> 1424
A35: Капітальний ремонт будівель (45000000-7 Будівельні роботи) | B35: 3132 | C35: 32000 | D35: Тридцять дві тисячі грн. 0 коп. | E35: в т.ч.ПДВ- | F35: 5333.333333
A36: 36.00.2 Обробляння та розподіляння води трубопроводами(65110000-7 Розподіл води) | B36: 2272 | C36: 18840.864 | D36: Вісімнадцять тисяч вісімсот сорок грн. 86 коп. | E36: в т.ч.ПДВ- | F36: 3140.144
A37: 37.00.1 Послуги каналізаційні(90400000-1 Послуги у сфері водовідведення) | B37: 2272 | C37: 16411.136 | D37: Шістнадцять тисяч чотириста одинадцять грн. 14 коп. | E37: в т.ч.ПДВ- | F37: 2735.189333
A38: 35.11.1 Енергія електрична (09310000-5 Електрична енергія) | B38: 2273 | C38: 52523 | D38: П'ятдесят дві тисячі п'ятсот двадцять три грн. 0 коп. | E38: в т.ч.ПДВ- | F38: 8753.833333
A39: 61.10.1 Послуги щодо передавання даних і повідомлень(64211000-8 Послуги громадського телефонного звязку) | B39: 2240 | C39: 1593 | D39: Одна тисячa п'ятсот дев'яносто три грн. 0 коп. | E39: в т.ч.ПДВ- | F39: 265.5
A40: 91.01.1 Послуги бібліотек і архівів(92512000-3 Послуги архівів) | B40: 2240 | C40: 658 | D40: Шістсот п'ятдесят вісім грн. 0 коп. | E40: без ПДВ
A41: 58.29.1 Програмне забезпечення системне на фізичних носіях(48443000-5 Пакети програмного забезпечення для бухгалтерського обліку) | B41: 2240 | C41: 7572 | D41: Сім тисяч п'ятсот сімдесят дві грн. 0 коп. | E41: в т.ч.ПДВ- | F41: 1262
A42: 28.99.3 Машини й устаткування спеціальної призначеності,н.в.і.у.(37535000-7 Каруселі,гойдалки,тири та інші атракціони) | B42: 3110 | C42: 46650 | D42: Сорок шість тисяч шістсот п'ятдесят грн. 0 коп. | E42: в т.ч.ПДВ- | F42: 7775
A43: 85.60.1 Послуги освітянські допоміжні (80570000-0 Послуги з професійної підготовки у сфері підвищення кваліфікації) | B43: 2282 | C43: 1025 | D43: Одна тисячa двадцять п'ять грн. 0 коп. | E43: в т.ч.ПДВ- | F43: 170.8333333
A45: Затверджений рішенням комітету з конкурсних торгів від__________№_______
A47: Голова комітету з конкурсних торгів _______________________О.Б.Браславець
A48: (підпис) (ініціали та прізвище)
A49: МП

Sheet 14
A1: Додаток до річного плану закупівель на 2016 рік
A2: Дошкільний навчальний заклад № 14, 26243253
A3: (найменування замовника,код за ЄДРПОУ)
A4: Предмет закупівлі | B4: Код КЕКВ (для бюджетних коштів) | C4: Очікувана вартість предмета закупівлі | G4: Процедура закупівлі | H4: Орієнтовний початок проведення процедури закупівлі | I4: Примітки
A5: 1 | B5: 2 | C5: 3 | G5: 4 | H5: 5 | I5: 6
A6: 10.73.1 Макарони,локшина,кускус і подібні борошняні вироби(15851000-8 Борошняні вироби(макарони) | B6: 2230 | C6: 3196.511262 | D6: =SUMINWORDS(C6,"грн.","коп.") -> Три тисячі сто дев'яносто шість грн. 51 коп. | E6: в т.ч.ПДВ- | F6: =C6/6 -> 532.751877
A7: 10.11.1 М'ясо великої рогатої худоби,свиней,овець,кіз,коней та ін..тварин родини конячих,свіже чиа охолоджене(15111000-9 М'ясо великої рогатої худоби родини бикових(яловичина) | B7: 2230 | C7: 106953.42 | D7: =SUMINWORDS(C7,"грн.","коп.") -> Сто шість тисяч дев'ятсот п'ятдесят три грн. 42 коп. | E7: в т.ч.ПДВ- | F7: =C7/6 -> 17825.56999
A8: 10.12.1 М'ясо свійської птиці,свіже чи охолоджене(15112000-6 М'ясо свійської птиці) | B8: 2230 | C8: 41529.54583 | D8: =SUMINWORDS(C8,"грн.","коп.") -> Сорок одна тисячa п'ятсот двадцять дев'ять грн. 55 коп. | E8: в т.ч.ПДВ- | F8: 6921.590971
A9: 10.12.4 Субпродукти харчові свійської птиці(15114000-0 Потрухи(печінка) | B9: 2230 | C9: 11775.16381 | D9: =SUMINWORDS(C9,"грн.","коп.") -> Одинадцять тисяч сімсот сімдесят п'ять грн. 16 коп. | E9: в т.ч.ПДВ- | F9: 1962.527302
A10: 10.13.1.Консерви та готові страви з м’яса,м’ясних субпродуктів чи крові (15130000-8 Мясопродукти (ковбаса,сосиски) | B10: 2230 | C10: 35355.00313 | D10: Тридцять п'ять тисяч триста п'ятдесят п'ять грн. 0 коп. | E10: в т.ч.ПДВ- | F10: 5892.500522
A11: 10.20.1 Продукція рибна,свіжа,охолоджена чи заморожена (15221000-3 Морожена риба) | B11: 2230 | C11: 83185.56886 | D11: Вісімдесят три тисячі сто вісімдесят п'ять грн. 57 коп. | E11: в т.ч.ПДВ- | F11: 13864.26148
A12: 01.24.1 Яблука (03222000-3 Фрукти і горіхи(яблука,апельсини,лимони,ягоди) | B12: 2230 | C12: 35117.05072 | D12: Тридцять п'ять тисяч сто сімнадцять грн. 5 коп. | E12: в т.ч.ПДВ- | F12: 5852.841786
A13: 10.39.1 Плоди та овочі,оброблені та законсервовані,крім картоплі(15331000-7 Оброблені овочі(консерви овочеві) | B13: 2230 | C13: 24607.60952 | D13: Двадцять чотири тисячі шістсот сім грн. 61 коп. | E13: в т.ч.ПДВ- | F13: 4101.268253
A14: 10.72.1 Вироби хлібобулочні,зниженої вологості,та кондитерські,борошняні,тривалого зберігання(15820000-2 Сухарі та печиво; пресерви з хлібобулочних і кондитерських виробів (печиво) | B14: 2230 | C14: 8555.191913 | D14: Вісім тисяч п'ятсот п'ятдесят п'ять грн. 19 коп. | E14: в т.ч.ПДВ- | F14: 1425.865319
A15: 10.71.1 Вироби хлібобулочні,кондитерські та кулінарні,борошняні,нетривалого зберігання(15810000-9 Хлібопродукти, свіжовипечені хлібобулочні та кондитерські вироби) | B15: 2230 | C15: 31676.00576 | D15: Тридцять одна тисячa шістсот сімдесят шість грн. 1 коп. | E15: в т.ч.ПДВ- | F15: 5279.334293
A16: 10.51.1 Молоко та вершки,рідинні,оброблені(15511000-3 Молоко) | B16: 2230 | C16: 125403.6831 | D16: Сто двадцять п'ять тисяч чотириста три грн. 68 коп. | E16: в т.ч.ПДВ- | F16: 20900.61386
A17: 10.51.5 Продукти молочні, інші (15550000-8 Молочні продукти різні (кефір,сметана) | B17: 2230 | C17: 23617.67889 | D17: Двадцять три тисячі шістсот сімнадцять грн. 68 коп. | E17: в т.ч.ПДВ- | F17: 3936.279815
A18: 10.51.4 Сир сичужний та кисломолочний сир(15540000-5 Сирні продукти) | B18: 2230 | C18: 88245.56455 | D18: Вісімдесят вісім тисяч двісті сорок п'ять грн. 56 коп. | E18: в т.ч.ПДВ- | F18: 14707.59409
A19: 10.32.1 Соки фруктові та овочеві (15321000-4 Фруктові соки) | B19: 2230 | C19: 23534.12312 | D19: Двадцять три тисячі п'ятсот тридцять чотири грн. 12 коп. | E19: в т.ч.ПДВ- | F19: 3922.353853
A20: 10.61.2 Борошно зернових і овочевих культур;їхні суміші(15612000-1 Борошно зернових та овочевих культур і супутня продукція) | B20: 2230 | C20: 5188.954853 | D20: П'ять тисяч сто вісімдесят вісім грн. 95 коп. | E20: в т.ч.ПДВ- | F20: 864.8258088
A21: 10.61.1 Рис напівобрушений чи повністю обрушений,або лущений чи дроблений(15614000-5 Рис оброблений) | B21: 2230 | C21: 2536.264274 | D21: Дві тисячі п'ятсот тридцять шість грн. 26 коп. | E21: в т.ч.ПДВ- | F21: 422.7107124
A22: 0.81.1 Цукор-сирець,тростинний і очищений тростинний чи буряковий цукор (сахароза);меляса (15831000-2 Цукор) | B22: 2230 | C22: 22806.58692 | D22: Двадцять дві тисячі вісімсот шість грн. 59 коп. | E22: в т.ч.ПДВ- | F22: 3801.09782
A23: 10.39.2 Плоди й горіхи,оброблені та законсервовані(15332000-4 Оброблені фрукти та горіхи(повидло,сухофрукти) | B23: 2230 | C23: 14999.6299 | D23: Чотирнадцять тисяч дев'ятсот дев'яносто дев'ять грн. 63 коп. | E23: в т.ч.ПДВ- | F23: 2499.938317
A24: 10.51.3 Масло вершкове та молочні пасти(15530000-2 Вершкове масло) | B24: 2230 | C24: 40838.43387 | D24: Сорок тисяч вісімсот тридцять вісім грн. 43 коп. | E24: в т.ч.ПДВ- | F24: 6806.405645
A25: 01.47.2 Яйця у шкаралупі свіжі (03142000-8 Продукція тваринництва (03142500-3 Яйця) | B25: 2230 | C25: 31282.39008 | D25: Тридцять одна тисячa двісті вісімдесят дві грн. 39 коп. | E25: в т.ч.ПДВ- | F25: 5213.73168
A26: 10.41.5 Олії рафіновані(15421000-5 Рафіновані олії) | B26: 2230 | C26: 9183.801653 | D26: Дев'ять тисяч сто вісімдесят три грн. 80 коп. | E26: в т.ч.ПДВ- | F26: 1530.633609
A27: 10.61.3 Крупи,крупка,гранули та інші продукти з зерна зернових культур(15613000-8 Продукція із зерна зернових культур(крупи) | B27: 2230 | C27: 9580.618743 | D27: Дев'ять тисяч п'ятсот вісімдесят грн. 62 коп. | E27: в т.ч.ПДВ- | F27: 1596.76979
A28: 10.82.1 Какао терте,какао-масло,жири й олія,какао-порошок(15841000-5 Какао) | B28: 2230 | C28: 11757.4568 | D28: Одинадцять тисяч сімсот п'ятдесят сім грн. 46 коп. | E28: в т.ч.ПДВ- | F28: 1959.576133
A29: 10.83.1 Чай і кава,оброблені(15860000-4 Кава, чай та супутня продукція) | B29: 2230 | C29: 12291.01172 | D29: Дванадцять тисяч двісті дев'яносто одна грн. 1 коп. | E29: в т.ч.ПДВ- | F29: 2048.501954
A30: 10.84.3 Сіль харчова(14410000-8 Камяна сіль) | B30: 2230 | C30: 463.0796771 | D30: Чотириста шістдесят три грн. 8 коп. | E30: в т.ч.ПДВ- | F30: 77.17994618
A31: 01.13.5 Коренеплоди та бульби їстівні з високим умістом крохмалю та інуліну(03212000-0 Картопля та сушені овочі) | B31: 2230 | C31: 31819.31308 | D31: Тридцять одна тисячa вісімсот дев'ятнадцять грн. 31 коп. | E31: в т.ч.ПДВ- | F31: 5303.218847
A32: 01.13.4 Овочі коренеплодні,цибулинні та бульбоподібні(03221000-6 Овочі) | B32: 2230 | C32: 38997.33861 | D32: Тридцять вісім тисяч дев'ятсот дев'яносто сім грн. 34 коп. | E32: в т.ч.ПДВ- | F32: 6499.556435
A33: 43.21.1 Роботи електромонтажні(45310000-3 Електромонтажні роботи(повірка контурів заземлення) | B33: 2240 | C33: 745 | D33: Сімсот сорок п'ять грн. 0 коп. | E33: в т.ч.ПДВ- | F33: 124.1666667
A34: 38.11.6 Послуги підприємств щодо перевезення інших безпечних відходів(90512000-9 Послуги з перевезення сміття) | B34: 2240 | C34: 10290 | D34: Десять тисяч двісті дев'яносто грн. 0 коп. | E34: в т.ч.ПДВ- | F34: 1715
A35: Поточний ремонт будівель (45400000-1 Завершальні будівельні роботи) | B35: 2240 | C35: 39600 | D35: Тридцять дев'ять тисяч шістсот грн. 0 коп. | E35: в т.ч.ПДВ- | F35: 6600
A36: 36.00.2 Обробляння та розподіляння води трубопроводами(65110000-7 Розподіл води) | B36: 2272 | C36: 14326.1664 | D36: Чотирнадцять тисяч триста двадцять шість грн. 17 коп. | E36: в т.ч.ПДВ- | F36: 2387.6944
A37: 37.00.1 Послуги каналізаційні(90400000-1 Послуги у сфері водовідведення) | B37: 2272 | C37: 16842.8336 | D37: Шістнадцять тисяч вісімсот сорок дві грн. 83 коп. | E37: в т.ч.ПДВ- | F37: 2807.138933
A38: 35.11.1 Енергія електрична (09310000-5 Електрична енергія) | B38: 2273 | C38: 114037 | D38: Сто чотирнадцять тисяч тридцять сім грн. 0 коп. | E38: в т.ч.ПДВ- | F38: 19006.16667
A39: 61.10.1 Послуги щодо передавання даних і повідомлень(64211000-8 Послуги громадського телефонного звязку) | B39: 2240 | C39: 1618 | D39: Одна тисячa шістсот вісімнадцять грн. 0 коп. | E39: в т.ч.ПДВ- | F39: 269.6666667
A40: 91.01.1 Послуги бібліотек і архівів(92512000-3 Послуги архівів) | B40: 2240 | C40: 711 | D40: Сімсот одинадцять грн. 0 коп. | E40: без ПДВ
A41: 58.29.1 Програмне забезпечення системне на фізичних носіях(48443000-5 Пакети програмного забезпечення для бухгалтерського обліку) | B41: 2240 | C41: 7392 | D41: Сім тисяч триста дев'яносто дві грн. 0 коп. | E41: в т.ч.ПДВ- | F41: 1232
A42: 31.09.1 Меблі, інші (39161000-8 Меблі для дитячого садка) | B42: 2210 | C42: 130400 | D42: Сто тридцять тисяч чотириста грн. 0 коп. | E42: в т.ч.ПДВ- | F42: 21733.33333
A43: 85.60.1 Послуги освітянські допоміжні (80570000-0 Послуги з професійної підготовки у сфері підвищення кваліфікації) | B43: 2282 | C43: 349 | D43: Триста сорок дев'ять грн. 0 коп. | E43: в т.ч.ПДВ- | F43: 58.16666667
A44: 27.51.2 Прилади електричні побутові,інші,н.в.і.у.(39711000-9 Електричні побутові прилади для обробки продуктів харчування) | B44: 3110 | C44: 134200 | D44: Сто тридцять чотири тисячі двісті грн. 0 коп. | E44: в т.ч.ПДВ- | F44: 22366.66667
A45: 13.92.1 Вироби текстильні готові для домашнього господарства (39512000-4 Постільна білизна) | B45: 2210 | C45: 80652 | D45: Вісімдесят тисяч шістсот п'ятдесят дві грн. 0 коп. | E45: в т.ч.ПДВ- | F45: 13442
A47: Затверджений рішенням комітету з конкурсних торгів від__________№_______
A49: Голова комітету з конкурсних торгів _______________________Н.В.Поплавська
A50: (підпис) (ініціали та прізвище)
A51: МП

Sheet 18
A1: Додаток до річного плану закупівель на 2016 рік
A2: Дошкільний навчальний заклад № 18, 26244018
A3: (найменування замовника,код за ЄДРПОУ)
A4: Предмет закупівлі | B4: Код КЕКВ (для бюджетних коштів) | C4: Очікувана вартість предмета закупівлі | G4: Процедура закупівлі | H4: Орієнтовний початок проведення процедури закупівлі | I4: Примітки
A5: 1 | B5: 2 | C5: 3 | G5: 4 | H5: 5 | I5: 6
A6: 10.73.1 Макарони,локшина,кускус і подібні борошняні вироби(15851000-8 Борошняні вироби(макарони) | B6: 2230 | C6: 1725.448185 | D6: =SUMINWORDS(C6,"грн.","коп.") -> Одна тисячa сімсот двадцять п'ять грн. 45 коп. | E6: в т.ч.ПДВ- | F6: =C6/6 -> 287.5746975
A7: 10.11.1 М'ясо великої рогатої худоби,свиней,овець,кіз,коней та ін..тварин родини конячих,свіже чиа охолоджене(15111000-9 М'ясо великої рогатої худоби родини бикових(яловичина) | B7: 2230 | C7: 59758.85971 | D7: =SUMINWORDS(C7,"грн.","коп.") -> П'ятдесят дев'ять тисяч сімсот п'ятдесят вісім грн. 86 коп. | E7: в т.ч.ПДВ- | F7: =C7/6 -> 9959.809951
A8: 10.12.1 М'ясо свійської птиці,свіже чи охолоджене(15112000-6 М'ясо свійської птиці) | B8: 2230 | C8: 22331.69538 | D8: =SUMINWORDS(C8,"грн.","коп.") -> Двадцять дві тисячі триста тридцять одна грн. 70 коп. | E8: в т.ч.ПДВ- | F8: 3721.94923
A9: 10.12.4 Субпродукти харчові свійської птиці(15114000-0 Потрухи(печінка) | B9: 2230 | C9: 6313.078166 | D9: =SUMINWORDS(C9,"грн.","коп.") -> Шість тисяч триста тринадцять грн. 8 коп. | E9: в т.ч.ПДВ- | F9: 1052.179694
A10: 10.13.1.Консерви та готові страви з м’яса,м’ясних субпродуктів чи крові (15130000-8 Мясопродукти (ковбаса,сосиски) | B10: 2230 | C10: 18955.05675 | D10: Вісімнадцять тисяч дев'ятсот п'ятдесят п'ять грн. 6 коп. | E10: в т.ч.ПДВ- | F10: 3159.176125
A11: 10.20.1 Продукція рибна,свіжа,охолоджена чи заморожена (15221000-3 Морожена риба) | B11: 2230 | C11: 44539.71329 | D11: Сорок чотири тисячі п'ятсот тридцять дев'ять грн. 71 коп. | E11: в т.ч.ПДВ- | F11: 7423.285548
A12: 01.24.1 Яблука (03222000-3 Фрукти і горіхи(яблука,апельсини,лимони,ягоди) | B12: 2230 | C12: 18818.06189 | D12: Вісімнадцять тисяч вісімсот вісімнадцять грн. 6 коп. | E12: в т.ч.ПДВ- | F12: 3136.343648
A13: 10.39.1 Плоди та овочі,оброблені та законсервовані,крім картоплі(15331000-7 Оброблені овочі(консерви овочеві) | B13: 2230 | C13: 13323.15536 | D13: Тринадцять тисяч триста двадцять три грн. 16 коп. | E13: в т.ч.ПДВ- | F13: 2220.525893
A14: 10.72.1 Вироби хлібобулочні,зниженої вологості,та кондитерські,борошняні,тривалого зберігання(15820000-2 Сухарі та печиво; пресерви з хлібобулочних і кондитерських виробів (печиво) | B14: 2230 | C14: 4553.382911 | D14: Чотири тисячі п'ятсот п'ятдесят три грн. 38 коп. | E14: в т.ч.ПДВ- | F14: 758.8971518
A15: 10.71.1 Вироби хлібобулочні,кондитерські та кулінарні,борошняні,нетривалого зберігання(15810000-9 Хлібопродукти, свіжовипечені хлібобулочні та кондитерські вироби) | B15: 2230 | C15: 17076.62985 | D15: Сімнадцять тисяч сімдесят шість грн. 63 коп. | E15: в т.ч.ПДВ- | F15: 2846.104975
A16: 10.51.1 Молоко та вершки,рідинні,оброблені(15511000-3 Молоко) | B16: 2230 | C16: 68260.43384 | D16: Шістдесят вісім тисяч двісті шістдесят грн. 43 коп. | E16: в т.ч.ПДВ- | F16: 11376.73897
A17: 10.51.5 Продукти молочні, інші (15550000-8 Молочні продукти різні (кефір,сметана) | B17: 2230 | C17: 12740.84339 | D17: Дванадцять тисяч сімсот сорок грн. 84 коп. | E17: в т.ч.ПДВ- | F17: 2123.473898
A18: 10.51.4 Сир сичужний та кисломолочний сир(15540000-5 Сирні продукти) | B18: 2230 | C18: 47795.46871 | D18: Сорок сім тисяч сімсот дев'яносто п'ять грн. 47 коп. | E18: в т.ч.ПДВ- | F18: 7965.911452
A19: 10.32.1 Соки фруктові та овочеві (15321000-4 Фруктові соки) | B19: 2230 | C19: 12727.11647 | D19: Дванадцять тисяч сімсот двадцять сім грн. 12 коп. | E19: в т.ч.ПДВ- | F19: 2121.186078
A20: 10.61.2 Борошно зернових і овочевих культур;їхні суміші(15612000-1 Борошно зернових та овочевих культур і супутня продукція) | B20: 2230 | C20: 2793.506688 | D20: Дві тисячі сімсот дев'яносто три грн. 51 коп. | E20: в т.ч.ПДВ- | F20: 465.584448
A21: 10.61.1 Рис напівобрушений чи повністю обрушений,або лущений чи дроблений(15614000-5 Рис оброблений) | B21: 2230 | C21: 1371.596921 | D21: Одна тисячa триста сімдесят одна грн. 60 коп. | E21: в т.ч.ПДВ- | F21: 228.5994868
A22: 0.81.1 Цукор-сирець,тростинний і очищений тростинний чи буряковий цукор (сахароза);меляса (15831000-2 Цукор) | B22: 2230 | C22: 12363.55204 | D22: Дванадцять тисяч триста шістдесят три грн. 55 коп. | E22: в т.ч.ПДВ- | F22: 2060.592007
A23: 10.39.2 Плоди й горіхи,оброблені та законсервовані(15332000-4 Оброблені фрукти та горіхи(повидло,сухофрукти) | B23: 2230 | C23: 8167.444871 | D23: Вісім тисяч сто шістдесят сім грн. 44 коп. | E23: в т.ч.ПДВ- | F23: 1361.240812
A24: 10.51.3 Масло вершкове та молочні пасти(15530000-2 Вершкове масло) | B24: 2230 | C24: 21960.06353 | D24: Двадцять одна тисячa дев'ятсот шістдесят грн. 6 коп. | E24: в т.ч.ПДВ- | F24: 3660.010589
A25: 01.47.2 Яйця у шкаралупі свіжі (03142000-8 Продукція тваринництва (03142500-3 Яйця) | B25: 2230 | C25: 16771.5861 | D25: Шістнадцять тисяч сімсот сімдесят одна грн. 59 коп. | E25: в т.ч.ПДВ- | F25: 2795.264351
A26: 10.41.5 Олії рафіновані(15421000-5 Рафіновані олії) | B26: 2230 | C26: 4957.333979 | D26: Чотири тисячі дев'ятсот п'ятдесят сім грн. 33 коп. | E26: в т.ч.ПДВ- | F26: 826.2223299
A27: 10.61.3 Крупи,крупка,гранули та інші продукти з зерна зернових культур(15613000-8 Продукція із зерна зернових культур(крупи) | B27: 2230 | C27: 5177.481601 | D27: П'ять тисяч сто сімдесят сім грн. 48 коп. | E27: в т.ч.ПДВ- | F27: 862.9136001
A28: 10.82.1 Какао терте,какао-масло,жири й олія,какао-порошок(15841000-5 Какао) | B28: 2230 | C28: 6303.584815 | D28: Шість тисяч триста три грн. 58 коп. | E28: в т.ч.ПДВ- | F28: 1050.597469
A29: 10.83.1 Чай і кава,оброблені(15860000-4 Кава, чай та супутня продукція) | B29: 2230 | C29: 6533.796035 | D29: Шість тисяч п'ятсот тридцять три грн. 80 коп. | E29: в т.ч.ПДВ- | F29: 1088.966006
A30: 10.84.3 Сіль харчова(14410000-8 Камяна сіль) | B30: 2230 | C30: 247.2041666 | D30: Двісті сорок сім грн. 20 коп. | E30: в т.ч.ПДВ- | F30: 41.20069444
A31: 01.13.5 Коренеплоди та бульби їстівні з високим умістом крохмалю та інуліну(03212000-0 Картопля та сушені овочі) | B31: 2230 | C31: 17187.60581 | D31: Сімнадцять тисяч сто вісімдесят сім грн. 61 коп. | E31: в т.ч.ПДВ- | F31: 2864.600968
A32: 01.13.4 Овочі коренеплодні,цибулинні та бульбоподібні(03221000-6 Овочі) | B32: 2230 | C32: 21149.29942 | D32: Двадцять одна тисячa сто сорок дев'ять грн. 30 коп. | E32: в т.ч.ПДВ- | F32: 3524.883236
A33: 43.21.1 Роботи електромонтажні(45310000-3 Електромонтажні роботи(повірка контурів заземлення) | B33: 2240 | C33: 745 | D33: Сімсот сорок п'ять грн. 0 коп. | E33: в т.ч.ПДВ- | F33: 124.1666667
A34: 38.11.6 Послуги підприємств щодо перевезення інших безпечних відходів(90512000-9 Послуги з перевезення сміття) | B34: 2240 | C34: 8109 | D34: Вісім тисяч сто дев'ять грн. 0 коп. | E34: в т.ч.ПДВ- | F34: 1351.5
A35: 36.00.2 Обробляння та розподіляння води трубопроводами(65110000-7 Розподіл води) | B35: 2272 | C35: 9775.92 | D35: Дев'ять тисяч сімсот сімдесят п'ять грн. 92 коп. | E35: в т.ч.ПДВ- | F35: 1629.32
A36: 37.00.1 Послуги каналізаційні(90400000-1 Послуги у сфері водовідведення) | B36: 2272 | C36: 7784.08 | D36: Сім тисяч сімсот вісімдесят чотири грн. 8 коп. | E36: в т.ч.ПДВ- | F36: 1297.346667
A37: 35.11.1 Енергія електрична (09310000-5 Електрична енергія) | B37: 2273 | C37: 72421 | D37: Сімдесят дві тисячі чотириста двадцять одна грн. 0 коп. | E37: в т.ч.ПДВ- | F37: 12070.16667
A38: 61.10.1 Послуги щодо передавання даних і повідомлень(64211000-8 Послуги громадського телефонного звязку) | B38: 2240 | C38: 1463 | D38: Одна тисячa чотириста шістдесят три грн. 0 коп. | E38: в т.ч.ПДВ- | F38: 243.8333333
A39: Поточний ремонт будівель (45400000-1 Завершальні будівельні роботи) | B39: 2240 | C39: 23900 | D39: Двадцять три тисячі дев'ятсот грн. 0 коп. | E39: в т.ч.ПДВ- | F39: 3983.333333
A40: 91.01.1 Послуги бібліотек і архівів(92512000-3 Послуги архівів) | B40: 2240 | C40: 514 | D40: П'ятсот чотирнадцять грн. 0 коп. | E40: в т.ч.ПДВ- | F40: 85.66666667
A41: 71.20.1 Послуги щодо технічного випробування й аналізування(71632000-7 Послуги з технічних випробувань (повірка,атестація) | B41: 2240 | C41: 294 | D41: Двісті дев'яносто чотири грн. 0 коп. | E41: в т.ч.ПДВ- | F41: 49
A42: 58.29.1 Програмне забезпечення системне на фізичних носіях(48443000-5 Пакети програмного забезпечення для бухгалтерського обліку) | B42: 2240 | C42: 7392 | D42: Сім тисяч триста дев'яносто дві грн. 0 коп. | E42: в т.ч.ПДВ- | F42: 1232
A43: 28.99.3 Машини й устаткування спеціальної призначеності,н.в.і.у.(37535000-7 Каруселі,гойдалки,тири та інші атракціони) | B43: 3110 | C43: 73100 | D43: Сімдесят три тисячі сто грн. 0 коп. | E43: в т.ч.ПДВ- | F43: 12183.33333
A44: 85.60.1 Послуги освітянські допоміжні (80570000-0 Послуги з професійної підготовки у сфері підвищення кваліфікації) | B44: 2282 | C44: 698 | D44: Шістсот дев'яносто вісім грн. 0 коп. | E44: в т.ч.ПДВ- | F44: 116.3333333
A46: Затверджений рішенням комітету з конкурсних торгів від__________№_______
A48: Голова комітету з конкурсних торгів _______________________Н.Б.Мельник
A49: (підпис) (ініціали та прізвище)
A50: МП

Sheet 19
A1: Додаток до річного плану закупівель на 2016 рік
A2: Дошкільний навчальний заклад № 19, 39498035
A3: (найменування замовника,код за ЄДРПОУ)
A4: Предмет закупівлі | B4: Код КЕКВ (для бюджетних коштів) | C4: Очікувана вартість предмета закупівлі | G4: Процедура закупівлі | H4: Орієнтовний початок проведення процедури закупівлі | I4: Примітки
A5: 1 | B5: 2 | C5: 3 | G5: 4 | H5: 5 | I5: 6
A6: 10.73.1 Макарони,локшина,кускус і подібні борошняні вироби(15851000-8 Борошняні вироби(макарони) | B6: 2230 | C6: 2593.678734 | D6: =SUMINWORDS(C6,"грн.","коп.") -> Дві тисячі п'ятсот дев'яносто три грн. 68 коп. | E6: в т.ч.ПДВ- | F6: =C6/6 -> 432.279789
A7: 10.11.1 М'ясо великої рогатої худоби,свиней,овець,кіз,коней та ін..тварин родини конячих,свіже чиа охолоджене(15111000-9 М'ясо великої рогатої худоби родини бикових(яловичина) | B7: 2230 | C7: 87890.28731 | D7: =SUMINWORDS(C7,"грн.","коп.") -> Вісімдесят сім тисяч вісімсот дев'яносто грн. 29 коп. | E7: в т.ч.ПДВ- | F7: =C7/6 -> 14648.38122
A8: 10.12.1 М'ясо свійської птиці,свіже чи охолоджене(15112000-6 М'ясо свійської птиці) | B8: 2230 | C8: 33623.41305 | D8: =SUMINWORDS(C8,"грн.","коп.") -> Тридцять три тисячі шістсот двадцять три грн. 41 коп. | E8: в т.ч.ПДВ- | F8: 5603.902175
A9: 10.12.4 Субпродукти харчові свійської птиці(15114000-0 Потрухи(печінка) | B9: 2230 | C9: 9517.230712 | D9: =SUMINWORDS(C9,"грн.","коп.") -> Дев'ять тисяч п'ятсот сімнадцять грн. 23 коп. | E9: в т.ч.ПДВ- | F9: 1586.205119
A10: 10.13.1.Консерви та готові страви з м’яса,м’ясних субпродуктів чи крові (15130000-8 Мясопродукти (ковбаса,сосиски) | B10: 2230 | C10: 28575.54484 | D10: Двадцять вісім тисяч п'ятсот сімдесят п'ять грн. 54 коп. | E10: в т.ч.ПДВ- | F10: 4762.590807
A11: 10.20.1 Продукція рибна,свіжа,охолоджена чи заморожена (15221000-3 Морожена риба) | B11: 2230 | C11: 67183.38099 | D11: Шістдесят сім тисяч сто вісімдесят три грн. 38 коп. | E11: в т.ч.ПДВ- | F11: 11197.23016
A12: 01.24.1 Яблука (03222000-3 Фрукти і горіхи(яблука,апельсини,лимони,ягоди) | B12: 2230 | C12: 28375.07055 | D12: Двадцять вісім тисяч триста сімдесят п'ять грн. 7 коп. | E12: в т.ч.ПДВ- | F12: 4729.178424
A13: 10.39.1 Плоди та овочі,оброблені та законсервовані,крім картоплі(15331000-7 Оброблені овочі(консерви овочеві) | B13: 2230 | C13: 20001.6111 | D13: Двадцять тисяч одна грн. 61 коп. | E13: в т.ч.ПДВ- | F13: 3333.601851
A14: 10.72.1 Вироби хлібобулочні,зниженої вологості,та кондитерські,борошняні,тривалого зберігання(15820000-2 Сухарі та печиво; пресерви з хлібобулочних і кондитерських виробів (печиво) | B14: 2230 | C14: 6885.84246 | D14: Шість тисяч вісімсот вісімдесят п'ять грн. 84 коп. | E14: в т.ч.ПДВ- | F14: 1147.64041
A15: 10.71.1 Вироби хлібобулочні,кондитерські та кулінарні,борошняні,нетривалого зберігання(15810000-9 Хлібопродукти, свіжовипечені хлібобулочні та кондитерські вироби) | B15: 2230 | C15: 25683.34706 | D15: Двадцять п'ять тисяч шістсот вісімдесят три грн. 35 коп. | E15: в т.ч.ПДВ- | F15: 4280.557844
A16: 10.51.1 Молоко та вершки,рідинні,оброблені(15511000-3 Молоко) | B16: 2230 | C16: 102245.6871 | D16: Сто дві тисячі двісті сорок п'ять грн. 69 коп. | E16: в т.ч.ПДВ- | F16: 17040.94786
A17: 10.51.5 Продукти молочні, інші (15550000-8 Молочні продукти різні (кефір,сметана) | B17: 2230 | C17: 19156.88153 | D17: Дев'ятнадцять тисяч сто п'ятдесят шість грн. 88 коп. | E17: в т.ч.ПДВ- | F17: 3192.813588
A18: 10.51.4 Сир сичужний та кисломолочний сир(15540000-5 Сирні продукти) | B18: 2230 | C18: 71742.82068 | D18: Сімдесят одна тисячa сімсот сорок дві грн. 82 коп. | E18: в т.ч.ПДВ- | F18: 11957.13678
A19: 10.32.1 Соки фруктові та овочеві (15321000-4 Фруктові соки) | B19: 2230 | C19: 19116.22921 | D19: Дев'ятнадцять тисяч сто шістнадцять грн. 23 коп. | E19: в т.ч.ПДВ- | F19: 3186.038202
A20: 10.61.2 Борошно зернових і овочевих культур;їхні суміші(15612000-1 Борошно зернових та овочевих культур і супутня продукція) | B20: 2230 | C20: 4203.924835 | D20: Чотири тисячі двісті три грн. 92 коп. | E20: в т.ч.ПДВ- | F20: 700.6541392
A21: 10.61.1 Рис напівобрушений чи повністю обрушений,або лущений чи дроблений(15614000-5 Рис оброблений) | B21: 2230 | C21: 2060.149382 | D21: Дві тисячі шістдесят грн. 15 коп. | E21: в т.ч.ПДВ- | F21: 343.3582304
A22: 0.81.1 Цукор-сирець,тростинний і очищений тростинний чи буряковий цукор (сахароза);меляса (15831000-2 Цукор) | B22: 2230 | C22: 18551.12226 | D22: Вісімнадцять тисяч п'ятсот п'ятдесят одна грн. 12 коп. | E22: в т.ч.ПДВ- | F22: 3091.85371
A23: 10.39.2 Плоди й горіхи,оброблені та законсервовані(15332000-4 Оброблені фрукти та горіхи(повидло,сухофрукти) | B23: 2230 | C23: 12232.07442 | D23: Дванадцять тисяч двісті тридцять дві грн. 7 коп. | E23: в т.ч.ПДВ- | F23: 2038.67907
A24: 10.51.3 Масло вершкове та молочні пасти(15530000-2 Вершкове масло) | B24: 2230 | C24: 33063.87062 | D24: Тридцять три тисячі шістдесят три грн. 87 коп. | E24: в т.ч.ПДВ- | F24: 5510.645104
A25: 01.47.2 Яйця у шкаралупі свіжі (03142000-8 Продукція тваринництва (03142500-3 Яйця) | B25: 2230 | C25: 25283.87106 | D25: Двадцять п'ять тисяч двісті вісімдесят три грн. 87 коп. | E25: в т.ч.ПДВ- | F25: 4213.978511
A26: 10.41.5 Олії рафіновані(15421000-5 Рафіновані олії) | B26: 2230 | C26: 7451.821406 | D26: Сім тисяч чотириста п'ятдесят одна грн. 82 коп. | E26: в т.ч.ПДВ- | F26: 1241.970234
A27: 10.61.3 Крупи,крупка,гранули та інші продукти з зерна зернових культур(15613000-8 Продукція із зерна зернових культур(крупи) | B27: 2230 | C27: 7778.949664 | D27: Сім тисяч сімсот сімдесят вісім грн. 95 коп. | E27: в т.ч.ПДВ- | F27: 1296.491611
A28: 10.82.1 Какао терте,какао-масло,жири й олія,какао-порошок(15841000-5 Какао) | B28: 2230 | C28: 9502.919087 | D28: Дев'ять тисяч п'ятсот дві грн. 92 коп. | E28: в т.ч.ПДВ- | F28: 1583.819848
A29: 10.83.1 Чай і кава,оброблені(15860000-4 Кава, чай та супутня продукція) | B29: 2230 | C29: 9885.845803 | D29: Дев'ять тисяч вісімсот вісімдесят п'ять грн. 85 коп. | E29: в т.ч.ПДВ- | F29: 1647.640967
A30: 10.84.3 Сіль харчова(14410000-8 Камяна сіль) | B30: 2230 | C30: 373.3574136 | D30: Триста сімдесят три грн. 36 коп. | E30: в т.ч.ПДВ- | F30: 62.22623559
A31: 01.13.5 Коренеплоди та бульби їстівні з високим умістом крохмалю та інуліну(03212000-0 Картопля та сушені овочі) | B31: 2230 | C31: 25828.71519 | D31: Двадцять п'ять тисяч вісімсот двадцять вісім грн. 72 коп. | E31: в т.ч.ПДВ- | F31: 4304.785866
A32: 01.13.4 Овочі коренеплодні,цибулинні та бульбоподібні(03221000-6 Овочі) | B32: 2230 | C32: 31728.35345 | D32: Тридцять одна тисячa сімсот двадцять вісім грн. 35 коп. | E32: в т.ч.ПДВ- | F32: 5288.058909
A33: 43.21.1 Роботи електромонтажні(45310000-3 Електромонтажні роботи(повірка контурів заземлення) | B33: 2240 | C33: 745 | D33: Сімсот сорок п'ять грн. 0 коп. | E33: в т.ч.ПДВ- | F33: 124.1666667
A34: 38.11.6 Послуги підприємств щодо перевезення інших безпечних відходів(90512000-9 Послуги з перевезення сміття) | B34: 2240 | C34: 6325 | D34: Шість тисяч триста двадцять п'ять грн. 0 коп. | E34: в т.ч.ПДВ- | F34: 1054.166667
A35: 64.99.1 Послуги фінансові, крім страхування та пенсійного забезпечення, інші, н.в.і.у( 66110000-4 Банківські послуги) | B35: 2240 | C35: 1227 | D35: Одна тисячa двісті двадцять сім грн. 0 коп. | E35: в т.ч.ПДВ- | F35: 204.5
A36: 36.00.2 Обробляння та розподіляння води трубопроводами(65110000-7 Розподіл води) | B36: 2272 | C36: 16379.1096 | D36: Шістнадцять тисяч триста сімдесят дев'ять грн. 11 коп. | E36: в т.ч.ПДВ- | F36: 2729.8516
A37: 37.00.1 Послуги каналізаційні(90400000-1 Послуги у сфері водовідведення) | B37: 2272 | C37: 13926.8904 | D37: Тринадцять тисяч дев'ятсот двадцять шість грн. 89 коп. | E37: в т.ч.ПДВ- | F37: 2321.1484
A38: 35.11.1 Енергія електрична (09310000-5 Електрична енергія) | B38: 2273 | C38: 135915 | D38: Сто тридцять п'ять тисяч дев'ятсот п'ятнадцять грн. 0 коп. | E38: в т.ч.ПДВ- | F38: 22652.5
A39: 61.10.1 Послуги щодо передавання даних і повідомлень(64211000-8 Послуги громадського телефонного звязку) | B39: 2240 | C39: 3026 | D39: Три тисячі двадцять шість грн. 0 коп. | E39: в т.ч.ПДВ- | F39: 504.3333333
A40: 85.60.1 Послуги освітянські допоміжні (80570000-0 Послуги з професійної підготовки у сфері підвищення кваліфікації) | B40: 2282 | C40: 676 | D40: Шістсот сімдесят шість грн. 0 коп. | E40: в т.ч.ПДВ- | F40: 112.6666667
A41: 91.01.1 Послуги бібліотек і архівів(92512000-3 Послуги архівів) | B41: 2240 | C41: 659 | D41: Шістсот п'ятдесят дев'ять грн. 0 коп. | E41: без ПДВ
A42: 71.20.1 Послуги щодо технічного випробування й аналізування(71632000-7 Послуги з технічних випробувань (повірка,атестація) | B42: 2240 | C42: 5200 | D42: П'ять тисяч двісті грн. 0 коп. | E42: в т.ч.ПДВ- | F42: 866.6666667
A43: 58.29.1 Програмне забезпечення системне на фізичних носіях(48443000-5 Пакети програмного забезпечення для бухгалтерського обліку) | B43: 2240 | C43: 7392 | D43: Сім тисяч триста дев'яносто дві грн. 0 коп. | E43: в т.ч.ПДВ- | F43: 1232
A45: Затверджений рішенням комітету з конкурсних торгів від__________№_______
A47: Голова комітету з конкурсних торгів _______________________В.Ю.Харматова
A48: (підпис) (ініціали та прізвище)
A49: МП

Sheet 21
A1: Додаток до річного плану закупівель на 2016 рік
A2: Дошкільний навчальний заклад № 21, 26243237
A3: (найменування замовника,код за ЄДРПОУ)
A4: Предмет закупівлі | B4: Код КЕКВ (для бюджетних коштів) | C4: Очікувана вартість предмета закупівлі | G4: Процедура закупівлі | H4: Орієнтовний початок проведення процедури закупівлі | I4: Примітки
A5: 1 | B5: 2 | C5: 3 | G5: 4 | H5: 5 | I5: 6
A6: 10.73.1 Макарони,локшина,кускус і подібні борошняні вироби(15851000-8 Борошняні вироби(макарони) | B6: 2230 | C6: 2800.574401 | D6: =SUMINWORDS(C6,"грн.","коп.") -> Дві тисячі вісімсот грн. 57 коп. | E6: в т.ч.ПДВ- | F6: =C6/6 -> 466.7624002
A7: 10.11.1 М'ясо великої рогатої худоби,свиней,овець,кіз,коней та ін..тварин родини конячих,свіже чиа охолоджене(15111000-9 М'ясо великої рогатої худоби родини бикових(яловичина) | B7: 2230 | C7: 99083.61819 | D7: =SUMINWORDS(C7,"грн.","коп.") -> Дев'яносто дев'ять тисяч вісімдесят три грн. 62 коп. | E7: в т.ч.ПДВ- | F7: =C7/6 -> 16513.93636
A8: 10.12.1 М'ясо свійської птиці,свіже чи охолоджене(15112000-6 М'ясо свійської птиці) | B8: 2230 | C8: 36296.77645 | D8: =SUMINWORDS(C8,"грн.","коп.") -> Тридцять шість тисяч двісті дев'яносто шість грн. 78 коп. | E8: в т.ч.ПДВ- | F8: 6049.462742
A9: 10.12.4 Субпродукти харчові свійської птиці(15114000-0 Потрухи(печінка) | B9: 2230 | C9: 10272.01147 | D9: =SUMINWORDS(C9,"грн.","коп.") -> Десять тисяч двісті сімдесят дві грн. 1 коп. | E9: в т.ч.ПДВ- | F9: 1712.001912
A10: 10.13.1.Консерви та готові страви з м’яса,м’ясних субпродуктів чи крові (15130000-8 Мясопродукти (ковбаса,сосиски) | B10: 2230 | C10: 30841.7788 | D10: Тридцять тисяч вісімсот сорок одна грн. 78 коп. | E10: в т.ч.ПДВ- | F10: 5140.296467
A11: 10.20.1 Продукція рибна,свіжа,охолоджена чи заморожена (15221000-3 Морожена риба) | B11: 2230 | C11: 72505.42351 | D11: Сімдесят дві тисячі п'ятсот п'ять грн. 42 коп. | E11: в т.ч.ПДВ- | F11: 12084.23725
A12: 01.24.1 Яблука (03222000-3 Фрукти і горіхи(яблука,апельсини,лимони,ягоди) | B12: 2230 | C12: 30624.43871 | D12: Тридцять тисяч шістсот двадцять чотири грн. 44 коп. | E12: в т.ч.ПДВ- | F12: 5104.073119
A13: 10.39.1 Плоди та овочі,оброблені та законсервовані,крім картоплі(15331000-7 Оброблені овочі(консерви овочеві) | B13: 2230 | C13: 21601.23203 | D13: Двадцять одна тисячa шістсот одна грн. 23 коп. | E13: в т.ч.ПДВ- | F13: 3600.205339
A14: 10.72.1 Вироби хлібобулочні,зниженої вологості,та кондитерські,борошняні,тривалого зберігання(15820000-2 Сухарі та печиво; пресерви з хлібобулочних і кондитерських виробів (печиво) | B14: 2230 | C14: 7428.512994 | D14: Сім тисяч чотириста двадцять вісім грн. 51 коп. | E14: в т.ч.ПДВ- | F14: 1238.085499
A15: 10.71.1 Вироби хлібобулочні,кондитерські та кулінарні,борошняні,нетривалого зберігання(15810000-9 Хлібопродукти, свіжовипечені хлібобулочні та кондитерські вироби) | B15: 2230 | C15: 27729.85889 | D15: Двадцять сім тисяч сімсот двадцять дев'ять грн. 86 коп. | E15: в т.ч.ПДВ- | F15: 4621.643149
A16: 10.51.1 Молоко та вершки,рідинні,оброблені(15511000-3 Молоко) | B16: 2230 | C16: 110459.8774 | D16: Сто десять тисяч чотириста п'ятдесят дев'ять грн. 88 коп. | E16: в т.ч.ПДВ- | F16: 18409.97957
A17: 10.51.5 Продукти молочні, інші (15550000-8 Молочні продукти різні (кефір,сметана) | B17: 2230 | C17: 20684.21639 | D17: Двадцять тисяч шістсот вісімдесят чотири грн. 22 коп. | E17: в т.ч.ПДВ- | F17: 3447.369398
A18: 10.51.4 Сир сичужний та кисломолочний сир(15540000-5 Сирні продукти) | B18: 2230 | C18: 77482.17808 | D18: Сімдесят сім тисяч чотириста вісімдесят дві грн. 18 коп. | E18: в т.ч.ПДВ- | F18: 12913.69635
A19: 10.32.1 Соки фруктові та овочеві (15321000-4 Фруктові соки) | B19: 2230 | C19: 20643.52888 | D19: Двадцять тисяч шістсот сорок три грн. 53 коп. | E19: в т.ч.ПДВ- | F19: 3440.588146
A20: 10.61.2 Борошно зернових і овочевих культур;їхні суміші(15612000-1 Борошно зернових та овочевих культур і супутня продукція) | B20: 2230 | C20: 4538.50745 | D20: Чотири тисячі п'ятсот тридцять вісім грн. 51 коп. | E20: в т.ч.ПДВ- | F20: 756.4179083
A21: 10.61.1 Рис напівобрушений чи повністю обрушений,або лущений чи дроблений(15614000-5 Рис оброблений) | B21: 2230 | C21: 2224.745936 | D21: Дві тисячі двісті двадцять чотири грн. 75 коп. | E21: в т.ч.ПДВ- | F21: 370.7909894
A22: 0.81.1 Цукор-сирець,тростинний і очищений тростинний чи буряковий цукор (сахароза);меляса (15831000-2 Цукор) | B22: 2230 | C22: 20036.32418 | D22: Двадцять тисяч тридцять шість грн. 32 коп. | E22: в т.ч.ПДВ- | F22: 3339.387364
A23: 10.39.2 Плоди й горіхи,оброблені та законсервовані(15332000-4 Оброблені фрукти та горіхи(повидло,сухофрукти) | B23: 2230 | C23: 13215.05303 | D23: Тринадцять тисяч двісті п'ятнадцять грн. 5 коп. | E23: в т.ч.ПДВ- | F23: 2202.508838
A24: 10.51.3 Масло вершкове та молочні пасти(15530000-2 Вершкове масло) | B24: 2230 | C24: 35692.74538 | D24: Тридцять п'ять тисяч шістсот дев'яносто дві грн. 75 коп. | E24: в т.ч.ПДВ- | F24: 5948.790896
A25: 01.47.2 Яйця у шкаралупі свіжі (03142000-8 Продукція тваринництва (03142500-3 Яйця) | B25: 2230 | C25: 27289.05303 | D25: Двадцять сім тисяч двісті вісімдесят дев'ять грн. 5 коп. | E25: в т.ч.ПДВ- | F25: 4548.175505
A26: 10.41.5 Олії рафіновані(15421000-5 Рафіновані олії) | B26: 2230 | C26: 8046.247208 | D26: Вісім тисяч сорок шість грн. 25 коп. | E26: в т.ч.ПДВ- | F26: 1341.041201
A27: 10.61.3 Крупи,крупка,гранули та інші продукти з зерна зернових культур(15613000-8 Продукція із зерна зернових культур(крупи) | B27: 2230 | C27: 8400.078435 | D27: Вісім тисяч чотириста грн. 8 коп. | E27: в т.ч.ПДВ- | F27: 1400.013073
A28: 10.82.1 Какао терте,какао-масло,жири й олія,какао-порошок(15841000-5 Какао) | B28: 2230 | C28: 10256.56484 | D28: Десять тисяч двісті п'ятдесят шість грн. 56 коп. | E28: в т.ч.ПДВ- | F28: 1709.427473
A29: 10.83.1 Чай і кава,оброблені(15860000-4 Кава, чай та супутня продукція) | B29: 2230 | C29: 10664.1286 | D29: Десять тисяч шістсот шістдесят чотири грн. 13 коп. | E29: в т.ч.ПДВ- | F29: 1777.354767
A30: 10.84.3 Сіль харчова(14410000-8 Камяна сіль) | B30: 2230 | C30: 402.8574589 | D30: Чотириста дві грн. 86 коп. | E30: в т.ч.ПДВ- | F30: 67.14290982
A31: 01.13.5 Коренеплоди та бульби їстівні з високим умістом крохмалю та інуліну(03212000-0 Картопля та сушені овочі) | B31: 2230 | C31: 27890.25996 | D31: Двадцять сім тисяч вісімсот дев'яносто грн. 26 коп. | E31: в т.ч.ПДВ- | F31: 4648.37666
A32: 01.13.4 Овочі коренеплодні,цибулинні та бульбоподібні(03221000-6 Овочі) | B32: 2230 | C32: 34269.40791 | D32: Тридцять чотири тисячі двісті шістдесят дев'ять грн. 41 коп. | E32: в т.ч.ПДВ- | F32: 5711.567985
A33: 43.21.1 Роботи електромонтажні(45310000-3 Електромонтажні роботи(повірка контурів заземлення) | B33: 2240 | C33: 745 | D33: Сімсот сорок п'ять грн. 0 коп. | E33: в т.ч.ПДВ- | F33: 124.1666667
A34: 38.11.6 Послуги підприємств щодо перевезення інших безпечних відходів(90512000-9 Послуги з перевезення сміття) | B34: 2240 | C34: 6355 | D34: Шість тисяч триста п'ятдесят п'ять грн. 0 коп. | E34: в т.ч.ПДВ- | F34: 1059.166667
A35: 36.00.2 Обробляння та розподіляння води трубопроводами(65110000-7 Розподіл води) | B35: 2272 | C35: 13864.032 | D35: Тринадцять тисяч вісімсот шістдесят чотири грн. 3 коп. | E35: в т.ч.ПДВ- | F35: 2310.672
A36: 37.00.1 Послуги каналізаційні(90400000-1 Послуги у сфері водовідведення) | B36: 2272 | C36: 22942.968 | D36: Двадцять дві тисячі дев'ятсот сорок дві грн. 97 коп. | E36: в т.ч.ПДВ- | F36: 3823.828
A37: 35.11.1 Енергія електрична (09310000-5 Електрична енергія) | B37: 2273 | C37: 105391 | D37: Сто п'ять тисяч триста дев'яносто одна грн. 0 коп. | E37: в т.ч.ПДВ- | F37: 17565.16667
A38: 61.10.1 Послуги щодо передавання даних і повідомлень(64211000-8 Послуги громадського телефонного звязку) | B38: 2240 | C38: 1647 | D38: Одна тисячa шістсот сорок сім грн. 0 коп. | E38: в т.ч.ПДВ- | F38: 274.5
A39: Поточний ремонт будівель (45400000-1 Завершальні будівельні роботи) | B39: 2240 | C39: 10100 | D39: Десять тисяч сто грн. 0 коп. | E39: в т.ч.ПДВ- | F39: 1683.333333
A40: 91.01.1 Послуги бібліотек і архівів(92512000-3 Послуги архівів) | B40: 2240 | C40: 856 | D40: Вісімсот п'ятдесят шість грн. 0 коп. | E40: без ПДВ
A41: 71.20.1 Послуги щодо технічного випробування й аналізування(71632000-7 Послуги з технічних випробувань (повірка,атестація) | B41: 2240 | C41: 1300 | D41: Одна тисячa триста грн. 0 коп. | E41: в т.ч.ПДВ- | F41: 216.6666667
A42: 58.29.1 Програмне забезпечення системне на фізичних носіях(48443000-5 Пакети програмного забезпечення для бухгалтерського обліку) | B42: 2240 | C42: 7572 | D42: Сім тисяч п'ятсот сімдесят дві грн. 0 коп. | E42: в т.ч.ПДВ- | F42: 1262
A43: 31.09.1 Меблі, інші (39161000-8 Меблі для дитячого садка) | B43: 2110 | C43: 20400 | D43: Двадцять тисяч чотириста грн. 0 коп. | E43: в т.ч.ПДВ- | F43: 3400
A44: 85.60.1 Послуги освітянські допоміжні (80570000-0 Послуги з професійної підготовки у сфері підвищення кваліфікації) | B44: 2282 | C44: 698 | D44: Шістсот дев'яносто вісім грн. 0 коп. | E44: в т.ч.ПДВ- | F44: 116.3333333
A45: 27.51.2 Прилади електричні побутові,інші,н.в.і.у.(39711000-9 Електричні побутові прилади для обробки продуктів харчування) | B45: 3110 | C45: 134200 | D45: Сто тридцять чотири тисячі двісті грн. 0 коп. | E45: в т.ч.ПДВ- | F45: 22366.66667
A47: Затверджений рішенням комітету з конкурсних торгів від__________№_______
A49: Голова комітету з конкурсних торгів _______________________О.В.Пасікова
A50: (підпис) (ініціали та прізвище)
A51: МП

Sheet 28
A1: Додаток до річного плану закупівель на 2016 рік
A2: Дошкільний навчальний заклад № 28, 26243409
A3: (найменування замовника,код за ЄДРПОУ)
A4: Предмет закупівлі | B4: Код КЕКВ (для бюджетних коштів) | C4: Очікувана вартість предмета закупівлі | G4: Процедура закупівлі | H4: Орієнтовний початок проведення процедури закупівлі | I4: Примітки
A5: 1 | B5: 2 | C5: 3 | G5: 4 | H5: 5 | I5: 6
A6: 10.73.1 Макарони,локшина,кускус і подібні борошняні вироби(15851000-8 Борошняні вироби(макарони) | B6: 2230 | C6: 1208.041057 | D6: =SUMINWORDS(C6,"грн.","коп.") -> Одна тисячa двісті вісім грн. 4 коп. | E6: в т.ч.ПДВ- | F6: =C6/6 -> 201.3401761
A7: 10.11.1 М'ясо великої рогатої худоби,свиней,овець,кіз,коней та ін..тварин родини конячих,свіже чиа охолоджене(15111000-9 М'ясо великої рогатої худоби родини бикових(яловичина) | B7: 2230 | C7: 43142.80932 | D7: =SUMINWORDS(C7,"грн.","коп.") -> Сорок три тисячі сто сорок дві грн. 81 коп. | E7: в т.ч.ПДВ- | F7: =C7/6 -> 7190.46822
A8: 10.12.1 М'ясо свійської птиці,свіже чи охолоджене(15112000-6 М'ясо свійської птиці) | B8: 2230 | C8: 15742.84362 | D8: =SUMINWORDS(C8,"грн.","коп.") -> П'ятнадцять тисяч сімсот сорок дві грн. 84 коп. | E8: в т.ч.ПДВ- | F8: 2623.80727
A9: 10.12.4 Субпродукти харчові свійської птиці(15114000-0 Потрухи(печінка) | B9: 2230 | C9: 4474.169706 | D9: =SUMINWORDS(C9,"грн.","коп.") -> Чотири тисячі чотириста сімдесят чотири грн. 17 коп. | E9: в т.ч.ПДВ- | F9: 745.6949511
A10: 10.13.1.Консерви та готові страви з м’яса,м’ясних субпродуктів чи крові (15130000-8 Мясопродукти (ковбаса,сосиски) | B10: 2230 | C10: 13433.72258 | D10: Тринадцять тисяч чотириста тридцять три грн. 72 коп. | E10: в т.ч.ПДВ- | F10: 2238.953763
A11: 10.20.1 Продукція рибна,свіжа,охолоджена чи заморожена (15221000-3 Морожена риба) | B11: 2230 | C11: 31640.68609 | D11: Тридцять одна тисячa шістсот сорок грн. 69 коп. | E11: в т.ч.ПДВ- | F11: 5273.447681
A12: 01.24.1 Яблука (03222000-3 Фрукти і горіхи(яблука,апельсини,лимони,ягоди) | B12: 2230 | C12: 13348.56963 | D12: Тринадцять тисяч триста сорок вісім грн. 57 коп. | E12: в т.ч.ПДВ- | F12: 2224.761604
A13: 10.39.1 Плоди та овочі,оброблені та законсервовані,крім картоплі(15331000-7 Оброблені овочі(консерви овочеві) | B13: 2230 | C13: 9277.383059 | D13: Дев'ять тисяч двісті сімдесят сім грн. 38 коп. | E13: в т.ч.ПДВ- | F13: 1546.23051
A14: 10.72.1 Вироби хлібобулочні,зниженої вологості,та кондитерські,борошняні,тривалого зберігання(15820000-2 Сухарі та печиво; пресерви з хлібобулочних і кондитерських виробів (печиво) | B14: 2230 | C14: 3269.316141 | D14: Три тисячі двісті шістдесят дев'ять грн. 32 коп. | E14: в т.ч.ПДВ- | F14: 544.8860236
A15: 10.71.1 Вироби хлібобулочні,кондитерські та кулінарні,борошняні,нетривалого зберігання(15810000-9 Хлібопродукти, свіжовипечені хлібобулочні та кондитерські вироби) | B15: 2230 | C15: 11983.32185 | D15: Одинадцять тисяч дев'ятсот вісімдесят три грн. 32 коп. | E15: в т.ч.ПДВ- | F15: 1997.220309
A16: 10.51.1 Молоко та вершки,рідинні,оброблені(15511000-3 Молоко) | B16: 2230 | C16: 47075.58929 | D16: Сорок сім тисяч сімдесят п'ять грн. 59 коп. | E16: в т.ч.ПДВ- | F16: 7845.931548
A17: 10.51.5 Продукти молочні, інші (15550000-8 Молочні продукти різні (кефір,сметана) | B17: 2230 | C17: 8930.046401 | D17: Вісім тисяч дев'ятсот тридцять грн. 5 коп. | E17: в т.ч.ПДВ- | F17: 1488.341067
A18: 10.51.4 Сир сичужний та кисломолочний сир(15540000-5 Сирні продукти) | B18: 2230 | C18: 33260.10772 | D18: Тридцять три тисячі двісті шістдесят грн. 11 коп. | E18: в т.ч.ПДВ- | F18: 5543.351287
A19: 10.32.1 Соки фруктові та овочеві (15321000-4 Фруктові соки) | B19: 2230 | C19: 8880.945805 | D19: Вісім тисяч вісімсот вісімдесят грн. 95 коп. | E19: в т.ч.ПДВ- | F19: 1480.157634
A20: 10.61.2 Борошно зернових і овочевих культур;їхні суміші(15612000-1 Борошно зернових та овочевих культур і супутня продукція) | B20: 2230 | C20: 1965.19276 | D20: Одна тисячa дев'ятсот шістдесят п'ять грн. 19 коп. | E20: в т.ч.ПДВ- | F20: 327.5321267
A21: 10.61.1 Рис напівобрушений чи повністю обрушений,або лущений чи дроблений(15614000-5 Рис оброблений) | B21: 2230 | C21: 957.0964446 | D21: Дев'ятсот п'ятдесят сім грн. 10 коп. | E21: в т.ч.ПДВ- | F21: 159.5160741
A22: 0.81.1 Цукор-сирець,тростинний і очищений тростинний чи буряковий цукор (сахароза);меляса (15831000-2 Цукор) | B22: 2230 | C22: 8589.710295 | D22: Вісім тисяч п'ятсот вісімдесят дев'ять грн. 71 коп. | E22: в т.ч.ПДВ- | F22: 1431.618383
A23: 10.39.2 Плоди й горіхи,оброблені та законсервовані(15332000-4 Оброблені фрукти та горіхи(повидло,сухофрукти) | B23: 2230 | C23: 5629.20424 | D23: П'ять тисяч шістсот двадцять дев'ять грн. 20 коп. | E23: в т.ч.ПДВ- | F23: 938.2007066
A24: 10.51.3 Масло вершкове та молочні пасти(15530000-2 Вершкове масло) | B24: 2230 | C24: 15480.85984 | D24: П'ятнадцять тисяч чотириста вісімдесят грн. 86 коп. | E24: в т.ч.ПДВ- | F24: 2580.143306
A25: 01.47.2 Яйця у шкаралупі свіжі (03142000-8 Продукція тваринництва (03142500-3 Яйця) | B25: 2230 | C25: 11886.26539 | D25: Одинадцять тисяч вісімсот вісімдесят шість грн. 27 коп. | E25: в т.ч.ПДВ- | F25: 1981.044231
A26: 10.41.5 Олії рафіновані(15421000-5 Рафіновані олії) | B26: 2230 | C26: 3470.786913 | D26: Три тисячі чотириста сімдесят грн. 79 коп. | E26: в т.ч.ПДВ- | F26: 578.4644855
A27: 10.61.3 Крупи,крупка,гранули та інші продукти з зерна зернових культур(15613000-8 Продукція із зерна зернових культур(крупи) | B27: 2230 | C27: 3617.431372 | D27: Три тисячі шістсот сімнадцять грн. 43 коп. | E27: в т.ч.ПДВ- | F27: 602.9052287
A28: 10.82.1 Какао терте,какао-масло,жири й олія,какао-порошок(15841000-5 Какао) | B28: 2230 | C28: 4467.441632 | D28: Чотири тисячі чотириста шістдесят сім грн. 44 коп. | E28: в т.ч.ПДВ- | F28: 744.5736053
A29: 10.83.1 Чай і кава,оброблені(15860000-4 Кава, чай та супутня продукція) | B29: 2230 | C29: 4701.363876 | D29: Чотири тисячі сімсот одна грн. 36 коп. | E29: в т.ч.ПДВ- | F29: 783.560646
A30: 10.84.3 Сіль харчова(14410000-8 Камяна сіль) | B30: 2230 | C30: 176.5519044 | D30: Сто сімдесят шість грн. 55 коп. | E30: в т.ч.ПДВ- | F30: 29.4253174
A31: 01.13.5 Коренеплоди та бульби їстівні з високим умістом крохмалю та інуліну(03212000-0 Картопля та сушені овочі) | B31: 2230 | C31: 12018.70511 | D31: Дванадцять тисяч вісімнадцять грн. 71 коп. | E31: в т.ч.ПДВ- | F31: 2003.117518
A32: 01.13.4 Овочі коренеплодні,цибулинні та бульбоподібні(03221000-6 Овочі) | B32: 2230 | C32: 14682.8381 | D32: Чотирнадцять тисяч шістсот вісімдесят дві грн. 84 коп. | E32: в т.ч.ПДВ- | F32: 2447.139684
A33: 43.21.1 Роботи електромонтажні(45310000-3 Електромонтажні роботи(повірка контурів заземлення) | B33: 2240 | C33: 745 | D33: Сімсот сорок п'ять грн. 0 коп. | E33: в т.ч.ПДВ- | F33: 124.1666667
A34: 38.11.6 Послуги підприємств щодо перевезення інших безпечних відходів(90512000-9 Послуги з перевезення сміття) | B34: 2240 | C34: 4127 | D34: Чотири тисячі сто двадцять сім грн. 0 коп. | E34: в т.ч.ПДВ- | F34: 687.8333333
A35: 64.99.1 Послуги фінансові, крім страхування та пенсійного забезпечення, інші, н.в.і.у( 66110000-4 Банківські послуги) | B35: 2240 | C35: 1483 | D35: Одна тисячa чотириста вісімдесят три грн. 0 коп. | E35: в т.ч.ПДВ- | F35: 247.1666667
A36: 36.00.2 Обробляння та розподіляння води трубопроводами(65110000-7 Розподіл води) | B36: 2272 | C36: 17445.5736 | D36: Сімнадцять тисяч чотириста сорок п'ять грн. 57 коп. | E36: в т.ч.ПДВ- | F36: 2907.5956
A37: 37.00.1 Послуги каналізаційні(90400000-1 Послуги у сфері водовідведення) | B37: 2272 | C37: 14804.4264 | D37: Чотирнадцять тисяч вісімсот чотири грн. 43 коп. | E37: в т.ч.ПДВ- | F37: 2467.4044
A38: 35.11.1 Енергія електрична (09310000-5 Електрична енергія) | B38: 2273 | C38: 53194 | D38: П'ятдесят три тисячі сто дев'яносто чотири грн. 0 коп. | E38: в т.ч.ПДВ- | F38: 8865.666667
A39: 61.10.1 Послуги щодо передавання даних і повідомлень(64211000-8 Послуги громадського телефонного звязку) | B39: 2240 | C39: 1623 | D39: Одна тисячa шістсот двадцять три грн. 0 коп. | E39: в т.ч.ПДВ- | F39: 270.5
A40: Поточний ремонт будівель (45400000-1 Завершальні будівельні роботи) | B40: 2240 | C40: 4100 | D40: Чотири тисячі сто грн. 0 коп. | E40: в т.ч.ПДВ- | F40: 683.3333333
A41: 91.01.1 Послуги бібліотек і архівів(92512000-3 Послуги архівів) | B41: 2240 | C41: 540 | D41: П'ятсот сорок грн. 0 коп. | E41: без ПДВ
A42: 58.29.1 Програмне забезпечення системне на фізичних носіях(48443000-5 Пакети програмного забезпечення для бухгалтерського обліку) | B42: 2240 | C42: 7392 | D42: Сім тисяч триста дев'яносто дві грн. 0 коп. | E42: в т.ч.ПДВ- | F42: 1232
A43: 28.99.3 Машини й устаткування спеціальної призначеності,н.в.і.у.(37535000-7 Каруселі,гойдалки,тири та інші атракціони) | B43: 3110 | C43: 62900 | D43: Шістдесят дві тисячі дев'ятсот грн. 0 коп. | E43: в т.ч.ПДВ- | F43: 10483.33333
A45: Затверджений рішенням комітету з конкурсних торгів від__________№_______
A47: Голова комітету з конкурсних торгів _______________________Т.А.Рублевська
A48: (підпис) (ініціали та прізвище)
A49: МП

Sheet 29
A1: Додаток до річного плану закупівель на 2016 рік
A2: Дошкільний навчальний заклад № 29, 26244202
A3: (найменування замовника,код за ЄДРПОУ)
A4: Предмет закупівлі | B4: Код КЕКВ (для бюджетних коштів) | C4: Очікувана вартість предмета закупівлі | G4: Процедура закупівлі | H4: Орієнтовний початок проведення процедури закупівлі | I4: Примітки
A5: 1 | B5: 2 | C5: 3 | G5: 4 | H5: 5 | I5: 6
A6: 10.73.1 Макарони,локшина,кускус і подібні борошняні вироби(15851000-8 Борошняні вироби(макарони) | B6: 2230 | C6: 2829.034986 | D6: Дві тисячі вісімсот двадцять дев'ять грн. 3 коп. | E6: в т.ч.ПДВ- | F6: =C6/6 -> 471.5058311
A7: 10.11.1 М'ясо великої рогатої худоби,свиней,овець,кіз,коней та ін..тварин родини конячих,свіже чиа охолоджене(15111000-9 М'ясо великої рогатої худоби родини бикових(яловичина) | B7: 2230 | C7: 90712.68165 | D7: Дев'яносто тисяч сімсот дванадцять грн. 68 коп. | E7: в т.ч.ПДВ- | F7: =C7/6 -> 15118.78027
A8: 10.12.1 М'ясо свійської птиці,свіже чи охолоджене(15112000-6 М'ясо свійської птиці) | B8: 2230 | C8: 36730.84944 | D8: Тридцять шість тисяч сімсот тридцять грн. 85 коп. | E8: в т.ч.ПДВ- | F8: 6121.80824
A9: 10.12.4 Субпродукти харчові свійської птиці(15114000-0 Потрухи(печінка) | B9: 2230 | C9: 10409.2023 | D9: Десять тисяч чотириста дев'ять грн. 20 коп. | E9: в т.ч.ПДВ- | F9: 1734.867051
A10: 10.13.1.Консерви та готові страви з м’яса,м’ясних субпродуктів чи крові (15130000-8 Мясопродукти (ковбаса,сосиски) | B10: 2230 | C10: 31253.69514 | D10: Тридцять одна тисячa двісті п'ятдесят три грн. 70 коп. | E10: в т.ч.ПДВ- | F10: 5208.94919
A11: 10.20.1 Продукція рибна,свіжа,охолоджена чи заморожена (15221000-3 Морожена риба) | B11: 2230 | C11: 73518.93167 | D11: Сімдесят три тисячі п'ятсот вісімнадцять грн. 93 коп. | E11: в т.ч.ПДВ- | F11: 12253.15528
A12: 01.24.1 Яблука (03222000-3 Фрукти і горіхи(яблука,апельсини,лимони,ягоди) | B12: 2230 | C12: 31040.66135 | D12: Тридцять одна тисячa сорок грн. 66 коп. | E12: в т.ч.ПДВ- | F12: 5173.443558
A13: 10.39.1 Плоди та овочі,оброблені та законсервовані,крім картоплі(15331000-7 Оброблені овочі(консерви овочеві) | B13: 2230 | C13: 21790.13094 | D13: Двадцять одна тисячa сімсот дев'яносто грн. 13 коп. | E13: в т.ч.ПДВ- | F13: 3631.688491
A14: 10.72.1 Вироби хлібобулочні,зниженої вологості,та кондитерські,борошняні,тривалого зберігання(15820000-2 Сухарі та печиво; пресерви з хлібобулочних і кондитерських виробів (печиво) | B14: 2230 | C14: 7553.252646 | D14: Сім тисяч п'ятсот п'ятдесят три грн. 25 коп. | E14: в т.ч.ПДВ- | F14: 1258.875441
A15: 10.71.1 Вироби хлібобулочні,кондитерські та кулінарні,борошняні,нетривалого зберігання(15810000-9 Хлібопродукти, свіжовипечені хлібобулочні та кондитерські вироби) | B15: 2230 | C15: 28028.26783 | D15: Двадцять вісім тисяч двадцять вісім грн. 27 коп. | E15: в т.ч.ПДВ- | F15: 4671.377972
A16: 10.51.1 Молоко та вершки,рідинні,оброблені(15511000-3 Молоко) | B16: 2230 | C16: 111149.1278 | D16: Сто одинадцять тисяч сто сорок дев'ять грн. 13 коп. | E16: в т.ч.ПДВ- | F16: 18524.85463
A17: 10.51.5 Продукти молочні, інші (15550000-8 Молочні продукти різні (кефір,сметана) | B17: 2230 | C17: 20900.33711 | D17: Двадцять тисяч дев'ятсот грн. 34 коп. | E17: в т.ч.ПДВ- | F17: 3483.389518
A18: 10.51.4 Сир сичужний та кисломолочний сир(15540000-5 Сирні продукти) | B18: 2230 | C18: 78146.67734 | D18: Сімдесят вісім тисяч сто сорок шість грн. 68 коп. | E18: в т.ч.ПДВ- | F18: 13024.44622
A19: 10.32.1 Соки фруктові та овочеві (15321000-4 Фруктові соки) | B19: 2230 | C19: 20835.32897 | D19: Двадцять тисяч вісімсот тридцять п'ять грн. 33 коп. | E19: в т.ч.ПДВ- | F19: 3472.554828
A20: 10.61.2 Борошно зернових і овочевих культур;їхні суміші(15612000-1 Борошно зернових та овочевих культур і супутня продукція) | B20: 2230 | C20: 4590.302226 | D20: Чотири тисячі п'ятсот дев'яносто грн. 30 коп. | E20: в т.ч.ПДВ- | F20: 765.0503709
A21: 10.61.1 Рис напівобрушений чи повністю обрушений,або лущений чи дроблений(15614000-5 Рис оброблений) | B21: 2230 | C21: 2245.416166 | D21: Дві тисячі двісті сорок п'ять грн. 42 коп. | E21: в т.ч.ПДВ- | F21: 374.2360277
A22: 0.81.1 Цукор-сирець,тростинний і очищений тростинний чи буряковий цукор (сахароза);меляса (15831000-2 Цукор) | B22: 2230 | C22: 20199.74003 | D22: Двадцять тисяч сто дев'яносто дев'ять грн. 74 коп. | E22: в т.ч.ПДВ- | F22: 3366.623338
A23: 10.39.2 Плоди й горіхи,оброблені та законсервовані(15332000-4 Оброблені фрукти та горіхи(повидло,сухофрукти) | B23: 2230 | C23: 13295.41898 | D23: Тринадцять тисяч двісті дев'яносто п'ять грн. 42 коп. | E23: в т.ч.ПДВ- | F23: 2215.903164
A24: 10.51.3 Масло вершкове та молочні пасти(15530000-2 Вершкове масло) | B24: 2230 | C24: 36119.59476 | D24: Тридцять шість тисяч сто дев'ятнадцять грн. 59 коп. | E24: в т.ч.ПДВ- | F24: 6019.93246
A25: 01.47.2 Яйця у шкаралупі свіжі (03142000-8 Продукція тваринництва (03142500-3 Яйця) | B25: 2230 | C25: 27653.5199 | D25: Двадцять сім тисяч шістсот п'ятдесят три грн. 52 коп. | E25: в т.ч.ПДВ- | F25: 4608.919984
A26: 10.41.5 Олії рафіновані(15421000-5 Рафіновані олії) | B26: 2230 | C26: 8128.01647 | D26: Вісім тисяч сто двадцять вісім грн. 2 коп. | E26: в т.ч.ПДВ- | F26: 1354.669412
A27: 10.61.3 Крупи,крупка,гранули та інші продукти з зерна зернових культур(15613000-8 Продукція із зерна зернових культур(крупи) | B27: 2230 | C27: 8480.910325 | D27: Вісім тисяч чотириста вісімдесят грн. 91 коп. | E27: в т.ч.ПДВ- | F27: 1413.485054
A28: 10.82.1 Какао терте,какао-масло,жири й олія,какао-порошок(15841000-5 Какао) | B28: 2230 | C28: 10393.54937 | D28: Десять тисяч триста дев'яносто три грн. 55 коп. | E28: в т.ч.ПДВ- | F28: 1732.258228
A29: 10.83.1 Чай і кава,оброблені(15860000-4 Кава, чай та супутня продукція) | B29: 2230 | C29: 10849.2941 | D29: Десять тисяч вісімсот сорок дев'ять грн. 29 коп. | E29: в т.ч.ПДВ- | F29: 1808.215683
A30: 10.84.3 Сіль харчова(14410000-8 Камяна сіль) | B30: 2230 | C30: 409.0560795 | D30: Чотириста дев'ять грн. 6 коп. | E30: в т.ч.ПДВ- | F30: 68.17601324
A31: 01.13.5 Коренеплоди та бульби їстівні з високим умістом крохмалю та інуліну(03212000-0 Картопля та сушені овочі) | B31: 2230 | C31: 28164.68182 | D31: Двадцять вісім тисяч сто шістдесят чотири грн. 68 коп. | E31: в т.ч.ПДВ- | F31: 4694.113636
A32: 01.13.4 Овочі коренеплодні,цибулинні та бульбоподібні(03221000-6 Овочі) | B32: 2230 | C32: 34542.32108 | D32: Тридцять чотири тисячі п'ятсот сорок дві грн. 32 коп. | E32: в т.ч.ПДВ- | F32: 5757.053513
A33: 43.21.1 Роботи електромонтажні(45310000-3 Електромонтажні роботи(повірка контурів заземлення) | B33: 2240 | C33: 745 | D33: Сімсот сорок п'ять грн. 0 коп. | E33: в т.ч.ПДВ- | F33: 124.1666667
A34: 38.11.6 Послуги підприємств щодо перевезення інших безпечних відходів(90512000-9 Послуги з перевезення сміття) | B34: 2240 | C34: 8603 | D34: Вісім тисяч шістсот три грн. 0 коп. | E34: в т.ч.ПДВ- | F34: 1433.833333
A35: Капітальний ремонт будівель (45000000-7 Будівельні роботи) | B35: 3132 | C35: 387000 | D35: Триста вісімдесят сім тисяч грн. 0 коп. | E35: в т.ч.ПДВ- | F35: 64500
A36: 36.00.2 Обробляння та розподіляння води трубопроводами(65110000-7 Розподіл води) | B36: 2272 | C36: 10789.0608 | D36: Десять тисяч сімсот вісімдесят дев'ять грн. 6 коп. | E36: в т.ч.ПДВ- | F36: 1798.1768
A37: 37.00.1 Послуги каналізаційні(90400000-1 Послуги у сфері водовідведення) | B37: 2272 | C37: 9871.9392 | D37: Дев'ять тисяч вісімсот сімдесят одна грн. 94 коп. | E37: в т.ч.ПДВ- | F37: 1645.3232
A38: 35.11.1 Енергія електрична (09310000-5 Електрична енергія) | B38: 2273 | C38: 70570 | D38: Сімдесят тисяч п'ятсот сімдесят грн. 0 коп. | E38: в т.ч.ПДВ- | F38: 11761.66667
A39: 61.10.1 Послуги щодо передавання даних і повідомлень(64211000-8 Послуги громадського телефонного звязку) | B39: 2240 | C39: 2597 | D39: Дві тисячі п'ятсот дев'яносто сім грн. 0 коп. | E39: в т.ч.ПДВ- | F39: 432.8333333
A40: 27.51.2 Прилади електричні побутові,інші,н.в.і.у.(39711000-9 Електричні побутові прилади для обробки продуктів харчування) | B40: 3110 | C40: 134200 | D40: Сто тридцять чотири тисячі двісті грн. 0 коп. | E40: в т.ч.ПДВ- | F40: 22366.66667
A41: 91.01.1 Послуги бібліотек і архівів(92512000-3 Послуги архівів) | B41: 2240 | C41: 724 | D41: Сімсот двадцять чотири грн. 0 коп. | E41: без ПДВ
A42: 71.20.1 Послуги щодо технічного випробування й аналізування(71632000-7 Послуги з технічних випробувань (повірка,атестація) | B42: 2240 | C42: 1447 | D42: Одна тисячa чотириста сорок сім грн. 0 коп. | E42: в т.ч.ПДВ- | F42: 241.1666667
A43: 58.29.1 Програмне забезпечення системне на фізичних носіях(48443000-5 Пакети програмного забезпечення для бухгалтерського обліку) | B43: 2240 | C43: 7392 | D43: Сім тисяч триста дев'яносто дві грн. 0 коп. | E43: в т.ч.ПДВ- | F43: 1232
A44: 31.09.1 Меблі, інші (39161000-8 Меблі для дитячого садка) | B44: 2210 | C44: 61200 | D44: Шістдесят одна тисячa двісті грн. 0 коп. | E44: в т.ч.ПДВ- | F44: 10200
A45: 25.29.1 Цистерни,резервуари та вмістища металеві,інші(34221000-2 Пересувні контейнери спеціального призначення(Контейнер для сміття) | B45: 3110 | C45: 3500 | D45: Три тисячі п'ятсот грн. 0 коп. | E45: в т.ч.ПДВ- | F45: 583.3333333
A47: Затверджений рішенням комітету з конкурсних торгів від__________№_______
A49: Голова комітету з конкурсних торгів _______________________В.М.Шумило
A50: (підпис) (ініціали та прізвище)
A51: МП

Sheet 31
A1: Додаток до річного плану закупівель на 2016 рік
A2: Дошкільний навчальний заклад № 31, 26243987
A3: (найменування замовника,код за ЄДРПОУ)
A4: Предмет закупівлі | B4: Код КЕКВ (для бюджетних коштів) | C4: Очікувана вартість предмета закупівлі | G4: Процедура закупівлі | H4: Орієнтовний початок проведення процедури закупівлі | I4: Примітки
A5: 1 | B5: 2 | C5: 3 | G5: 4 | H5: 5 | I5: 6
A6: 10.73.1 Макарони,локшина,кускус і подібні борошняні вироби(15851000-8 Борошняні вироби(макарони) | B6: 2230 | C6: 4916.122564 | D6: =SUMINWORDS(C6,"грн.","коп.") -> Чотири тисячі дев'ятсот шістнадцять грн. 12 коп. | E6: в т.ч.ПДВ- | F6: =C6/6 -> 819.3537606
A7: 10.11.1 М'ясо великої рогатої худоби,свиней,овець,кіз,коней та ін..тварин родини конячих,свіже чиа охолоджене(15111000-9 М'ясо великої рогатої худоби родини бикових(яловичина) | B7: 2230 | C7: 165848.2765 | D7: =SUMINWORDS(C7,"грн.","коп.") -> Сто шістдесят п'ять тисяч вісімсот сорок вісім грн. 28 коп. | E7: в т.ч.ПДВ- | F7: =C7/6 -> 27641.37942
A8: 10.12.1 М'ясо свійської птиці,свіже чи охолоджене(15112000-6 М'ясо свійської птиці) | B8: 2230 | C8: 64163.4206 | D8: =SUMINWORDS(C8,"грн.","коп.") -> Шістдесят чотири тисячі сто шістдесят три грн. 42 коп. | E8: в т.ч.ПДВ- | F8: 10693.90343
A9: 10.12.4 Субпродукти харчові свійської птиці(15114000-0 Потрухи(печінка) | B9: 2230 | C9: 18256.89062 | D9: =SUMINWORDS(C9,"грн.","коп.") -> Вісімнадцять тисяч двісті п'ятдесят шість грн. 89 коп. | E9: в т.ч.ПДВ- | F9: 3042.815103
A10: 10.13.1.Консерви та готові страви з м’яса,м’ясних субпродуктів чи крові (15130000-8 Мясопродукти (ковбаса,сосиски) | B10: 2230 | C10: 54816.42846 | D10: П'ятдесят чотири тисячі вісімсот шістнадцять грн. 43 коп. | E10: в т.ч.ПДВ- | F10: 9136.071411
A11: 10.20.1 Продукція рибна,свіжа,охолоджена чи заморожена (15221000-3 Морожена риба) | B11: 2230 | C11: 129177.242 | D11: Сто двадцять дев'ять тисяч сто сімдесят сім грн. 24 коп. | E11: в т.ч.ПДВ- | F11: 21529.54033
A12: 01.24.1 Яблука (03222000-3 Фрукти і горіхи(яблука,апельсини,лимони,ягоди) | B12: 2230 | C12: 54479.68203 | D12: П'ятдесят чотири тисячі чотириста сімдесят дев'ять грн. 68 коп. | E12: в т.ч.ПДВ- | F12: 9079.947004
A13: 10.39.1 Плоди та овочі,оброблені та законсервовані,крім картоплі(15331000-7 Оброблені овочі(консерви овочеві) | B13: 2230 | C13: 37708.32232 | D13: Тридцять сім тисяч сімсот вісім грн. 32 коп. | E13: в т.ч.ПДВ- | F13: 6284.720387
A14: 10.72.1 Вироби хлібобулочні,зниженої вологості,та кондитерські,борошняні,тривалого зберігання(15820000-2 Сухарі та печиво; пресерви з хлібобулочних і кондитерських виробів (печиво) | B14: 2230 | C14: 13378.43567 | D14: Тринадцять тисяч триста сімдесят вісім грн. 44 коп. | E14: в т.ч.ПДВ- | F14: 2229.739278
A15: 10.71.1 Вироби хлібобулочні,кондитерські та кулінарні,борошняні,нетривалого зберігання(15810000-9 Хлібопродукти, свіжовипечені хлібобулочні та кондитерські вироби) | B15: 2230 | C15: 48791.06125 | D15: Сорок вісім тисяч сімсот дев'яносто одна грн. 6 коп. | E15: в т.ч.ПДВ- | F15: 8131.843542
A16: 10.51.1 Молоко та вершки,рідинні,оброблені(15511000-3 Молоко) | B16: 2230 | C16: 190923.4284 | D16: Сто дев'яносто тисяч дев'ятсот двадцять три грн. 43 коп. | E16: в т.ч.ПДВ- | F16: 31820.5714
A17: 10.51.5 Продукти молочні, інші (15550000-8 Молочні продукти різні (кефір,сметана) | B17: 2230 | C17: 36349.70883 | D17: Тридцять шість тисяч триста сорок дев'ять грн. 71 коп. | E17: в т.ч.ПДВ- | F17: 6058.284806
A18: 10.51.4 Сир сичужний та кисломолочний сир(15540000-5 Сирні продукти) | B18: 2230 | C18: 135167.4275 | D18: Сто тридцять п'ять тисяч сто шістдесят сім грн. 43 коп. | E18: в т.ч.ПДВ- | F18: 22527.90459
A19: 10.32.1 Соки фруктові та овочеві (15321000-4 Фруктові соки) | B19: 2230 | C19: 36113.993 | D19: Тридцять шість тисяч сто тринадцять грн. 99 коп. | E19: в т.ч.ПДВ- | F19: 6018.998833
A20: 10.61.2 Борошно зернових і овочевих культур;їхні суміші(15612000-1 Борошно зернових та овочевих культур і супутня продукція) | B20: 2230 | C20: 8005.869553 | D20: Вісім тисяч п'ять грн. 87 коп. | E20: в т.ч.ПДВ- | F20: 1334.311592
A21: 10.61.1 Рис напівобрушений чи повністю обрушений,або лущений чи дроблений(15614000-5 Рис оброблений) | B21: 2230 | C21: 3891.992481 | D21: Три тисячі вісімсот дев'яносто одна грн. 99 коп. | E21: в т.ч.ПДВ- | F21: 648.6654135
A22: 0.81.1 Цукор-сирець,тростинний і очищений тростинний чи буряковий цукор (сахароза);меляса (15831000-2 Цукор) | B22: 2230 | C22: 34895.45243 | D22: Тридцять чотири тисячі вісімсот дев'яносто п'ять грн. 45 коп. | E22: в т.ч.ПДВ- | F22: 5815.908738
A23: 10.39.2 Плоди й горіхи,оброблені та законсервовані(15332000-4 Оброблені фрукти та горіхи(повидло,сухофрукти) | B23: 2230 | C23: 22827.05716 | D23: Двадцять дві тисячі вісімсот двадцять сім грн. 6 коп. | E23: в т.ч.ПДВ- | F23: 3804.509527
A24: 10.51.3 Масло вершкове та молочні пасти(15530000-2 Вершкове масло) | B24: 2230 | C24: 63095.64809 | D24: Шістдесят три тисячі дев'яносто п'ять грн. 65 коп. | E24: в т.ч.ПДВ- | F24: 10515.94135
A25: 01.47.2 Яйця у шкаралупі свіжі (03142000-8 Продукція тваринництва (03142500-3 Яйця) | B25: 2230 | C25: 48502.01517 | D25: Сорок вісім тисяч п'ятсот дві грн. 2 коп. | E25: в т.ч.ПДВ- | F25: 8083.669195
A26: 10.41.5 Олії рафіновані(15421000-5 Рафіновані олії) | B26: 2230 | C26: 14124.36586 | D26: Чотирнадцять тисяч сто двадцять чотири грн. 37 коп. | E26: в т.ч.ПДВ- | F26: 2354.060976
A27: 10.61.3 Крупи,крупка,гранули та інші продукти з зерна зернових культур(15613000-8 Продукція із зерна зернових культур(крупи) | B27: 2230 | C27: 14714.32806 | D27: Чотирнадцять тисяч сімсот чотирнадцять грн. 33 коп. | E27: в т.ч.ПДВ- | F27: 2452.38801
A28: 10.82.1 Какао терте,какао-масло,жири й олія,какао-порошок(15841000-5 Какао) | B28: 2230 | C28: 18229.43664 | D28: Вісімнадцять тисяч двісті двадцять дев'ять грн. 44 коп. | E28: в т.ч.ПДВ- | F28: 3038.239441
A29: 10.83.1 Чай і кава,оброблені(15860000-4 Кава, чай та супутня продукція) | B29: 2230 | C29: 19247.51598 | D29: Дев'ятнадцять тисяч двісті сорок сім грн. 52 коп. | E29: в т.ч.ПДВ- | F29: 3207.919331
A30: 10.84.3 Сіль харчова(14410000-8 Камяна сіль) | B30: 2230 | C30: 721.6383708 | D30: Сімсот двадцять одна грн. 64 коп. | E30: в т.ч.ПДВ- | F30: 120.2730618
A31: 01.13.5 Коренеплоди та бульби їстівні з високим умістом крохмалю та інуліну(03212000-0 Картопля та сушені овочі) | B31: 2230 | C31: 48896.58453 | D31: Сорок вісім тисяч вісімсот дев'яносто шість грн. 58 коп. | E31: в т.ч.ПДВ- | F31: 8149.430755
A32: 01.13.4 Овочі коренеплодні,цибулинні та бульбоподібні(03221000-6 Овочі) | B32: 2230 | C32: 59638.65657 | D32: П'ятдесят дев'ять тисяч шістсот тридцять вісім грн. 66 коп. | E32: в т.ч.ПДВ- | F32: 9939.776096
A33: 43.21.1 Роботи електромонтажні(45310000-3 Електромонтажні роботи(повірка контурів заземлення) | B33: 2240 | C33: 745 | D33: Сімсот сорок п'ять грн. 0 коп. | E33: в т.ч.ПДВ- | F33: 124.1666667
A34: 38.11.6 Послуги підприємств щодо перевезення інших безпечних відходів(90512000-9 Послуги з перевезення сміття) | B34: 2240 | C34: 14807 | D34: Чотирнадцять тисяч вісімсот сім грн. 0 коп. | E34: в т.ч.ПДВ- | F34: 2467.833333
A35: Поточний ремонт будівель (45400000-1 Завершальні будівельні роботи) | B35: 2240 | C35: 120560 | D35: Сто двадцять тисяч п'ятсот шістдесят грн. 0 коп. | E35: в т.ч.ПДВ- | F35: 20093.33333
A36: 36.00.2 Обробляння та розподіляння води трубопроводами(65110000-7 Розподіл води) | B36: 2272 | C36: 57411.312 | D36: П'ятдесят сім тисяч чотириста одинадцять грн. 31 коп. | E36: в т.ч.ПДВ- | F36: 9568.552
A37: 37.00.1 Послуги каналізаційні(90400000-1 Послуги у сфері водовідведення) | B37: 2272 | C37: 48864.688 | D37: Сорок вісім тисяч вісімсот шістдесят чотири грн. 69 коп. | E37: в т.ч.ПДВ- | F37: 8144.114667
A38: 35.11.1 Енергія електрична (09310000-5 Електрична енергія) | B38: 2273 | C38: 131061 | D38: Сто тридцять одна тисячa шістдесят одна грн. 0 коп. | E38: в т.ч.ПДВ- | F38: 21843.5
A39: 61.10.1 Послуги щодо передавання даних і повідомлень(64211000-8 Послуги громадського телефонного звязку) | B39: 2240 | C39: 2655 | D39: Дві тисячі шістсот п'ятдесят п'ять грн. 0 коп. | E39: в т.ч.ПДВ- | F39: 442.5
A40: 64.99.1 Послуги фінансові, крім страхування та пенсійного забезпечення, інші, н.в.і.у( 66110000-4 Банківські послуги) | B40: 2240 | C40: 2514 | D40: Дві тисячі п'ятсот чотирнадцять грн. 0 коп. | E40: без ПДВ
A41: 91.01.1 Послуги бібліотек і архівів(92512000-3 Послуги архівів) | B41: 2240 | C41: 1119 | D41: Одна тисячa сто дев'ятнадцять грн. 0 коп. | E41: без ПДВ
A42: 71.20.1 Послуги щодо технічного випробування й аналізування(71632000-7 Послуги з технічних випробувань (повірка,атестація) | B42: 2240 | C42: 294 | D42: Двісті дев'яносто чотири грн. 0 коп. | E42: в т.ч.ПДВ- | F42: 49
A43: 58.29.1 Програмне забезпечення системне на фізичних носіях(48443000-5 Пакети програмного забезпечення для бухгалтерського обліку) | B43: 2240 | C43: 7392 | D43: Сім тисяч триста дев'яносто дві грн. 0 коп. | E43: в т.ч.ПДВ- | F43: 1232
A44: 13.93.1 Килими та килимові покриви(39533000-7 Килими) | B44: 2210 | D44: Нуль грн. 0 коп. | E44: в т.ч.ПДВ- | F44: 0
A45: 31.09.1 Меблі, інші (39161000-8 Меблі для дитячого садка) | B45: 3110 | C45: 81600 | D45: Вісімдесят одна тисячa шістсот грн. 0 коп. | E45: в т.ч.ПДВ- | F45: 13600
A46: 26.51.6 Інструменти та прилади вимірювальні,контрольні та випробувальні,інші(38421000-0 Прилади для вимірювання витрати рідин і газів) | B46: 3110 | C46: 13395 | D46: Тринадцять тисяч триста дев'яносто п'ять грн. 0 коп. | E46: в т.ч.ПДВ- | F46: 2232.5
A47: 85.60.1 Послуги освітянські допоміжні (80570000-0 Послуги з професійної підготовки у сфері підвищення кваліфікації) | B47: 2282 | C47: 349 | D47: Триста сорок дев'ять грн. 0 коп. | E47: в т.ч.ПДВ- | F47: 58.16666667
A49: Затверджений рішенням комітету з конкурсних торгів від__________№_______
A51: Голова комітету з конкурсних торгів _______________________Н.В.Дацюк
A52: (підпис) (ініціали та прізвище)
A53: МП

Sheet 34
A1: Додаток до річного плану закупівель на 2016 рік
A2: Дошкільний навчальний заклад № 34, 26243243
A3: (найменування замовника,код за ЄДРПОУ)
A4: Предмет закупівлі | B4: Код КЕКВ (для бюджетних коштів) | C4: Очікувана вартість предмета закупівлі | G4: Процедура закупівлі | H4: Орієнтовний початок проведення процедури закупівлі | I4: Примітки
A5: 1 | B5: 2 | C5: 3 | G5: 4 | H5: 5 | I5: 6
A6: 10.73.1 Макарони,локшина,кускус і подібні борошняні вироби(15851000-8 Борошняні вироби(макарони) | B6: 2230 | C6: 1402.235286 | D6: =SUMINWORDS(C6,"грн.","коп.") -> Одна тисячa чотириста дві грн. 24 коп. | E6: в т.ч.ПДВ- | F6: =C6/6 -> 233.705881
A7: 10.11.1 М'ясо великої рогатої худоби,свиней,овець,кіз,коней та ін..тварин родини конячих,свіже чиа охолоджене(15111000-9 М'ясо великої рогатої худоби родини бикових(яловичина) | B7: 2230 | C7: 51760.37383 | D7: =SUMINWORDS(C7,"грн.","коп.") -> П'ятдесят одна тисячa сімсот шістдесят грн. 37 коп. | E7: в т.ч.ПДВ- | F7: =C7/6 -> 8626.728971
A8: 10.12.1 М'ясо свійської птиці,свіже чи охолоджене(15112000-6 М'ясо свійської птиці) | B8: 2230 | C8: 17964.91266 | D8: =SUMINWORDS(C8,"грн.","коп.") -> Сімнадцять тисяч дев'ятсот шістдесят чотири грн. 91 коп. | E8: в т.ч.ПДВ- | F8: 2994.152111
A9: 10.12.4 Субпродукти харчові свійської птиці(15114000-0 Потрухи(печінка) | B9: 2230 | C9: 5038.157591 | D9: =SUMINWORDS(C9,"грн.","коп.") -> П'ять тисяч тридцять вісім грн. 16 коп. | E9: в т.ч.ПДВ- | F9: 839.6929318
A10: 10.13.1.Консерви та готові страви з м’яса,м’ясних субпродуктів чи крові (15130000-8 Мясопродукти (ковбаса,сосиски) | B10: 2230 | C10: 15127.09973 | D10: П'ятнадцять тисяч сто двадцять сім грн. 10 коп. | E10: в т.ч.ПДВ- | F10: 2521.183289
A11: 10.20.1 Продукція рибна,свіжа,охолоджена чи заморожена (15221000-3 Морожена риба) | B11: 2230 | C11: 35417.56044 | D11: Тридцять п'ять тисяч чотириста сімнадцять грн. 56 коп. | E11: в т.ч.ПДВ- | F11: 5902.926739
A12: 01.24.1 Яблука (03222000-3 Фрукти і горіхи(яблука,апельсини,лимони,ягоди) | B12: 2230 | C12: 14997.42545 | D12: Чотирнадцять тисяч дев'ятсот дев'яносто сім грн. 43 коп. | E12: в т.ч.ПДВ- | F12: 2499.570908
A13: 10.39.1 Плоди та овочі,оброблені та законсервовані,крім картоплі(15331000-7 Оброблені овочі(консерви овочеві) | B13: 2230 | C13: 10913.65505 | D13: Десять тисяч дев'ятсот тринадцять грн. 66 коп. | E13: в т.ч.ПДВ- | F13: 1818.942509
A14: 10.72.1 Вироби хлібобулочні,зниженої вологості,та кондитерські,борошняні,тривалого зберігання(15820000-2 Сухарі та печиво; пресерви з хлібобулочних і кондитерських виробів (печиво) | B14: 2230 | C14: 3561.791624 | D14: Три тисячі п'ятсот шістдесят одна грн. 79 коп. | E14: в т.ч.ПДВ- | F14: 593.6319373
A15: 10.71.1 Вироби хлібобулочні,кондитерські та кулінарні,борошняні,нетривалого зберігання(15810000-9 Хлібопродукти, свіжовипечені хлібобулочні та кондитерські вироби) | B15: 2230 | C15: 13831.06385 | D15: Тринадцять тисяч вісімсот тридцять одна грн. 6 коп. | E15: в т.ч.ПДВ- | F15: 2305.177309
A16: 10.51.1 Молоко та вершки,рідинні,оброблені(15511000-3 Молоко) | B16: 2230 | C16: 56693.63473 | D16: П'ятдесят шість тисяч шістсот дев'яносто три грн. 63 коп. | E16: в т.ч.ПДВ- | F16: 9448.939121
A17: 10.51.5 Продукти молочні, інші (15550000-8 Молочні продукти різні (кефір,сметана) | B17: 2230 | C17: 10337.55001 | D17: Десять тисяч триста тридцять сім грн. 55 коп. | E17: в т.ч.ПДВ- | F17: 1722.925001
A18: 10.51.4 Сир сичужний та кисломолочний сир(15540000-5 Сирні продукти) | B18: 2230 | C18: 39188.38205 | D18: Тридцять дев'ять тисяч сто вісімдесят вісім грн. 38 коп. | E18: в т.ч.ПДВ- | F18: 6531.397008
A19: 10.32.1 Соки фруктові та овочеві (15321000-4 Фруктові соки) | B19: 2230 | C19: 10393.69944 | D19: Десять тисяч триста дев'яносто три грн. 70 коп. | E19: в т.ч.ПДВ- | F19: 1732.283239
A20: 10.61.2 Борошно зернових і овочевих культур;їхні суміші(15612000-1 Борошно зернових та овочевих культур і супутня продукція) | B20: 2230 | C20: 2254.253971 | D20: Дві тисячі двісті п'ятдесят чотири грн. 25 коп. | E20: в т.ч.ПДВ- | F20: 375.7089952
A21: 10.61.1 Рис напівобрушений чи повністю обрушений,або лущений чи дроблений(15614000-5 Рис оброблений) | B21: 2230 | C21: 1120.125378 | D21: Одна тисячa сто двадцять грн. 13 коп. | E21: в т.ч.ПДВ- | F21: 186.687563
A22: 0.81.1 Цукор-сирець,тростинний і очищений тростинний чи буряковий цукор (сахароза);меляса (15831000-2 Цукор) | B22: 2230 | C22: 10160.77549 | D22: Десять тисяч сто шістдесят грн. 78 коп. | E22: в т.ч.ПДВ- | F22: 1693.462582
A23: 10.39.2 Плоди й горіхи,оброблені та законсервовані(15332000-4 Оброблені фрукти та горіхи(повидло,сухофрукти) | B23: 2230 | C23: 6789.339625 | D23: Шість тисяч сімсот вісімдесят дев'ять грн. 34 коп. | E23: в т.ч.ПДВ- | F23: 1131.556604
A24: 10.51.3 Масло вершкове та молочні пасти(15530000-2 Вершкове масло) | B24: 2230 | C24: 17665.95043 | D24: Сімнадцять тисяч шістсот шістдесят п'ять грн. 95 коп. | E24: в т.ч.ПДВ- | F24: 2944.325071
A25: 01.47.2 Яйця у шкаралупі свіжі (03142000-8 Продукція тваринництва (03142500-3 Яйця) | B25: 2230 | C25: 13384.57906 | D25: Тринадцять тисяч триста вісімдесят чотири грн. 58 коп. | E25: в т.ч.ПДВ- | F25: 2230.763177
A26: 10.41.5 Олії рафіновані(15421000-5 Рафіновані олії) | B26: 2230 | C26: 4028.720591 | D26: Чотири тисячі двадцять вісім грн. 72 коп. | E26: в т.ч.ПДВ- | F26: 671.4534318
A27: 10.61.3 Крупи,крупка,гранули та інші продукти з зерна зернових культур(15613000-8 Продукція із зерна зернових культур(крупи) | B27: 2230 | C27: 4220.391941 | D27: Чотири тисячі двісті двадцять грн. 39 коп. | E27: в т.ч.ПДВ- | F27: 703.3986569
A28: 10.82.1 Какао терте,какао-масло,жири й олія,какао-порошок(15841000-5 Какао) | B28: 2230 | C28: 5030.581414 | D28: П'ять тисяч тридцять грн. 58 коп. | E28: в т.ч.ПДВ- | F28: 838.4302357
A29: 10.83.1 Чай і кава,оброблені(15860000-4 Кава, чай та супутня продукція) | B29: 2230 | C29: 5093.687271 | D29: П'ять тисяч дев'яносто три грн. 69 коп. | E29: в т.ч.ПДВ- | F29: 848.9478784
A30: 10.84.3 Сіль харчова(14410000-8 Камяна сіль) | B30: 2230 | C30: 194.9725408 | D30: Сто дев'яносто чотири грн. 97 коп. | E30: в т.ч.ПДВ- | F30: 32.49542346
A31: 01.13.5 Коренеплоди та бульби їстівні з високим умістом крохмалю та інуліну(03212000-0 Картопля та сушені овочі) | B31: 2230 | C31: 13993.37079 | D31: Тринадцять тисяч дев'ятсот дев'яносто три грн. 37 коп. | E31: в т.ч.ПДВ- | F31: 2332.228465
A32: 01.13.4 Овочі коренеплодні,цибулинні та бульбоподібні(03221000-6 Овочі) | B32: 2230 | C32: 17399.70966 | D32: Сімнадцять тисяч триста дев'яносто дев'ять грн. 71 коп. | E32: в т.ч.ПДВ- | F32: 2899.95161
A33: 43.21.1 Роботи електромонтажні(45310000-3 Електромонтажні роботи(повірка контурів заземлення) | B33: 2240 | C33: 745 | D33: Сімсот сорок п'ять грн. 0 коп. | E33: в т.ч.ПДВ- | F33: 124.1666667
A34: 38.11.6 Послуги підприємств щодо перевезення інших безпечних відходів(90512000-9 Послуги з перевезення сміття) | B34: 2240 | C34: 8229 | D34: Вісім тисяч двісті двадцять дев'ять грн. 0 коп. | E34: в т.ч.ПДВ- | F34: 1371.5
A35: Капітальний ремонт будівель (45000000-7 Будівельні роботи) | B35: 3132 | C35: 75000 | D35: Сімдесят п'ять тисяч грн. 0 коп. | E35: в т.ч.ПДВ- | F35: 12500
A36: 36.00.2 Обробляння та розподіляння води трубопроводами(65110000-7 Розподіл води) | B36: 2272 | C36: 30305.352 | D36: Тридцять тисяч триста п'ять грн. 35 коп. | E36: в т.ч.ПДВ- | F36: 5050.892
A37: 37.00.1 Послуги каналізаційні(90400000-1 Послуги у сфері водовідведення) | B37: 2272 | C37: 25730.648 | D37: Двадцять п'ять тисяч сімсот тридцять грн. 65 коп. | E37: в т.ч.ПДВ- | F37: 4288.441333
A38: 35.11.1 Енергія електрична (09310000-5 Електрична енергія) | B38: 2273 | C38: 27517 | D38: Двадцять сім тисяч п'ятсот сімнадцять грн. 0 коп. | E38: в т.ч.ПДВ- | F38: 4586.166667
A39: 61.10.1 Послуги щодо передавання даних і повідомлень(64211000-8 Послуги громадського телефонного звязку) | B39: 2240 | C39: 1641 | D39: Одна тисячa шістсот сорок одна грн. 0 коп. | E39: в т.ч.ПДВ- | F39: 273.5
A40: 28.99.3 Машини й устаткування спеціальної призначеності,н.в.і.у.(37535000-7 Каруселі,гойдалки,тири та інші атракціони) | B40: 3110 | C40: 29300 | D40: Двадцять дев'ять тисяч триста грн. 0 коп. | E40: в т.ч.ПДВ- | F40: 4883.333333
A41: 91.01.1 Послуги бібліотек і архівів(92512000-3 Послуги архівів) | B41: 2240 | C41: 474 | D41: Чотириста сімдесят чотири грн. 0 коп. | E41: без ПДВ
A42: 58.29.1 Програмне забезпечення системне на фізичних носіях(48443000-5 Пакети програмного забезпечення для бухгалтерського обліку) | B42: 2240 | C42: 7392 | D42: Сім тисяч триста дев'яносто дві грн. 0 коп. | E42: в т.ч.ПДВ- | F42: 1232
A43: 85.60.1 Послуги освітянські допоміжні (80570000-0 Послуги з професійної підготовки у сфері підвищення кваліфікації) | B43: 2282 | C43: 349 | D43: Триста сорок дев'ять грн. 0 коп. | E43: в т.ч.ПДВ- | F43: 58.16666667
A44: 06.20.1 Газ природний,скраплений або в газоподібному стані (09123000-7 Природний газ) | B44: 2274 | C44: 30144 | D44: Тридцять тисяч сто сорок чотири грн. 0 коп. | E44: в т.ч.ПДВ- | F44: 5024
A46: Затверджений рішенням комітету з конкурсних торгів від__________№_______
A48: Голова комітету з конкурсних торгів _______________________Н.П.Назарчук
A49: (підпис) (ініціали та прізвище)
A50: МП

Sheet 35
A1: Додаток до річного плану закупівель на 2016 рік
A2: Дошкільний навчальний заклад № 35, 26243467
A3: (найменування замовника,код за ЄДРПОУ)
A4: Предмет закупівлі | B4: Код КЕКВ (для бюджетних коштів) | C4: Очікувана вартість предмета закупівлі | G4: Процедура закупівлі | H4: Орієнтовний початок проведення процедури закупівлі | I4: Примітки
A5: 1 | B5: 2 | C5: 3 | G5: 4 | H5: 5 | I5: 6
A6: 10.73.1 Макарони,локшина,кускус і подібні борошняні вироби(15851000-8 Борошняні вироби(макарони) | B6: 2230 | C6: 2111.513207 | D6: =SUMINWORDS(C6,"грн.","коп.") -> Дві тисячі сто одинадцять грн. 51 коп. | E6: в т.ч.ПДВ- | F6: =C6/6 -> 351.9188678
A7: 10.11.1 М'ясо великої рогатої худоби,свиней,овець,кіз,коней та ін..тварин родини конячих,свіже чиа охолоджене(15111000-9 М'ясо великої рогатої худоби родини бикових(яловичина) | B7: 2230 | C7: 75014.47018 | D7: =SUMINWORDS(C7,"грн.","коп.") -> Сімдесят п'ять тисяч чотирнадцять грн. 47 коп. | E7: в т.ч.ПДВ- | F7: =C7/6 -> 12502.4117
A8: 10.12.1 М'ясо свійської птиці,свіже чи охолоджене(15112000-6 М'ясо свійської птиці) | B8: 2230 | C8: 27509.93639 | D8: =SUMINWORDS(C8,"грн.","коп.") -> Двадцять сім тисяч п'ятсот дев'ять грн. 94 коп. | E8: в т.ч.ПДВ- | F8: 4584.989398
A9: 10.12.4 Субпродукти харчові свійської птиці(15114000-0 Потрухи(печінка) | B9: 2230 | C9: 7816.952165 | D9: =SUMINWORDS(C9,"грн.","коп.") -> Сім тисяч вісімсот шістнадцять грн. 95 коп. | E9: в т.ч.ПДВ- | F9: 1302.825361
A10: 10.13.1.Консерви та готові страви з м’яса,м’ясних субпродуктів чи крові (15130000-8 Мясопродукти (ковбаса,сосиски) | B10: 2230 | C10: 23470.44785 | D10: Двадцять три тисячі чотириста сімдесят грн. 45 коп. | E10: в т.ч.ПДВ- | F10: 3911.741309
A11: 10.20.1 Продукція рибна,свіжа,охолоджена чи заморожена (15221000-3 Морожена риба) | B11: 2230 | C11: 55275.77325 | D11: П'ятдесят п'ять тисяч двісті сімдесят п'ять грн. 77 коп. | E11: в т.ч.ПДВ- | F11: 9212.628875
A12: 01.24.1 Яблука (03222000-3 Фрукти і горіхи(яблука,апельсини,лимони,ягоди) | B12: 2230 | C12: 23320.94152 | D12: Двадцять три тисячі триста двадцять грн. 94 коп. | E12: в т.ч.ПДВ- | F12: 3886.823586
A13: 10.39.1 Плоди та овочі,оброблені та законсервовані,крім картоплі(15331000-7 Оброблені овочі(консерви овочеві) | B13: 2230 | C13: 16218.91531 | D13: Шістнадцять тисяч двісті вісімнадцять грн. 92 коп. | E13: в т.ч.ПДВ- | F13: 2703.152551
A14: 10.72.1 Вироби хлібобулочні,зниженої вологості,та кондитерські,борошняні,тривалого зберігання(15820000-2 Сухарі та печиво; пресерви з хлібобулочних і кондитерських виробів (печиво) | B14: 2230 | C14: 5709.321517 | D14: П'ять тисяч сімсот дев'ять грн. 32 коп. | E14: в т.ч.ПДВ- | F14: 951.5535861
A15: 10.71.1 Вироби хлібобулочні,кондитерські та кулінарні,борошняні,нетривалого зберігання(15810000-9 Хлібопродукти, свіжовипечені хлібобулочні та кондитерські вироби) | B15: 2230 | C15: 20943.7271 | D15: Двадцять тисяч дев'ятсот сорок три грн. 73 коп. | E15: в т.ч.ПДВ- | F15: 3490.621184
A16: 10.51.1 Молоко та вершки,рідинні,оброблені(15511000-3 Молоко) | B16: 2230 | C16: 82327.0691 | D16: Вісімдесят дві тисячі триста двадцять сім грн. 7 коп. | E16: в т.ч.ПДВ- | F16: 13721.17818
A17: 10.51.5 Продукти молочні, інші (15550000-8 Молочні продукти різні (кефір,сметана) | B17: 2230 | C17: 15608.05943 | D17: П'ятнадцять тисяч шістсот вісім грн. 6 коп. | E17: в т.ч.ПДВ- | F17: 2601.343238
A18: 10.51.4 Сир сичужний та кисломолочний сир(15540000-5 Сирні продукти) | B18: 2230 | C18: 58147.36455 | D18: П'ятдесят вісім тисяч сто сорок сім грн. 36 коп. | E18: в т.ч.ПДВ- | F18: 9691.227424
A19: 10.32.1 Соки фруктові та овочеві (15321000-4 Фруктові соки) | B19: 2230 | C19: 15524.69241 | D19: П'ятнадцять тисяч п'ятсот двадцять чотири грн. 69 коп. | E19: в т.ч.ПДВ- | F19: 2587.448735
A20: 10.61.2 Борошно зернових і овочевих культур;їхні суміші(15612000-1 Борошно зернових та овочевих культур і супутня продукція) | B20: 2230 | C20: 3434.342512 | D20: Три тисячі чотириста тридцять чотири грн. 34 коп. | E20: в т.ч.ПДВ- | F20: 572.3904187
A21: 10.61.1 Рис напівобрушений чи повністю обрушений,або лущений чи дроблений(15614000-5 Рис оброблений) | B21: 2230 | C21: 1673.090708 | D21: Одна тисячa шістсот сімдесят три грн. 9 коп. | E21: в т.ч.ПДВ- | F21: 278.8484514
A22: 0.81.1 Цукор-сирець,тростинний і очищений тростинний чи буряковий цукор (сахароза);меляса (15831000-2 Цукор) | B22: 2230 | C22: 15017.92822 | D22: П'ятнадцять тисяч сімнадцять грн. 93 коп. | E22: в т.ч.ПДВ- | F22: 2502.988037
A23: 10.39.2 Плоди й горіхи,оброблені та законсервовані(15332000-4 Оброблені фрукти та горіхи(повидло,сухофрукти) | B23: 2230 | C23: 9844.722872 | D23: Дев'ять тисяч вісімсот сорок чотири грн. 72 коп. | E23: в т.ч.ПДВ- | F23: 1640.787145
A24: 10.51.3 Масло вершкове та молочні пасти(15530000-2 Вершкове масло) | B24: 2230 | C24: 27052.13109 | D24: Двадцять сім тисяч п'ятдесят дві грн. 13 коп. | E24: в т.ч.ПДВ- | F24: 4508.688516
A25: 01.47.2 Яйця у шкаралупі свіжі (03142000-8 Продукція тваринництва (03142500-3 Яйця) | B25: 2230 | C25: 20766.84034 | D25: Двадцять тисяч сімсот шістдесят шість грн. 84 коп. | E25: в т.ч.ПДВ- | F25: 3461.140057
A26: 10.41.5 Олії рафіновані(15421000-5 Рафіновані олії) | B26: 2230 | C26: 6066.525937 | D26: Шість тисяч шістдесят шість грн. 53 коп. | E26: в т.ч.ПДВ- | F26: 1011.087656
A27: 10.61.3 Крупи,крупка,гранули та інші продукти з зерна зернових культур(15613000-8 Продукція із зерна зернових культур(крупи) | B27: 2230 | C27: 6323.308656 | D27: Шість тисяч триста двадцять три грн. 31 коп. | E27: в т.ч.ПДВ- | F27: 1053.884776
A28: 10.82.1 Какао терте,какао-масло,жири й олія,какао-порошок(15841000-5 Какао) | B28: 2230 | C28: 7805.19735 | D28: Сім тисяч вісімсот п'ять грн. 20 коп. | E28: в т.ч.ПДВ- | F28: 1300.866225
A29: 10.83.1 Чай і кава,оброблені(15860000-4 Кава, чай та супутня продукція) | B29: 2230 | C29: 8209.543446 | D29: Вісім тисяч двісті дев'ять грн. 54 коп. | E29: в т.ч.ПДВ- | F29: 1368.257241
A30: 10.84.3 Сіль харчова(14410000-8 Камяна сіль) | B30: 2230 | C30: 308.3757706 | D30: Триста вісім грн. 38 коп. | E30: в т.ч.ПДВ- | F30: 51.39596177
A31: 01.13.5 Коренеплоди та бульби їстівні з високим умістом крохмалю та інуліну(03212000-0 Картопля та сушені овочі) | B31: 2230 | C31: 21008.20349 | D31: Двадцять одна тисячa вісім грн. 20 коп. | E31: в т.ч.ПДВ- | F31: 3501.367248
A32: 01.13.4 Овочі коренеплодні,цибулинні та бульбоподібні(03221000-6 Овочі) | B32: 2230 | C32: 25671.60564 | D32: Двадцять п'ять тисяч шістсот сімдесят одна грн. 61 коп. | E32: в т.ч.ПДВ- | F32: 4278.600939
A33: 43.21.1 Роботи електромонтажні(45310000-3 Електромонтажні роботи(повірка контурів заземлення) | B33: 2240 | C33: 745 | D33: Сімсот сорок п'ять грн. 0 коп. | E33: в т.ч.ПДВ- | F33: 124.1666667
A34: 38.11.6 Послуги підприємств щодо перевезення інших безпечних відходів(90512000-9 Послуги з перевезення сміття) | B34: 2240 | C34: 7430 | D34: Сім тисяч чотириста тридцять грн. 0 коп. | E34: в т.ч.ПДВ- | F34: 1238.333333
A35: 64.99.1 Послуги фінансові, крім страхування та пенсійного забезпечення, інші, н.в.і.у( 66110000-4 Банківські послуги) | B35: 2240 | C35: 2108 | D35: Дві тисячі сто вісім грн. 0 коп. | E35: в т.ч.ПДВ- | F35: 351.3333333
A36: 36.00.2 Обробляння та розподіляння води трубопроводами(65110000-7 Розподіл води) | B36: 2272 | C36: 16174.704 | D36: Шістнадцять тисяч сто сімдесят чотири грн. 70 коп. | E36: в т.ч.ПДВ- | F36: 2695.784
A37: 37.00.1 Послуги каналізаційні(90400000-1 Послуги у сфері водовідведення) | B37: 2272 | C37: 15285.296 | D37: П'ятнадцять тисяч двісті вісімдесят п'ять грн. 30 коп. | E37: в т.ч.ПДВ- | F37: 2547.549333
A38: 35.11.1 Енергія електрична (09310000-5 Електрична енергія) | B38: 2273 | C38: 85846 | D38: Вісімдесят п'ять тисяч вісімсот сорок шість грн. 0 коп. | E38: в т.ч.ПДВ- | F38: 14307.66667
A39: 61.10.1 Послуги щодо передавання даних і повідомлень(64211000-8 Послуги громадського телефонного звязку) | B39: 2240 | C39: 1594 | D39: Одна тисячa п'ятсот дев'яносто чотири грн. 0 коп. | E39: в т.ч.ПДВ- | F39: 265.6666667
A40: Поточний ремонт будівель (45400000-1 Завершальні будівельні роботи) | B40: 2240 | C40: 27600 | D40: Двадцять сім тисяч шістсот грн. 0 коп. | E40: в т.ч.ПДВ- | F40: 4600
A41: 91.01.1 Послуги бібліотек і архівів(92512000-3 Послуги архівів) | B41: 2240 | C41: 817 | D41: Вісімсот сімнадцять грн. 0 коп. | E41: без ПДВ
A42: 71.20.1 Послуги щодо технічного випробування й аналізування(71632000-7 Послуги з технічних випробувань (повірка,атестація) | B42: 2240 | C42: 1447 | D42: Одна тисячa чотириста сорок сім грн. 0 коп. | E42: в т.ч.ПДВ- | F42: 241.1666667
A43: 58.29.1 Програмне забезпечення системне на фізичних носіях(48443000-5 Пакети програмного забезпечення для бухгалтерського обліку) | B43: 2240 | C43: 7392 | D43: Сім тисяч триста дев'яносто дві грн. 0 коп. | E43: в т.ч.ПДВ- | F43: 1232
A44: Капітальний ремонт будівель (45000000-7 Будівельні роботи) | B44: 3132 | C44: 178725 | D44: Сто сімдесят вісім тисяч сімсот двадцять п'ять грн. 0 коп. | E44: в т.ч.ПДВ- | F44: 29787.5
A45: 31.09.1 Меблі, інші (39161000-8 Меблі для дитячого садка) | B45: 2210 | C45: 20400 | D45: Двадцять тисяч чотириста грн. 0 коп. | E45: в т.ч.ПДВ- | F45: 3400
A46: 85.60.1 Послуги освітянські допоміжні (80570000-0 Послуги з професійної підготовки у сфері підвищення кваліфікації) | B46: 2282 | C46: 349 | D46: Триста сорок дев'ять грн. 0 коп. | E46: в т.ч.ПДВ- | F46: 58.16666667
A48: Затверджений рішенням комітету з конкурсних торгів від__________№_______
A50: Голова комітету з конкурсних торгів _______________________Н.С.Горобчук
A51: (підпис) (ініціали та прізвище)
A52: МП

Sheet 36
A1: Додаток до річного плану закупівель на 2016 рік
A2: Дошкільний навчальний заклад № 36, 01276276
A3: (найменування замовника,код за ЄДРПОУ)
A4: Предмет закупівлі | B4: Код КЕКВ (для бюджетних коштів) | C4: Очікувана вартість предмета закупівлі | G4: Процедура закупівлі | H4: Орієнтовний початок проведення процедури закупівлі | I4: Примітки
A5: 1 | B5: 2 | C5: 3 | G5: 4 | H5: 5 | I5: 6
A6: 10.73.1 Макарони,локшина,кускус і подібні борошняні вироби(15851000-8 Борошняні вироби(макарони) | B6: 2230 | C6: 4436.349113 | D6: =SUMINWORDS(C6,"грн.","коп.") -> Чотири тисячі чотириста тридцять шість грн. 35 коп. | E6: в т.ч.ПДВ- | F6: =C6/6 -> 739.3915189
A7: 10.11.1 М'ясо великої рогатої худоби,свиней,овець,кіз,коней та ін..тварин родини конячих,свіже чиа охолоджене(15111000-9 М'ясо великої рогатої худоби родини бикових(яловичина) | B7: 2230 | C7: 153807.1263 | D7: =SUMINWORDS(C7,"грн.","коп.") -> Сто п'ятдесят три тисячі вісімсот сім грн. 13 коп. | E7: в т.ч.ПДВ- | F7: =C7/6 -> 25634.52105
A8: 10.12.1 М'ясо свійської птиці,свіже чи охолоджене(15112000-6 М'ясо свійської птиці) | B8: 2230 | C8: 57729.59213 | D8: =SUMINWORDS(C8,"грн.","коп.") -> П'ятдесят сім тисяч сімсот двадцять дев'ять грн. 59 коп. | E8: в т.ч.ПДВ- | F8: 9621.598689
A9: 10.12.4 Субпродукти харчові свійської птиці(15114000-0 Потрухи(печінка) | B9: 2230 | C9: 16388.64555 | D9: =SUMINWORDS(C9,"грн.","коп.") -> Шістнадцять тисяч триста вісімдесят вісім грн. 65 коп. | E9: в т.ч.ПДВ- | F9: 2731.440926
A10: 10.13.1.Консерви та готові страви з м’яса,м’ясних субпродуктів чи крові (15130000-8 Мясопродукти (ковбаса,сосиски) | B10: 2230 | C10: 49207.01096 | D10: Сорок дев'ять тисяч двісті сім грн. 1 коп. | E10: в т.ч.ПДВ- | F10: 8201.168493
A11: 10.20.1 Продукція рибна,свіжа,охолоджена чи заморожена (15221000-3 Морожена риба) | B11: 2230 | C11: 115840.8154 | D11: Сто п'ятнадцять тисяч вісімсот сорок грн. 82 коп. | E11: в т.ч.ПДВ- | F11: 19306.80256
A12: 01.24.1 Яблука (03222000-3 Фрукти і горіхи(яблука,апельсини,лимони,ягоди) | B12: 2230 | C12: 48885.94393 | D12: Сорок вісім тисяч вісімсот вісімдесят п'ять грн. 94 коп. | E12: в т.ч.ПДВ- | F12: 8147.657321
A13: 10.39.1 Плоди та овочі,оброблені та законсервовані,крім картоплі(15331000-7 Оброблені овочі(консерви овочеві) | B13: 2230 | C13: 34109.06708 | D13: Тридцять чотири тисячі сто дев'ять грн. 7 коп. | E13: в т.ч.ПДВ- | F13: 5684.844514
A14: 10.72.1 Вироби хлібобулочні,зниженої вологості,та кондитерські,борошняні,тривалого зберігання(15820000-2 Сухарі та печиво; пресерви з хлібобулочних і кондитерських виробів (печиво) | B14: 2230 | C14: 11942.91016 | D14: Одинадцять тисяч дев'ятсот сорок дві грн. 91 коп. | E14: в т.ч.ПДВ- | F14: 1990.485027
A15: 10.71.1 Вироби хлібобулочні,кондитерські та кулінарні,борошняні,нетривалого зберігання(15810000-9 Хлібопродукти, свіжовипечені хлібобулочні та кондитерські вироби) | B15: 2230 | C15: 43985.64891 | D15: Сорок три тисячі дев'ятсот вісімдесят п'ять грн. 65 коп. | E15: в т.ч.ПДВ- | F15: 7330.941484
A16: 10.51.1 Молоко та вершки,рідинні,оброблені(15511000-3 Молоко) | B16: 2230 | C16: 173433.724 | D16: Сто сімдесят три тисячі чотириста тридцять три грн. 72 коп. | E16: в т.ч.ПДВ- | F16: 28905.62067
A17: 10.51.5 Продукти молочні, інші (15550000-8 Молочні продукти різні (кефір,сметана) | B17: 2230 | C17: 32786.66094 | D17: Тридцять дві тисячі сімсот вісімдесят шість грн. 66 коп. | E17: в т.ч.ПДВ- | F17: 5464.443489
A18: 10.51.4 Сир сичужний та кисломолочний сир(15540000-5 Сирні продукти) | B18: 2230 | C18: 122300.374 | D18: Сто двадцять дві тисячі триста грн. 37 коп. | E18: в т.ч.ПДВ- | F18: 20383.39567
A19: 10.32.1 Соки фруктові та овочеві (15321000-4 Фруктові соки) | B19: 2230 | C19: 32637.00782 | D19: Тридцять дві тисячі шістсот тридцять сім грн. 1 коп. | E19: в т.ч.ПДВ- | F19: 5439.501303
A20: 10.61.2 Борошно зернових і овочевих культур;їхні суміші(15612000-1 Борошно зернових та овочевих культур і супутня продукція) | B20: 2230 | C20: 7209.599642 | D20: Сім тисяч двісті дев'ять грн. 60 коп. | E20: в т.ч.ПДВ- | F20: 1201.59994
A21: 10.61.1 Рис напівобрушений чи повністю обрушений,або лущений чи дроблений(15614000-5 Рис оброблений) | B21: 2230 | C21: 3517.278996 | D21: Три тисячі п'ятсот сімнадцять грн. 28 коп. | E21: в т.ч.ПДВ- | F21: 586.213166
A22: 0.81.1 Цукор-сирець,тростинний і очищений тростинний чи буряковий цукор (сахароза);меляса (15831000-2 Цукор) | B22: 2230 | C22: 31595.97862 | D22: Тридцять одна тисячa п'ятсот дев'яносто п'ять грн. 98 коп. | E22: в т.ч.ПДВ- | F22: 5265.996436
A23: 10.39.2 Плоди й горіхи,оброблені та законсервовані(15332000-4 Оброблені фрукти та горіхи(повидло,сухофрукти) | B23: 2230 | C23: 20741.57352 | D23: Двадцять тисяч сімсот сорок одна грн. 57 коп. | E23: в т.ч.ПДВ- | F23: 3456.92892
A24: 10.51.3 Масло вершкове та молочні пасти(15530000-2 Вершкове масло) | B24: 2230 | C24: 56768.88788 | D24: П'ятдесят шість тисяч сімсот шістдесят вісім грн. 89 коп. | E24: в т.ч.ПДВ- | F24: 9461.481313
A25: 01.47.2 Яйця у шкаралупі свіжі (03142000-8 Продукція тваринництва (03142500-3 Яйця) | B25: 2230 | C25: 43538.75761 | D25: Сорок три тисячі п'ятсот тридцять вісім грн. 76 коп. | E25: в т.ч.ПДВ- | F25: 7256.459602
A26: 10.41.5 Олії рафіновані(15421000-5 Рафіновані олії) | B26: 2230 | C26: 12745.94299 | D26: Дванадцять тисяч сімсот сорок п'ять грн. 94 коп. | E26: в т.ч.ПДВ- | F26: 2124.323832
A27: 10.61.3 Крупи,крупка,гранули та інші продукти з зерна зернових культур(15613000-8 Продукція із зерна зернових культур(крупи) | B27: 2230 | C27: 13290.28658 | D27: Тринадцять тисяч двісті дев'яносто грн. 29 коп. | E27: в т.ч.ПДВ- | F27: 2215.047764
A28: 10.82.1 Какао терте,какао-масло,жири й олія,какао-порошок(15841000-5 Какао) | B28: 2230 | C28: 16364.00097 | D28: Шістнадцять тисяч триста шістдесят чотири грн. 0 коп. | E28: в т.ч.ПДВ- | F28: 2727.333496
A29: 10.83.1 Чай і кава,оброблені(15860000-4 Кава, чай та супутня продукція) | B29: 2230 | C29: 17166.56408 | D29: Сімнадцять тисяч сто шістдесят шість грн. 56 коп. | E29: в т.ч.ПДВ- | F29: 2861.094014
A30: 10.84.3 Сіль харчова(14410000-8 Камяна сіль) | B30: 2230 | C30: 645.6610997 | D30: Шістсот сорок п'ять грн. 66 коп. | E30: в т.ч.ПДВ- | F30: 107.6101833
A31: 01.13.5 Коренеплоди та бульби їстівні з високим умістом крохмалю та інуліну(03212000-0 Картопля та сушені овочі) | B31: 2230 | C31: 44148.44315 | D31: Сорок чотири тисячі сто сорок вісім грн. 44 коп. | E31: в т.ч.ПДВ- | F31: 7358.073858
A32: 01.13.4 Овочі коренеплодні,цибулинні та бульбоподібні(03221000-6 Овочі) | B32: 2230 | C32: 54017.14857 | D32: П'ятдесят чотири тисячі сімнадцять грн. 15 коп. | E32: в т.ч.ПДВ- | F32: 9002.858095
A33: 43.21.1 Роботи електромонтажні(45310000-3 Електромонтажні роботи(повірка контурів заземлення) | B33: 2240 | C33: 745 | D33: Сімсот сорок п'ять грн. 0 коп. | E33: в т.ч.ПДВ- | F33: 124.1666667
A34: 38.11.6 Послуги підприємств щодо перевезення інших безпечних відходів(90512000-9 Послуги з перевезення сміття) | B34: 2240 | C34: 10071 | D34: Десять тисяч сімдесят одна грн. 0 коп. | E34: в т.ч.ПДВ- | F34: 1678.5
A35: Поточний ремонт будівель (45400000-1 Завершальні будівельні роботи) | B35: 2240 | C35: 81700 | D35: Вісімдесят одна тисячa сімсот грн. 0 коп. | E35: в т.ч.ПДВ- | F35: 13616.66667
A36: 36.00.2 Обробляння та розподіляння води трубопроводами(65110000-7 Розподіл води) | B36: 2272 | C36: 31940.5968 | D36: Тридцять одна тисячa дев'ятсот сорок грн. 60 коп. | E36: в т.ч.ПДВ- | F36: 5323.4328
A37: 37.00.1 Послуги каналізаційні(90400000-1 Послуги у сфері водовідведення) | B37: 2272 | C37: 38964.4032 | D37: Тридцять вісім тисяч дев'ятсот шістдесят чотири грн. 40 коп. | E37: в т.ч.ПДВ- | F37: 6494.0672
A38: 35.11.1 Енергія електрична (09310000-5 Електрична енергія) | B38: 2273 | C38: 128781 | D38: Сто двадцять вісім тисяч сімсот вісімдесят одна грн. 0 коп. | E38: в т.ч.ПДВ- | F38: 21463.5
A39: 61.10.1 Послуги щодо передавання даних і повідомлень(64211000-8 Послуги громадського телефонного звязку) | B39: 2240 | C39: 1594 | D39: Одна тисячa п'ятсот дев'яносто чотири грн. 0 коп. | E39: в т.ч.ПДВ- | F39: 265.6666667
A40: 85.60.1 Послуги освітянські допоміжні (80570000-0 Послуги з професійної підготовки у сфері підвищення кваліфікації) | B40: 2282 | C40: 1649 | D40: Одна тисячa шістсот сорок дев'ять грн. 0 коп. | E40: в т.ч.ПДВ- | F40: 274.8333333
A41: 91.01.1 Послуги бібліотек і архівів(92512000-3 Послуги архівів) | B41: 2240 | C41: 1093 | D41: Одна тисячa дев'яносто три грн. 0 коп. | E41: без ПДВ
A42: 71.20.1 Послуги щодо технічного випробування й аналізування(71632000-7 Послуги з технічних випробувань (повірка,атестація) | B42: 2240 | C42: 1741 | D42: Одна тисячa сімсот сорок одна грн. 0 коп. | E42: в т.ч.ПДВ- | F42: 290.1666667
A43: 58.29.1 Програмне забезпечення системне на фізичних носіях(48443000-5 Пакети програмного забезпечення для бухгалтерського обліку) | B43: 2240 | C43: 7392 | D43: Сім тисяч триста дев'яносто дві грн. 0 коп. | E43: в т.ч.ПДВ- | F43: 1232
A44: 31.09.1 Меблі, інші (39161000-8 Меблі для дитячого садка) | B44: 2210 | C44: 102000 | D44: Сто дві тисячі грн. 0 коп. | E44: в т.ч.ПДВ- | F44: 17000
A46: Затверджений рішенням комітету з конкурсних торгів від__________№_______
A48: Голова комітету з конкурсних торгів _______________________С.М.Потєєва
A49: (підпис) (ініціали та прізвище)
A50: МП

Sheet 38
A1: Додаток до річного плану закупівель на 2016 рік
A2: Дошкільний навчальний заклад № 38, 26243585
A3: (найменування замовника,код за ЄДРПОУ)
A4: Предмет закупівлі | B4: Код КЕКВ (для бюджетних коштів) | C4: Очікувана вартість предмета закупівлі | G4: Процедура закупівлі | H4: Орієнтовний початок проведення процедури закупівлі | I4: Примітки
A5: 1 | B5: 2 | C5: 3 | G5: 4 | H5: 5 | I5: 6
A6: 10.73.1 Макарони,локшина,кускус і подібні борошняні вироби(15851000-8 Борошняні вироби(макарони) | B6: 2230 | C6: 4776.365499 | D6: =SUMINWORDS(C6,"грн.","коп.") -> Чотири тисячі сімсот сімдесят шість грн. 37 коп. | E6: в т.ч.ПДВ- | F6: =C6/6 -> 796.0609166
A7: 10.11.1 М'ясо великої рогатої худоби,свиней,овець,кіз,коней та ін..тварин родини конячих,свіже чиа охолоджене(15111000-9 М'ясо великої рогатої худоби родини бикових(яловичина) | B7: 2230 | C7: 156891.7028 | D7: =SUMINWORDS(C7,"грн.","коп.") -> Сто п'ятдесят шість тисяч вісімсот дев'яносто одна грн. 70 коп. | E7: в т.ч.ПДВ- | F7: =C7/6 -> 26148.61713
A8: 10.12.1 М'ясо свійської птиці,свіже чи охолоджене(15112000-6 М'ясо свійської птиці) | B8: 2230 | C8: 62117.24861 | D8: =SUMINWORDS(C8,"грн.","коп.") -> Шістдесят дві тисячі сто сімнадцять грн. 25 коп. | E8: в т.ч.ПДВ- | F8: 10352.87477
A9: 10.12.4 Субпродукти харчові свійської птиці(15114000-0 Потрухи(печінка) | B9: 2230 | C9: 17626.14885 | D9: =SUMINWORDS(C9,"грн.","коп.") -> Сімнадцять тисяч шістсот двадцять шість грн. 15 коп. | E9: в т.ч.ПДВ- | F9: 2937.691475
A10: 10.13.1.Консерви та готові страви з м’яса,м’ясних субпродуктів чи крові (15130000-8 Мясопродукти (ковбаса,сосиски) | B10: 2230 | C10: 52922.62236 | D10: П'ятдесят дві тисячі дев'ятсот двадцять дві грн. 62 коп. | E10: в т.ч.ПДВ- | F10: 8820.43706
A11: 10.20.1 Продукція рибна,свіжа,охолоджена чи заморожена (15221000-3 Морожена риба) | B11: 2230 | C11: 124562.5504 | D11: Сто двадцять чотири тисячі п'ятсот шістдесят дві грн. 55 коп. | E11: в т.ч.ПДВ- | F11: 20760.42506
A12: 01.24.1 Яблука (03222000-3 Фрукти і горіхи(яблука,апельсини,лимони,ягоди) | B12: 2230 | C12: 52573.25818 | D12: П'ятдесят дві тисячі п'ятсот сімдесят три грн. 26 коп. | E12: в т.ч.ПДВ- | F12: 8762.209696
A13: 10.39.1 Плоди та овочі,оброблені та законсервовані,крім картоплі(15331000-7 Оброблені овочі(консерви овочеві) | B13: 2230 | C13: 36740.63956 | D13: Тридцять шість тисяч сімсот сорок грн. 64 коп. | E13: в т.ч.ПДВ- | F13: 6123.439926
A14: 10.72.1 Вироби хлібобулочні,зниженої вологості,та кондитерські,борошняні,тривалого зберігання(15820000-2 Сухарі та печиво; пресерви з хлібобулочних і кондитерських виробів (печиво) | B14: 2230 | C14: 12830.36433 | D14: Дванадцять тисяч вісімсот тридцять грн. 36 коп. | E14: в т.ч.ПДВ- | F14: 2138.394056
A15: 10.71.1 Вироби хлібобулочні,кондитерські та кулінарні,борошняні,нетривалого зберігання(15810000-9 Хлібопродукти, свіжовипечені хлібобулочні та кондитерські вироби) | B15: 2230 | C15: 47347.4491 | D15: Сорок сім тисяч триста сорок сім грн. 45 коп. | E15: в т.ч.ПДВ- | F15: 7891.241517
A16: 10.51.1 Молоко та вершки,рідинні,оброблені(15511000-3 Молоко) | B16: 2230 | C16: 186971.6311 | D16: Сто вісімдесят шість тисяч дев'ятсот сімдесят одна грн. 63 коп. | E16: в т.ч.ПДВ- | F16: 31161.93851
A17: 10.51.5 Продукти молочні, інші (15550000-8 Молочні продукти різні (кефір,сметана) | B17: 2230 | C17: 35296.18632 | D17: Тридцять п'ять тисяч двісті дев'яносто шість грн. 19 коп. | E17: в т.ч.ПДВ- | F17: 5882.697721
A18: 10.51.4 Сир сичужний та кисломолочний сир(15540000-5 Сирні продукти) | B18: 2230 | C18: 131743.4802 | D18: Сто тридцять одна тисячa сімсот сорок три грн. 48 коп. | E18: в т.ч.ПДВ- | F18: 21957.2467
A19: 10.32.1 Соки фруктові та овочеві (15321000-4 Фруктові соки) | B19: 2230 | C19: 35148.60219 | D19: Тридцять п'ять тисяч сто сорок вісім грн. 60 коп. | E19: в т.ч.ПДВ- | F19: 5858.100365
A20: 10.61.2 Борошно зернових і овочевих культур;їхні суміші(15612000-1 Борошно зернових та овочевих культур і супутня продукція) | B20: 2230 | C20: 7758.95461 | D20: Сім тисяч сімсот п'ятдесят вісім грн. 95 коп. | E20: в т.ч.ПДВ- | F20: 1293.159102
A21: 10.61.1 Рис напівобрушений чи повністю обрушений,або лущений чи дроблений(15614000-5 Рис оброблений) | B21: 2230 | C21: 3787.952649 | D21: Три тисячі сімсот вісімдесят сім грн. 95 коп. | E21: в т.ч.ПДВ- | F21: 631.3254415
A22: 0.81.1 Цукор-сирець,тростинний і очищений тростинний чи буряковий цукор (сахароза);меляса (15831000-2 Цукор) | B22: 2230 | C22: 34040.36489 | D22: Тридцять чотири тисячі сорок грн. 36 коп. | E22: в т.ч.ПДВ- | F22: 5673.394149
A23: 10.39.2 Плоди й горіхи,оброблені та законсервовані(15332000-4 Оброблені фрукти та горіхи(повидло,сухофрукти) | B23: 2230 | C23: 22361.81758 | D23: Двадцять дві тисячі триста шістдесят одна грн. 82 коп. | E23: в т.ч.ПДВ- | F23: 3726.969596
A24: 10.51.3 Масло вершкове та молочні пасти(15530000-2 Вершкове масло) | B24: 2230 | C24: 61083.52738 | D24: Шістдесят одна тисячa вісімдесят три грн. 53 коп. | E24: в т.ч.ПДВ- | F24: 10180.5879
A25: 01.47.2 Яйця у шкаралупі свіжі (03142000-8 Продукція тваринництва (03142500-3 Яйця) | B25: 2230 | C25: 46826.36035 | D25: Сорок шість тисяч вісімсот двадцять шість грн. 36 коп. | E25: в т.ч.ПДВ- | F25: 7804.393392
A26: 10.41.5 Олії рафіновані(15421000-5 Рафіновані олії) | B26: 2230 | C26: 13722.83398 | D26: Тринадцять тисяч сімсот двадцять дві грн. 83 коп. | E26: в т.ч.ПДВ- | F26: 2287.138997
A27: 10.61.3 Крупи,крупка,гранули та інші продукти з зерна зернових культур(15613000-8 Продукція із зерна зернових культур(крупи) | B27: 2230 | C27: 14311.46503 | D27: Чотирнадцять тисяч триста одинадцять грн. 47 коп. | E27: в т.ч.ПДВ- | F27: 2385.244171
A28: 10.82.1 Какао терте,какао-масло,жири й олія,какао-порошок(15841000-5 Какао) | B28: 2230 | C28: 17599.64336 | D28: Сімнадцять тисяч п'ятсот дев'яносто дев'ять грн. 64 коп. | E28: в т.ч.ПДВ- | F28: 2933.273894
A29: 10.83.1 Чай і кава,оброблені(15860000-4 Кава, чай та супутня продукція) | B29: 2230 | C29: 18438.77769 | D29: Вісімнадцять тисяч чотириста тридцять вісім грн. 78 коп. | E29: в т.ч.ПДВ- | F29: 3073.129614
A30: 10.84.3 Сіль харчова(14410000-8 Камяна сіль) | B30: 2230 | C30: 693.9548207 | D30: Шістсот дев'яносто три грн. 95 коп. | E30: в т.ч.ПДВ- | F30: 115.6591368
A31: 01.13.5 Коренеплоди та бульби їстівні з високим умістом крохмалю та інуліну(03212000-0 Картопля та сушені овочі) | B31: 2230 | C31: 47537.22771 | D31: Сорок сім тисяч п'ятсот тридцять сім грн. 23 коп. | E31: в т.ч.ПДВ- | F31: 7922.871286
A32: 01.13.4 Овочі коренеплодні,цибулинні та бульбоподібні(03221000-6 Овочі) | B32: 2230 | C32: 58199.87013 | D32: П'ятдесят вісім тисяч сто дев'яносто дев'ять грн. 87 коп. | E32: в т.ч.ПДВ- | F32: 9699.978355
A33: 43.21.1 Роботи електромонтажні(45310000-3 Електромонтажні роботи(повірка контурів заземлення) | B33: 2240 | C33: 745 | D33: Сімсот сорок п'ять грн. 0 коп. | E33: в т.ч.ПДВ- | F33: 124.1666667
A34: 38.11.6 Послуги підприємств щодо перевезення інших безпечних відходів(90512000-9 Послуги з перевезення сміття) | B34: 2240 | C34: 12701 | D34: Дванадцять тисяч сімсот одна грн. 0 коп. | E34: в т.ч.ПДВ- | F34: 2116.833333
A35: Поточний ремонт будівель (45400000-1 Завершальні будівельні роботи) | B35: 2240 | C35: 21900 | D35: Двадцять одна тисячa дев'ятсот грн. 0 коп. | E35: в т.ч.ПДВ- | F35: 3650
A36: 36.00.2 Обробляння та розподіляння води трубопроводами(65110000-7 Розподіл води) | B36: 2272 | C36: 24093.1992 | D36: Двадцять чотири тисячі дев'яносто три грн. 20 коп. | E36: в т.ч.ПДВ- | F36: 4015.5332
A37: 37.00.1 Послуги каналізаційні(90400000-1 Послуги у сфері водовідведення) | B37: 2272 | C37: 32446.8008 | D37: Тридцять дві тисячі чотириста сорок шість грн. 80 коп. | E37: в т.ч.ПДВ- | F37: 5407.800133
A38: 35.11.1 Енергія електрична (09310000-5 Електрична енергія) | B38: 2273 | C38: 124266 | D38: Сто двадцять чотири тисячі двісті шістдесят шість грн. 0 коп. | E38: в т.ч.ПДВ- | F38: 20711
A39: 61.10.1 Послуги щодо передавання даних і повідомлень(64211000-8 Послуги громадського телефонного звязку) | B39: 2240 | C39: 1596 | D39: Одна тисячa п'ятсот дев'яносто шість грн. 0 коп. | E39: в т.ч.ПДВ- | F39: 266
A40: 26.51.6 Інструменти та прилади вимірювальні,контрольні та випробувальні,інші(38421000-0 Прилади для вимірювання витрати рідин і газів) | B40: 2210 | C40: 1320 | D40: Одна тисячa триста двадцять грн. 0 коп. | E40: в т.ч.ПДВ- | F40: 220
A41: 91.01.1 Послуги бібліотек і архівів(92512000-3 Послуги архівів) | B41: 2240 | C41: 1067 | D41: Одна тисячa шістдесят сім грн. 0 коп. | E41: без ПДВ
A42: 71.20.1 Послуги щодо технічного випробування й аналізування(71632000-7 Послуги з технічних випробувань (повірка,атестація) | B42: 2240 | C42: 1594 | D42: Одна тисячa п'ятсот дев'яносто чотири грн. 0 коп. | E42: в т.ч.ПДВ- | F42: 265.6666667
A43: 58.29.1 Програмне забезпечення системне на фізичних носіях(48443000-5 Пакети програмного забезпечення для бухгалтерського обліку) | B43: 2240 | C43: 7392 | D43: Сім тисяч триста дев'яносто дві грн. 0 коп. | E43: в т.ч.ПДВ- | F43: 1232
A44: 85.60.1 Послуги освітянські допоміжні (80570000-0 Послуги з професійної підготовки у сфері підвищення кваліфікації) | B44: 2282 | C44: 349 | D44: Триста сорок дев'ять грн. 0 коп. | E44: в т.ч.ПДВ- | F44: 58.16666667
A45: 31.09.1 Меблі, інші (39161000-8 Меблі для дитячого садка) | B45: 3110 | C45: 44417 | D45: Сорок чотири тисячі чотириста сімнадцять грн. 0 коп. | E45: в т.ч.ПДВ- | F45: 7402.833333
A46: Капітальний ремонт будівель (45000000-7 Будівельні роботи) | B46: 3132 | C46: 90000 | D46: Дев'яносто тисяч грн. 0 коп. | E46: в т.ч.ПДВ- | F46: 15000
A48: Затверджений рішенням комітету з конкурсних торгів від__________№_______
A50: Голова комітету з конкурсних торгів _______________________Н.М.Борак
A51: (підпис) (ініціали та прізвище)
A52: МП

Sheet 42
A1: Додаток до річного плану закупівель на 2016 рік
A2: Дошкільний навчальний заклад № 42, 26243378
A3: (найменування замовника,код за ЄДРПОУ)
A4: Предмет закупівлі | B4: Код КЕКВ (для бюджетних коштів) | C4: Очікувана вартість предмета закупівлі | G4: Процедура закупівлі | H4: Орієнтовний початок проведення процедури закупівлі | I4: Примітки
A5: 1 | B5: 2 | C5: 3 | G5: 4 | H5: 5 | I5: 6
A6: 10.73.1 Макарони,локшина,кускус і подібні борошняні вироби(15851000-8 Борошняні вироби(макарони) | B6: 2230 | C6: 3098.232491 | D6: =SUMINWORDS(C6,"грн.","коп.") -> Три тисячі дев'яносто вісім грн. 23 коп. | E6: в т.ч.ПДВ- | F6: =C6/6 -> 516.3720819
A7: 10.11.1 М'ясо великої рогатої худоби,свиней,овець,кіз,коней та ін..тварин родини конячих,свіже чиа охолоджене(15111000-9 М'ясо великої рогатої худоби родини бикових(яловичина) | B7: 2230 | C7: 105516.2219 | D7: =SUMINWORDS(C7,"грн.","коп.") -> Сто п'ять тисяч п'ятсот шістнадцять грн. 22 коп. | E7: в т.ч.ПДВ- | F7: =C7/6 -> 17586.03699
A8: 10.12.1 М'ясо свійської птиці,свіже чи охолоджене(15112000-6 М'ясо свійської птиці) | B8: 2230 | C8: 40110.82202 | D8: =SUMINWORDS(C8,"грн.","коп.") -> Сорок тисяч сто десять грн. 82 коп. | E8: в т.ч.ПДВ- | F8: 6685.137004
A9: 10.12.4 Субпродукти харчові свійської птиці(15114000-0 Потрухи(печінка) | B9: 2230 | C9: 11341.76389 | D9: =SUMINWORDS(C9,"грн.","коп.") -> Одинадцять тисяч триста сорок одна грн. 76 коп. | E9: в т.ч.ПДВ- | F9: 1890.293982
A10: 10.13.1.Консерви та готові страви з м’яса,м’ясних субпродуктів чи крові (15130000-8 Мясопродукти (ковбаса,сосиски) | B10: 2230 | C10: 34053.71715 | D10: Тридцять чотири тисячі п'ятдесят три грн. 72 коп. | E10: в т.ч.ПДВ- | F10: 5675.619525
A11: 10.20.1 Продукція рибна,свіжа,охолоджена чи заморожена (15221000-3 Морожена риба) | B11: 2230 | C11: 80026.03404 | D11: Вісімдесят тисяч двадцять шість грн. 3 коп. | E11: в т.ч.ПДВ- | F11: 13337.67234
A12: 01.24.1 Яблука (03222000-3 Фрукти і горіхи(яблука,апельсини,лимони,ягоди) | B12: 2230 | C12: 33808.90671 | D12: Тридцять три тисячі вісімсот вісім грн. 91 коп. | E12: в т.ч.ПДВ- | F12: 5634.817785
A13: 10.39.1 Плоди та овочі,оброблені та законсервовані,крім картоплі(15331000-7 Оброблені овочі(консерви овочеві) | B13: 2230 | C13: 23917.65343 | D13: Двадцять три тисячі дев'ятсот сімнадцять грн. 65 коп. | E13: в т.ч.ПДВ- | F13: 3986.275572
A14: 10.72.1 Вироби хлібобулочні,зниженої вологості,та кондитерські,борошняні,тривалого зберігання(15820000-2 Сухарі та печиво; пресерви з хлібобулочних і кондитерських виробів (печиво) | B14: 2230 | C14: 8185.012978 | D14: Вісім тисяч сто вісімдесят п'ять грн. 1 коп. | E14: в т.ч.ПДВ- | F14: 1364.16883
A15: 10.71.1 Вироби хлібобулочні,кондитерські та кулінарні,борошняні,нетривалого зберігання(15810000-9 Хлібопродукти, свіжовипечені хлібобулочні та кондитерські вироби) | B15: 2230 | C15: 30665.97716 | D15: Тридцять тисяч шістсот шістдесят п'ять грн. 98 коп. | E15: в т.ч.ПДВ- | F15: 5110.996194
A16: 10.51.1 Молоко та вершки,рідинні,оброблені(15511000-3 Молоко) | B16: 2230 | C16: 122490.7294 | D16: Сто двадцять дві тисячі чотириста дев'яносто грн. 73 коп. | E16: в т.ч.ПДВ- | F16: 20415.12157
A17: 10.51.5 Продукти молочні, інші (15550000-8 Молочні продукти різні (кефір,сметана) | B17: 2230 | C17: 22878.66044 | D17: Двадцять дві тисячі вісімсот сімдесят вісім грн. 66 коп. | E17: в т.ч.ПДВ- | F17: 3813.110074
A18: 10.51.4 Сир сичужний та кисломолочний сир(15540000-5 Сирні продукти) | B18: 2230 | C18: 85799.79385 | D18: Вісімдесят п'ять тисяч сімсот дев'яносто дев'ять грн. 79 коп. | E18: в т.ч.ПДВ- | F18: 14299.96564
A19: 10.32.1 Соки фруктові та овочеві (15321000-4 Фруктові соки) | B19: 2230 | C19: 22849.68605 | D19: Двадцять дві тисячі вісімсот сорок дев'ять грн. 69 коп. | E19: в т.ч.ПДВ- | F19: 3808.281009
A20: 10.61.2 Борошно зернових і овочевих культур;їхні суміші(15612000-1 Борошно зернових та овочевих культур і супутня продукція) | B20: 2230 | C20: 5017.075818 | D20: П'ять тисяч сімнадцять грн. 8 коп. | E20: в т.ч.ПДВ- | F20: 836.1793029
A21: 10.61.1 Рис напівобрушений чи повністю обрушений,або лущений чи дроблений(15614000-5 Рис оброблений) | B21: 2230 | C21: 2462.502729 | D21: Дві тисячі чотириста шістдесят дві грн. 50 коп. | E21: в т.ч.ПДВ- | F21: 410.4171215
A22: 0.81.1 Цукор-сирець,тростинний і очищений тростинний чи буряковий цукор (сахароза);меляса (15831000-2 Цукор) | B22: 2230 | C22: 22192.84631 | D22: Двадцять дві тисячі сто дев'яносто дві грн. 85 коп. | E22: в т.ч.ПДВ- | F22: 3698.807718
A23: 10.39.2 Плоди й горіхи,оброблені та законсервовані(15332000-4 Оброблені фрукти та горіхи(повидло,сухофрукти) | B23: 2230 | C23: 14655.78872 | D23: Чотирнадцять тисяч шістсот п'ятдесят п'ять грн. 79 коп. | E23: в т.ч.ПДВ- | F23: 2442.631453
A24: 10.51.3 Масло вершкове та молочні пасти(15530000-2 Вершкове масло) | B24: 2230 | C24: 39443.31969 | D24: Тридцять дев'ять тисяч чотириста сорок три грн. 32 коп. | E24: в т.ч.ПДВ- | F24: 6573.886615
A25: 01.47.2 Яйця у шкаралупі свіжі (03142000-8 Продукція тваринництва (03142500-3 Яйця) | B25: 2230 | C25: 30131.00182 | D25: Тридцять тисяч сто тридцять одна грн. 0 коп. | E25: в т.ч.ПДВ- | F25: 5021.833637
A26: 10.41.5 Олії рафіновані(15421000-5 Рафіновані олії) | B26: 2230 | C26: 8901.439834 | D26: Вісім тисяч дев'ятсот одна грн. 44 коп. | E26: в т.ч.ПДВ- | F26: 1483.573306
A27: 10.61.3 Крупи,крупка,гранули та інші продукти з зерна зернових культур(15613000-8 Продукція із зерна зернових культур(крупи) | B27: 2230 | C27: 9295.918855 | D27: Дев'ять тисяч двісті дев'яносто п'ять грн. 92 коп. | E27: в т.ч.ПДВ- | F27: 1549.319809
A28: 10.82.1 Какао терте,какао-масло,жири й олія,какао-порошок(15841000-5 Какао) | B28: 2230 | C28: 11324.70861 | D28: Одинадцять тисяч триста двадцять чотири грн. 71 коп. | E28: в т.ч.ПДВ- | F28: 1887.451435
A29: 10.83.1 Чай і кава,оброблені(15860000-4 Кава, чай та супутня продукція) | B29: 2230 | C29: 11746.04748 | D29: Одинадцять тисяч сімсот сорок шість грн. 5 коп. | E29: в т.ч.ПДВ- | F29: 1957.674579
A30: 10.84.3 Сіль харчова(14410000-8 Камяна сіль) | B30: 2230 | C30: 444.2631894 | D30: Чотириста сорок чотири грн. 26 коп. | E30: в т.ч.ПДВ- | F30: 74.0438649
A31: 01.13.5 Коренеплоди та бульби їстівні з високим умістом крохмалю та інуліну(03212000-0 Картопля та сушені овочі) | B31: 2230 | C31: 30860.6111 | D31: Тридцять тисяч вісімсот шістдесят грн. 61 коп. | E31: в т.ч.ПДВ- | F31: 5143.435184
A32: 01.13.4 Овочі коренеплодні,цибулинні та бульбоподібні(03221000-6 Овочі) | B32: 2230 | C32: 37962.26478 | D32: Тридцять сім тисяч дев'ятсот шістдесят дві грн. 26 коп. | E32: в т.ч.ПДВ- | F32: 6327.04413
A33: 43.21.1 Роботи електромонтажні(45310000-3 Електромонтажні роботи(повірка контурів заземлення) | B33: 2240 | C33: 745 | D33: Сімсот сорок п'ять грн. 0 коп. | E33: в т.ч.ПДВ- | F33: 124.1666667
A34: 38.11.6 Послуги підприємств щодо перевезення інших безпечних відходів(90512000-9 Послуги з перевезення сміття) | B34: 2240 | C34: 5214 | D34: П'ять тисяч двісті чотирнадцять грн. 0 коп. | E34: в т.ч.ПДВ- | F34: 869
A35: 64.99.1 Послуги фінансові, крім страхування та пенсійного забезпечення, інші, н.в.і.у( 66110000-4 Банківські послуги) | B35: 2240 | C35: 1656 | D35: Одна тисячa шістсот п'ятдесят шість грн. 0 коп. | E35: без ПДВ
A36: 36.00.2 Обробляння та розподіляння води трубопроводами(65110000-7 Розподіл води) | B36: 2272 | C36: 15463.728 | D36: П'ятнадцять тисяч чотириста шістдесят три грн. 73 коп. | E36: в т.ч.ПДВ- | F36: 2577.288
A37: 37.00.1 Послуги каналізаційні(90400000-1 Послуги у сфері водовідведення) | B37: 2272 | C37: 29332.272 | D37: Двадцять дев'ять тисяч триста тридцять дві грн. 27 коп. | E37: в т.ч.ПДВ- | F37: 4888.712
A38: 35.11.1 Енергія електрична (09310000-5 Електрична енергія) | B38: 2273 | C38: 81061 | D38: Вісімдесят одна тисячa шістдесят одна грн. 0 коп. | E38: в т.ч.ПДВ- | F38: 13510.16667
A39: 61.10.1 Послуги щодо передавання даних і повідомлень(64211000-8 Послуги громадського телефонного звязку) | B39: 2240 | C39: 1623 | D39: Одна тисячa шістсот двадцять три грн. 0 коп. | E39: в т.ч.ПДВ- | F39: 270.5
A40: Поточний ремонт будівель (45400000-1 Завершальні будівельні роботи) | B40: 2240 | C40: 85900 | D40: Вісімдесят п'ять тисяч дев'ятсот грн. 0 коп. | E40: в т.ч.ПДВ- | F40: 14316.66667
A41: 91.01.1 Послуги бібліотек і архівів(92512000-3 Послуги архівів) | B41: 2240 | C41: 764 | D41: Сімсот шістдесят чотири грн. 0 коп. | E41: без ПДВ
A42: 71.20.1 Послуги щодо технічного випробування й аналізування(71632000-7 Послуги з технічних випробувань (повірка,атестація) | B42: 2240 | C42: 1300 | D42: Одна тисячa триста грн. 0 коп. | E42: в т.ч.ПДВ- | F42: 216.6666667
A43: 58.29.1 Програмне забезпечення системне на фізичних носіях(48443000-5 Пакети програмного забезпечення для бухгалтерського обліку) | B43: 2240 | C43: 7392 | D43: Сім тисяч триста дев'яносто дві грн. 0 коп. | E43: в т.ч.ПДВ- | F43: 1232
A44: 31.09.1 Меблі, інші (39161000-8 Меблі для дитячого садка) | B44: 3110 | C44: 13600 | D44: Тринадцять тисяч шістсот грн. 0 коп. | E44: в т.ч.ПДВ- | F44: 2266.666667
A46: Затверджений рішенням комітету з конкурсних торгів від__________№_______
A48: Голова комітету з конкурсних торгів _______________________Т.С.Жаркова
A49: (підпис) (ініціали та прізвище)
A50: МП

Sheet 43
A1: Додаток до річного плану закупівель на 2016 рік
A2: Дошкільний навчальний заклад № 43, 26243361
A3: (найменування замовника,код за ЄДРПОУ)
A4: Предмет закупівлі | B4: Код КЕКВ (для бюджетних коштів) | C4: Очікувана вартість предмета закупівлі | G4: Процедура закупівлі | H4: Орієнтовний початок проведення процедури закупівлі | I4: Примітки
A5: 1 | B5: 2 | C5: 3 | G5: 4 | H5: 5 | I5: 6
A6: 10.73.1 Макарони,локшина,кускус і подібні борошняні вироби(15851000-8 Борошняні вироби(макарони) | B6: 2230 | C6: 2151.634645 | D6: =SUMINWORDS(C6,"грн.","коп.") -> Дві тисячі сто п'ятдесят одна грн. 63 коп. | E6: в т.ч.ПДВ- | F6: =C6/6 -> 358.6057742
A7: 10.11.1 М'ясо великої рогатої худоби,свиней,овець,кіз,коней та ін..тварин родини конячих,свіже чиа охолоджене(15111000-9 М'ясо великої рогатої худоби родини бикових(яловичина) | B7: 2230 | C7: 73598.55778 | D7: =SUMINWORDS(C7,"грн.","коп.") -> Сімдесят три тисячі п'ятсот дев'яносто вісім грн. 56 коп. | E7: в т.ч.ПДВ- | F7: =C7/6 -> 12266.4263
A8: 10.12.1 М'ясо свійської птиці,свіже чи охолоджене(15112000-6 М'ясо свійської птиці) | B8: 2230 | C8: 27864.09905 | D8: =SUMINWORDS(C8,"грн.","коп.") -> Двадцять сім тисяч вісімсот шістдесят чотири грн. 10 коп. | E8: в т.ч.ПДВ- | F8: 4644.016508
A9: 10.12.4 Субпродукти харчові свійської птиці(15114000-0 Потрухи(печінка) | B9: 2230 | C9: 7880.693613 | D9: =SUMINWORDS(C9,"грн.","коп.") -> Сім тисяч вісімсот вісімдесят грн. 69 коп. | E9: в т.ч.ПДВ- | F9: 1313.448936
A10: 10.13.1.Консерви та готові страви з м’яса,м’ясних субпродуктів чи крові (15130000-8 Мясопродукти (ковбаса,сосиски) | B10: 2230 | C10: 23661.83195 | D10: Двадцять три тисячі шістсот шістдесят одна грн. 83 коп. | E10: в т.ч.ПДВ- | F10: 3943.638659
A11: 10.20.1 Продукція рибна,свіжа,охолоджена чи заморожена (15221000-3 Морожена риба) | B11: 2230 | C11: 55610.90121 | D11: П'ятдесят п'ять тисяч шістсот десять грн. 90 коп. | E11: в т.ч.ПДВ- | F11: 9268.483534
A12: 01.24.1 Яблука (03222000-3 Фрукти і горіхи(яблука,апельсини,лимони,ягоди) | B12: 2230 | C12: 23492.64428 | D12: Двадцять три тисячі чотириста дев'яносто дві грн. 64 коп. | E12: в т.ч.ПДВ- | F12: 3915.440714
A13: 10.39.1 Плоди та овочі,оброблені та законсервовані,крім картоплі(15331000-7 Оброблені овочі(консерви овочеві) | B13: 2230 | C13: 16606.24886 | D13: Шістнадцять тисяч шістсот шість грн. 25 коп. | E13: в т.ч.ПДВ- | F13: 2767.708143
A14: 10.72.1 Вироби хлібобулочні,зниженої вологості,та кондитерські,борошняні,тривалого зберігання(15820000-2 Сухарі та печиво; пресерви з хлібобулочних і кондитерських виробів (печиво) | B14: 2230 | C14: 5690.505248 | D14: П'ять тисяч шістсот дев'яносто грн. 51 коп. | E14: в т.ч.ПДВ- | F14: 948.4175414
A15: 10.71.1 Вироби хлібобулочні,кондитерські та кулінарні,борошняні,нетривалого зберігання(15810000-9 Хлібопродукти, свіжовипечені хлібобулочні та кондитерські вироби) | B15: 2230 | C15: 21298.75801 | D15: Двадцять одна тисячa двісті дев'яносто вісім грн. 76 коп. | E15: в т.ч.ПДВ- | F15: 3549.793002
A16: 10.51.1 Молоко та вершки,рідинні,оброблені(15511000-3 Молоко) | B16: 2230 | C16: 85011.38908 | D16: Вісімдесят п'ять тисяч одинадцять грн. 39 коп. | E16: в т.ч.ПДВ- | F16: 14168.56485
A17: 10.51.5 Продукти молочні, інші (15550000-8 Молочні продукти різні (кефір,сметана) | B17: 2230 | C17: 15889.33187 | D17: П'ятнадцять тисяч вісімсот вісімдесят дев'ять грн. 33 коп. | E17: в т.ч.ПДВ- | F17: 2648.221978
A18: 10.51.4 Сир сичужний та кисломолочний сир(15540000-5 Сирні продукти) | B18: 2230 | C18: 59569.93758 | D18: П'ятдесят дев'ять тисяч п'ятсот шістдесят дев'ять грн. 94 коп. | E18: в т.ч.ПДВ- | F18: 9928.32293
A19: 10.32.1 Соки фруктові та овочеві (15321000-4 Фруктові соки) | B19: 2230 | C19: 15866.17802 | D19: П'ятнадцять тисяч вісімсот шістдесят шість грн. 18 коп. | E19: в т.ч.ПДВ- | F19: 2644.363004
A20: 10.61.2 Борошно зернових і овочевих культур;їхні суміші(15612000-1 Борошно зернових та овочевих культур і супутня продукція) | B20: 2230 | C20: 3484.936357 | D20: Три тисячі чотириста вісімдесят чотири грн. 94 коп. | E20: в т.ч.ПДВ- | F20: 580.8227261
A21: 10.61.1 Рис напівобрушений чи повністю обрушений,або лущений чи дроблений(15614000-5 Рис оброблений) | B21: 2230 | C21: 1709.892494 | D21: Одна тисячa сімсот дев'ять грн. 89 коп. | E21: в т.ч.ПДВ- | F21: 284.9820824
A22: 0.81.1 Цукор-сирець,тростинний і очищений тростинний чи буряковий цукор (сахароза);меляса (15831000-2 Цукор) | B22: 2230 | C22: 15407.20427 | D22: П'ятнадцять тисяч чотириста сім грн. 20 коп. | E22: в т.ч.ПДВ- | F22: 2567.867378
A23: 10.39.2 Плоди й горіхи,оброблені та законсервовані(15332000-4 Оброблені фрукти та горіхи(повидло,сухофрукти) | B23: 2230 | C23: 10171.19023 | D23: Десять тисяч сто сімдесят одна грн. 19 коп. | E23: в т.ч.ПДВ- | F23: 1695.198371
A24: 10.51.3 Масло вершкове та молочні пасти(15530000-2 Вершкове масло) | B24: 2230 | C24: 27400.39997 | D24: Двадцять сім тисяч чотириста грн. 40 коп. | E24: в т.ч.ПДВ- | F24: 4566.733329
A25: 01.47.2 Яйця у шкаралупі свіжі (03142000-8 Продукція тваринництва (03142500-3 Яйця) | B25: 2230 | C25: 20936.17852 | D25: Двадцять тисяч дев'ятсот тридцять шість грн. 18 коп. | E25: в т.ч.ПДВ- | F25: 3489.363087
A26: 10.41.5 Олії рафіновані(15421000-5 Рафіновані олії) | B26: 2230 | C26: 6181.797652 | D26: Шість тисяч сто вісімдесят одна грн. 80 коп. | E26: в т.ч.ПДВ- | F26: 1030.299609
A27: 10.61.3 Крупи,крупка,гранули та інші продукти з зерна зернових культур(15613000-8 Продукція із зерна зернових культур(крупи) | B27: 2230 | C27: 6455.177247 | D27: Шість тисяч чотириста п'ятдесят п'ять грн. 18 коп. | E27: в т.ч.ПДВ- | F27: 1075.862875
A28: 10.82.1 Какао терте,какао-масло,жири й олія,какао-порошок(15841000-5 Какао) | B28: 2230 | C28: 7868.842946 | D28: Сім тисяч вісімсот шістдесят вісім грн. 84 коп. | E28: в т.ч.ПДВ- | F28: 1311.473824
A29: 10.83.1 Чай і кава,оброблені(15860000-4 Кава, чай та супутня продукція) | B29: 2230 | C29: 8167.035979 | D29: Вісім тисяч сто шістдесят сім грн. 4 коп. | E29: в т.ч.ПДВ- | F29: 1361.172663
A30: 10.84.3 Сіль харчова(14410000-8 Камяна сіль) | B30: 2230 | C30: 308.7951043 | D30: Триста вісім грн. 80 коп. | E30: в т.ч.ПДВ- | F30: 51.46585072
A31: 01.13.5 Коренеплоди та бульби їстівні з високим умістом крохмалю та інуліну(03212000-0 Картопля та сушені овочі) | B31: 2230 | C31: 21430.67694 | D31: Двадцять одна тисячa чотириста тридцять грн. 68 коп. | E31: в т.ч.ПДВ- | F31: 3571.779491
A32: 01.13.4 Овочі коренеплодні,цибулинні та бульбоподібні(03221000-6 Овочі) | B32: 2230 | C32: 26354.16123 | D32: Двадцять шість тисяч триста п'ятдесят чотири грн. 16 коп. | E32: в т.ч.ПДВ- | F32: 4392.360206
A33: 43.21.1 Роботи електромонтажні(45310000-3 Електромонтажні роботи(повірка контурів заземлення) | B33: 2240 | C33: 745 | D33: Сімсот сорок п'ять грн. 0 коп. | E33: в т.ч.ПДВ- | F33: 124.1666667
A34: 38.11.6 Послуги підприємств щодо перевезення інших безпечних відходів(90512000-9 Послуги з перевезення сміття) | B34: 2240 | C34: 7190 | D34: Сім тисяч сто дев'яносто грн. 0 коп. | E34: в т.ч.ПДВ- | F34: 1198.333333
A35: Капітальний ремонт будівель (45000000-7 Будівельні роботи) | B35: 3132 | C35: 98000 | D35: Дев'яносто вісім тисяч грн. 0 коп. | E35: в т.ч.ПДВ- | F35: 16333.33333
A36: 36.00.2 Обробляння та розподіляння води трубопроводами(65110000-7 Розподіл води) | B36: 2272 | C36: 16014.7344 | D36: Шістнадцять тисяч чотирнадцять грн. 73 коп. | E36: в т.ч.ПДВ- | F36: 2669.1224
A37: 37.00.1 Послуги каналізаційні(90400000-1 Послуги у сфері водовідведення) | B37: 2272 | C37: 15802.2656 | D37: П'ятнадцять тисяч вісімсот дві грн. 27 коп. | E37: в т.ч.ПДВ- | F37: 2633.710933
A38: 35.11.1 Енергія електрична (09310000-5 Електрична енергія) | B38: 2273 | C38: 99710 | D38: Дев'яносто дев'ять тисяч сімсот десять грн. 0 коп. | E38: в т.ч.ПДВ- | F38: 16618.33333
A39: 61.10.1 Послуги щодо передавання даних і повідомлень(64211000-8 Послуги громадського телефонного звязку) | B39: 2240 | C39: 1640 | D39: Одна тисячa шістсот сорок грн. 0 коп. | E39: в т.ч.ПДВ- | F39: 273.3333333
A40: Поточний ремонт будівель (45400000-1 Завершальні будівельні роботи) | B40: 2240 | C40: 7500 | D40: Сім тисяч п'ятсот грн. 0 коп. | E40: в т.ч.ПДВ- | F40: 1250
A41: 91.01.1 Послуги бібліотек і архівів(92512000-3 Послуги архівів) | B41: 2240 | C41: 527 | D41: П'ятсот двадцять сім грн. 0 коп. | E41: без ПДВ
A42: 71.20.1 Послуги щодо технічного випробування й аналізування(71632000-7 Послуги з технічних випробувань (повірка,атестація) | B42: 2240 | C42: 147 | D42: Сто сорок сім грн. 0 коп. | E42: в т.ч.ПДВ- | F42: 24.5
A43: 58.29.1 Програмне забезпечення системне на фізичних носіях(48443000-5 Пакети програмного забезпечення для бухгалтерського обліку) | B43: 2240 | C43: 7392 | D43: Сім тисяч триста дев'яносто дві грн. 0 коп. | E43: в т.ч.ПДВ- | F43: 1232
A44: 28.99.3 Машини й устаткування спеціальної призначеності,н.в.і.у.(37535000-7 Каруселі,гойдалки,тири та інші атракціони) | B44: 3110 | C44: 80600 | D44: Вісімдесят тисяч шістсот грн. 0 коп. | E44: в т.ч.ПДВ- | F44: 13433.33333
A46: Затверджений рішенням комітету з конкурсних торгів від__________№_______
A48: Голова комітету з конкурсних торгів _______________________В.Н.Юсупова
A49: (підпис) (ініціали та прізвище)
A50: МП

Sheet 45
A1: Додаток до річного плану закупівель на 2016 рік
A2: Дошкільний навчальний заклад № 45, 26244372
A3: (найменування замовника,код за ЄДРПОУ)
A4: Предмет закупівлі | B4: Код КЕКВ (для бюджетних коштів) | C4: Очікувана вартість предмета закупівлі | G4: Процедура закупівлі | H4: Орієнтовний початок проведення процедури закупівлі | I4: Примітки
A5: 1 | B5: 2 | C5: 3 | G5: 4 | H5: 5 | I5: 6
A6: 10.73.1 Макарони,локшина,кускус і подібні борошняні вироби(15851000-8 Борошняні вироби(макарони) | B6: 2230 | C6: 2852.176431 | D6: =SUMINWORDS(C6,"грн.","коп.") -> Дві тисячі вісімсот п'ятдесят дві грн. 18 коп. | E6: в т.ч.ПДВ- | F6: =C6/6 -> 475.3627385
A7: 10.11.1 М'ясо великої рогатої худоби,свиней,овець,кіз,коней та ін..тварин родини конячих,свіже чиа охолоджене(15111000-9 М'ясо великої рогатої худоби родини бикових(яловичина) | B7: 2230 | C7: 94273.9627 | D7: =SUMINWORDS(C7,"грн.","коп.") -> Дев'яносто чотири тисячі двісті сімдесят три грн. 96 коп. | E7: в т.ч.ПДВ- | F7: =C7/6 -> 15712.32712
A8: 10.12.1 М'ясо свійської птиці,свіже чи охолоджене(15112000-6 М'ясо свійської птиці) | B8: 2230 | C8: 37393.04495 | D8: =SUMINWORDS(C8,"грн.","коп.") -> Тридцять сім тисяч триста дев'яносто три грн. 4 коп. | E8: в т.ч.ПДВ- | F8: 6232.174159
A9: 10.12.4 Субпродукти харчові свійської птиці(15114000-0 Потрухи(печінка) | B9: 2230 | C9: 10676.31285 | D9: =SUMINWORDS(C9,"грн.","коп.") -> Десять тисяч шістсот сімдесят шість грн. 31 коп. | E9: в т.ч.ПДВ- | F9: 1779.385475
A10: 10.13.1.Консерви та готові страви з м’яса,м’ясних субпродуктів чи крові (15130000-8 Мясопродукти (ковбаса,сосиски) | B10: 2230 | C10: 32055.69623 | D10: Тридцять дві тисячі п'ятдесят п'ять грн. 70 коп. | E10: в т.ч.ПДВ- | F10: 5342.616038
A11: 10.20.1 Продукція рибна,свіжа,охолоджена чи заморожена (15221000-3 Морожена риба) | B11: 2230 | C11: 75655.12003 | D11: Сімдесят п'ять тисяч шістсот п'ятдесят п'ять грн. 12 коп. | E11: в т.ч.ПДВ- | F11: 12609.18667
A12: 01.24.1 Яблука (03222000-3 Фрукти і горіхи(яблука,апельсини,лимони,ягоди) | B12: 2230 | C12: 31877.06016 | D12: Тридцять одна тисячa вісімсот сімдесят сім грн. 6 коп. | E12: в т.ч.ПДВ- | F12: 5312.843359
A13: 10.39.1 Плоди та овочі,оброблені та законсервовані,крім картоплі(15331000-7 Оброблені овочі(консерви овочеві) | B13: 2230 | C13: 21798.5076 | D13: Двадцять одна тисячa сімсот дев'яносто вісім грн. 51 коп. | E13: в т.ч.ПДВ- | F13: 3633.084601
A14: 10.72.1 Вироби хлібобулочні,зниженої вологості,та кондитерські,борошняні,тривалого зберігання(15820000-2 Сухарі та печиво; пресерви з хлібобулочних і кондитерських виробів (печиво) | B14: 2230 | C14: 7888.229601 | D14: Сім тисяч вісімсот вісімдесят вісім грн. 23 коп. | E14: в т.ч.ПДВ- | F14: 1314.704934
A15: 10.71.1 Вироби хлібобулочні,кондитерські та кулінарні,борошняні,нетривалого зберігання(15810000-9 Хлібопродукти, свіжовипечені хлібобулочні та кондитерські вироби) | B15: 2230 | C15: 28349.66033 | D15: Двадцять вісім тисяч триста сорок дев'ять грн. 66 коп. | E15: в т.ч.ПДВ- | F15: 4724.943388
A16: 10.51.1 Молоко та вершки,рідинні,оброблені(15511000-3 Молоко) | B16: 2230 | C16: 109654.7653 | D16: Сто дев'ять тисяч шістсот п'ятдесят чотири грн. 77 коп. | E16: в т.ч.ПДВ- | F16: 18275.79421
A17: 10.51.5 Продукти молочні, інші (15550000-8 Молочні продукти різні (кефір,сметана) | B17: 2230 | C17: 21104.13693 | D17: Двадцять одна тисячa сто чотири грн. 14 коп. | E17: в т.ч.ПДВ- | F17: 3517.356155
A18: 10.51.4 Сир сичужний та кисломолочний сир(15540000-5 Сирні продукти) | B18: 2230 | C18: 78104.12241 | D18: Сімдесят вісім тисяч сто чотири грн. 12 коп. | E18: в т.ч.ПДВ- | F18: 13017.35373
A19: 10.32.1 Соки фруктові та овочеві (15321000-4 Фруктові соки) | B19: 2230 | C19: 20905.97802 | D19: Двадцять тисяч дев'ятсот п'ять грн. 98 коп. | E19: в т.ч.ПДВ- | F19: 3484.32967
A20: 10.61.2 Борошно зернових і овочевих культур;їхні суміші(15612000-1 Борошно зернових та овочевих культур і супутня продукція) | B20: 2230 | C20: 4659.31817 | D20: Чотири тисячі шістсот п'ятдесят дев'ять грн. 32 коп. | E20: в т.ч.ПДВ- | F20: 776.5530283
A21: 10.61.1 Рис напівобрушений чи повністю обрушений,або лущений чи дроблений(15614000-5 Рис оброблений) | B21: 2230 | C21: 2253.029989 | D21: Дві тисячі двісті п'ятдесят три грн. 3 коп. | E21: в т.ч.ПДВ- | F21: 375.5049982
A22: 0.81.1 Цукор-сирець,тростинний і очищений тростинний чи буряковий цукор (сахароза);меляса (15831000-2 Цукор) | B22: 2230 | C22: 20141.96557 | D22: Двадцять тисяч сто сорок одна грн. 97 коп. | E22: в т.ч.ПДВ- | F22: 3356.994262
A23: 10.39.2 Плоди й горіхи,оброблені та законсервовані(15332000-4 Оброблені фрукти та горіхи(повидло,сухофрукти) | B23: 2230 | C23: 13105.00717 | D23: Тринадцять тисяч сто п'ять грн. 1 коп. | E23: в т.ч.ПДВ- | F23: 2184.167861
A24: 10.51.3 Масло вершкове та молочні пасти(15530000-2 Вершкове масло) | B24: 2230 | C24: 36770.77038 | D24: Тридцять шість тисяч сімсот сімдесят грн. 77 коп. | E24: в т.ч.ПДВ- | F24: 6128.461729
A25: 01.47.2 Яйця у шкаралупі свіжі (03142000-8 Продукція тваринництва (03142500-3 Яйця) | B25: 2230 | C25: 28363.13689 | D25: Двадцять вісім тисяч триста шістдесят три грн. 14 коп. | E25: в т.ч.ПДВ- | F25: 4727.189482
A26: 10.41.5 Олії рафіновані(15421000-5 Рафіновані олії) | B26: 2230 | C26: 8194.503469 | D26: Вісім тисяч сто дев'яносто чотири грн. 50 коп. | E26: в т.ч.ПДВ- | F26: 1365.750578
A27: 10.61.3 Крупи,крупка,гранули та інші продукти з зерна зернових культур(15613000-8 Продукція із зерна зернових культур(крупи) | B27: 2230 | C27: 8525.137454 | D27: Вісім тисяч п'ятсот двадцять п'ять грн. 14 коп. | E27: в т.ч.ПДВ- | F27: 1420.856242
A28: 10.82.1 Какао терте,какао-масло,жири й олія,какао-порошок(15841000-5 Какао) | B28: 2230 | C28: 10660.25824 | D28: Десять тисяч шістсот шістдесят грн. 26 коп. | E28: в т.ч.ПДВ- | F28: 1776.709707
A29: 10.83.1 Чай і кава,оброблені(15860000-4 Кава, чай та супутня продукція) | B29: 2230 | C29: 11364.02721 | D29: Одинадцять тисяч триста шістдесят чотири грн. 3 коп. | E29: в т.ч.ПДВ- | F29: 1894.004535
A30: 10.84.3 Сіль харчова(14410000-8 Камяна сіль) | B30: 2230 | C30: 424.0770003 | D30: Чотириста двадцять чотири грн. 8 коп. | E30: в т.ч.ПДВ- | F30: 70.67950004
A31: 01.13.5 Коренеплоди та бульби їстівні з високим умістом крохмалю та інуліну(03212000-0 Картопля та сушені овочі) | B31: 2230 | C31: 28345.08535 | D31: Двадцять вісім тисяч триста сорок п'ять грн. 9 коп. | E31: в т.ч.ПДВ- | F31: 4724.180891
A32: 01.13.4 Овочі коренеплодні,цибулинні та бульбоподібні(03221000-6 Овочі) | B32: 2230 | C32: 34406.90975 | D32: Тридцять чотири тисячі чотириста шість грн. 91 коп. | E32: в т.ч.ПДВ- | F32: 5734.484959
A33: 43.21.1 Роботи електромонтажні(45310000-3 Електромонтажні роботи(повірка контурів заземлення) | B33: 2240 | C33: 745 | D33: Сімсот сорок п'ять грн. 0 коп. | E33: в т.ч.ПДВ- | F33: 124.1666667
A34: 38.11.6 Послуги підприємств щодо перевезення інших безпечних відходів(90512000-9 Послуги з перевезення сміття) | B34: 2240 | C34: 7278 | D34: Сім тисяч двісті сімдесят вісім грн. 0 коп. | E34: в т.ч.ПДВ- | F34: 1213
A35: 02.40.1 Послуги, пов’язані з лісівництвом (77200000-2 Послуги у сфері лісівництва)(видалення сухостою) | B35: 2240 | C35: 43197 | D35: Сорок три тисячі сто дев'яносто сім грн. 0 коп. | E35: в т.ч.ПДВ- | F35: 7199.5
A36: 36.00.2 Обробляння та розподіляння води трубопроводами(65110000-7 Розподіл води) | B36: 2272 | C36: 14939.3832 | D36: Чотирнадцять тисяч дев'ятсот тридцять дев'ять грн. 38 коп. | E36: в т.ч.ПДВ- | F36: 2489.8972
A37: 37.00.1 Послуги каналізаційні(90400000-1 Послуги у сфері водовідведення) | B37: 2272 | C37: 27959.6168 | D37: Двадцять сім тисяч дев'ятсот п'ятдесят дев'ять грн. 62 коп. | E37: в т.ч.ПДВ- | F37: 4659.936133
A38: 35.11.1 Енергія електрична (09310000-5 Електрична енергія) | B38: 2273 | C38: 82627 | D38: Вісімдесят дві тисячі шістсот двадцять сім грн. 0 коп. | E38: в т.ч.ПДВ- | F38: 13771.16667
A39: 61.10.1 Послуги щодо передавання даних і повідомлень(64211000-8 Послуги громадського телефонного звязку) | B39: 2240 | C39: 2117 | D39: Дві тисячі сто сімнадцять грн. 0 коп. | E39: в т.ч.ПДВ- | F39: 352.8333333
A40: Поточний ремонт будівель (45400000-1 Завершальні будівельні роботи) | B40: 2240 | C40: 38400 | D40: Тридцять вісім тисяч чотириста грн. 0 коп. | E40: в т.ч.ПДВ- | F40: 6400
A41: 91.01.1 Послуги бібліотек і архівів(92512000-3 Послуги архівів) | B41: 2240 | C41: 711 | D41: Сімсот одинадцять грн. 0 коп. | E41: без ПДВ
A42: 71.20.1 Послуги щодо технічного випробування й аналізування(71632000-7 Послуги з технічних випробувань (повірка,атестація) | B42: 2240 | C42: 1594 | D42: Одна тисячa п'ятсот дев'яносто чотири грн. 0 коп. | E42: в т.ч.ПДВ- | F42: 265.6666667
A43: 58.29.1 Програмне забезпечення системне на фізичних носіях(48443000-5 Пакети програмного забезпечення для бухгалтерського обліку) | B43: 2240 | C43: 7392 | D43: Сім тисяч триста дев'яносто дві грн. 0 коп. | E43: в т.ч.ПДВ- | F43: 1232
A44: 31.09.1 Меблі, інші (39161000-8 Меблі для дитячого садка) | B44: 3110 | C44: 20400 | D44: Двадцять тисяч чотириста грн. 0 коп. | E44: в т.ч.ПДВ- | F44: 3400
A45: 85.60.1 Послуги освітянські допоміжні (80570000-0 Послуги з професійної підготовки у сфері підвищення кваліфікації) | B45: 2282 | C45: 349 | D45: Триста сорок дев'ять грн. 0 коп. | E45: в т.ч.ПДВ- | F45: 58.16666667
A47: Затверджений рішенням комітету з конкурсних торгів від__________№_______
A49: Голова комітету з конкурсних торгів _______________________Н.І.Ягніч
A50: (підпис) (ініціали та прізвище)
A51: МП

Sheet 46
A1: Додаток до річного плану закупівель на 2016 рік
A2: Дошкільний навчальний заклад № 46, 26243941
A3: (найменування замовника,код за ЄДРПОУ)
A4: Предмет закупівлі | B4: Код КЕКВ (для бюджетних коштів) | C4: Очікувана вартість предмета закупівлі | G4: Процедура закупівлі | H4: Орієнтовний початок проведення процедури закупівлі | I4: Примітки
A5: 1 | B5: 2 | C5: 3 | G5: 4 | H5: 5 | I5: 6
A6: 10.73.1 Макарони,локшина,кускус і подібні борошняні вироби(15851000-8 Борошняні вироби(макарони) | B6: 2230 | C6: 4416.678876 | D6: =SUMINWORDS(C6,"грн.","коп.") -> Чотири тисячі чотириста шістнадцять грн. 68 коп. | E6: в т.ч.ПДВ- | F6: =C6/6 -> 736.1131459
A7: 10.11.1 М'ясо великої рогатої худоби,свиней,овець,кіз,коней та ін..тварин родини конячих,свіже чиа охолоджене(15111000-9 М'ясо великої рогатої худоби родини бикових(яловичина) | B7: 2230 | C7: 148043.24 | D7: =SUMINWORDS(C7,"грн.","коп.") -> Сто сорок вісім тисяч сорок три грн. 24 коп. | E7: в т.ч.ПДВ- | F7: =C7/6 -> 24673.87334
A8: 10.12.1 М'ясо свійської птиці,свіже чи охолоджене(15112000-6 М'ясо свійської птиці) | B8: 2230 | C8: 57020.39152 | D8: =SUMINWORDS(C8,"грн.","коп.") -> П'ятдесят сім тисяч двадцять грн. 39 коп. | E8: в т.ч.ПДВ- | F8: 9503.398587
A9: 10.12.4 Субпродукти харчові свійської птиці(15114000-0 Потрухи(печінка) | B9: 2230 | C9: 16087.99164 | D9: =SUMINWORDS(C9,"грн.","коп.") -> Шістнадцять тисяч вісімдесят сім грн. 99 коп. | E9: в т.ч.ПДВ- | F9: 2681.331939
A10: 10.13.1.Консерви та готові страви з м’яса,м’ясних субпродуктів чи крові (15130000-8 Мясопродукти (ковбаса,сосиски) | B10: 2230 | C10: 48304.29569 | D10: Сорок вісім тисяч триста чотири грн. 30 коп. | E10: в т.ч.ПДВ- | F10: 8050.715949
A11: 10.20.1 Продукція рибна,свіжа,охолоджена чи заморожена (15221000-3 Морожена риба) | B11: 2230 | C11: 113404.1784 | D11: Сто тринадцять тисяч чотириста чотири грн. 18 коп. | E11: в т.ч.ПДВ- | F11: 18900.69641
A12: 01.24.1 Яблука (03222000-3 Фрукти і горіхи(яблука,апельсини,лимони,ягоди) | B12: 2230 | C12: 47939.3707 | D12: Сорок сім тисяч дев'ятсот тридцять дев'ять грн. 37 коп. | E12: в т.ч.ПДВ- | F12: 7989.895117
A13: 10.39.1 Плоди та овочі,оброблені та законсервовані,крім картоплі(15331000-7 Оброблені овочі(консерви овочеві) | B13: 2230 | C13: 34170.66301 | D13: Тридцять чотири тисячі сто сімдесят грн. 66 коп. | E13: в т.ч.ПДВ- | F13: 5695.110501
A14: 10.72.1 Вироби хлібобулочні,зниженої вологості,та кондитерські,борошняні,тривалого зберігання(15820000-2 Сухарі та печиво; пресерви з хлібобулочних і кондитерських виробів (печиво) | B14: 2230 | C14: 11547.66522 | D14: Одинадцять тисяч п'ятсот сорок сім грн. 67 коп. | E14: в т.ч.ПДВ- | F14: 1924.610871
A15: 10.71.1 Вироби хлібобулочні,кондитерські та кулінарні,борошняні,нетривалого зберігання(15810000-9 Хлібопродукти, свіжовипечені хлібобулочні та кондитерські вироби) | B15: 2230 | C15: 43675.19902 | D15: Сорок три тисячі шістсот сімдесят п'ять грн. 20 коп. | E15: в т.ч.ПДВ- | F15: 7279.199836
A16: 10.51.1 Молоко та вершки,рідинні,оброблені(15511000-3 Молоко) | B16: 2230 | C16: 175676.2468 | D16: Сто сімдесят п'ять тисяч шістсот сімдесят шість грн. 25 коп. | E16: в т.ч.ПДВ- | F16: 29279.37447
A17: 10.51.5 Продукти молочні, інші (15550000-8 Молочні продукти різні (кефір,сметана) | B17: 2230 | C17: 32600.14802 | D17: Тридцять дві тисячі шістсот грн. 15 коп. | E17: в т.ч.ПДВ- | F17: 5433.358004
A18: 10.51.4 Сир сичужний та кисломолочний сир(15540000-5 Сирні продукти) | B18: 2230 | C18: 122612.352 | D18: Сто двадцять дві тисячі шістсот дванадцять грн. 35 коп. | E18: в т.ч.ПДВ- | F18: 20435.39201
A19: 10.32.1 Соки фруктові та овочеві (15321000-4 Фруктові соки) | B19: 2230 | C19: 32617.3216 | D19: Тридцять дві тисячі шістсот сімнадцять грн. 32 коп. | E19: в т.ч.ПДВ- | F19: 5436.220266
A20: 10.61.2 Борошно зернових і овочевих культур;їхні суміші(15612000-1 Борошно зернових та овочевих культур і супутня продукція) | B20: 2230 | C20: 7138.20654 | D20: Сім тисяч сто тридцять вісім грн. 21 коп. | E20: в т.ч.ПДВ- | F20: 1189.70109
A21: 10.61.1 Рис напівобрушений чи повністю обрушений,або лущений чи дроблений(15614000-5 Рис оброблений) | B21: 2230 | C21: 3515.157419 | D21: Три тисячі п'ятсот п'ятнадцять грн. 16 коп. | E21: в т.ч.ПДВ- | F21: 585.8595698
A22: 0.81.1 Цукор-сирець,тростинний і очищений тростинний чи буряковий цукор (сахароза);меляса (15831000-2 Цукор) | B22: 2230 | C22: 31735.3005 | D22: Тридцять одна тисячa сімсот тридцять п'ять грн. 30 коп. | E22: в т.ч.ПДВ- | F22: 5289.21675
A23: 10.39.2 Плоди й горіхи,оброблені та законсервовані(15332000-4 Оброблені фрукти та горіхи(повидло,сухофрукти) | B23: 2230 | C23: 21024.44634 | D23: Двадцять одна тисячa двадцять чотири грн. 45 коп. | E23: в т.ч.ПДВ- | F23: 3504.074391
A24: 10.51.3 Масло вершкове та молочні пасти(15530000-2 Вершкове масло) | B24: 2230 | C24: 56071.4894 | D24: П'ятдесят шість тисяч сімдесят одна грн. 49 коп. | E24: в т.ч.ПДВ- | F24: 9345.248233
A25: 01.47.2 Яйця у шкаралупі свіжі (03142000-8 Продукція тваринництва (03142500-3 Яйця) | B25: 2230 | C25: 42740.02791 | D25: Сорок дві тисячі сімсот сорок грн. 3 коп. | E25: в т.ч.ПДВ- | F25: 7123.337984
A26: 10.41.5 Олії рафіновані(15421000-5 Рафіновані олії) | B26: 2230 | C26: 12689.42902 | D26: Дванадцять тисяч шістсот вісімдесят дев'ять грн. 43 коп. | E26: в т.ч.ПДВ- | F26: 2114.904836
A27: 10.61.3 Крупи,крупка,гранули та інші продукти з зерна зернових культур(15613000-8 Продукція із зерна зернових культур(крупи) | B27: 2230 | C27: 13262.86605 | D27: Тринадцять тисяч двісті шістдесят дві грн. 87 коп. | E27: в т.ч.ПДВ- | F27: 2210.477675
A28: 10.82.1 Какао терте,какао-масло,жири й олія,какао-порошок(15841000-5 Какао) | B28: 2230 | C28: 16063.79917 | D28: Шістнадцять тисяч шістдесят три грн. 80 коп. | E28: в т.ч.ПДВ- | F28: 2677.299861
A29: 10.83.1 Чай і кава,оброблені(15860000-4 Кава, чай та супутня продукція) | B29: 2230 | C29: 16556.71621 | D29: Шістнадцять тисяч п'ятсот п'ятдесят шість грн. 72 коп. | E29: в т.ч.ПДВ- | F29: 2759.452701
A30: 10.84.3 Сіль харчова(14410000-8 Камяна сіль) | B30: 2230 | C30: 628.1704738 | D30: Шістсот двадцять вісім грн. 17 коп. | E30: в т.ч.ПДВ- | F30: 104.695079
A31: 01.13.5 Коренеплоди та бульби їстівні з високим умістом крохмалю та інуліну(03212000-0 Картопля та сушені овочі) | B31: 2230 | C31: 44015.31972 | D31: Сорок чотири тисячі п'ятнадцять грн. 32 коп. | E31: в т.ч.ПДВ- | F31: 7335.88662
A32: 01.13.4 Овочі коренеплодні,цибулинні та бульбоподібні(03221000-6 Овочі) | B32: 2230 | C32: 54301.32869 | D32: П'ятдесят чотири тисячі триста одна грн. 33 коп. | E32: в т.ч.ПДВ- | F32: 9050.221449
A33: 43.21.1 Роботи електромонтажні(45310000-3 Електромонтажні роботи(повірка контурів заземлення) | B33: 2240 | C33: 745 | D33: Сімсот сорок п'ять грн. 0 коп. | E33: в т.ч.ПДВ- | F33: 124.1666667
A34: 38.11.6 Послуги підприємств щодо перевезення інших безпечних відходів(90512000-9 Послуги з перевезення сміття) | B34: 2240 | C34: 5540 | D34: П'ять тисяч п'ятсот сорок грн. 0 коп. | E34: в т.ч.ПДВ- | F34: 923.3333333
A35: Капітальний ремонт будівель (45000000-7 Будівельні роботи) | B35: 3132 | C35: 375000 | D35: Триста сімдесят п'ять тисяч грн. 0 коп. | E35: в т.ч.ПДВ- | F35: 62500
A36: 36.00.2 Обробляння та розподіляння води трубопроводами(65110000-7 Розподіл води) | B36: 2272 | C36: 34660.08 | D36: Тридцять чотири тисячі шістсот шістдесят грн. 8 коп. | E36: в т.ч.ПДВ- | F36: 5776.68
A37: 37.00.1 Послуги каналізаційні(90400000-1 Послуги у сфері водовідведення) | B37: 2272 | C37: 30598.92 | D37: Тридцять тисяч п'ятсот дев'яносто вісім грн. 92 коп. | E37: в т.ч.ПДВ- | F37: 5099.82
A38: 35.11.1 Енергія електрична (09310000-5 Електрична енергія) | B38: 2273 | C38: 134834 | D38: Сто тридцять чотири тисячі вісімсот тридцять чотири грн. 0 коп. | E38: в т.ч.ПДВ- | F38: 22472.33333
A39: 61.10.1 Послуги щодо передавання даних і повідомлень(64211000-8 Послуги громадського телефонного звязку) | B39: 2240 | C39: 1593 | D39: Одна тисячa п'ятсот дев'яносто три грн. 0 коп. | E39: в т.ч.ПДВ- | F39: 265.5
A40: Поточний ремонт будівель (45400000-1 Завершальні будівельні роботи) | B40: 2240 | C40: 39000 | D40: Тридцять дев'ять тисяч грн. 0 коп. | E40: в т.ч.ПДВ- | F40: 6500
A41: 91.01.1 Послуги бібліотек і архівів(92512000-3 Послуги архівів) | B41: 2240 | C41: 1093 | D41: Одна тисячa дев'яносто три грн. 0 коп. | E41: без ПДВ
A42: 71.20.1 Послуги щодо технічного випробування й аналізування(71632000-7 Послуги з технічних випробувань (повірка,атестація) | B42: 2240 | C42: 1300 | D42: Одна тисячa триста грн. 0 коп. | E42: в т.ч.ПДВ- | F42: 216.6666667
A43: 58.29.1 Програмне забезпечення системне на фізичних носіях(48443000-5 Пакети програмного забезпечення для бухгалтерського обліку) | B43: 2240 | C43: 7392 | D43: Сім тисяч триста дев'яносто дві грн. 0 коп. | E43: в т.ч.ПДВ- | F43: 1232
A44: 27.51.2 Прилади електричні побутові,інші,н.в.і.у.(39711000-9 Електричні побутові прилади для обробки продуктів харчування) | B44: 3110 | C44: 134200 | D44: Сто тридцять чотири тисячі двісті грн. 0 коп. | E44: в т.ч.ПДВ- | F44: 22366.66667
A46: Затверджений рішенням комітету з конкурсних торгів від__________№_______
A48: Голова комітету з конкурсних торгів _______________________Н.М.Кірєєва
A49: (підпис) (ініціали та прізвище)
A50: МП

Sheet 47
A1: Додаток до річного плану закупівель на 2016 рік
A2: Дошкільний навчальний заклад № 47, 26243601
A3: (найменування замовника,код за ЄДРПОУ)
A4: Предмет закупівлі | B4: Код КЕКВ (для бюджетних коштів) | C4: Очікувана вартість предмета закупівлі | G4: Процедура закупівлі | H4: Орієнтовний початок проведення процедури закупівлі | I4: Примітки
A5: 1 | B5: 2 | C5: 3 | G5: 4 | H5: 5 | I5: 6
A6: 10.73.1 Макарони,локшина,кускус і подібні борошняні вироби(15851000-8 Борошняні вироби(макарони) | B6: 2230 | C6: 2512.618809 | D6: =SUMINWORDS(C6,"грн.","коп.") -> Дві тисячі п'ятсот дванадцять грн. 62 коп. | E6: в т.ч.ПДВ- | F6: =C6/6 -> 418.7698015
A7: 10.11.1 М'ясо великої рогатої худоби,свиней,овець,кіз,коней та ін..тварин родини конячих,свіже чиа охолоджене(15111000-9 М'ясо великої рогатої худоби родини бикових(яловичина) | B7: 2230 | C7: 85029.63738 | D7: =SUMINWORDS(C7,"грн.","коп.") -> Вісімдесят п'ять тисяч двадцять дев'ять грн. 64 коп. | E7: в т.ч.ПДВ- | F7: =C7/6 -> 14171.60623
A8: 10.12.1 М'ясо свійської птиці,свіже чи охолоджене(15112000-6 М'ясо свійської птиці) | B8: 2230 | C8: 32835.43902 | D8: =SUMINWORDS(C8,"грн.","коп.") -> Тридцять дві тисячі вісімсот тридцять п'ять грн. 44 коп. | E8: в т.ч.ПДВ- | F8: 5472.573169
A9: 10.12.4 Субпродукти харчові свійської птиці(15114000-0 Потрухи(печінка) | B9: 2230 | C9: 9352.012382 | D9: =SUMINWORDS(C9,"грн.","коп.") -> Дев'ять тисяч триста п'ятдесят дві грн. 1 коп. | E9: в т.ч.ПДВ- | F9: 1558.66873
A10: 10.13.1.Консерви та готові страви з м’яса,м’ясних субпродуктів чи крові (15130000-8 Мясопродукти (ковбаса,сосиски) | B10: 2230 | C10: 28079.47577 | D10: Двадцять вісім тисяч сімдесят дев'ять грн. 48 коп. | E10: в т.ч.ПДВ- | F10: 4679.912629
A11: 10.20.1 Продукція рибна,свіжа,охолоджена чи заморожена (15221000-3 Морожена риба) | B11: 2230 | C11: 66198.96251 | D11: Шістдесят шість тисяч сто дев'яносто вісім грн. 96 коп. | E11: в т.ч.ПДВ- | F11: 11033.16042
A12: 01.24.1 Яблука (03222000-3 Фрукти і горіхи(яблука,апельсини,лимони,ягоди) | B12: 2230 | C12: 27911.528 | D12: Двадцять сім тисяч дев'ятсот одинадцять грн. 53 коп. | E12: в т.ч.ПДВ- | F12: 4651.921333
A13: 10.39.1 Плоди та овочі,оброблені та законсервовані,крім картоплі(15331000-7 Оброблені овочі(консерви овочеві) | B13: 2230 | C13: 19253.07114 | D13: Дев'ятнадцять тисяч двісті п'ятдесят три грн. 7 коп. | E13: в т.ч.ПДВ- | F13: 3208.845189
A14: 10.72.1 Вироби хлібобулочні,зниженої вологості,та кондитерські,борошняні,тривалого зберігання(15820000-2 Сухарі та печиво; пресерви з хлібобулочних і кондитерських виробів (печиво) | B14: 2230 | C14: 6869.152793 | D14: Шість тисяч вісімсот шістдесят дев'ять грн. 15 коп. | E14: в т.ч.ПДВ- | F14: 1144.858799
A15: 10.71.1 Вироби хлібобулочні,кондитерські та кулінарні,борошняні,нетривалого зберігання(15810000-9 Хлібопродукти, свіжовипечені хлібобулочні та кондитерські вироби) | B15: 2230 | C15: 24947.60827 | D15: Двадцять чотири тисячі дев'ятсот сорок сім грн. 61 коп. | E15: в т.ч.ПДВ- | F15: 4157.934712
A16: 10.51.1 Молоко та вершки,рідинні,оброблені(15511000-3 Молоко) | B16: 2230 | C16: 97303.68491 | D16: Дев'яносто сім тисяч триста три грн. 68 коп. | E16: в т.ч.ПДВ- | F16: 16217.28082
A17: 10.51.5 Продукти молочні, інші (15550000-8 Молочні продукти різні (кефір,сметана) | B17: 2230 | C17: 18582.03355 | D17: Вісімнадцять тисяч п'ятсот вісімдесят дві грн. 3 коп. | E17: в т.ч.ПДВ- | F17: 3097.005592
A18: 10.51.4 Сир сичужний та кисломолочний сир(15540000-5 Сирні продукти) | B18: 2230 | C18: 69005.23084 | D18: Шістдесят дев'ять тисяч п'ять грн. 23 коп. | E18: в т.ч.ПДВ- | F18: 11500.87181
A19: 10.32.1 Соки фруктові та овочеві (15321000-4 Фруктові соки) | B19: 2230 | C19: 18446.28505 | D19: Вісімнадцять тисяч чотириста сорок шість грн. 29 коп. | E19: в т.ч.ПДВ- | F19: 3074.380842
A20: 10.61.2 Борошно зернових і овочевих культур;їхні суміші(15612000-1 Борошно зернових та овочевих культур і супутня продукція) | B20: 2230 | C20: 4095.405634 | D20: Чотири тисячі дев'яносто п'ять грн. 41 коп. | E20: в т.ч.ПДВ- | F20: 682.5676057
A21: 10.61.1 Рис напівобрушений чи повністю обрушений,або лущений чи дроблений(15614000-5 Рис оброблений) | B21: 2230 | C21: 1987.949732 | D21: Одна тисячa дев'ятсот вісімдесят сім грн. 95 коп. | E21: в т.ч.ПДВ- | F21: 331.3249554
A22: 0.81.1 Цукор-сирець,тростинний і очищений тростинний чи буряковий цукор (сахароза);меляса (15831000-2 Цукор) | B22: 2230 | C22: 17809.29915 | D22: Сімнадцять тисяч вісімсот дев'ять грн. 30 коп. | E22: в т.ч.ПДВ- | F22: 2968.216526
A23: 10.39.2 Плоди й горіхи,оброблені та законсервовані(15332000-4 Оброблені фрукти та горіхи(повидло,сухофрукти) | B23: 2230 | C23: 11632.39849 | D23: Одинадцять тисяч шістсот тридцять дві грн. 40 коп. | E23: в т.ч.ПДВ- | F23: 1938.733081
A24: 10.51.3 Масло вершкове та молочні пасти(15530000-2 Вершкове масло) | B24: 2230 | C24: 32289.00962 | D24: Тридцять дві тисячі двісті вісімдесят дев'ять грн. 1 коп. | E24: в т.ч.ПДВ- | F24: 5381.501604
A25: 01.47.2 Яйця у шкаралупі свіжі (03142000-8 Продукція тваринництва (03142500-3 Яйця) | B25: 2230 | C25: 24844.94518 | D25: Двадцять чотири тисячі вісімсот сорок чотири грн. 95 коп. | E25: в т.ч.ПДВ- | F25: 4140.824196
A26: 10.41.5 Олії рафіновані(15421000-5 Рафіновані олії) | B26: 2230 | C26: 7218.930541 | D26: Сім тисяч двісті вісімнадцять грн. 93 коп. | E26: в т.ч.ПДВ- | F26: 1203.15509
A27: 10.61.3 Крупи,крупка,гранули та інші продукти з зерна зернових культур(15613000-8 Продукція із зерна зернових культур(крупи) | B27: 2230 | C27: 7517.562544 | D27: Сім тисяч п'ятсот сімнадцять грн. 56 коп. | E27: в т.ч.ПДВ- | F27: 1252.927091
A28: 10.82.1 Какао терте,какао-масло,жири й олія,какао-порошок(15841000-5 Какао) | B28: 2230 | C28: 9337.949206 | D28: Дев'ять тисяч триста тридцять сім грн. 95 коп. | E28: в т.ч.ПДВ- | F28: 1556.324868
A29: 10.83.1 Чай і кава,оброблені(15860000-4 Кава, чай та супутня продукція) | B29: 2230 | C29: 9886.424549 | D29: Дев'ять тисяч вісімсот вісімдесят шість грн. 42 коп. | E29: в т.ч.ПДВ- | F29: 1647.737425
A30: 10.84.3 Сіль харчова(14410000-8 Камяна сіль) | B30: 2230 | C30: 370.1723698 | D30: Триста сімдесят грн. 17 коп. | E30: в т.ч.ПДВ- | F30: 61.69539497
A31: 01.13.5 Коренеплоди та бульби їстівні з високим умістом крохмалю та інуліну(03212000-0 Картопля та сушені овочі) | B31: 2230 | C31: 24985.17374 | D31: Двадцять чотири тисячі дев'ятсот вісімдесят п'ять грн. 17 коп. | E31: в т.ч.ПДВ- | F31: 4164.195624
A32: 01.13.4 Овочі коренеплодні,цибулинні та бульбоподібні(03221000-6 Овочі) | B32: 2230 | C32: 30433.03843 | D32: Тридцять тисяч чотириста тридцять три грн. 4 коп. | E32: в т.ч.ПДВ- | F32: 5072.173072
A33: 43.21.1 Роботи електромонтажні(45310000-3 Електромонтажні роботи(повірка контурів заземлення) | B33: 2240 | C33: 745 | D33: Сімсот сорок п'ять грн. 0 коп. | E33: в т.ч.ПДВ- | F33: 124.1666667
A34: 38.11.6 Послуги підприємств щодо перевезення інших безпечних відходів(90512000-9 Послуги з перевезення сміття) | B34: 2240 | C34: 7260 | D34: Сім тисяч двісті шістдесят грн. 0 коп. | E34: в т.ч.ПДВ- | F34: 1210
A35: 36.00.2 Обробляння та розподіляння води трубопроводами(65110000-7 Розподіл води) | B35: 2272 | C35: 22893.4272 | D35: Двадцять дві тисячі вісімсот дев'яносто три грн. 43 коп. | E35: в т.ч.ПДВ- | F35: 3815.5712
A36: 37.00.1 Послуги каналізаційні(90400000-1 Послуги у сфері водовідведення) | B36: 2272 | C36: 19920.5728 | D36: Дев'ятнадцять тисяч дев'ятсот двадцять грн. 57 коп. | E36: в т.ч.ПДВ- | F36: 3320.095467
A37: 35.11.1 Енергія електрична (09310000-5 Електрична енергія) | B37: 2273 | C37: 79492 | D37: Сімдесят дев'ять тисяч чотириста дев'яносто дві грн. 0 коп. | E37: в т.ч.ПДВ- | F37: 13248.66667
A38: 61.10.1 Послуги щодо передавання даних і повідомлень(64211000-8 Послуги громадського телефонного звязку) | B38: 2240 | C38: 1591 | D38: Одна тисячa п'ятсот дев'яносто одна грн. 0 коп. | E38: в т.ч.ПДВ- | F38: 265.1666667
A39: Поточний ремонт будівель (45400000-1 Завершальні будівельні роботи) | B39: 2240 | C39: 53100 | D39: П'ятдесят три тисячі сто грн. 0 коп. | E39: в т.ч.ПДВ- | F39: 8850
A40: 91.01.1 Послуги бібліотек і архівів(92512000-3 Послуги архівів) | B40: 2240 | C40: 606 | D40: Шістсот шість грн. 0 коп. | E40: без ПДВ
A41: 58.29.1 Програмне забезпечення системне на фізичних носіях(48443000-5 Пакети програмного забезпечення для бухгалтерського обліку) | B41: 2240 | C41: 7392 | D41: Сім тисяч триста дев'яносто дві грн. 0 коп. | E41: в т.ч.ПДВ- | F41: 1232
A42: 25.29.1 Цистерни,резервуари та вмістища металеві,інші(34221000-2 Пересувні контейнери спеціального призначення(Контейнер для сміття) | B42: 3110 | C42: 7000 | D42: Сім тисяч грн. 0 коп. | E42: в т.ч.ПДВ- | F42: 1166.666667
A43: 31.09.1 Меблі, інші (39161000-8 Меблі для дитячого садка) | B43: 3110 | C43: 88400 | D43: Вісімдесят вісім тисяч чотириста грн. 0 коп. | E43: в т.ч.ПДВ- | F43: 14733.33333
A44: 26.51.6 Інструменти та прилади вимірювальні,контрольні та випробувальні,інші(38421000-0 Прилади для вимірювання витрати рідин і газів) | B44: 3110 | C44: 13395 | D44: Тринадцять тисяч триста дев'яносто п'ять грн. 0 коп. | E44: в т.ч.ПДВ- | F44: 2232.5
A45: 28.99.3 Машини й устаткування спеціальної призначеності,н.в.і.у.(37535000-7 Каруселі,гойдалки,тири та інші атракціони) | B45: 3110 | C45: 77450 | D45: Сімдесят сім тисяч чотириста п'ятдесят грн. 0 коп. | E45: в т.ч.ПДВ- | F45: 12908.33333
A47: Затверджений рішенням комітету з конкурсних торгів від__________№_______
A49: Голова комітету з конкурсних торгів _______________________В.М.Кудряшова
A50: (підпис) (ініціали та прізвище)
A51: МП

Sheet 50
A1: Додаток до річного плану закупівель на 2016 рік
A2: Дошкільний навчальний заклад № 50, 37028304
A3: (найменування замовника,код за ЄДРПОУ)
A4: Предмет закупівлі | B4: Код КЕКВ (для бюджетних коштів) | C4: Очікувана вартість предмета закупівлі | G4: Процедура закупівлі | H4: Орієнтовний початок проведення процедури закупівлі | I4: Примітки
A5: 1 | B5: 2 | C5: 3 | G5: 4 | H5: 5 | I5: 6
A6: 10.73.1 Макарони,локшина,кускус і подібні борошняні вироби(15851000-8 Борошняні вироби(макарони) | B6: 2230 | C6: 2117.03525 | D6: =SUMINWORDS(C6,"грн.","коп.") -> Дві тисячі сто сімнадцять грн. 4 коп. | E6: в т.ч.ПДВ- | F6: =C6/6 -> 352.8392083
A7: 10.11.1 М'ясо великої рогатої худоби,свиней,овець,кіз,коней та ін..тварин родини конячих,свіже чиа охолоджене(15111000-9 М'ясо великої рогатої худоби родини бикових(яловичина) | B7: 2230 | C7: 69149.84586 | D7: =SUMINWORDS(C7,"грн.","коп.") -> Шістдесят дев'ять тисяч сто сорок дев'ять грн. 85 коп. | E7: в т.ч.ПДВ- | F7: =C7/6 -> 11524.97431
A8: 10.12.1 М'ясо свійської птиці,свіже чи охолоджене(15112000-6 М'ясо свійської птиці) | B8: 2230 | C8: 27522.27296 | D8: =SUMINWORDS(C8,"грн.","коп.") -> Двадцять сім тисяч п'ятсот двадцять дві грн. 27 коп. | E8: в т.ч.ПДВ- | F8: 4587.045494
A9: 10.12.4 Субпродукти харчові свійської птиці(15114000-0 Потрухи(печінка) | B9: 2230 | C9: 7807.410959 | D9: =SUMINWORDS(C9,"грн.","коп.") -> Сім тисяч вісімсот сім грн. 41 коп. | E9: в т.ч.ПДВ- | F9: 1301.23516
A10: 10.13.1.Консерви та готові страви з м’яса,м’ясних субпродуктів чи крові (15130000-8 Мясопродукти (ковбаса,сосиски) | B10: 2230 | C10: 23441.80032 | D10: Двадцять три тисячі чотириста сорок одна грн. 80 коп. | E10: в т.ч.ПДВ- | F10: 3906.96672
A11: 10.20.1 Продукція рибна,свіжа,охолоджена чи заморожена (15221000-3 Морожена риба) | B11: 2230 | C11: 55167.42389 | D11: П'ятдесят п'ять тисяч сто шістдесят сім грн. 42 коп. | E11: в т.ч.ПДВ- | F11: 9194.570648
A12: 01.24.1 Яблука (03222000-3 Фрукти і горіхи(яблука,апельсини,лимони,ягоди) | B12: 2230 | C12: 23285.94775 | D12: Двадцять три тисячі двісті вісімдесят п'ять грн. 95 коп. | E12: в т.ч.ПДВ- | F12: 3880.991292
A13: 10.39.1 Плоди та овочі,оброблені та законсервовані,крім картоплі(15331000-7 Оброблені овочі(консерви овочеві) | B13: 2230 | C13: 16289.32185 | D13: Шістнадцять тисяч двісті вісімдесят дев'ять грн. 32 коп. | E13: в т.ч.ПДВ- | F13: 2714.886975
A14: 10.72.1 Вироби хлібобулочні,зниженої вологості,та кондитерські,борошняні,тривалого зберігання(15820000-2 Сухарі та печиво; пресерви з хлібобулочних і кондитерських виробів (печиво) | B14: 2230 | C14: 5679.235765 | D14: П'ять тисяч шістсот сімдесят дев'ять грн. 24 коп. | E14: в т.ч.ПДВ- | F14: 946.5392942
A15: 10.71.1 Вироби хлібобулочні,кондитерські та кулінарні,борошняні,нетривалого зберігання(15810000-9 Хлібопродукти, свіжовипечені хлібобулочні та кондитерські вироби) | B15: 2230 | C15: 20983.31933 | D15: Двадцять тисяч дев'ятсот вісімдесят три грн. 32 коп. | E15: в т.ч.ПДВ- | F15: 3497.219888
A16: 10.51.1 Молоко та вершки,рідинні,оброблені(15511000-3 Молоко) | B16: 2230 | C16: 82938.43271 | D16: Вісімдесят дві тисячі дев'ятсот тридцять вісім грн. 43 коп. | E16: в т.ч.ПДВ- | F16: 13823.07212
A17: 10.51.5 Продукти молочні, інші (15550000-8 Молочні продукти різні (кефір,сметана) | B17: 2230 | C17: 15643.46705 | D17: П'ятнадцять тисяч шістсот сорок три грн. 47 коп. | E17: в т.ч.ПДВ- | F17: 2607.244509
A18: 10.51.4 Сир сичужний та кисломолочний сир(15540000-5 Сирні продукти) | B18: 2230 | C18: 58411.77854 | D18: П'ятдесят вісім тисяч чотириста одинадцять грн. 78 коп. | E18: в т.ч.ПДВ- | F18: 9735.296424
A19: 10.32.1 Соки фруктові та овочеві (15321000-4 Фруктові соки) | B19: 2230 | C19: 15581.73512 | D19: П'ятнадцять тисяч п'ятсот вісімдесят одна грн. 74 коп. | E19: в т.ч.ПДВ- | F19: 2596.955854
A20: 10.61.2 Борошно зернових і овочевих культур;їхні суміші(15612000-1 Борошно зернових та овочевих культур і супутня продукція) | B20: 2230 | C20: 3438.138798 | D20: Три тисячі чотириста тридцять вісім грн. 14 коп. | E20: в т.ч.ПДВ- | F20: 573.023133
A21: 10.61.1 Рис напівобрушений чи повністю обрушений,або лущений чи дроблений(15614000-5 Рис оброблений) | B21: 2230 | C21: 1679.238182 | D21: Одна тисячa шістсот сімдесят дев'ять грн. 24 коп. | E21: в т.ч.ПДВ- | F21: 279.8730303
A22: 0.81.1 Цукор-сирець,тростинний і очищений тростинний чи буряковий цукор (сахароза);меляса (15831000-2 Цукор) | B22: 2230 | C22: 15093.9507 | D22: П'ятнадцять тисяч дев'яносто три грн. 95 коп. | E22: в т.ч.ПДВ- | F22: 2515.65845
A23: 10.39.2 Плоди й горіхи,оброблені та законсервовані(15332000-4 Оброблені фрукти та горіхи(повидло,сухофрукти) | B23: 2230 | C23: 9919.766106 | D23: Дев'ять тисяч дев'ятсот дев'ятнадцять грн. 77 коп. | E23: в т.ч.ПДВ- | F23: 1653.294351
A24: 10.51.3 Масло вершкове та молочні пасти(15530000-2 Вершкове масло) | B24: 2230 | C24: 27064.26237 | D24: Двадцять сім тисяч шістдесят чотири грн. 26 коп. | E24: в т.ч.ПДВ- | F24: 4510.710395
A25: 01.47.2 Яйця у шкаралупі свіжі (03142000-8 Продукція тваринництва (03142500-3 Яйця) | B25: 2230 | C25: 20741.49277 | D25: Двадцять тисяч сімсот сорок одна грн. 49 коп. | E25: в т.ч.ПДВ- | F25: 3456.915462
A26: 10.41.5 Олії рафіновані(15421000-5 Рафіновані олії) | B26: 2230 | C26: 6082.391155 | D26: Шість тисяч вісімдесят дві грн. 39 коп. | E26: в т.ч.ПДВ- | F26: 1013.731859
A27: 10.61.3 Крупи,крупка,гранули та інші продукти з зерна зернових культур(15613000-8 Продукція із зерна зернових культур(крупи) | B27: 2230 | C27: 6343.989088 | D27: Шість тисяч триста сорок три грн. 99 коп. | E27: в т.ч.ПДВ- | F27: 1057.331515
A28: 10.82.1 Какао терте,какао-масло,жири й олія,какао-порошок(15841000-5 Какао) | B28: 2230 | C28: 7795.670491 | D28: Сім тисяч сімсот дев'яносто п'ять грн. 67 коп. | E28: в т.ч.ПДВ- | F28: 1299.278415
A29: 10.83.1 Чай і кава,оброблені(15860000-4 Кава, чай та супутня продукція) | B29: 2230 | C29: 8160.818622 | D29: Вісім тисяч сто шістдесят грн. 82 коп. | E29: в т.ч.ПДВ- | F29: 1360.136437
A30: 10.84.3 Сіль харчова(14410000-8 Камяна сіль) | B30: 2230 | C30: 307.2584418 | D30: Триста сім грн. 26 коп. | E30: в т.ч.ПДВ- | F30: 51.2097403
A31: 01.13.5 Коренеплоди та бульби їстівні з високим умістом крохмалю та інуліну(03212000-0 Картопля та сушені овочі) | B31: 2230 | C31: 21071.38052 | D31: Двадцять одна тисячa сімдесят одна грн. 38 коп. | E31: в т.ч.ПДВ- | F31: 3511.896754
A32: 01.13.4 Овочі коренеплодні,цибулинні та бульбоподібні(03221000-6 Овочі) | B32: 2230 | C32: 25807.61522 | D32: Двадцять п'ять тисяч вісімсот сім грн. 62 коп. | E32: в т.ч.ПДВ- | F32: 4301.269203
A33: 43.21.1 Роботи електромонтажні(45310000-3 Електромонтажні роботи(повірка контурів заземлення) | B33: 2240 | C33: 745 | D33: Сімсот сорок п'ять грн. 0 коп. | E33: в т.ч.ПДВ- | F33: 124.1666667
A34: 38.11.6 Послуги підприємств щодо перевезення інших безпечних відходів(90512000-9 Послуги з перевезення сміття) | B34: 2240 | C34: 9167 | D34: Дев'ять тисяч сто шістдесят сім грн. 0 коп. | E34: в т.ч.ПДВ- | F34: 1527.833333
A35: 85.60.1 Послуги освітянські допоміжні (80570000-0 Послуги з професійної підготовки у сфері підвищення кваліфікації) | B35: 2282 | C35: 349 | D35: Триста сорок дев'ять грн. 0 коп. | E35: в т.ч.ПДВ- | F35: 58.16666667
A36: 36.00.2 Обробляння та розподіляння води трубопроводами(65110000-7 Розподіл води) | B36: 2272 | C36: 16263.576 | D36: Шістнадцять тисяч двісті шістдесят три грн. 58 коп. | E36: в т.ч.ПДВ- | F36: 2710.596
A37: 37.00.1 Послуги каналізаційні(90400000-1 Послуги у сфері водовідведення) | B37: 2272 | C37: 13587.424 | D37: Тринадцять тисяч п'ятсот вісімдесят сім грн. 42 коп. | E37: в т.ч.ПДВ- | F37: 2264.570667
A38: 35.11.1 Енергія електрична (09310000-5 Електрична енергія) | B38: 2273 | C38: 114551 | D38: Сто чотирнадцять тисяч п'ятсот п'ятдесят одна грн. 0 коп. | E38: в т.ч.ПДВ- | F38: 19091.83333
A39: 61.10.1 Послуги щодо передавання даних і повідомлень(64211000-8 Послуги громадського телефонного звязку) | B39: 2240 | C39: 2061 | D39: Дві тисячі шістдесят одна грн. 0 коп. | E39: в т.ч.ПДВ- | F39: 343.5
A40: 91.01.1 Послуги бібліотек і архівів(92512000-3 Послуги архівів) | B40: 2240 | C40: 461 | D40: Чотириста шістдесят одна грн. 0 коп. | E40: без ПДВ
A41: 58.29.1 Програмне забезпечення системне на фізичних носіях(48443000-5 Пакети програмного забезпечення для бухгалтерського обліку) | B41: 2240 | C41: 7392 | D41: Сім тисяч триста дев'яносто дві грн. 0 коп. | E41: в т.ч.ПДВ- | F41: 1232
A42: 13.93.1 Килими та килимові покриви(39533000-7 Килими) | B42: 3110 | C42: 72000 | D42: Сімдесят дві тисячі грн. 0 коп. | E42: в т.ч.ПДВ- | F42: 12000
A43: 31.09.1 Меблі, інші (39161000-8 Меблі для дитячого садка) | B43: 3110 | C43: 48000 | D43: Сорок вісім тисяч грн. 0 коп. | E43: в т.ч.ПДВ- | F43: 8000
B44: 2210 | C44: 130400 | D44: Сто тридцять тисяч чотириста грн. 0 коп. | E44: в т.ч.ПДВ- | F44: 21733.33333
A45: 23.41.1 Вироби господарські та декоративні керамічні(39221000-7 Кухонне приладдя(посуд) | B45: 2210 | C45: 107524 | D45: Сто сім тисяч п'ятсот двадцять чотири грн. 0 коп. | E45: в т.ч.ПДВ- | F45: 17920.66667
A46: 32.99.5 Вироби, інші, н.в.і.у.(35111000-5 Протипожежне обладнання) | B46: 2210 | C46: 91496 | D46: Дев'яносто одна тисячa чотириста дев'яносто шість грн. 0 коп. | E46: в т.ч.ПДВ- | F46: 15249.33333
A47: 27.52.1 Устатковання побутове неелектричне для приготування та підігрівання їжі(39314000-6 Промислове кухонне обладнання) | B47: 3110 | C47: 178902 | D47: Сто сімдесят вісім тисяч дев'ятсот дві грн. 0 коп. | E47: в т.ч.ПДВ- | F47: 29817
A48: 13.92.1 Вироби текстильні готові для домашнього господарства (39512000-4 Постільна білизна) | B48: 2210 | C48: 80652 | D48: Вісімдесят тисяч шістсот п'ятдесят дві грн. 0 коп. | E48: в т.ч.ПДВ- | F48: 13442
A49: 13.99.1 Тюль,мереживо та вишивка;нитки позументні та стрічкові нитки;пряжа синельна;пряжа фасонна петляста (39561000-2 Тюль,мереживо,вузькі тканини,оздоблювальні матеріали та вишиті вироби) | B49: 2210 | C49: 93600 | D49: Дев'яносто три тисячі шістсот грн. 0 коп. | E49: в т.ч.ПДВ- | F49: 15600
A51: Затверджений рішенням комітету з конкурсних торгів від__________№_______
A53: Голова комітету з конкурсних торгів _______________________Н.В.Сас
A54: (підпис) (ініціали та прізвище)
A55: МП

Sheet 51
A1: Додаток до річного плану закупівель на 2016 рік
A2: Дошкільний навчальний заклад № 51, 26243214
A3: (найменування замовника,код за ЄДРПОУ)
A4: Предмет закупівлі | B4: Код КЕКВ (для бюджетних коштів) | C4: Очікувана вартість предмета закупівлі | G4: Процедура закупівлі | H4: Орієнтовний початок проведення процедури закупівлі | I4: Примітки
A5: 1 | B5: 2 | C5: 3 | G5: 4 | H5: 5 | I5: 6
A6: 10.73.1 Макарони,локшина,кускус і подібні борошняні вироби(15851000-8 Борошняні вироби(макарони) | B6: 2230 | C6: 1778.508654 | D6: =SUMINWORDS(C6,"грн.","коп.") -> Одна тисячa сімсот сімдесят вісім грн. 51 коп. | E6: в т.ч.ПДВ- | F6: =C6/6 -> 296.418109
A7: 10.11.1 М'ясо великої рогатої худоби,свиней,овець,кіз,коней та ін..тварин родини конячих,свіже чиа охолоджене(15111000-9 М'ясо великої рогатої худоби родини бикових(яловичина) | B7: 2230 | C7: 63302.41493 | D7: =SUMINWORDS(C7,"грн.","коп.") -> Шістдесят три тисячі триста дві грн. 41 коп. | E7: в т.ч.ПДВ- | F7: =C7/6 -> 10550.40249
A8: 10.12.1 М'ясо свійської птиці,свіже чи охолоджене(15112000-6 М'ясо свійської птиці) | B8: 2230 | C8: 23063.90679 | D8: =SUMINWORDS(C8,"грн.","коп.") -> Двадцять три тисячі шістдесят три грн. 91 коп. | E8: в т.ч.ПДВ- | F8: 3843.984465
A9: 10.12.4 Субпродукти харчові свійської птиці(15114000-0 Потрухи(печінка) | B9: 2230 | C9: 6530.090538 | D9: =SUMINWORDS(C9,"грн.","коп.") -> Шість тисяч п'ятсот тридцять грн. 9 коп. | E9: в т.ч.ПДВ- | F9: 1088.348423
A10: 10.13.1.Консерви та готові страви з м’яса,м’ясних субпродуктів чи крові (15130000-8 Мясопродукти (ковбаса,сосиски) | B10: 2230 | C10: 19606.63776 | D10: Дев'ятнадцять тисяч шістсот шість грн. 64 коп. | E10: в т.ч.ПДВ- | F10: 3267.772959
A11: 10.20.1 Продукція рибна,свіжа,охолоджена чи заморожена (15221000-3 Морожена риба) | B11: 2230 | C11: 46102.3243 | D11: Сорок шість тисяч сто дві грн. 32 коп. | E11: в т.ч.ПДВ- | F11: 7683.720716
A12: 01.24.1 Яблука (03222000-3 Фрукти і горіхи(яблука,апельсини,лимони,ягоди) | B12: 2230 | C12: 19469.97324 | D12: Дев'ятнадцять тисяч чотириста шістдесят дев'ять грн. 97 коп. | E12: в т.ч.ПДВ- | F12: 3244.99554
A13: 10.39.1 Плоди та овочі,оброблені та законсервовані,крім картоплі(15331000-7 Оброблені овочі(консерви овочеві) | B13: 2230 | C13: 13711.51134 | D13: Тринадцять тисяч сімсот одинадцять грн. 51 коп. | E13: в т.ч.ПДВ- | F13: 2285.25189
A14: 10.72.1 Вироби хлібобулочні,зниженої вологості,та кондитерські,борошняні,тривалого зберігання(15820000-2 Сухарі та печиво; пресерви з хлібобулочних і кондитерських виробів (печиво) | B14: 2230 | C14: 4727.749853 | D14: Чотири тисячі сімсот двадцять сім грн. 75 коп. | E14: в т.ч.ПДВ- | F14: 787.9583089
A15: 10.71.1 Вироби хлібобулочні,кондитерські та кулінарні,борошняні,нетривалого зберігання(15810000-9 Хлібопродукти, свіжовипечені хлібобулочні та кондитерські вироби) | B15: 2230 | C15: 17613.34585 | D15: Сімнадцять тисяч шістсот тринадцять грн. 35 коп. | E15: в т.ч.ПДВ- | F15: 2935.557641
A16: 10.51.1 Молоко та вершки,рідинні,оброблені(15511000-3 Молоко) | B16: 2230 | C16: 70057.40895 | D16: Сімдесят тисяч п'ятдесят сім грн. 41 коп. | E16: в т.ч.ПДВ- | F16: 11676.23482
A17: 10.51.5 Продукти молочні, інші (15550000-8 Молочні продукти різні (кефір,сметана) | B17: 2230 | C17: 13136.77373 | D17: Тринадцять тисяч сто тридцять шість грн. 77 коп. | E17: в т.ч.ПДВ- | F17: 2189.462289
A18: 10.51.4 Сир сичужний та кисломолочний сир(15540000-5 Сирні продукти) | B18: 2230 | C18: 49179.55312 | D18: Сорок дев'ять тисяч сто сімдесят дев'ять грн. 55 коп. | E18: в т.ч.ПДВ- | F18: 8196.592187
A19: 10.32.1 Соки фруктові та овочеві (15321000-4 Фруктові соки) | B19: 2230 | C19: 13105.95327 | D19: Тринадцять тисяч сто п'ять грн. 95 коп. | E19: в т.ч.ПДВ- | F19: 2184.325544
A20: 10.61.2 Борошно зернових і овочевих культур;їхні суміші(15612000-1 Борошно зернових та овочевих культур і супутня продукція) | B20: 2230 | C20: 2883.36751 | D20: Дві тисячі вісімсот вісімдесят три грн. 37 коп. | E20: в т.ч.ПДВ- | F20: 480.5612516
A21: 10.61.1 Рис напівобрушений чи повністю обрушений,або лущений чи дроблений(15614000-5 Рис оброблений) | B21: 2230 | C21: 1412.424031 | D21: Одна тисячa чотириста дванадцять грн. 42 коп. | E21: в т.ч.ПДВ- | F21: 235.4040052
A22: 0.81.1 Цукор-сирець,тростинний і очищений тростинний чи буряковий цукор (сахароза);меляса (15831000-2 Цукор) | B22: 2230 | C22: 12715.71818 | D22: Дванадцять тисяч сімсот п'ятнадцять грн. 72 коп. | E22: в т.ч.ПДВ- | F22: 2119.286364
A23: 10.39.2 Плоди й горіхи,оброблені та законсервовані(15332000-4 Оброблені фрукти та горіхи(повидло,сухофрукти) | B23: 2230 | C23: 8380.999548 | D23: Вісім тисяч триста вісімдесят грн. 100 коп. | E23: в т.ч.ПДВ- | F23: 1396.833258
A24: 10.51.3 Масло вершкове та молочні пасти(15530000-2 Вершкове масло) | B24: 2230 | C24: 22680.08988 | D24: Двадцять дві тисячі шістсот вісімдесят грн. 9 коп. | E24: в т.ч.ПДВ- | F24: 3780.01498
A25: 01.47.2 Яйця у шкаралупі свіжі (03142000-8 Продукція тваринництва (03142500-3 Яйця) | B25: 2230 | C25: 17348.1102 | D25: Сімнадцять тисяч триста сорок вісім грн. 11 коп. | E25: в т.ч.ПДВ- | F25: 2891.3517
A26: 10.41.5 Олії рафіновані(15421000-5 Рафіновані олії) | B26: 2230 | C26: 5109.780437 | D26: П'ять тисяч сто дев'ять грн. 78 коп. | E26: в т.ч.ПДВ- | F26: 851.6300729
A27: 10.61.3 Крупи,крупка,гранули та інші продукти з зерна зернових культур(15613000-8 Продукція із зерна зернових культур(крупи) | B27: 2230 | C27: 5333.536824 | D27: П'ять тисяч триста тридцять три грн. 54 коп. | E27: в т.ч.ПДВ- | F27: 888.922804
A28: 10.82.1 Какао терте,какао-масло,жири й олія,какао-порошок(15841000-5 Какао) | B28: 2230 | C28: 6520.270853 | D28: Шість тисяч п'ятсот двадцять грн. 27 коп. | E28: в т.ч.ПДВ- | F28: 1086.711809
A29: 10.83.1 Чай і кава,оброблені(15860000-4 Кава, чай та супутня продукція) | B29: 2230 | C29: 6788.271729 | D29: Шість тисяч сімсот вісімдесят вісім грн. 27 коп. | E29: в т.ч.ПДВ- | F29: 1131.378621
A30: 10.84.3 Сіль харчова(14410000-8 Камяна сіль) | B30: 2230 | C30: 256.2737509 | D30: Двісті п'ятдесят шість грн. 27 коп. | E30: в т.ч.ПДВ- | F30: 42.71229181
A31: 01.13.5 Коренеплоди та бульби їстівні з високим умістом крохмалю та інуліну(03212000-0 Картопля та сушені овочі) | B31: 2230 | C31: 17709.87063 | D31: Сімнадцять тисяч сімсот дев'ять грн. 87 коп. | E31: в т.ч.ПДВ- | F31: 2951.645105
A32: 01.13.4 Овочі коренеплодні,цибулинні та бульбоподібні(03221000-6 Овочі) | B32: 2230 | C32: 21747.13414 | D32: Двадцять одна тисячa сімсот сорок сім грн. 13 коп. | E32: в т.ч.ПДВ- | F32: 3624.522356
A33: 43.21.1 Роботи електромонтажні(45310000-3 Електромонтажні роботи(повірка контурів заземлення) | B33: 2240 | C33: 745 | D33: Сімсот сорок п'ять грн. 0 коп. | E33: в т.ч.ПДВ- | F33: 124.1666667
A34: 38.11.6 Послуги підприємств щодо перевезення інших безпечних відходів(90512000-9 Послуги з перевезення сміття) | B34: 2240 | C34: 6162 | D34: Шість тисяч сто шістдесят дві грн. 0 коп. | E34: в т.ч.ПДВ- | F34: 1027
A35: 64.99.1 Послуги фінансові, крім страхування та пенсійного забезпечення, інші, н.в.і.у( 66110000-4 Банківські послуги) | B35: 2240 | C35: 1097 | D35: Одна тисячa дев'яносто сім грн. 0 коп. | E35: без ПДВ
A36: 36.00.2 Обробляння та розподіляння води трубопроводами(65110000-7 Розподіл води) | B36: 2272 | C36: 26137.2552 | D36: Двадцять шість тисяч сто тридцять сім грн. 26 коп. | E36: в т.ч.ПДВ- | F36: 4356.2092
A37: 37.00.1 Послуги каналізаційні(90400000-1 Послуги у сфері водовідведення) | B37: 2272 | C37: 21923.7448 | D37: Двадцять одна тисячa дев'ятсот двадцять три грн. 74 коп. | E37: в т.ч.ПДВ- | F37: 3653.957467
A38: 35.11.1 Енергія електрична (09310000-5 Електрична енергія) | B38: 2273 | C38: 48988 | D38: Сорок вісім тисяч дев'ятсот вісімдесят вісім грн. 0 коп. | E38: в т.ч.ПДВ- | F38: 8164.666667
A39: 61.10.1 Послуги щодо передавання даних і повідомлень(64211000-8 Послуги громадського телефонного звязку) | B39: 2240 | C39: 1645 | D39: Одна тисячa шістсот сорок п'ять грн. 0 коп. | E39: в т.ч.ПДВ- | F39: 274.1666667
A40: 85.60.1 Послуги освітянські допоміжні (80570000-0 Послуги з професійної підготовки у сфері підвищення кваліфікації) | B40: 2282 | C40: 349 | D40: Триста сорок дев'ять грн. 0 коп. | E40: в т.ч.ПДВ- | F40: 58.16666667
A41: 91.01.1 Послуги бібліотек і архівів(92512000-3 Послуги архівів) | B41: 2240 | C41: 579 | D41: П'ятсот сімдесят дев'ять грн. 0 коп. | E41: без ПДВ
A42: 71.20.1 Послуги щодо технічного випробування й аналізування(71632000-7 Послуги з технічних випробувань (повірка,атестація) | B42: 2240 | C42: 1447 | D42: Одна тисячa чотириста сорок сім грн. 0 коп. | E42: в т.ч.ПДВ- | F42: 241.1666667
A43: 58.29.1 Програмне забезпечення системне на фізичних носіях(48443000-5 Пакети програмного забезпечення для бухгалтерського обліку) | B43: 2240 | C43: 7392 | D43: Сім тисяч триста дев'яносто дві грн. 0 коп. | E43: в т.ч.ПДВ- | F43: 1232
A44: 31.09.1 Меблі, інші (39161000-8 Меблі для дитячого садка) | B44: 3110 | C44: 118200 | D44: Сто вісімнадцять тисяч двісті грн. 0 коп. | E44: в т.ч.ПДВ- | F44: 19700
A45: 27.52.1 Устатковання побутове неелектричне для приготування та підігрівання їжі(39314000-6 Промислове кухонне обладнання) | B45: 3110 | C45: 88654 | D45: Вісімдесят вісім тисяч шістсот п'ятдесят чотири грн. 0 коп. | E45: в т.ч.ПДВ- | F45: 14775.66667
A46: 13.92.1 Вироби текстильні готові для домашнього господарства (39512000-4 Постільна білизна) | B46: 2210 | C46: 67210 | D46: Шістдесят сім тисяч двісті десять грн. 0 коп. | E46: в т.ч.ПДВ- | F46: 11201.66667
A48: Затверджений рішенням комітету з конкурсних торгів від__________№_______
A50: Голова комітету з конкурсних торгів _______________________О.В.Атаманенко
A51: (підпис) (ініціали та прізвище)
A52: МП

Sheet 52
A1: Додаток до річного плану закупівель на 2016 рік
A2: Дошкільний навчальний заклад № 52, 26443208
A3: (найменування замовника,код за ЄДРПОУ)
A4: Предмет закупівлі | B4: Код КЕКВ (для бюджетних коштів) | C4: Очікувана вартість предмета закупівлі | G4: Процедура закупівлі | H4: Орієнтовний початок проведення процедури закупівлі | I4: Примітки
A5: 1 | B5: 2 | C5: 3 | G5: 4 | H5: 5 | I5: 6
A6: 10.73.1 Макарони,локшина,кускус і подібні борошняні вироби(15851000-8 Борошняні вироби(макарони) | B6: 2230 | C6: 2471.965976 | D6: =SUMINWORDS(C6,"грн.","коп.") -> Дві тисячі чотириста сімдесят одна грн. 97 коп. | E6: в т.ч.ПДВ- | F6: =C6/6 -> 411.9943293
A7: 10.11.1 М'ясо великої рогатої худоби,свиней,овець,кіз,коней та ін..тварин родини конячих,свіже чиа охолоджене(15111000-9 М'ясо великої рогатої худоби родини бикових(яловичина) | B7: 2230 | C7: 89256.86778 | D7: =SUMINWORDS(C7,"грн.","коп.") -> Вісімдесят дев'ять тисяч двісті п'ятдесят шість грн. 87 коп. | E7: в т.ч.ПДВ- | F7: =C7/6 -> 14876.14463
A8: 10.12.1 М'ясо свійської птиці,свіже чи охолоджене(15112000-6 М'ясо свійської птиці) | B8: 2230 | C8: 32124.62942 | D8: =SUMINWORDS(C8,"грн.","коп.") -> Тридцять дві тисячі сто двадцять чотири грн. 63 коп. | E8: в т.ч.ПДВ- | F8: 5354.104903
A9: 10.12.4 Субпродукти харчові свійської птиці(15114000-0 Потрухи(печінка) | B9: 2230 | C9: 9110.383694 | D9: =SUMINWORDS(C9,"грн.","коп.") -> Дев'ять тисяч сто десять грн. 38 коп. | E9: в т.ч.ПДВ- | F9: 1518.397282
A10: 10.13.1.Консерви та готові страви з м’яса,м’ясних субпродуктів чи крові (15130000-8 Мясопродукти (ковбаса,сосиски) | B10: 2230 | C10: 27353.98412 | D10: Двадцять сім тисяч триста п'ятдесят три грн. 98 коп. | E10: в т.ч.ПДВ- | F10: 4558.997354
A11: 10.20.1 Продукція рибна,свіжа,охолоджена чи заморожена (15221000-3 Морожена риба) | B11: 2230 | C11: 64366.0936 | D11: Шістдесят чотири тисячі триста шістдесят шість грн. 9 коп. | E11: в т.ч.ПДВ- | F11: 10727.68227
A12: 01.24.1 Яблука (03222000-3 Фрукти і горіхи(яблука,апельсини,лимони,ягоди) | B12: 2230 | C12: 27170.81529 | D12: Двадцять сім тисяч сто сімдесят грн. 82 коп. | E12: в т.ч.ПДВ- | F12: 4528.469215
A13: 10.39.1 Плоди та овочі,оброблені та законсервовані,крім картоплі(15331000-7 Оброблені овочі(консерви овочеві) | B13: 2230 | C13: 19025.88026 | D13: Дев'ятнадцять тисяч двадцять п'ять грн. 88 коп. | E13: в т.ч.ПДВ- | F13: 3170.980043
A14: 10.72.1 Вироби хлібобулочні,зниженої вологості,та кондитерські,борошняні,тривалого зберігання(15820000-2 Сухарі та печиво; пресерви з хлібобулочних і кондитерських виробів (печиво) | B14: 2230 | C14: 6622.414159 | D14: Шість тисяч шістсот двадцять дві грн. 41 коп. | E14: в т.ч.ПДВ- | F14: 1103.735693
A15: 10.71.1 Вироби хлібобулочні,кондитерські та кулінарні,борошняні,нетривалого зберігання(15810000-9 Хлібопродукти, свіжовипечені хлібобулочні та кондитерські вироби) | B15: 2230 | C15: 24498.24431 | D15: Двадцять чотири тисячі чотириста дев'яносто вісім грн. 24 коп. | E15: в т.ч.ПДВ- | F15: 4083.040718
A16: 10.51.1 Молоко та вершки,рідинні,оброблені(15511000-3 Молоко) | B16: 2230 | C16: 96922.37711 | D16: Дев'яносто шість тисяч дев'ятсот двадцять дві грн. 38 коп. | E16: в т.ч.ПДВ- | F16: 16153.72952
A17: 10.51.5 Продукти молочні, інші (15550000-8 Молочні продукти різні (кефір,сметана) | B17: 2230 | C17: 18265.08815 | D17: Вісімнадцять тисяч двісті шістдесят п'ять грн. 9 коп. | E17: в т.ч.ПДВ- | F17: 3044.181358
A18: 10.51.4 Сир сичужний та кисломолочний сир(15540000-5 Сирні продукти) | B18: 2230 | C18: 68227.17295 | D18: Шістдесят вісім тисяч двісті двадцять сім грн. 17 коп. | E18: в т.ч.ПДВ- | F18: 11371.19549
A19: 10.32.1 Соки фруктові та овочеві (15321000-4 Фруктові соки) | B19: 2230 | C19: 18197.36181 | D19: Вісімнадцять тисяч сто дев'яносто сім грн. 36 коп. | E19: в т.ч.ПДВ- | F19: 3032.893636
A20: 10.61.2 Борошно зернових і овочевих культур;їхні суміші(15612000-1 Борошно зернових та овочевих культур і супутня продукція) | B20: 2230 | C20: 4013.525232 | D20: Чотири тисячі тринадцять грн. 53 коп. | E20: в т.ч.ПДВ- | F20: 668.920872
A21: 10.61.1 Рис напівобрушений чи повністю обрушений,або лущений чи дроблений(15614000-5 Рис оброблений) | B21: 2230 | C21: 1961.123362 | D21: Одна тисячa дев'ятсот шістдесят одна грн. 12 коп. | E21: в т.ч.ПДВ- | F21: 326.8538936
A22: 0.81.1 Цукор-сирець,тростинний і очищений тростинний чи буряковий цукор (сахароза);меляса (15831000-2 Цукор) | B22: 2230 | C22: 17631.8448 | D22: Сімнадцять тисяч шістсот тридцять одна грн. 84 коп. | E22: в т.ч.ПДВ- | F22: 2938.6408
A23: 10.39.2 Плоди й горіхи,оброблені та законсервовані(15332000-4 Оброблені фрукти та горіхи(повидло,сухофрукти) | B23: 2230 | C23: 11592.68541 | D23: Одинадцять тисяч п'ятсот дев'яносто дві грн. 69 коп. | E23: в т.ч.ПДВ- | F23: 1932.114236
A24: 10.51.3 Масло вершкове та молочні пасти(15530000-2 Вершкове масло) | B24: 2230 | C24: 31590.02893 | D24: Тридцять одна тисячa п'ятсот дев'яносто грн. 3 коп. | E24: в т.ч.ПДВ- | F24: 5265.004822
A25: 01.47.2 Яйця у шкаралупі свіжі (03142000-8 Продукція тваринництва (03142500-3 Яйця) | B25: 2230 | C25: 24203.02435 | D25: Двадцять чотири тисячі двісті три грн. 2 коп. | E25: в т.ч.ПДВ- | F25: 4033.837391
A26: 10.41.5 Олії рафіновані(15421000-5 Рафіновані олії) | B26: 2230 | C26: 7102.132092 | D26: Сім тисяч сто дві грн. 13 коп. | E26: в т.ч.ПДВ- | F26: 1183.688682
A27: 10.61.3 Крупи,крупка,гранули та інші продукти з зерна зернових культур(15613000-8 Продукція із зерна зернових культур(крупи) | B27: 2230 | C27: 7408.413944 | D27: Сім тисяч чотириста вісім грн. 41 коп. | E27: в т.ч.ПДВ- | F27: 1234.735657
A28: 10.82.1 Какао терте,какао-масло,жири й олія,какао-порошок(15841000-5 Какао) | B28: 2230 | C28: 9096.683868 | D28: Дев'ять тисяч дев'яносто шість грн. 68 коп. | E28: в т.ч.ПДВ- | F28: 1516.113978
A29: 10.83.1 Чай і кава,оброблені(15860000-4 Кава, чай та супутня продукція) | B29: 2230 | C29: 9515.028015 | D29: Дев'ять тисяч п'ятсот п'ятнадцять грн. 3 коп. | E29: в т.ч.ПДВ- | F29: 1585.838002
A30: 10.84.3 Сіль харчова(14410000-8 Камяна сіль) | B30: 2230 | C30: 358.3883318 | D30: Триста п'ятдесят вісім грн. 39 коп. | E30: в т.ч.ПДВ- | F30: 59.73138864
A31: 01.13.5 Коренеплоди та бульби їстівні з високим умістом крохмалю та інуліну(03212000-0 Картопля та сушені овочі) | B31: 2230 | C31: 24605.73613 | D31: Двадцять чотири тисячі шістсот п'ять грн. 74 коп. | E31: в т.ч.ПДВ- | F31: 4100.956022
A32: 01.13.4 Овочі коренеплодні,цибулинні та бульбоподібні(03221000-6 Овочі) | B32: 2230 | C32: 30148.10711 | D32: Тридцять тисяч сто сорок вісім грн. 11 коп. | E32: в т.ч.ПДВ- | F32: 5024.684518
A33: 43.21.1 Роботи електромонтажні(45310000-3 Електромонтажні роботи(повірка контурів заземлення) | B33: 2240 | C33: 745 | D33: Сімсот сорок п'ять грн. 0 коп. | E33: в т.ч.ПДВ- | F33: 124.1666667
A34: 38.11.6 Послуги підприємств щодо перевезення інших безпечних відходів(90512000-9 Послуги з перевезення сміття) | B34: 2240 | C34: 9492 | D34: Дев'ять тисяч чотириста дев'яносто дві грн. 0 коп. | E34: в т.ч.ПДВ- | F34: 1582
A35: Поточний ремонт будівель (45400000-1 Завершальні будівельні роботи) | B35: 2240 | C35: 87400 | D35: Вісімдесят сім тисяч чотириста грн. 0 коп. | E35: в т.ч.ПДВ- | F35: 14566.66667
A36: 36.00.2 Обробляння та розподіляння води трубопроводами(65110000-7 Розподіл води) | B36: 2272 | C36: 25604.0232 | D36: Двадцять п'ять тисяч шістсот чотири грн. 2 коп. | E36: в т.ч.ПДВ- | F36: 4267.3372
A37: 37.00.1 Послуги каналізаційні(90400000-1 Послуги у сфері водовідведення) | B37: 2272 | C37: 22665.9768 | D37: Двадцять дві тисячі шістсот шістдесят п'ять грн. 98 коп. | E37: в т.ч.ПДВ- | F37: 3777.6628
A38: 35.11.1 Енергія електрична (09310000-5 Електрична енергія) | B38: 2273 | C38: 71091 | D38: Сімдесят одна тисячa дев'яносто одна грн. 0 коп. | E38: в т.ч.ПДВ- | F38: 11848.5
A39: 61.10.1 Послуги щодо передавання даних і повідомлень(64211000-8 Послуги громадського телефонного звязку) | B39: 2240 | C39: 1674 | D39: Одна тисячa шістсот сімдесят чотири грн. 0 коп. | E39: в т.ч.ПДВ- | F39: 279
A40: 91.01.1 Послуги бібліотек і архівів(92512000-3 Послуги архівів) | B40: 2240 | C40: 803 | D40: Вісімсот три грн. 0 коп. | E40: без ПДВ
A41: 71.20.1 Послуги щодо технічного випробування й аналізування(71632000-7 Послуги з технічних випробувань (повірка,атестація) | B41: 2240 | C41: 1447 | D41: Одна тисячa чотириста сорок сім грн. 0 коп. | E41: в т.ч.ПДВ- | F41: 241.1666667
A42: 58.29.1 Програмне забезпечення системне на фізичних носіях(48443000-5 Пакети програмного забезпечення для бухгалтерського обліку) | B42: 2240 | C42: 7392 | D42: Сім тисяч триста дев'яносто дві грн. 0 коп. | E42: в т.ч.ПДВ- | F42: 1232
A43: 31.09.1 Меблі, інші (39161000-8 Меблі для дитячого садка) | B43: 3110 | C43: 20400 | D43: Двадцять тисяч чотириста грн. 0 коп. | E43: в т.ч.ПДВ- | F43: 3400
A44: 27.51.2 Прилади електричні побутові,інші,н.в.і.у.(39711000-9 Електричні побутові прилади для обробки продуктів харчування) | B44: 3110 | C44: 134200 | D44: Сто тридцять чотири тисячі двісті грн. 0 коп. | E44: в т.ч.ПДВ- | F44: 22366.66667
A46: Затверджений рішенням комітету з конкурсних торгів від__________№_______
A48: Голова комітету з конкурсних торгів _______________________ К.В.Шундровська
A49: (підпис) (ініціали та прізвище)
A50: МП

Sheet 57
A1: Додаток до річного плану закупівель на 2016 рік
A2: Дошкільний навчальний заклад № 57, 26243289
A3: (найменування замовника,код за ЄДРПОУ)
A4: Предмет закупівлі | B4: Код КЕКВ (для бюджетних коштів) | C4: Очікувана вартість предмета закупівлі | G4: Процедура закупівлі | H4: Орієнтовний початок проведення процедури закупівлі | I4: Примітки
A5: 1 | B5: 2 | C5: 3 | G5: 4 | H5: 5 | I5: 6
A6: 10.73.1 Макарони,локшина,кускус і подібні борошняні вироби(15851000-8 Борошняні вироби(макарони) | B6: 2230 | C6: 2760.629016 | D6: =SUMINWORDS(C6,"грн.","коп.") -> Дві тисячі сімсот шістдесят грн. 63 коп. | E6: в т.ч.ПДВ- | F6: =C6/6 -> 460.104836
A7: 10.11.1 М'ясо великої рогатої худоби,свиней,овець,кіз,коней та ін..тварин родини конячих,свіже чиа охолоджене(15111000-9 М'ясо великої рогатої худоби родини бикових(яловичина) | B7: 2230 | C7: 93095.96179 | D7: =SUMINWORDS(C7,"грн.","коп.") -> Дев'яносто три тисячі дев'яносто п'ять грн. 96 коп. | E7: в т.ч.ПДВ- | F7: =C7/6 -> 15515.99363
A8: 10.12.1 М'ясо свійської птиці,свіже чи охолоджене(15112000-6 М'ясо свійської птиці) | B8: 2230 | C8: 35888.33994 | D8: =SUMINWORDS(C8,"грн.","коп.") -> Тридцять п'ять тисяч вісімсот вісімдесят вісім грн. 34 коп. | E8: в т.ч.ПДВ- | F8: 5981.389991
A9: 10.12.4 Субпродукти харчові свійської птиці(15114000-0 Потрухи(печінка) | B9: 2230 | C9: 10180.46684 | D9: =SUMINWORDS(C9,"грн.","коп.") -> Десять тисяч сто вісімдесят грн. 47 коп. | E9: в т.ч.ПДВ- | F9: 1696.744474
A10: 10.13.1.Консерви та готові страви з м’яса,м’ясних субпродуктів чи крові (15130000-8 Мясопродукти (ковбаса,сосиски) | B10: 2230 | C10: 30566.91548 | D10: Тридцять тисяч п'ятсот шістдесят шість грн. 92 коп. | E10: в т.ч.ПДВ- | F10: 5094.485914
A11: 10.20.1 Продукція рибна,свіжа,охолоджена чи заморожена (15221000-3 Морожена риба) | B11: 2230 | C11: 71934.89582 | D11: Сімдесят одна тисячa дев'ятсот тридцять чотири грн. 90 коп. | E11: в т.ч.ПДВ- | F11: 11989.1493
A12: 01.24.1 Яблука (03222000-3 Фрукти і горіхи(яблука,апельсини,лимони,ягоди) | B12: 2230 | C12: 30363.59274 | D12: Тридцять тисяч триста шістдесят три грн. 59 коп. | E12: в т.ч.ПДВ- | F12: 5060.59879
A13: 10.39.1 Плоди та овочі,оброблені та законсервовані,крім картоплі(15331000-7 Оброблені овочі(консерви овочеві) | B13: 2230 | C13: 21241.81396 | D13: Двадцять одна тисячa двісті сорок одна грн. 81 коп. | E13: в т.ч.ПДВ- | F13: 3540.302327
A14: 10.72.1 Вироби хлібобулочні,зниженої вологості,та кондитерські,борошняні,тривалого зберігання(15820000-2 Сухарі та печиво; пресерви з хлібобулочних і кондитерських виробів (печиво) | B14: 2230 | C14: 7405.084373 | D14: Сім тисяч чотириста п'ять грн. 8 коп. | E14: в т.ч.ПДВ- | F14: 1234.180729
A15: 10.71.1 Вироби хлібобулочні,кондитерські та кулінарні,борошняні,нетривалого зберігання(15810000-9 Хлібопродукти, свіжовипечені хлібобулочні та кондитерські вироби) | B15: 2230 | C15: 27362.16846 | D15: Двадцять сім тисяч триста шістдесят дві грн. 17 коп. | E15: в т.ч.ПДВ- | F15: 4560.361411
A16: 10.51.1 Молоко та вершки,рідинні,оброблені(15511000-3 Молоко) | B16: 2230 | C16: 108158.2836 | D16: Сто вісім тисяч сто п'ятдесят вісім грн. 28 коп. | E16: в т.ч.ПДВ- | F16: 18026.3806
A17: 10.51.5 Продукти молочні, інші (15550000-8 Молочні продукти різні (кефір,сметана) | B17: 2230 | C17: 20399.11059 | D17: Двадцять тисяч триста дев'яносто дев'ять грн. 11 коп. | E17: в т.ч.ПДВ- | F17: 3399.851764
A18: 10.51.4 Сир сичужний та кисломолочний сир(15540000-5 Сирні продукти) | B18: 2230 | C18: 76171.07011 | D18: Сімдесят шість тисяч сто сімдесят одна грн. 7 коп. | E18: в т.ч.ПДВ- | F18: 12695.17835
A19: 10.32.1 Соки фруктові та овочеві (15321000-4 Фруктові соки) | B19: 2230 | C19: 20318.94153 | D19: Двадцять тисяч триста вісімнадцять грн. 94 коп. | E19: в т.ч.ПДВ- | F19: 3386.490256
A20: 10.61.2 Борошно зернових і овочевих культур;їхні суміші(15612000-1 Борошно зернових та овочевих культур і супутня продукція) | B20: 2230 | C20: 4483.279174 | D20: Чотири тисячі чотириста вісімдесят три грн. 28 коп. | E20: в т.ч.ПДВ- | F20: 747.2131957
A21: 10.61.1 Рис напівобрушений чи повністю обрушений,або лущений чи дроблений(15614000-5 Рис оброблений) | B21: 2230 | C21: 2189.765271 | D21: Дві тисячі сто вісімдесят дев'ять грн. 77 коп. | E21: в т.ч.ПДВ- | F21: 364.9608786
A22: 0.81.1 Цукор-сирець,тростинний і очищений тростинний чи буряковий цукор (сахароза);меляса (15831000-2 Цукор) | B22: 2230 | C22: 19683.17364 | D22: Дев'ятнадцять тисяч шістсот вісімдесят три грн. 17 коп. | E22: в т.ч.ПДВ- | F22: 3280.52894
A23: 10.39.2 Плоди й горіхи,оброблені та законсервовані(15332000-4 Оброблені фрукти та горіхи(повидло,сухофрукти) | B23: 2230 | C23: 12936.18956 | D23: Дванадцять тисяч дев'ятсот тридцять шість грн. 19 коп. | E23: в т.ч.ПДВ- | F23: 2156.031594
A24: 10.51.3 Масло вершкове та молочні пасти(15530000-2 Вершкове масло) | B24: 2230 | C24: 35291.10584 | D24: Тридцять п'ять тисяч двісті дев'яносто одна грн. 11 коп. | E24: в т.ч.ПДВ- | F24: 5881.850974
A25: 01.47.2 Яйця у шкаралупі свіжі (03142000-8 Продукція тваринництва (03142500-3 Яйця) | B25: 2230 | C25: 27045.85176 | D25: Двадцять сім тисяч сорок п'ять грн. 85 коп. | E25: в т.ч.ПДВ- | F25: 4507.64196
A26: 10.41.5 Олії рафіновані(15421000-5 Рафіновані олії) | B26: 2230 | C26: 7931.481306 | D26: Сім тисяч дев'ятсот тридцять одна грн. 48 коп. | E26: в т.ч.ПДВ- | F26: 1321.913551
A27: 10.61.3 Крупи,крупка,гранули та інші продукти з зерна зернових культур(15613000-8 Продукція із зерна зернових культур(крупи) | B27: 2230 | C27: 8272.669411 | D27: Вісім тисяч двісті сімдесят дві грн. 67 коп. | E27: в т.ч.ПДВ- | F27: 1378.778235
A28: 10.82.1 Какао терте,какао-масло,жири й олія,какао-порошок(15841000-5 Какао) | B28: 2230 | C28: 10165.15787 | D28: Десять тисяч сто шістдесят п'ять грн. 16 коп. | E28: в т.ч.ПДВ- | F28: 1694.192978
A29: 10.83.1 Чай і кава,оброблені(15860000-4 Кава, чай та супутня продукція) | B29: 2230 | C29: 10640.70605 | D29: Десять тисяч шістсот сорок грн. 71 коп. | E29: в т.ч.ПДВ- | F29: 1773.451009
A30: 10.84.3 Сіль харчова(14410000-8 Камяна сіль) | B30: 2230 | C30: 400.6381566 | D30: Чотириста грн. 64 коп. | E30: в т.ч.ПДВ- | F30: 66.7730261
A31: 01.13.5 Коренеплоди та бульби їстівні з високим умістом крохмалю та інуліну(03212000-0 Картопля та сушені овочі) | B31: 2230 | C31: 27477.35431 | D31: Двадцять сім тисяч чотириста сімдесят сім грн. 35 коп. | E31: в т.ч.ПДВ- | F31: 4579.559052
A32: 01.13.4 Овочі коренеплодні,цибулинні та бульбоподібні(03221000-6 Овочі) | B32: 2230 | C32: 33654.35321 | D32: Тридцять три тисячі шістсот п'ятдесят чотири грн. 35 коп. | E32: в т.ч.ПДВ- | F32: 5609.058869
A33: 43.21.1 Роботи електромонтажні(45310000-3 Електромонтажні роботи(повірка контурів заземлення) | B33: 2240 | C33: 745 | D33: Сімсот сорок п'ять грн. 0 коп. | E33: в т.ч.ПДВ- | F33: 124.1666667
A34: 38.11.6 Послуги підприємств щодо перевезення інших безпечних відходів(90512000-9 Послуги з перевезення сміття) | B34: 2240 | C34: 9268 | D34: Дев'ять тисяч двісті шістдесят вісім грн. 0 коп. | E34: в т.ч.ПДВ- | F34: 1544.666667
A35: Поточний ремонт будівель (45400000-1 Завершальні будівельні роботи) | B35: 2240 | C35: 118700 | D35: Сто вісімнадцять тисяч сімсот грн. 0 коп. | E35: в т.ч.ПДВ- | F35: 19783.33333
A36: 36.00.2 Обробляння та розподіляння води трубопроводами(65110000-7 Розподіл води) | B36: 2272 | C36: 12557.6136 | D36: Дванадцять тисяч п'ятсот п'ятдесят сім грн. 61 коп. | E36: в т.ч.ПДВ- | F36: 2092.9356
A37: 37.00.1 Послуги каналізаційні(90400000-1 Послуги у сфері водовідведення) | B37: 2272 | C37: 23225.3864 | D37: Двадцять три тисячі двісті двадцять п'ять грн. 39 коп. | E37: в т.ч.ПДВ- | F37: 3870.897733
A38: 35.11.1 Енергія електрична (09310000-5 Електрична енергія) | B38: 2273 | C38: 77081 | D38: Сімдесят сім тисяч вісімдесят одна грн. 0 коп. | E38: в т.ч.ПДВ- | F38: 12846.83333
A39: 85.60.1 Послуги освітянські допоміжні (80570000-0 Послуги з професійної підготовки у сфері підвищення кваліфікації) | B39: 2282 | C39: 676 | D39: Шістсот сімдесят шість грн. 0 коп. | E39: в т.ч.ПДВ- | F39: 112.6666667
A40: 91.01.1 Послуги бібліотек і архівів(92512000-3 Послуги архівів) | B40: 2240 | C40: 711 | D40: Сімсот одинадцять грн. 0 коп. | E40: без ПДВ
A41: 71.20.1 Послуги щодо технічного випробування й аналізування(71632000-7 Послуги з технічних випробувань (повірка,атестація) | B41: 2240 | C41: 2747 | D41: Дві тисячі сімсот сорок сім грн. 0 коп. | E41: в т.ч.ПДВ- | F41: 457.8333333
A42: 58.29.1 Програмне забезпечення системне на фізичних носіях(48443000-5 Пакети програмного забезпечення для бухгалтерського обліку) | B42: 2240 | C42: 7392 | D42: Сім тисяч триста дев'яносто дві грн. 0 коп. | E42: в т.ч.ПДВ- | F42: 1232
A43: 27.51.2 Прилади електричні побутові,інші,н.в.і.у.(39711000-9 Електричні побутові прилади для обробки продуктів харчування) | B43: 3110 | C43: 134200 | D43: Сто тридцять чотири тисячі двісті грн. 0 коп. | E43: в т.ч.ПДВ- | F43: 22366.66667
A45: Затверджений рішенням комітету з конкурсних торгів від__________№_______
A47: Голова комітету з конкурсних торгів _______________________ Т.М.Поповська
A48: (підпис) (ініціали та прізвище)
A49: МП

Sheet 58
A1: Додаток до річного плану закупівель на 2016 рік
A2: Дошкільний навчальний заклад № 58, 26244047
A3: (найменування замовника,код за ЄДРПОУ)
A4: Предмет закупівлі | B4: Код КЕКВ (для бюджетних коштів) | C4: Очікувана вартість предмета закупівлі | G4: Процедура закупівлі | H4: Орієнтовний початок проведення процедури закупівлі | I4: Примітки
A5: 1 | B5: 2 | C5: 3 | G5: 4 | H5: 5 | I5: 6
A6: 10.73.1 Макарони,локшина,кускус і подібні борошняні вироби(15851000-8 Борошняні вироби(макарони) | B6: 2230 | C6: 450.4154541 | D6: =SUMINWORDS(C6,"грн.","коп.") -> Чотириста п'ятдесят грн. 42 коп. | E6: в т.ч.ПДВ- | F6: =C6/6 -> 75.06924236
A7: 10.11.1 М'ясо великої рогатої худоби,свиней,овець,кіз,коней та ін..тварин родини конячих,свіже чиа охолоджене(15111000-9 М'ясо великої рогатої худоби родини бикових(яловичина) | B7: 2230 | C7: 15889.02423 | D7: =SUMINWORDS(C7,"грн.","коп.") -> П'ятнадцять тисяч вісімсот вісімдесят дев'ять грн. 2 коп. | E7: в т.ч.ПДВ- | F7: =C7/6 -> 2648.170705
A8: 10.12.1 М'ясо свійської птиці,свіже чи охолоджене(15112000-6 М'ясо свійської птиці) | B8: 2230 | C8: 5670.388536 | D8: =SUMINWORDS(C8,"грн.","коп.") -> П'ять тисяч шістсот сімдесят грн. 39 коп. | E8: в т.ч.ПДВ- | F8: 945.064756
A9: 10.12.4 Субпродукти харчові свійської птиці(15114000-0 Потрухи(печінка) | B9: 2230 | C9: 1567.933271 | D9: =SUMINWORDS(C9,"грн.","коп.") -> Одна тисячa п'ятсот шістдесят сім грн. 93 коп. | E9: в т.ч.ПДВ- | F9: 261.3222118
A10: 10.13.1.Консерви та готові страви з м’яса,м’ясних субпродуктів чи крові (15130000-8 Мясопродукти (ковбаса,сосиски) | B10: 2230 | C10: 4707.729469 | D10: Чотири тисячі сімсот сім грн. 73 коп. | E10: в т.ч.ПДВ- | F10: 784.6215782
A11: 10.20.1 Продукція рибна,свіжа,охолоджена чи заморожена (15221000-3 Морожена риба) | B11: 2230 | C11: 10951.57388 | D11: Десять тисяч дев'ятсот п'ятдесят одна грн. 57 коп. | E11: в т.ч.ПДВ- | F11: 1825.262314
A12: 01.24.1 Яблука (03222000-3 Фрукти і горіхи(яблука,апельсини,лимони,ягоди) | B12: 2230 | C12: 4656.069203 | D12: Чотири тисячі шістсот п'ятдесят шість грн. 7 коп. | E12: в т.ч.ПДВ- | F12: 776.0115338
A13: 10.39.1 Плоди та овочі,оброблені та законсервовані,крім картоплі(15331000-7 Оброблені овочі(консерви овочеві) | B13: 2230 | C13: 3552.638042 | D13: Три тисячі п'ятсот п'ятдесят дві грн. 64 коп. | E13: в т.ч.ПДВ- | F13: 592.1063403
A14: 10.72.1 Вироби хлібобулочні,зниженої вологості,та кондитерські,борошняні,тривалого зберігання(15820000-2 Сухарі та печиво; пресерви з хлібобулочних і кондитерських виробів (печиво) | B14: 2230 | C14: 1068.44505 | D14: Одна тисячa шістдесят вісім грн. 45 коп. | E14: в т.ч.ПДВ- | F14: 178.074175
A15: 10.71.1 Вироби хлібобулочні,кондитерські та кулінарні,борошняні,нетривалого зберігання(15810000-9 Хлібопродукти, свіжовипечені хлібобулочні та кондитерські вироби) | B15: 2230 | C15: 4417.20155 | D15: Чотири тисячі чотириста сімнадцять грн. 20 коп. | E15: в т.ч.ПДВ- | F15: 736.2002584
A16: 10.51.1 Молоко та вершки,рідинні,оброблені(15511000-3 Молоко) | B16: 2230 | C16: 18876.24876 | D16: Вісімнадцять тисяч вісімсот сімдесят шість грн. 25 коп. | E16: в т.ч.ПДВ- | F16: 3146.04146
A17: 10.51.5 Продукти молочні, інші (15550000-8 Молочні продукти різні (кефір,сметана) | B17: 2230 | C17: 3311.457763 | D17: Три тисячі триста одинадцять грн. 46 коп. | E17: в т.ч.ПДВ- | F17: 551.9096272
A18: 10.51.4 Сир сичужний та кисломолочний сир(15540000-5 Сирні продукти) | B18: 2230 | C18: 12776.58556 | D18: Дванадцять тисяч сімсот сімдесят шість грн. 59 коп. | E18: в т.ч.ПДВ- | F18: 2129.430926
A19: 10.32.1 Соки фруктові та овочеві (15321000-4 Фруктові соки) | B19: 2230 | C19: 3366.215908 | D19: Три тисячі триста шістдесят шість грн. 22 коп. | E19: в т.ч.ПДВ- | F19: 561.0359847
A20: 10.61.2 Борошно зернових і овочевих культур;їхні суміші(15612000-1 Борошно зернових та овочевих культур і супутня продукція) | B20: 2230 | C20: 715.3811512 | D20: Сімсот п'ятнадцять грн. 38 коп. | E20: в т.ч.ПДВ- | F20: 119.2301919
A21: 10.61.1 Рис напівобрушений чи повністю обрушений,або лущений чи дроблений(15614000-5 Рис оброблений) | B21: 2230 | C21: 362.7759192 | D21: Триста шістдесят дві грн. 78 коп. | E21: в т.ч.ПДВ- | F21: 60.4626532
A22: 0.81.1 Цукор-сирець,тростинний і очищений тростинний чи буряковий цукор (сахароза);меляса (15831000-2 Цукор) | B22: 2230 | C22: 3325.518713 | D22: Три тисячі триста двадцять п'ять грн. 52 коп. | E22: в т.ч.ПДВ- | F22: 554.2531189
A23: 10.39.2 Плоди й горіхи,оброблені та законсервовані(15332000-4 Оброблені фрукти та горіхи(повидло,сухофрукти) | B23: 2230 | C23: 2263.660257 | D23: Дві тисячі двісті шістдесят три грн. 66 коп. | E23: в т.ч.ПДВ- | F23: 377.2767096
A24: 10.51.3 Масло вершкове та молочні пасти(15530000-2 Вершкове масло) | B24: 2230 | C24: 5576.025035 | D24: П'ять тисяч п'ятсот сімдесят шість грн. 3 коп. | E24: в т.ч.ПДВ- | F24: 929.3375059
A25: 01.47.2 Яйця у шкаралупі свіжі (03142000-8 Продукція тваринництва (03142500-3 Яйця) | B25: 2230 | C25: 4165.436759 | D25: Чотири тисячі сто шістдесят п'ять грн. 44 коп. | E25: в т.ч.ПДВ- | F25: 694.2394598
A26: 10.41.5 Олії рафіновані(15421000-5 Рафіновані олії) | B26: 2230 | C26: 1294.075276 | D26: Одна тисячa двісті дев'яносто чотири грн. 8 коп. | E26: в т.ч.ПДВ- | F26: 215.6792126
A27: 10.61.3 Крупи,крупка,гранули та інші продукти з зерна зернових культур(15613000-8 Продукція із зерна зернових культур(крупи) | B27: 2230 | C27: 1362.605587 | D27: Одна тисячa триста шістдесят дві грн. 61 коп. | E27: в т.ч.ПДВ- | F27: 227.1009311
A28: 10.82.1 Какао терте,какао-масло,жири й олія,какао-порошок(15841000-5 Какао) | B28: 2230 | C28: 1565.575476 | D28: Одна тисячa п'ятсот шістдесят п'ять грн. 58 коп. | E28: в т.ч.ПДВ- | F28: 260.929246
A29: 10.83.1 Чай і кава,оброблені(15860000-4 Кава, чай та супутня продукція) | B29: 2230 | C29: 1518.200149 | D29: Одна тисячa п'ятсот вісімнадцять грн. 20 коп. | E29: в т.ч.ПДВ- | F29: 253.0333582
A30: 10.84.3 Сіль харчова(14410000-8 Камяна сіль) | B30: 2230 | C30: 59.3948405 | D30: П'ятдесят дев'ять грн. 39 коп. | E30: в т.ч.ПДВ- | F30: 9.899140083
A31: 01.13.5 Коренеплоди та бульби їстівні з високим умістом крохмалю та інуліну(03212000-0 Картопля та сушені овочі) | B31: 2230 | C31: 4508.685436 | D31: Чотири тисячі п'ятсот вісім грн. 69 коп. | E31: в т.ч.ПДВ- | F31: 751.4475726
A32: 01.13.4 Овочі коренеплодні,цибулинні та бульбоподібні(03221000-6 Овочі) | B32: 2230 | C32: 5704.738783 | D32: П'ять тисяч сімсот чотири грн. 74 коп. | E32: в т.ч.ПДВ- | F32: 950.7897971
A33: 43.21.1 Роботи електромонтажні(45310000-3 Електромонтажні роботи(повірка контурів заземлення) | B33: 2240 | C33: 745 | D33: Сімсот сорок п'ять грн. 0 коп. | E33: в т.ч.ПДВ- | F33: 124.1666667
A34: 38.11.6 Послуги підприємств щодо перевезення інших безпечних відходів(90512000-9 Послуги з перевезення сміття) | B34: 2240 | C34: 13365 | D34: Тринадцять тисяч триста шістдесят п'ять грн. 0 коп. | E34: в т.ч.ПДВ- | F34: 2227.5
A35: Капітальний ремонт будівель (45000000-7 Будівельні роботи) | B35: 3132 | C35: 398000 | D35: Триста дев'яносто вісім тисяч грн. 0 коп. | E35: в т.ч.ПДВ- | F35: 66333.33333
A36: 36.00.2 Обробляння та розподіляння води трубопроводами(65110000-7 Розподіл води) | B36: 2272 | C36: 3101.6328 | D36: Три тисячі сто одна грн. 63 коп. | E36: в т.ч.ПДВ- | F36: 516.9388
A37: 37.00.1 Послуги каналізаційні(90400000-1 Послуги у сфері водовідведення) | B37: 2272 | C37: 2469.3672 | D37: Дві тисячі чотириста шістдесят дев'ять грн. 37 коп. | E37: в т.ч.ПДВ- | F37: 411.5612
A38: 35.11.1 Енергія електрична (09310000-5 Електрична енергія) | B38: 2273 | C38: 58722 | D38: П'ятдесят вісім тисяч сімсот двадцять дві грн. 0 коп. | E38: в т.ч.ПДВ- | F38: 9787
A39: 61.10.1 Послуги щодо передавання даних і повідомлень(64211000-8 Послуги громадського телефонного звязку) | B39: 2240 | C39: 1584 | D39: Одна тисячa п'ятсот вісімдесят чотири грн. 0 коп. | E39: в т.ч.ПДВ- | F39: 264
A40: 91.01.1 Послуги бібліотек і архівів(92512000-3 Послуги архівів) | B40: 2240 | C40: 198 | D40: Сто дев'яносто вісім грн. 0 коп. | E40: без ПДВ
A41: 71.20.1 Послуги щодо технічного випробування й аналізування(71632000-7 Послуги з технічних випробувань (повірка,атестація) | B41: 2240 | C41: 147 | D41: Сто сорок сім грн. 0 коп. | E41: в т.ч.ПДВ- | F41: 24.5
A42: 58.29.1 Програмне забезпечення системне на фізичних носіях(48443000-5 Пакети програмного забезпечення для бухгалтерського обліку) | B42: 2240 | C42: 7392 | D42: Сім тисяч триста дев'яносто дві грн. 0 коп. | E42: в т.ч.ПДВ- | F42: 1232
A43: 27.51.2 Прилади електричні побутові,інші,н.в.і.у.(39711000-9 Електричні побутові прилади для обробки продуктів харчування) | B43: 3110 | C43: 137180 | D43: Сто тридцять сім тисяч сто вісімдесят грн. 0 коп. | E43: в т.ч.ПДВ- | F43: 22863.33333
B45: "___"_____________________2015р.
A47: Завідуюча _______________________ М.М.Рудюк
A48: (підпис) (ініціали та прізвище)
A49: МП

Sheet 60
A1: Додаток до річного плану закупівель на 2016 рік
A2: Дошкільний навчальний заклад № 60, 26243384
A3: (найменування замовника,код за ЄДРПОУ)
A4: Предмет закупівлі | B4: Код КЕКВ (для бюджетних коштів) | C4: Очікувана вартість предмета закупівлі | G4: Процедура закупівлі | H4: Орієнтовний початок проведення процедури закупівлі | I4: Примітки
A5: 1 | B5: 2 | C5: 3 | G5: 4 | H5: 5 | I5: 6
A6: 10.73.1 Макарони,локшина,кускус і подібні борошняні вироби(15851000-8 Борошняні вироби(макарони) | B6: 2230 | C6: 2660.200681 | D6: =SUMINWORDS(C6,"грн.","коп.") -> Дві тисячі шістсот шістдесят грн. 20 коп. | E6: в т.ч.ПДВ- | F6: =C6/6 -> 443.3667802
A7: 10.11.1 М'ясо великої рогатої худоби,свиней,овець,кіз,коней та ін..тварин родини конячих,свіже чиа охолоджене(15111000-9 М'ясо великої рогатої худоби родини бикових(яловичина) | B7: 2230 | C7: 97831.70733 | D7: =SUMINWORDS(C7,"грн.","коп.") -> Дев'яносто сім тисяч вісімсот тридцять одна грн. 71 коп. | E7: в т.ч.ПДВ- | F7: =C7/6 -> 16305.28455
A8: 10.12.1 М'ясо свійської птиці,свіже чи охолоджене(15112000-6 М'ясо свійської птиці) | B8: 2230 | C8: 34629.64869 | D8: =SUMINWORDS(C8,"грн.","коп.") -> Тридцять чотири тисячі шістсот двадцять дев'ять грн. 65 коп. | E8: в т.ч.ПДВ- | F8: 5771.608116
A9: 10.12.4 Субпродукти харчові свійської птиці(15114000-0 Потрухи(печінка) | B9: 2230 | C9: 9833.697174 | D9: =SUMINWORDS(C9,"грн.","коп.") -> Дев'ять тисяч вісімсот тридцять три грн. 70 коп. | E9: в т.ч.ПДВ- | F9: 1638.949529
A10: 10.13.1.Консерви та готові страви з м’яса,м’ясних субпродуктів чи крові (15130000-8 Мясопродукти (ковбаса,сосиски) | B10: 2230 | C10: 29525.73738 | D10: Двадцять дев'ять тисяч п'ятсот двадцять п'ять грн. 74 коп. | E10: в т.ч.ПДВ- | F10: 4920.95623
A11: 10.20.1 Продукція рибна,свіжа,охолоджена чи заморожена (15221000-3 Морожена риба) | B11: 2230 | C11: 69516.90987 | D11: Шістдесят дев'ять тисяч п'ятсот шістнадцять грн. 91 коп. | E11: в т.ч.ПДВ- | F11: 11586.15165
A12: 01.24.1 Яблука (03222000-3 Фрукти і горіхи(яблука,апельсини,лимони,ягоди) | B12: 2230 | C12: 29334.49524 | D12: Двадцять дев'ять тисяч триста тридцять чотири грн. 50 коп. | E12: в т.ч.ПДВ- | F12: 4889.08254
A13: 10.39.1 Плоди та овочі,оброблені та законсервовані,крім картоплі(15331000-7 Оброблені овочі(консерви овочеві) | B13: 2230 | C13: 20447.04705 | D13: Двадцять тисяч чотириста сорок сім грн. 5 коп. | E13: в т.ч.ПДВ- | F13: 3407.841175
A14: 10.72.1 Вироби хлібобулочні,зниженої вологості,та кондитерські,борошняні,тривалого зберігання(15820000-2 Сухарі та печиво; пресерви з хлібобулочних і кондитерських виробів (печиво) | B14: 2230 | C14: 7171.103352 | D14: Сім тисяч сто сімдесят одна грн. 10 коп. | E14: в т.ч.ПДВ- | F14: 1195.183892
A15: 10.71.1 Вироби хлібобулочні,кондитерські та кулінарні,борошняні,нетривалого зберігання(15810000-9 Хлібопродукти, свіжовипечені хлібобулочні та кондитерські вироби) | B15: 2230 | C15: 26378.70542 | D15: Двадцять шість тисяч триста сімдесят вісім грн. 71 коп. | E15: в т.ч.ПДВ- | F15: 4396.450903
A16: 10.51.1 Молоко та вершки,рідинні,оброблені(15511000-3 Молоко) | B16: 2230 | C16: 103912.1033 | D16: Сто три тисячі дев'ятсот дванадцять грн. 10 коп. | E16: в т.ч.ПДВ- | F16: 17318.68388
A17: 10.51.5 Продукти молочні, інші (15550000-8 Молочні продукти різні (кефір,сметана) | B17: 2230 | C17: 19661.27133 | D17: Дев'ятнадцять тисяч шістсот шістдесят одна грн. 27 коп. | E17: в т.ч.ПДВ- | F17: 3276.878556
A18: 10.51.4 Сир сичужний та кисломолочний сир(15540000-5 Сирні продукти) | B18: 2230 | C18: 73311.69525 | D18: Сімдесят три тисячі триста одинадцять грн. 70 коп. | E18: в т.ч.ПДВ- | F18: 12218.61588
A19: 10.32.1 Соки фруктові та овочеві (15321000-4 Фруктові соки) | B19: 2230 | C19: 19566.83066 | D19: Дев'ятнадцять тисяч п'ятсот шістдесят шість грн. 83 коп. | E19: в т.ч.ПДВ- | F19: 3261.138443
A20: 10.61.2 Борошно зернових і овочевих культур;їхні суміші(15612000-1 Борошно зернових та овочевих культур і супутня продукція) | B20: 2230 | C20: 4324.261243 | D20: Чотири тисячі триста двадцять чотири грн. 26 коп. | E20: в т.ч.ПДВ- | F20: 720.7102071
A21: 10.61.1 Рис напівобрушений чи повністю обрушений,або лущений чи дроблений(15614000-5 Рис оброблений) | B21: 2230 | C21: 2108.710544 | D21: Дві тисячі сто вісім грн. 71 коп. | E21: в т.ч.ПДВ- | F21: 351.4517573
A22: 0.81.1 Цукор-сирець,тростинний і очищений тростинний чи буряковий цукор (сахароза);меляса (15831000-2 Цукор) | B22: 2230 | C22: 18938.22074 | D22: Вісімнадцять тисяч дев'ятсот тридцять вісім грн. 22 коп. | E22: в т.ч.ПДВ- | F22: 3156.370124
A23: 10.39.2 Плоди й горіхи,оброблені та законсервовані(15332000-4 Оброблені фрукти та горіхи(повидло,сухофрукти) | B23: 2230 | C23: 12426.81303 | D23: Дванадцять тисяч чотириста двадцять шість грн. 81 коп. | E23: в т.ч.ПДВ- | F23: 2071.135505
A24: 10.51.3 Масло вершкове та молочні пасти(15530000-2 Вершкове масло) | B24: 2230 | C24: 34053.36105 | D24: Тридцять чотири тисячі п'ятдесят три грн. 36 коп. | E24: в т.ч.ПДВ- | F24: 5675.560174
A25: 01.47.2 Яйця у шкаралупі свіжі (03142000-8 Продукція тваринництва (03142500-3 Яйця) | B25: 2230 | C25: 26124.60903 | D25: Двадцять шість тисяч сто двадцять чотири грн. 61 коп. | E25: в т.ч.ПДВ- | F25: 4354.101506
A26: 10.41.5 Олії рафіновані(15421000-5 Рафіновані олії) | B26: 2230 | C26: 7642.943638 | D26: Сім тисяч шістсот сорок дві грн. 94 коп. | E26: в т.ч.ПДВ- | F26: 1273.82394
A27: 10.61.3 Крупи,крупка,гранули та інші продукти з зерна зернових культур(15613000-8 Продукція із зерна зернових культур(крупи) | B27: 2230 | C27: 7968.460619 | D27: Сім тисяч дев'ятсот шістдесят вісім грн. 46 коп. | E27: в т.ч.ПДВ- | F27: 1328.07677
A28: 10.82.1 Какао терте,какао-масло,жири й олія,какао-порошок(15841000-5 Какао) | B28: 2230 | C28: 9818.90966 | D28: Дев'ять тисяч вісімсот вісімнадцять грн. 91 коп. | E28: в т.ч.ПДВ- | F28: 1636.484943
A29: 10.83.1 Чай і кава,оброблені(15860000-4 Кава, чай та супутня продукція) | B29: 2230 | C29: 10308.81998 | D29: Десять тисяч триста вісім грн. 82 коп. | E29: в т.ч.ПДВ- | F29: 1718.136663
A30: 10.84.3 Сіль харчова(14410000-8 Камяна сіль) | B30: 2230 | C30: 387.5765447 | D30: Триста вісімдесят сім грн. 58 коп. | E30: в т.ч.ПДВ- | F30: 64.59609078
